Workbook

Sheet State 2023
A1: State | B1: RCU State | C1: 2023 EGU control strategy | D1: 2026 EGU control strategy | E1: 2021 OS NOx | F1: 2021 OS Heat Input | G1: 2021 OS Generation | H1: Baseline 2023 OS NOx | I1: Baseline 2023 OS Heat Input | J1: Baseline 2023 OS Generation | K1: Baseline 2023 OS NOx + SCR Optimize | L1: Baseline 2023 OS NOx + SCR Optimize + SOA CC | M1: Baseline 2023 OS NOx + SCR Optimize + SNCR Optimize | N1: Baseline 2023 OS NOx + SCR Optimize + SOA CC + SNCR Optimize | O1: Baseline 2023 OS NOx + SCR Optimize + SOA CC + SNCR Optimize + SCR (Half)/SNCR Retrofit | P1: Baseline 2023 OS NOx + SCR Optimize + SOA CC + SNCR Optimize + SCR/SNCR Retrofit | Q1: 2023 State Budget | S1: State | T1: 2021 OS NOx | U1: 2021 OS Heat Input | V1: 2021 OS Generation | W1: Baseline 2023 OS NOx | X1: Baseline 2023 OS Heat Input | Y1: Baseline 2023 OS Generation | Z1: Baseline 2023 OS NOx + SCR Optimize | AA1: Baseline 2023 OS NOx + SCR Optimize + SOA CC | AB1: Baseline 2023 OS NOx + SCR Optimize + SNCR Optimize | AC1: Baseline 2023 OS NOx + SCR Optimize + SOA CC + SNCR Optimize | AD1: Baseline 2023 OS NOx + SCR Optimize + SOA CC + SNCR Optimize + SCR (Half)/SNCR Retrofit | AE1: Baseline 2023 OS NOx + SCR Optimize + SOA CC + SNCR Optimize + SCR/SNCR Retrofit | AG1: Summer NOx new units (>25MW) | AH1: Summer HI new units (>25MW) | AI1: Summer Gen new units (>25MW) | AK1: Summer new units (>25MW) | AL1: NOx | AM1: Heat Input | AN1: Generation | AP1: Budget Adjustment | AQ1: Baseline 2023 OS NOx | AR1: Baseline 2023 OS Heat Input | AS1: Baseline 2023 OS Generation | AT1: Baseline 2023 OS NOx + SCR Optimize | AU1: Baseline 2023 OS NOx + SCR Optimize + SOA CC | AV1: Baseline 2023 OS NOx + SCR Optimize + SNCR Optimize | AW1: Baseline 2023 OS NOx + SCR Optimize + SOA CC + SNCR Optimize | AX1: Baseline 2023 OS NOx + SCR Optimize + SOA CC + SNCR Optimize + SCR (Half)/SNCR Retrofit | AY1: Baseline 2023 OS NOx + SCR Optimize + SOA CC + SNCR Optimize + SCR/SNCR Retrofit
A2: Alabama | C2: X | E2: =T2 -> 6,648 | F2: =U2 -> 313,037,541 | G2: =V2 -> 37,219,186 | H2: =W2+$AG2+AQ2 -> 6,412 | I2: =X2+$AH2+AR2 -> 313,037,541 | J2: =Y2+$AI2+AS2 -> 37,219,186 | K2: =Z2+$AG2+AT2 -> 6,379 | L2: 6,379 | M2: 6,379 | N2: 6,379 | O2: 6,038 | P2: 5,697 | Q2: =IF(C2="X",ROUND(M2,0),"") -> 6,379 | S2: Alabama | T2: 6,648 | U2: 313,037,541 | V2: 37,219,186 | W2: 6,412 | X2: 313,037,541 | Y2: 37,219,186 | Z2: 6,379 | AA2: 6,379 | AB2: 6,379 | AC2: 6,379 | AD2: 6,038 | AE2: 5,697 | AK2: California | AL2: 113 | AM2: 20,511,517 | AN2: 2,900,513 | AP2: =A2 -> Alabama
A3: Arizona | E3: =T3 -> 7,723 | F3: 265,744,346 | G3: 32,223,474 | H3: =W3+$AG3+AQ3 -> 7,723 | I3: =X3+$AH3+AR3 -> 265,744,346 | J3: =Y3+$AI3+AS3 -> 32,223,474 | K3: =Z3+$AG3+AT3 -> 7,639 | L3: =AA3+$AG3+AU3 -> 7,570 | M3: =AB3+$AG3+AV3 -> 7,509 | N3: =AC3+$AG3+AW3 -> 7,439 | O3: =AD3+$AG3+AX3 -> 5,457 | P3: =AE3+$AG3+AY3 -> 3,475 | Q3: =IF(C3="X",ROUND(M3,0),"") ->  | S3: Arizona | T3: 7,723 | U3: 265,744,346 | V3: 32,223,474 | W3: 7,723 | X3: 265,744,346 | Y3: 32,223,474 | Z3: 7,639 | AA3: 7,570 | AB3: 7,509 | AC3: 7,439 | AD3: 5,457 | AE3: 3,475 | AK3: Colorado | AL3: 3 | AM3: 595,760 | AN3: 60,147 | AP3: Arizona
A4: Arkansas | C4: X | D4: X | E4: 8,955 | F4: 192,843,561 | G4: 21,442,686 | H4: 8,955 | I4: 192,843,561 | J4: 21,442,686 | K4: 8,927 | L4: 8,927 | M4: 8,927 | N4: 8,927 | O4: 6,493 | P4: 4,060 | Q4: 8,927 | S4: Arkansas | T4: 8,955 | U4: 192,843,561 | V4: 21,442,686 | W4: 8,955 | X4: 192,843,561 | Y4: 21,442,686 | Z4: 8,927 | AA4: 8,927 | AB4: 8,927 | AC4: 8,927 | AD4: 6,493 | AE4: 4,060 | AK4: Florida | AL4: 192 | AM4: 34,967,486 | AN4: 5,489,401 | AP4: Arkansas
A5: California | E5: 1,618 | F5: 307,678,602 | G5: 39,811,838 | H5: 1,731 | I5: 328,190,119 | J5: 42,712,351 | K5: 1,340 | L5: 1,340 | M5: 1,340 | N5: 1,340 | O5: 1,340 | P5: 1,340 | S5: California | T5: 1,618 | U5: 307,678,602 | V5: 39,811,838 | W5: 1,618 | X5: 307,678,602 | Y5: 39,811,838 | Z5: 1,227 | AA5: 1,227 | AB5: 1,227 | AC5: 1,227 | AD5: 1,227 | AE5: 1,227 | AG5: =VLOOKUP(A5,AK:AL,2, FALSE) -> 113 | AH5: =VLOOKUP(A5,AK:AN,3, FALSE) -> 20,511,517 | AI5: =VLOOKUP(A5,AK:AN,4, FALSE) -> 2,900,513 | AK5: Illinois | AL5: 100 | AM5: 18,244,699 | AN5: 2,864,160 | AP5: California
A6: Colorado | E6: 7,310 | F6: 173,828,689 | G6: 18,428,320 | H6: 6,470 | I6: 161,829,516 | J6: 17,261,813 | K6: 6,393 | L6: 6,393 | M6: 6,393 | N6: 6,393 | O6: 4,990 | P6: 3,587 | S6: Colorado | T6: 7,310 | U6: 173,828,689 | V6: 18,428,320 | W6: 6,467 | X6: 161,233,756 | Y6: 17,201,666 | Z6: 6,389 | AA6: 6,389 | AB6: 6,389 | AC6: 6,389 | AD6: 4,986 | AE6: 3,583 | AG6: =VLOOKUP(A6,AK:AL,2, FALSE) -> 3 | AH6: =VLOOKUP(A6,AK:AN,3, FALSE) -> 595,760 | AI6: =VLOOKUP(A6,AK:AN,4, FALSE) -> 60,147 | AK6: Indiana | AL6: 1 | AM6: 208,043 | AN6: 21,004 | AP6: Colorado
A7: Connecticut | E7: 416 | F7: 72,511,598 | G7: 9,712,002 | H7: 381 | I7: 72,511,598 | J7: 9,712,002 | K7: 355 | L7: 355 | M7: 355 | N7: 355 | O7: 355 | P7: 355 | S7: Connecticut | T7: 416 | U7: 72,511,598 | V7: 9,712,002 | W7: 381 | X7: 72,511,598 | Y7: 9,712,002 | Z7: 355 | AA7: 355 | AB7: 355 | AC7: 355 | AD7: 355 | AE7: 355 | AK7: Louisiana | AL7: 52 | AM7: 9,399,861 | AN7: 1,285,200 | AP7: Connecticut
A8: Delaware | E8: 423 | F8: 18,775,953 | G8: 1,848,538 | H8: 423 | I8: 18,775,953 | J8: 1,848,538 | K8: 388 | L8: 388 | M8: 384 | N8: 384 | O8: 384 | P8: 384 | S8: Delaware | T8: 423 | U8: 18,775,953 | V8: 1,848,538 | W8: 423 | X8: 18,775,953 | Y8: 1,848,538 | Z8: 388 | AA8: 388 | AB8: 384 | AC8: 384 | AD8: 384 | AE8: 384 | AK8: Michigan | AL8: 227 | AM8: 41,187,590 | AN8: 6,164,443 | AP8: Delaware
A9: Florida | E9: 13,730 | F9: 737,533,505 | G9: 94,265,950 | H9: 13,541 | I9: 767,431,533 | J9: 99,266,837 | K9: 11,000 | L9: 11,000 | M9: 11,000 | N9: 11,000 | O9: 9,636 | P9: 8,273 | S9: Florida | T9: 13,730 | U9: 737,533,505 | V9: 94,265,950 | W9: 13,349 | X9: 732,464,047 | Y9: 93,777,436 | Z9: 10,808 | AA9: 10,808 | AB9: 10,808 | AC9: 10,808 | AD9: 9,444 | AE9: 8,080 | AG9: =VLOOKUP(A9,AK:AL,2, FALSE) -> 192 | AH9: =VLOOKUP(A9,AK:AN,3, FALSE) -> 34,967,486 | AI9: =VLOOKUP(A9,AK:AN,4, FALSE) -> 5,489,401 | AK9: New York | AL9: 54 | AM9: 9,863,952 | AN9: 1,399,142 | AP9: Florida
A10: Georgia | E10: 6,168 | F10: 328,793,408 | G10: 38,113,703 | H10: 5,191 | I10: 299,547,975 | J10: 35,348,099 | K10: 5,179 | L10: 5,179 | M10: 5,172 | N10: 5,172 | O10: 5,089 | P10: 5,007 | S10: Georgia | T10: 6,168 | U10: 328,793,408 | V10: 38,113,703 | W10: 5,191 | X10: 299,547,975 | Y10: 35,348,099 | Z10: 5,179 | AA10: 5,179 | AB10: 5,172 | AC10: 5,172 | AD10: 5,089 | AE10: 5,007 | AK10: North Dakota | AL10: 1 | AM10: 145,485 | AN10: 14,688 | AP10: Georgia
A11: Idaho | E11: 240 | F11: 18,319,983 | G11: 2,275,867 | H11: 240 | I11: 18,319,983 | J11: 2,275,867 | K11: 240 | L11: 240 | M11: 240 | N11: 240 | O11: 240 | P11: 240 | S11: Idaho | T11: 240 | U11: 18,319,983 | V11: 2,275,867 | W11: 240 | X11: 18,319,983 | Y11: 2,275,867 | Z11: 240 | AA11: 240 | AB11: 240 | AC11: 240 | AD11: 240 | AE11: 240 | AK11: Ohio | AL11: 292 | AM11: 53,124,845 | AN11: 8,069,771 | AP11: Idaho
A12: Illinois | B12: X | C12: X | D12: X | E12: 11,335 | F12: 316,615,564 | G12: 32,824,055 | H12: 7,721 | I12: 274,005,935 | J12: 29,729,242 | K12: 7,652 | L12: 7,652 | M12: 7,474 | N12: 7,474 | O12: 6,948 | P12: 6,423 | Q12: 7,474 | S12: Illinois | T12: 11,335 | U12: 316,615,564 | V12: 32,824,055 | W12: 7,621 | X12: 255,761,236 | Y12: 26,865,082 | Z12: 7,551 | AA12: 7,551 | AB12: 7,374 | AC12: 7,374 | AD12: 6,848 | AE12: 6,322 | AG12: =VLOOKUP(A12,AK:AL,2, FALSE) -> 100 | AH12: =VLOOKUP(A12,AK:AN,3, FALSE) -> 18,244,699 | AI12: =VLOOKUP(A12,AK:AN,4, FALSE) -> 2,864,160 | AK12: Pennsylvania | AL12: 94 | AM12: 20,450,389 | AN12: 3,083,268 | AP12: Illinois
A13: Indiana | B13: X | C13: X | D13: X | E13: 14,162 | F13: 367,769,003 | G13: 38,256,889 | H13: 13,298 | I13: 356,047,916 | J13: 37,264,008 | K13: 12,442 | L13: 12,442 | M13: 12,440 | N13: 12,440 | O13: 11,425 | P13: 10,424 | Q13: 12,440 | S13: Indiana | T13: 14,162 | U13: 367,769,003 | V13: 38,256,889 | W13: 13,296 | X13: 355,839,873 | Y13: 37,243,004 | Z13: 12,441 | AA13: 12,441 | AB13: 12,438 | AC13: 12,438 | AD13: 11,424 | AE13: 10,423 | AG13: =VLOOKUP(A13,AK:AL,2, FALSE) -> 1 | AH13: =VLOOKUP(A13,AK:AN,3, FALSE) -> 208,043 | AI13: =VLOOKUP(A13,AK:AN,4, FALSE) -> 21,004 | AK13: South Dakota | AL13: 5 | AM13: 892,912 | AN13: 90,148 | AP13: Indiana
A14: Iowa | E14: 9,970 | F14: 147,993,282 | G14: 15,175,329 | H14: 9,867 | I14: 142,934,126 | J14: 14,694,225 | K14: 9,867 | L14: 9,813 | M14: 9,807 | N14: 9,752 | O14: 6,796 | P14: 4,032 | S14: Iowa | T14: 9,970 | U14: 147,993,282 | V14: 15,175,329 | W14: 9,867 | X14: 142,934,126 | Y14: 14,694,225 | Z14: 9,867 | AA14: 9,813 | AB14: 9,807 | AC14: 9,752 | AD14: 6,796 | AE14: 4,032 | AK14: Texas | AL14: 86 | AM14: 15,641,275 | AN14: 2,251,303 | AP14: Iowa
A15: Kansas | E15: 6,231 | F15: 115,827,226 | G15: 11,828,633 | H15: 6,231 | I15: 115,827,226 | J15: 11,828,633 | K15: 5,484 | L15: 5,484 | M15: 5,484 | N15: 5,484 | O15: 4,439 | P15: 3,394 | S15: Kansas | T15: 6,231 | U15: 115,827,226 | V15: 11,828,633 | W15: 6,231 | X15: 115,827,226 | Y15: 11,828,633 | Z15: 5,484 | AA15: 5,484 | AB15: 5,484 | AC15: 5,484 | AD15: 4,439 | AE15: 3,394 | AL15: =SUM(AL2:AL14) -> 1,220 | AM15: =SUM(AM2:AM14) -> 225,233,814 | AN15: 33,693,189 | AP15: Kansas
A16: Kentucky | B16: X | C16: X | D16: X | E16: 14,571 | F16: 301,161,750 | G16: 32,289,611 | H16: 13,900 | I16: 301,161,750 | J16: 32,289,611 | K16: 13,601 | L16: 12,999 | M16: 13,601 | N16: 12,999 | O16: 10,520 | P16: 8,040 | Q16: 13,601 | S16: Kentucky | T16: 14,571 | U16: 301,161,750 | V16: 32,289,611 | W16: 13,900 | X16: 301,161,750 | Y16: 32,289,611 | Z16: 13,601 | AA16: 12,999 | AB16: 13,601 | AC16: 12,999 | AD16: 10,520 | AE16: 8,040 | AP16: Kentucky
A17: Louisiana | B17: X | C17: X | D17: X | E17: 11,391 | F17: 280,839,944 | G17: 32,388,791 | H17: 9,974 | I17: 280,592,592 | J17: 32,814,029 | K17: 9,459 | L17: 9,459 | M17: 9,363 | N17: 9,363 | O17: 6,568 | P17: 3,937 | Q17: 9,363 | S17: Louisiana | T17: 11,391 | U17: 280,839,944 | V17: 32,388,791 | W17: 9,922 | X17: 271,192,731 | Y17: 31,528,829 | Z17: 9,408 | AA17: 9,408 | AB17: 9,311 | AC17: 9,311 | AD17: 6,517 | AE17: 3,885 | AG17: =VLOOKUP(A17,AK:AL,2, FALSE) -> 52 | AH17: =VLOOKUP(A17,AK:AN,3, FALSE) -> 9,399,861 | AI17: =VLOOKUP(A17,AK:AN,4, FALSE) -> 1,285,200 | AP17: Louisiana
A18: Maine | E18: 108 | F18: 12,436,184 | G18: 1,524,816 | H18: 108 | I18: 12,436,184 | J18: 1,524,816 | K18: 86 | L18: 86 | M18: 86 | N18: 86 | O18: 86 | P18: 86 | S18: Maine | T18: 108 | U18: 12,436,184 | V18: 1,524,816 | W18: 108 | X18: 12,436,184 | Y18: 1,524,816 | Z18: 86 | AA18: 86 | AB18: 86 | AC18: 86 | AD18: 86 | AE18: 86 | AP18: Maine
A19: Maryland | B19: X | C19: X | D19: X | E19: 1,428 | F19: 80,220,113 | G19: 9,246,155 | H19: 1,214 | I19: 70,725,007 | J19: 8,312,803 | K19: 1,214 | L19: 1,214 | M19: 1,206 | N19: 1,206 | O19: 1,206 | P19: 1,206 | Q19: 1,206 | S19: Maryland | T19: 1,428 | U19: 80,220,113 | V19: 9,246,155 | W19: 1,214 | X19: 70,725,007 | Y19: 8,312,803 | Z19: 1,214 | AA19: 1,214 | AB19: 1,206 | AC19: 1,206 | AD19: 1,206 | AE19: 1,206 | AP19: Maryland
A20: Massachusetts | E20: 298 | F20: 53,404,422 | G20: 6,150,912 | H20: 297 | I20: 53,388,723 | J20: 6,150,912 | K20: 265 | L20: 265 | M20: 265 | N20: 265 | O20: 265 | P20: 265 | S20: Massachusetts | T20: 298 | U20: 53,404,422 | V20: 6,150,912 | W20: 297 | X20: 53,388,723 | Y20: 6,150,912 | Z20: 265 | AA20: 265 | AB20: 265 | AC20: 265 | AD20: 265 | AE20: 265 | AP20: Massachusetts
A21: Michigan | B21: X | C21: X | D21: X | E21: 13,555 | F21: 303,831,906 | G21: 29,702,739 | H21: 10,746 | I21: 313,846,533 | J21: 33,619,256 | K21: 10,742 | L21: 10,742 | M21: 10,727 | N21: 10,727 | O21: 9,058 | P21: 7,504 | Q21: 10,727 | S21: Michigan | T21: 13,555 | U21: 303,831,906 | V21: 29,702,739 | W21: 10,519 | X21: 272,658,942 | Y21: 27,454,813 | Z21: 10,515 | AA21: 10,515 | AB21: 10,500 | AC21: 10,500 | AD21: 8,831 | AE21: 7,277 | AG21: =VLOOKUP(A21,AK:AL,2, FALSE) -> 227 | AH21: =VLOOKUP(A21,AK:AN,3, FALSE) -> 41,187,590 | AI21: =VLOOKUP(A21,AK:AN,4, FALSE) -> 6,164,443 | AP21: Michigan
A22: Minnesota | C22: X | E22: 5,652 | F22: 128,967,463 | G22: 13,677,339 | H22: 5,643 | I22: 128,893,685 | J22: 13,670,775 | K22: 5,544 | L22: 5,544 | M22: 5,504 | N22: 5,504 | O22: 4,312 | P22: 3,121 | Q22: 5,504 | S22: Minnesota | T22: 5,652 | U22: 128,967,463 | V22: 13,677,339 | W22: 5,643 | X22: 128,893,685 | Y22: 13,670,775 | Z22: 5,544 | AA22: 5,544 | AB22: 5,504 | AC22: 5,504 | AD22: 4,312 | AE22: 3,121 | AP22: Minnesota
A23: Mississippi | C23: X | D23: X | E23: 5,790 | F23: 190,043,215 | G23: 22,493,704 | H23: 6,283 | I23: 192,978,295 | J23: 22,692,531 | K23: 6,210 | L23: 5,299 | M23: 6,210 | N23: 5,299 | O23: 3,652 | P23: 2,158 | Q23: 6,210 | S23: Mississippi | T23: 5,790 | U23: 190,043,215 | V23: 22,493,704 | W23: 5,097 | X23: 183,983,427 | Y23: 21,897,014 | Z23: 5,024 | AA23: 4,400 | AB23: 5,024 | AC23: 4,400 | AD23: 3,090 | AE23: 1,933 | AP23: Mississippi | AQ23: 1,186 | AR23: 8,994,868 | AS23: 795,517 | AT23: 1,186 | AU23: 899 | AV23: 1,186 | AW23: 899 | AX23: 562 | AY23: 225
A24: Missouri | C24: X | D24: X | E24: 20,388 | F24: 288,219,887 | G24: 31,104,031 | H24: 20,094 | I24: 284,308,851 | J24: 30,724,801 | K24: 12,755 | L24: 12,755 | M24: 12,598 | N24: 12,598 | O24: 10,429 | P24: 8,260 | Q24: 12,598 | S24: Missouri | T24: 20,388 | U24: 288,219,887 | V24: 31,104,031 | W24: 20,094 | X24: 284,308,851 | Y24: 30,724,801 | Z24: 12,755 | AA24: 12,755 | AB24: 12,598 | AC24: 12,598 | AD24: 10,429 | AE24: 8,260 | AP24: Missouri
A25: Montana | E25: 3,071 | F25: 46,489,166 | G25: 4,635,867 | H25: 3,071 | I25: 46,489,166 | J25: 4,635,867 | K25: 3,071 | L25: 3,071 | M25: 3,071 | N25: 3,071 | O25: 2,124 | P25: 1,177 | S25: Montana | T25: 3,071 | U25: 46,489,166 | V25: 4,635,867 | W25: 3,071 | X25: 46,489,166 | Y25: 4,635,867 | Z25: 3,071 | AA25: 3,071 | AB25: 3,071 | AC25: 3,071 | AD25: 2,124 | AE25: 1,177 | AP25: Montana
A26: Nebraska | E26: 8,931 | F26: 102,719,096 | G26: 10,720,072 | H26: 8,931 | I26: 102,719,096 | J26: 10,720,072 | K26: 8,894 | L26: 8,381 | M26: 8,894 | N26: 8,381 | O26: 5,672 | P26: 3,070 | S26: Nebraska | T26: 8,931 | U26: 102,719,096 | V26: 10,720,072 | W26: 8,931 | X26: 102,719,096 | Y26: 10,720,072 | Z26: 8,894 | AA26: 8,381 | AB26: 8,894 | AC26: 8,381 | AD26: 5,672 | AE26: 3,070 | AP26: Nebraska
A27: Nevada | C27: X | D27: X | E27: 2,457 | F27: 103,489,785 | G27: 12,918,610 | H27: 2,372 | I27: 103,489,785 | J27: 12,918,610 | K27: 2,368 | L27: 2,368 | M27: 2,368 | N27: 2,368 | O27: 1,788 | P27: 1,207 | Q27: 2,368 | S27: Nevada | T27: 2,457 | U27: 103,489,785 | V27: 12,918,610 | W27: 2,372 | X27: 103,489,785 | Y27: 12,918,610 | Z27: 2,368 | AA27: 2,368 | AB27: 2,368 | AC27: 2,368 | AD27: 1,788 | AE27: 1,207 | AP27: Nevada
A28: New Hampshire | E28: 330 | F28: 23,374,046 | G28: 2,303,022 | H28: =W28+$AG28+AQ28 -> 330 | I28: =X28+$AH28+AR28 -> 23,374,046 | J28: =Y28+$AI28+AS28 -> 2,303,022 | K28: =Z28+$AG28+AT28 -> 267 | L28: 267 | M28: 267 | N28: 267 | O28: 267 | P28: 267 | S28: New Hampshire | T28: 330 | U28: 23,374,046 | V28: 2,303,022 | W28: 330 | X28: 23,374,046 | Y28: 2,303,022 | Z28: 267 | AA28: 267 | AB28: 267 | AC28: 267 | AD28: 267 | AE28: 267 | AP28: New Hampshire
A29: New Jersey | B29: X | C29: X | D29: X | E29: 1,324 | F29: 119,538,737 | G29: 14,682,028 | H29: =W29+$AG29+AQ29 -> 915 | I29: =X29+$AH29+AR29 -> 112,233,231 | J29: =Y29+$AI29+AS29 -> 14,601,398 | K29: =Z29+$AG29+AT29 -> 773 | L29: =AA29+$AG29+AU29 -> 773 | M29: =AB29+$AG29+AV29 -> 773 | N29: =AC29+$AG29+AW29 -> 773 | O29: =AD29+$AG29+AX29 -> 773 | P29: =AE29+$AG29+AY29 -> 773 | Q29: 773 | S29: New Jersey | T29: 1,324 | U29: 119,538,737 | V29: 14,682,028 | W29: 915 | X29: 112,233,231 | Y29: 14,601,398 | Z29: 773 | AA29: 773 | AB29: 773 | AC29: 773 | AD29: 773 | AE29: 773 | AP29: New Jersey
A30: New Mexico | E30: 5,066 | F30: 108,235,365 | G30: 11,502,879 | H30: 2,289 | I30: 83,034,662 | J30: 9,287,898 | K30: 2,259 | L30: 2,259 | M30: 2,259 | N30: 2,259 | O30: 2,014 | P30: 1,769 | S30: New Mexico | T30: 5,066 | U30: 108,235,365 | V30: 11,502,879 | W30: 2,289 | X30: 83,034,662 | Y30: 9,287,898 | Z30: 2,259 | AA30: 2,259 | AB30: 2,259 | AC30: 2,259 | AD30: 2,014 | AE30: 1,769 | AP30: New Mexico
A31: New York | B31: X | C31: X | D31: X | E31: 3,997 | F31: 233,342,131 | G31: 27,313,198 | H31: 3,977 | I31: 242,853,661 | J31: 28,688,704 | K31: 3,912 | L31: 3,912 | M31: 3,912 | N31: 3,912 | O31: 3,650 | P31: 3,388 | Q31: 3,912 | S31: New York | T31: 3,997 | U31: 233,342,131 | V31: 27,313,198 | W31: 3,922 | X31: 232,989,708 | Y31: 27,289,562 | Z31: 3,858 | AA31: 3,858 | AB31: 3,858 | AC31: 3,858 | AD31: 3,596 | AE31: 3,333 | AG31: =VLOOKUP(A31,AK:AL,2, FALSE) -> 54 | AH31: =VLOOKUP(A31,AK:AN,3, FALSE) -> 9,863,952 | AI31: =VLOOKUP(A31,AK:AN,4, FALSE) -> 1,399,142 | AP31: New York
A32: North Carolina | E32: 12,444 | F32: 281,750,959 | G32: 29,259,654 | H32: 12,355 | I32: 281,249,322 | J32: 29,200,618 | K32: 9,209 | L32: 9,209 | M32: 9,180 | N32: 9,180 | O32: 7,789 | P32: 6,399 | S32: North Carolina | T32: 12,444 | U32: 281,750,959 | V32: 29,259,654 | W32: 12,355 | X32: 281,249,322 | Y32: 29,200,618 | Z32: 9,209 | AA32: 9,209 | AB32: 9,180 | AC32: 9,180 | AD32: 7,789 | AE32: 6,399 | AP32: North Carolina
A33: North Dakota | E33: 12,666 | F33: 121,650,949 | G33: 11,776,927 | H33: 12,246 | I33: 119,541,029 | J33: 11,593,940 | K33: 12,246 | L33: 12,246 | M33: 11,436 | N33: 11,436 | O33: 7,181 | P33: 2,927 | S33: North Dakota | T33: 12,666 | U33: 121,650,949 | V33: 11,776,927 | W33: 12,246 | X33: 119,395,544 | Y33: 11,579,252 | Z33: 12,246 | AA33: 12,246 | AB33: 11,435 | AC33: 11,435 | AD33: 7,181 | AE33: 2,926 | AG33: =VLOOKUP(A33,AK:AL,2, FALSE) -> 1 | AH33: =VLOOKUP(A33,AK:AN,3, FALSE) -> 145,485 | AI33: =VLOOKUP(A33,AK:AN,4, FALSE) -> 14,688 | AP33: North Dakota
A34: Ohio | B34: X | C34: X | D34: X | E34: 11,697 | F34: 389,640,469 | G34: 45,135,729 | H34: 10,264 | I34: 412,292,609 | J34: 50,004,932 | K34: 9,110 | L34: 9,110 | M34: 9,110 | N34: 9,110 | O34: 9,014 | P34: 8,917 | Q34: 9,110 | S34: Ohio | T34: 11,697 | U34: 389,640,469 | V34: 45,135,729 | W34: 9,972 | X34: 359,167,764 | Y34: 41,935,161 | Z34: 8,818 | AA34: 8,818 | AB34: 8,818 | AC34: 8,818 | AD34: 8,721 | AE34: 8,625 | AG34: =VLOOKUP(A34,AK:AL,2, FALSE) -> 292 | AH34: =VLOOKUP(A34,AK:AN,3, FALSE) -> 53,124,845 | AI34: =VLOOKUP(A34,AK:AN,4, FALSE) -> 8,069,771 | AP34: =A34 -> Ohio
A35: Oklahoma | C35: X | D35: X | E35: 10,470 | F35: 212,903,386 | G35: 22,657,698 | H35: 10,470 | I35: 212,903,386 | J35: 22,657,698 | K35: 10,271 | L35: 9,580 | M35: 10,271 | N35: 9,580 | O35: 6,763 | P35: 4,344 | Q35: 10,271 | S35: Oklahoma | T35: 10,470 | U35: 212,903,386 | V35: 22,657,698 | W35: 10,470 | X35: 212,903,386 | Y35: 22,657,698 | Z35: 10,271 | AA35: 9,580 | AB35: 10,271 | AC35: 9,580 | AD35: 6,763 | AE35: 4,344 | AP35: Oklahoma
A36: Oregon | E36: 342 | F36: 56,716,013 | G36: 7,943,020 | H36: 342 | I36: 56,716,013 | J36: 7,943,020 | K36: 292 | L36: 292 | M36: 292 | N36: 292 | O36: 292 | P36: 292 | S36: Oregon | T36: 342 | U36: 56,716,013 | V36: 7,943,020 | W36: 342 | X36: 56,716,013 | Y36: 7,943,020 | Z36: 292 | AA36: 292 | AB36: 292 | AC36: 292 | AD36: 292 | AE36: 292 | AP36: Oregon
A37: Pennsylvania | B37: X | C37: X | D37: X | E37: 12,785 | F37: 539,359,977 | G37: 65,729,802 | H37: 8,573 | I37: 550,993,363 | J37: 67,945,477 | K37: 8,238 | L37: 8,238 | M37: 8,138 | N37: 8,138 | O37: 7,739 | P37: 7,385 | Q37: 8,138 | S37: Pennsylvania | T37: 12,785 | U37: 539,359,977 | V37: 65,729,802 | W37: 8,480 | X37: 530,542,974 | Y37: 64,862,209 | Z37: 8,144 | AA37: 8,144 | AB37: 8,044 | AC37: 8,044 | AD37: 7,645 | AE37: 7,292 | AG37: =VLOOKUP(A37,AK:AL,2, FALSE) -> 94 | AH37: =VLOOKUP(A37,AK:AN,3, FALSE) -> 20,450,389 | AI37: =VLOOKUP(A37,AK:AN,4, FALSE) -> 3,083,268 | AP37: Pennsylvania
A38: Rhode Island | E38: 279 | F38: 31,838,505 | G38: 3,674,052 | H38: 279 | I38: 31,838,505 | J38: 3,674,052 | K38: 148 | L38: 148 | M38: 148 | N38: 148 | O38: 148 | P38: 148 | S38: Rhode Island | T38: 279 | U38: 31,838,505 | V38: 3,674,052 | W38: 279 | X38: 31,838,505 | Y38: 3,674,052 | Z38: 148 | AA38: 148 | AB38: 148 | AC38: 148 | AD38: 148 | AE38: 148 | AP38: Rhode Island
A39: South Carolina | E39: 4,273 | F39: 161,345,886 | G39: 17,627,029 | H39: 4,273 | I39: 161,345,886 | J39: 17,627,029 | K39: 3,531 | L39: 3,531 | M39: 3,531 | N39: 3,531 | O39: 3,531 | P39: 3,531 | S39: South Carolina | T39: 4,273 | U39: 161,345,886 | V39: 17,627,029 | W39: 4,273 | X39: 161,345,886 | Y39: 17,627,029 | Z39: 3,531 | AA39: 3,531 | AB39: 3,531 | AC39: 3,531 | AD39: 3,531 | AE39: 3,531 | AP39: South Carolina
A40: South Dakota | E40: 516 | F40: 15,587,258 | G40: 1,471,526 | H40: 521 | I40: 16,480,170 | J40: 1,561,673 | K40: 521 | L40: 521 | M40: 521 | N40: 521 | O40: 521 | P40: 521 | S40: South Dakota | T40: 516 | U40: 15,587,258 | V40: 1,471,526 | W40: 516 | X40: 15,587,258 | Y40: 1,471,526 | Z40: 516 | AA40: 516 | AB40: 516 | AC40: 516 | AD40: 516 | AE40: 516 | AG40: =VLOOKUP(A40,AK:AL,2, FALSE) -> 5 | AH40: =VLOOKUP(A40,AK:AN,3, FALSE) -> 892,912 | AI40: =VLOOKUP(A40,AK:AN,4, FALSE) -> 90,148 | AP40: South Dakota
A41: Tennessee | E41: 4,319 | F41: 157,981,198 | G41: 17,418,180 | H41: 4,319 | I41: 157,981,198 | J41: 17,418,180 | K41: 4,209 | L41: 4,209 | M41: 4,209 | N41: 4,209 | O41: 4,209 | P41: 4,209 | S41: Tennessee | T41: 4,319 | U41: 157,981,198 | V41: 17,418,180 | W41: 4,319 | X41: 157,981,198 | Y41: 17,418,180 | Z41: 4,209 | AA41: 4,209 | AB41: 4,209 | AC41: 4,209 | AD41: 4,209 | AE41: 4,209 | AP41: Tennessee
A42: Texas | C42: X | D42: X | E42: 42,746 | F42: 1,400,469,195 | G42: 157,307,078 | H42: 41,276 | I42: 1,395,116,925 | J42: 157,724,998 | K42: 40,367 | L42: 40,367 | M42: 40,134 | N42: 40,134 | O42: 32,341 | P42: 24,549 | Q42: 40,134 | S42: Texas | T42: 42,746 | U42: 1,400,469,195 | V42: 157,307,078 | W42: 41,190 | X42: 1,379,475,650 | Y42: 155,473,694 | Z42: 40,281 | AA42: 40,281 | AB42: 40,048 | AC42: 40,048 | AD42: 32,255 | AE42: 24,462 | AG42: =VLOOKUP(A42,AK:AL,2, FALSE) -> 86 | AH42: =VLOOKUP(A42,AK:AN,3, FALSE) -> 15,641,275 | AI42: =VLOOKUP(A42,AK:AN,4, FALSE) -> 2,251,303 | AP42: Texas
A43: Utah | C43: X | D43: X | E43: 15,762 | F43: 164,519,648 | G43: 18,345,467 | H43: 15,762 | I43: 164,519,648 | J43: 18,345,467 | K43: 15,755 | L43: 15,755 | M43: 15,755 | N43: 15,755 | O43: 9,583 | P43: 3,411 | Q43: 15,755 | S43: Utah | T43: 15,762 | U43: 164,519,648 | V43: 18,345,467 | W43: 15,762 | X43: 164,519,648 | Y43: 18,345,467 | Z43: 15,755 | AA43: 15,755 | AB43: 15,755 | AC43: 15,755 | AD43: 9,583 | AE43: 3,411 | AP43: Utah
A44: Vermont | E44: 54 | F44: 1,571,908 | G44: 113,425 | H44: 54 | I44: 1,571,908 | J44: 113,425 | K44: 54 | L44: 54 | M44: 54 | N44: 54 | O44: 54 | P44: 54 | S44: Vermont | T44: 54 | U44: 1,571,908 | V44: 113,425 | W44: 54 | X44: 1,571,908 | Y44: 113,425 | Z44: 54 | AA44: 54 | AB44: 54 | AC44: 54 | AD44: 54 | AE44: 54 | AP44: Vermont
A45: Virginia | B45: X | C45: X | D45: X | E45: 3,329 | F45: 202,953,791 | G45: 24,677,281 | H45: 3,329 | I45: 202,953,791 | J45: 24,677,281 | K45: 3,165 | L45: 3,087 | M45: 3,143 | N45: 3,065 | O45: 2,874 | P45: 2,682 | Q45: 3,143 | S45: Virginia | T45: 3,329 | U45: 202,953,791 | V45: 24,677,281 | W45: 3,329 | X45: 202,953,791 | Y45: 24,677,281 | Z45: 3,165 | AA45: 3,087 | AB45: 3,143 | AC45: 3,065 | AD45: 2,874 | AE45: 2,682 | AP45: Virginia
A46: Washington | E46: 1,999 | F46: 65,748,254 | G46: 7,731,261 | H46: 1,999 | I46: 65,748,254 | J46: 7,731,261 | K46: 1,729 | L46: 1,729 | M46: 1,729 | N46: 1,729 | O46: 1,184 | P46: 639 | S46: Washington | T46: 1,999 | U46: 65,748,254 | V46: 7,731,261 | W46: 1,999 | X46: 65,748,254 | Y46: 7,731,261 | Z46: 1,729 | AA46: 1,729 | AB46: 1,729 | AC46: 1,729 | AD46: 1,184 | AE46: 639 | AP46: Washington
A47: West Virginia | B47: X | C47: X | D47: X | E47: 14,686 | F47: 306,845,495 | G47: 32,032,438 | H47: 14,686 | I47: 306,845,495 | J47: 32,032,438 | K47: 14,132 | L47: 13,586 | M47: 13,791 | N47: 13,306 | O47: 12,166 | P47: 11,026 | Q47: 13,791 | S47: West Virginia | T47: 14,686 | U47: 306,845,495 | V47: 32,032,438 | W47: 14,686 | X47: 306,845,495 | Y47: 32,032,438 | Z47: 14,132 | AA47: 13,586 | AB47: 13,791 | AC47: 13,306 | AD47: 12,166 | AE47: 11,026 | AP47: West Virginia
A48: Wisconsin | C48: X | E48: 6,321 | F48: 220,794,282 | G48: 24,061,341 | H48: 6,321 | I48: 220,794,282 | J48: 24,061,341 | K48: 6,315 | L48: 6,315 | M48: 6,295 | N48: 6,295 | O48: 5,997 | P48: 5,699 | Q48: 6,295 | S48: Wisconsin | T48: 6,321 | U48: 220,794,282 | V48: 24,061,341 | W48: 6,321 | X48: 220,794,282 | Y48: 24,061,341 | Z48: 6,315 | AA48: 6,315 | AB48: 6,295 | AC48: 6,295 | AD48: 5,997 | AE48: 5,699 | AP48: Wisconsin
A49: Wyoming | E49: 11,643 | F49: 175,787,236 | G49: 16,542,944 | H49: 11,643 | I49: 175,787,236 | J49: 16,542,944 | K49: 11,561 | L49: 10,966 | M49: 11,548 | N49: 10,953 | O49: 7,708 | P49: 4,522 | Q49: =IF(C49="X",M49,"") ->  | S49: Wyoming | T49: 11,643 | U49: 175,787,236 | V49: 16,542,944 | W49: 11,643 | X49: 175,787,236 | Y49: 16,542,944 | Z49: 11,561 | AA49: 10,966 | AB49: 11,548 | AC49: 10,953 | AD49: 7,708 | AE49: 4,522 | AP49: Wyoming
A50: Total | E50: =SUM(E2:E49) -> 359,617 | F50: 10,261,049,881 | G50: 1,159,585,094 | H50: 337,041 | I50: 10,214,251,614 | J50: 1,168,637,838 | K50: 315,557 | L50: 311,498 | M50: 313,291 | N50: 309,292 | O50: 251,108 | P50: 194,171 | S50: Total | T50: =SUM(T2:T49) -> 359,617 | U50: 10,261,049,881 | V50: 1,159,585,094 | W50: 334,635 | X50: 9,980,022,932 | Y50: 1,134,149,132 | Z50: 313,151 | AA50: 309,379 | AB50: 310,885 | AC50: 307,173 | AD50: =SUM(AD2:AD49) -> 249,326 | AE50: 192,726 | AG50: =SUM(AG2:AG49) -> 1,220 | AH50: =SUM(AH2:AH49) -> 225,233,814 | AI50: =SUM(AI2:AI49) -> 33,693,189 | AP50: Total | AQ50: =SUM(AQ2:AQ49) -> 1,186 | AR50: =SUM(AR2:AR49) -> 8,994,868 | AS50: 795,517 | AT50: 1,186 | AU50: 899 | AV50: 1,186 | AW50: 899 | AX50: 562 | AY50: 225
A51: 2023 Strategy | E51: =SUMIF($C$2:$C$49, "X", E$2:E$49) -> 239,450 | F51: 6,657,406,843 | G51: 745,505,856 | H51: 222,184 | I51: 6,633,437,841 | J51: 753,437,271 | K51: 209,331 | L51: 206,503 | M51: 208,120 | N51: 205,352 | O51: 169,337 | P51: 134,210 | Q51: 208,119
A52: 2026 Strategy | E52: =SUMIF($D$2:$D$49, "X", E$2:E$49) -> 220,828 | F52: 5,994,607,557 | G52: 670,547,990 | H52: 203,809 | I52: 5,970,712,333 | J52: 678,485,969 | K52: 191,092 | L52: 188,265 | M52: 189,941 | N52: 187,174 | O52: 152,989 | P52: 119,693 | Q52: 189,941

Sheet State 2024
A1: State | B1: RCU State | C1: 2023 EGU control strategy | D1: 2026 EGU control strategy | E1: 2021 OS NOx | F1: 2021 OS Heat Input | G1: 2021 OS Generation | H1: Baseline 2024 OS NOx | I1: Baseline 2024 OS Heat Input | J1: Baseline 2024 OS Generation | K1: Baseline 2024 OS NOx + SCR Optimize | L1: Baseline 2024 OS NOx + SCR Optimize + SOA CC | M1: Baseline 2024 OS NOx + SCR Optimize + SNCR Optimize | N1: Baseline 2024 OS NOx + SCR Optimize + SOA CC + SNCR Optimize | O1: Baseline 2024 OS NOx + SCR Optimize + SOA CC + SNCR Optimize + SCR (Half)/SNCR Retrofit | P1: Baseline 2024 OS NOx + SCR Optimize + SOA CC + SNCR Optimize + SCR/SNCR Retrofit | Q1: 2024 State Budget | S1: State | T1: 2021 OS NOx | U1: 2021 OS Heat Input | V1: 2021 OS Generation | W1: Baseline 2024 OS NOx | X1: Baseline 2024 OS Heat Input | Y1: Baseline 2024 OS Generation | Z1: Baseline 2024 OS NOx + SCR Optimize | AA1: Baseline 2024 OS NOx + SCR Optimize + SOA CC | AB1: Baseline 2024 OS NOx + SCR Optimize + SNCR Optimize | AC1: Baseline 2024 OS NOx + SCR Optimize + SOA CC + SNCR Optimize | AD1: Baseline 2024 OS NOx + SCR Optimize + SOA CC + SNCR Optimize + SCR (Half)/SNCR Retrofit | AE1: Baseline 2024 OS NOx + SCR Optimize + SOA CC + SNCR Optimize + SCR/SNCR Retrofit | AG1: Summer NOx new units (>25MW) | AH1: Summer HI new units (>25MW) | AI1: Summer Gen new units (>25MW) | AK1: Summer new units (>25MW) | AL1: NOx | AM1: Heat Input | AN1: Generation | AP1: Budget Adjustment | AQ1: Baseline 2023 OS NOx | AR1: Baseline 2023 OS Heat Input | AS1: Baseline 2023 OS Generation | AT1: Baseline 2023 OS NOx + SCR Optimize | AU1: Baseline 2023 OS NOx + SCR Optimize + SOA CC | AV1: Baseline 2023 OS NOx + SCR Optimize + SNCR Optimize | AW1: Baseline 2023 OS NOx + SCR Optimize + SOA CC + SNCR Optimize | AX1: Baseline 2023 OS NOx + SCR Optimize + SOA CC + SNCR Optimize + SCR (Half)/SNCR Retrofit | AY1: Baseline 2023 OS NOx + SCR Optimize + SOA CC + SNCR Optimize + SCR/SNCR Retrofit
A2: Alabama | C2: X | E2: =T2 -> 6,648 | F2: =U2 -> 313,037,541 | G2: =V2 -> 37,219,186 | H2: =W2+$AG2+AQ2 -> 6,522 | I2: =X2+$AH2+AR2 -> 333,030,691 | J2: =Y2+$AI2+AS2 -> 40,357,828 | K2: =Z2+$AG2+AT2 -> 6,489 | L2: 6,489 | M2: 6,489 | N2: 6,489 | O2: 6,148 | P2: 5,807 | Q2: =IF(C2="X",ROUND(N2,0),"") -> 6,489 | S2: Alabama | T2: 6,648 | U2: 313,037,541 | V2: 37,219,186 | W2: 6,412 | X2: 313,037,541 | Y2: 37,219,186 | Z2: 6,379 | AA2: 6,379 | AB2: 6,379 | AC2: 6,379 | AD2: 6,038 | AE2: 5,697 | AG2: =VLOOKUP(A2,AK:AL,2, FALSE) -> 110 | AH2: =VLOOKUP(A2,AK:AN,3, FALSE) -> 19,993,150 | AI2: =VLOOKUP(A2,AK:AN,4, FALSE) -> 3,138,642 | AK2: Alabama | AL2: 110 | AM2: 19,993,150 | AN2: 3,138,642 | AP2: =A2 -> Alabama
A3: Arizona | E3: =T3 -> 7,723 | F3: 265,744,346 | G3: 32,223,474 | H3: =W3+$AG3+AQ3 -> 7,723 | I3: =X3+$AH3+AR3 -> 265,744,346 | J3: =Y3+$AI3+AS3 -> 32,223,474 | K3: =Z3+$AG3+AT3 -> 7,639 | L3: =AA3+$AG3+AU3 -> 7,570 | M3: =AB3+$AG3+AV3 -> 7,509 | N3: =AC3+$AG3+AW3 -> 7,439 | O3: =AD3+$AG3+AX3 -> 5,457 | P3: =AE3+$AG3+AY3 -> 3,475 | Q3: =IF(C3="X",ROUND(N3,0),"") ->  | S3: Arizona | T3: 7,723 | U3: 265,744,346 | V3: 32,223,474 | W3: 7,723 | X3: 265,744,346 | Y3: 32,223,474 | Z3: 7,639 | AA3: 7,570 | AB3: 7,509 | AC3: 7,439 | AD3: 5,457 | AE3: 3,475 | AK3: California | AL3: 113 | AM3: 20,511,517 | AN3: 2,900,513 | AP3: Arizona
A4: Arkansas | C4: X | D4: X | E4: 8,955 | F4: 192,843,561 | G4: 21,442,686 | H4: 8,955 | I4: 192,843,561 | J4: 21,442,686 | K4: 8,927 | L4: 8,927 | M4: 8,927 | N4: 8,927 | O4: 6,493 | P4: 4,060 | Q4: 8,927 | S4: Arkansas | T4: 8,955 | U4: 192,843,561 | V4: 21,442,686 | W4: 8,955 | X4: 192,843,561 | Y4: 21,442,686 | Z4: 8,927 | AA4: 8,927 | AB4: 8,927 | AC4: 8,927 | AD4: 6,493 | AE4: 4,060 | AK4: Colorado | AL4: 3 | AM4: 595,760 | AN4: 60,147 | AP4: Arkansas
A5: California | E5: 1,618 | F5: 307,678,602 | G5: 39,811,838 | H5: 1,673 | I5: 313,152,167 | J5: 41,491,767 | K5: 1,283 | L5: 1,283 | M5: 1,283 | N5: 1,283 | O5: 1,283 | P5: 1,283 | S5: California | T5: 1,618 | U5: 307,678,602 | V5: 39,811,838 | W5: 1,560 | X5: 292,640,651 | Y5: 38,591,254 | Z5: 1,170 | AA5: 1,170 | AB5: 1,170 | AC5: 1,170 | AD5: 1,170 | AE5: 1,170 | AG5: =VLOOKUP(A5,AK:AL,2, FALSE) -> 113 | AH5: =VLOOKUP(A5,AK:AN,3, FALSE) -> 20,511,517 | AI5: =VLOOKUP(A5,AK:AN,4, FALSE) -> 2,900,513 | AK5: Florida | AL5: 290 | AM5: 52,719,908 | AN5: 8,007,475 | AP5: California
A6: Colorado | E6: 7,310 | F6: 173,828,689 | G6: 18,428,320 | H6: 6,470 | I6: 161,829,516 | J6: 17,261,813 | K6: 6,393 | L6: 6,393 | M6: 6,393 | N6: 6,393 | O6: 4,990 | P6: 3,587 | S6: Colorado | T6: 7,310 | U6: 173,828,689 | V6: 18,428,320 | W6: 6,467 | X6: 161,233,756 | Y6: 17,201,666 | Z6: 6,389 | AA6: 6,389 | AB6: 6,389 | AC6: 6,389 | AD6: 4,986 | AE6: 3,583 | AG6: =VLOOKUP(A6,AK:AL,2, FALSE) -> 3 | AH6: =VLOOKUP(A6,AK:AN,3, FALSE) -> 595,760 | AI6: =VLOOKUP(A6,AK:AN,4, FALSE) -> 60,147 | AK6: Illinois | AL6: 202 | AM6: 36,702,253 | AN6: 5,761,735 | AP6: Colorado
A7: Connecticut | E7: 416 | F7: 72,511,598 | G7: 9,712,002 | H7: 381 | I7: 72,511,598 | J7: 9,712,002 | K7: 355 | L7: 355 | M7: 355 | N7: 355 | O7: 355 | P7: 355 | S7: Connecticut | T7: 416 | U7: 72,511,598 | V7: 9,712,002 | W7: 381 | X7: 72,511,598 | Y7: 9,712,002 | Z7: 355 | AA7: 355 | AB7: 355 | AC7: 355 | AD7: 355 | AE7: 355 | AK7: Indiana | AL7: 1 | AM7: 208,043 | AN7: 21,004 | AP7: Connecticut
A8: Delaware | E8: 423 | F8: 18,775,953 | G8: 1,848,538 | H8: 423 | I8: 18,775,953 | J8: 1,848,538 | K8: 388 | L8: 388 | M8: 384 | N8: 384 | O8: 384 | P8: 384 | S8: Delaware | T8: 423 | U8: 18,775,953 | V8: 1,848,538 | W8: 423 | X8: 18,775,953 | Y8: 1,848,538 | Z8: 388 | AA8: 388 | AB8: 384 | AC8: 384 | AD8: 384 | AE8: 384 | AK8: Louisiana | AL8: 52 | AM8: 9,399,861 | AN8: 1,285,200 | AP8: Delaware
A9: Florida | E9: 13,730 | F9: 737,533,505 | G9: 94,265,950 | H9: 12,868 | I9: 761,988,655 | J9: 99,527,015 | K9: 10,381 | L9: 10,381 | M9: 10,381 | N9: 10,381 | O9: 9,017 | P9: 7,653 | S9: Florida | T9: 13,730 | U9: 737,533,505 | V9: 94,265,950 | W9: 12,578 | X9: 709,268,747 | Y9: 91,519,539 | Z9: 10,091 | AA9: 10,091 | AB9: 10,091 | AC9: 10,091 | AD9: 8,727 | AE9: 7,363 | AG9: =VLOOKUP(A9,AK:AL,2, FALSE) -> 290 | AH9: =VLOOKUP(A9,AK:AN,3, FALSE) -> 52,719,908 | AI9: =VLOOKUP(A9,AK:AN,4, FALSE) -> 8,007,475 | AK9: Michigan | AL9: 227 | AM9: 41,187,590 | AN9: 6,164,443 | AP9: Florida
A10: Georgia | E10: 6,168 | F10: 328,793,408 | G10: 38,113,703 | H10: 5,191 | I10: 299,547,975 | J10: 35,348,099 | K10: 5,179 | L10: 5,179 | M10: 5,172 | N10: 5,172 | O10: 5,089 | P10: 5,007 | S10: Georgia | T10: 6,168 | U10: 328,793,408 | V10: 38,113,703 | W10: 5,191 | X10: 299,547,975 | Y10: 35,348,099 | Z10: 5,179 | AA10: 5,179 | AB10: 5,172 | AC10: 5,172 | AD10: 5,089 | AE10: 5,007 | AK10: Nevada | AL10: 220 | AM10: 13,489,332 | AN10: 1,664,974 | AP10: Georgia
A11: Idaho | E11: 240 | F11: 18,319,983 | G11: 2,275,867 | H11: 240 | I11: 18,319,983 | J11: 2,275,867 | K11: 240 | L11: 240 | M11: 240 | N11: 240 | O11: 240 | P11: 240 | S11: Idaho | T11: 240 | U11: 18,319,983 | V11: 2,275,867 | W11: 240 | X11: 18,319,983 | Y11: 2,275,867 | Z11: 240 | AA11: 240 | AB11: 240 | AC11: 240 | AD11: 240 | AE11: 240 | AK11: New York | AL11: 54 | AM11: 9,863,952 | AN11: 1,399,142 | AP11: Idaho
A12: Illinois | B12: X | C12: X | D12: X | E12: 11,335 | F12: 316,615,564 | G12: 32,824,055 | H12: 7,555 | I12: 286,568,112 | J12: 32,068,535 | K12: 7,486 | L12: 7,486 | M12: 7,325 | N12: 7,325 | O12: 6,800 | P12: 6,274 | Q12: 7,325 | S12: Illinois | T12: 11,335 | U12: 316,615,564 | V12: 32,824,055 | W12: 7,353 | X12: 249,865,859 | Y12: 26,306,799 | Z12: 7,284 | AA12: 7,284 | AB12: 7,124 | AC12: 7,124 | AD12: 6,598 | AE12: 6,072 | AG12: =VLOOKUP(A12,AK:AL,2, FALSE) -> 202 | AH12: =VLOOKUP(A12,AK:AN,3, FALSE) -> 36,702,253 | AI12: =VLOOKUP(A12,AK:AN,4, FALSE) -> 5,761,735 | AK12: North Dakota | AL12: 1 | AM12: 145,485 | AN12: 14,688 | AP12: Illinois
A13: Indiana | B13: X | C13: X | D13: X | E13: 14,162 | F13: 367,769,003 | G13: 38,256,889 | H13: 12,218 | I13: 330,175,944 | J13: 34,796,368 | K13: 11,415 | L13: 11,415 | M13: 11,413 | N13: 11,413 | O13: 10,399 | P13: 9,398 | Q13: 11,413 | S13: Indiana | T13: 14,162 | U13: 367,769,003 | V13: 38,256,889 | W13: 12,217 | X13: 329,967,901 | Y13: 34,775,364 | Z13: 11,414 | AA13: 11,414 | AB13: 11,412 | AC13: 11,412 | AD13: 10,398 | AE13: 9,397 | AG13: =VLOOKUP(A13,AK:AL,2, FALSE) -> 1 | AH13: =VLOOKUP(A13,AK:AN,3, FALSE) -> 208,043 | AI13: =VLOOKUP(A13,AK:AN,4, FALSE) -> 21,004 | AK13: Ohio | AL13: 293 | AM13: 53,316,703 | AN13: 8,089,141 | AP13: Indiana
A14: Iowa | E14: 9,970 | F14: 147,993,282 | G14: 15,175,329 | H14: 9,867 | I14: 142,934,126 | J14: 14,694,225 | K14: 9,867 | L14: 9,813 | M14: 9,807 | N14: 9,752 | O14: 6,796 | P14: 4,032 | S14: Iowa | T14: 9,970 | U14: 147,993,282 | V14: 15,175,329 | W14: 9,867 | X14: 142,934,126 | Y14: 14,694,225 | Z14: 9,867 | AA14: 9,813 | AB14: 9,807 | AC14: 9,752 | AD14: 6,796 | AE14: 4,032 | AK14: Pennsylvania | AL14: 94 | AM14: 20,450,389 | AN14: 3,083,268 | AP14: Iowa
A15: Kansas | E15: 6,231 | F15: 115,827,226 | G15: 11,828,633 | H15: 5,510 | I15: 104,571,293 | J15: 10,718,340 | K15: 4,763 | L15: 4,763 | M15: 4,763 | N15: 4,763 | O15: 3,938 | P15: 3,112 | S15: Kansas | T15: 6,231 | U15: 115,827,226 | V15: 11,828,633 | W15: 5,510 | X15: 104,571,293 | Y15: 10,718,340 | Z15: 4,763 | AA15: 4,763 | AB15: 4,763 | AC15: 4,763 | AD15: 3,938 | AE15: 3,112 | AK15: South Dakota | AL15: 5 | AM15: 892,912 | AN15: 90,148 | AP15: Kansas
A16: Kentucky | B16: X | C16: X | D16: X | E16: 14,571 | F16: 301,161,750 | G16: 32,289,611 | H16: 13,900 | I16: 301,161,750 | J16: 32,289,611 | K16: 13,601 | L16: 12,999 | M16: 13,601 | N16: 12,999 | O16: 10,520 | P16: 8,040 | Q16: 12,999 | S16: Kentucky | T16: 14,571 | U16: 301,161,750 | V16: 32,289,611 | W16: 13,900 | X16: 301,161,750 | Y16: 32,289,611 | Z16: 13,601 | AA16: 12,999 | AB16: 13,601 | AC16: 12,999 | AD16: 10,520 | AE16: 8,040 | AK16: Texas | AL16: 86 | AM16: 15,641,275 | AN16: 2,251,303 | AP16: Kentucky
A17: Louisiana | B17: X | C17: X | D17: X | E17: 11,391 | F17: 280,839,944 | G17: 32,388,791 | H17: 9,974 | I17: 280,592,592 | J17: 32,814,029 | K17: 9,459 | L17: 9,459 | M17: 9,363 | N17: 9,363 | O17: 6,568 | P17: 3,937 | Q17: 9,363 | S17: Louisiana | T17: 11,391 | U17: 280,839,944 | V17: 32,388,791 | W17: 9,922 | X17: 271,192,731 | Y17: 31,528,829 | Z17: 9,408 | AA17: 9,408 | AB17: 9,311 | AC17: 9,311 | AD17: 6,517 | AE17: 3,885 | AG17: =VLOOKUP(A17,AK:AL,2, FALSE) -> 52 | AH17: =VLOOKUP(A17,AK:AN,3, FALSE) -> 9,399,861 | AI17: =VLOOKUP(A17,AK:AN,4, FALSE) -> 1,285,200 | AK17: Utah | AL17: 162 | AM17: 1,888,174 | AN17: 168,966 | AP17: Louisiana
A18: Maine | E18: 108 | F18: 12,436,184 | G18: 1,524,816 | H18: 108 | I18: 12,436,184 | J18: 1,524,816 | K18: 86 | L18: 86 | M18: 86 | N18: 86 | O18: 86 | P18: 86 | S18: Maine | T18: 108 | U18: 12,436,184 | V18: 1,524,816 | W18: 108 | X18: 12,436,184 | Y18: 1,524,816 | Z18: 86 | AA18: 86 | AB18: 86 | AC18: 86 | AD18: 86 | AE18: 86 | AL18: =SUM(AL2:AL17) -> 1,912 | AM18: =SUM(AM2:AM17) -> 297,006,303 | AN18: 44,100,790 | AP18: Maine
A19: Maryland | B19: X | C19: X | D19: X | E19: 1,428 | F19: 80,220,113 | G19: 9,246,155 | H19: 1,214 | I19: 70,725,007 | J19: 8,312,803 | K19: 1,214 | L19: 1,214 | M19: 1,206 | N19: 1,206 | O19: 1,206 | P19: 1,206 | Q19: 1,206 | S19: Maryland | T19: 1,428 | U19: 80,220,113 | V19: 9,246,155 | W19: 1,214 | X19: 70,725,007 | Y19: 8,312,803 | Z19: 1,214 | AA19: 1,214 | AB19: 1,206 | AC19: 1,206 | AD19: 1,206 | AE19: 1,206 | AP19: Maryland
A20: Massachusetts | E20: 298 | F20: 53,404,422 | G20: 6,150,912 | H20: 297 | I20: 53,388,723 | J20: 6,150,912 | K20: 265 | L20: 265 | M20: 265 | N20: 265 | O20: 265 | P20: 265 | S20: Massachusetts | T20: 298 | U20: 53,404,422 | V20: 6,150,912 | W20: 297 | X20: 53,388,723 | Y20: 6,150,912 | Z20: 265 | AA20: 265 | AB20: 265 | AC20: 265 | AD20: 265 | AE20: 265 | AP20: Massachusetts
A21: Michigan | B21: X | C21: X | D21: X | E21: 13,555 | F21: 303,831,906 | G21: 29,702,739 | H21: 10,294 | I21: 299,124,688 | J21: 32,207,695 | K21: 10,290 | L21: 10,290 | M21: 10,275 | N21: 10,275 | O21: 8,606 | P21: 7,052 | Q21: 10,275 | S21: Michigan | T21: 13,555 | U21: 303,831,906 | V21: 29,702,739 | W21: 10,068 | X21: 257,937,098 | Y21: 26,043,252 | Z21: 10,064 | AA21: 10,064 | AB21: 10,049 | AC21: 10,049 | AD21: 8,380 | AE21: 6,826 | AG21: =VLOOKUP(A21,AK:AL,2, FALSE) -> 227 | AH21: =VLOOKUP(A21,AK:AN,3, FALSE) -> 41,187,590 | AI21: =VLOOKUP(A21,AK:AN,4, FALSE) -> 6,164,443 | AP21: Michigan
A22: Minnesota | C22: X | E22: 5,652 | F22: 128,967,463 | G22: 13,677,339 | H22: 4,197 | I22: 107,821,236 | J22: 11,639,000 | K22: 4,099 | L22: 4,099 | M22: 4,058 | N22: 4,058 | O22: 3,321 | P22: 2,584 | Q22: 4,058 | S22: Minnesota | T22: 5,652 | U22: 128,967,463 | V22: 13,677,339 | W22: 4,197 | X22: 107,821,236 | Y22: 11,639,000 | Z22: 4,099 | AA22: 4,099 | AB22: 4,058 | AC22: 4,058 | AD22: 3,321 | AE22: 2,584 | AP22: Minnesota
A23: Mississippi | C23: X | D23: X | E23: 5,790 | F23: 190,043,215 | G23: 22,493,704 | H23: 6,042 | I23: 189,415,018 | J23: 22,328,265 | K23: 5,969 | L23: 5,058 | M23: 5,969 | N23: 5,058 | O23: 3,505 | P23: 2,105 | Q23: 5,058 | S23: Mississippi | T23: 5,790 | U23: 190,043,215 | V23: 22,493,704 | W23: 4,856 | X23: 180,420,150 | Y23: 21,532,748 | Z23: 4,783 | AA23: 4,159 | AB23: 4,783 | AC23: 4,159 | AD23: 2,943 | AE23: 1,880 | AP23: Mississippi | AQ23: 1,186 | AR23: 8,994,868 | AS23: 795,517 | AT23: 1,186 | AU23: 899 | AV23: 1,186 | AW23: 899 | AX23: 562 | AY23: 225
A24: Missouri | C24: X | D24: X | E24: 20,388 | F24: 288,219,887 | G24: 31,104,031 | H24: 18,612 | I24: 249,153,661 | J24: 26,813,137 | K24: 11,273 | L24: 11,273 | M24: 11,116 | N24: 11,116 | O24: 9,248 | P24: 7,381 | Q24: 11,116 | S24: Missouri | T24: 20,388 | U24: 288,219,887 | V24: 31,104,031 | W24: 18,612 | X24: 249,153,661 | Y24: 26,813,137 | Z24: 11,273 | AA24: 11,273 | AB24: 11,116 | AC24: 11,116 | AD24: 9,248 | AE24: 7,381 | AP24: Missouri
A25: Montana | E25: 3,071 | F25: 46,489,166 | G25: 4,635,867 | H25: 3,071 | I25: 46,489,166 | J25: 4,635,867 | K25: 3,071 | L25: 3,071 | M25: 3,071 | N25: 3,071 | O25: 2,124 | P25: 1,177 | S25: Montana | T25: 3,071 | U25: 46,489,166 | V25: 4,635,867 | W25: 3,071 | X25: 46,489,166 | Y25: 4,635,867 | Z25: 3,071 | AA25: 3,071 | AB25: 3,071 | AC25: 3,071 | AD25: 2,124 | AE25: 1,177 | AP25: Montana
A26: Nebraska | E26: 8,931 | F26: 102,719,096 | G26: 10,720,072 | H26: =W26+$AG26+AQ26 -> 8,931 | I26: =X26+$AH26+AR26 -> 102,719,096 | J26: =Y26+$AI26+AS26 -> 10,720,072 | K26: =Z26+$AG26+AT26 -> 8,894 | L26: 8,381 | M26: 8,894 | N26: 8,381 | O26: 5,672 | P26: 3,070 | S26: Nebraska | T26: 8,931 | U26: 102,719,096 | V26: 10,720,072 | W26: 8,931 | X26: 102,719,096 | Y26: 10,720,072 | Z26: 8,894 | AA26: 8,381 | AB26: 8,894 | AC26: 8,381 | AD26: 5,672 | AE26: 3,070 | AP26: Nebraska
A27: Nevada | C27: X | D27: X | E27: 2,457 | F27: 103,489,785 | G27: 12,918,610 | H27: =W27+$AG27+AQ27 -> 2,592 | I27: =X27+$AH27+AR27 -> 116,979,117 | J27: =Y27+$AI27+AS27 -> 14,583,584 | K27: =Z27+$AG27+AT27 -> 2,589 | L27: =AA27+$AG27+AU27 -> 2,589 | M27: =AB27+$AG27+AV27 -> 2,589 | N27: =AC27+$AG27+AW27 -> 2,589 | O27: =AD27+$AG27+AX27 -> 2,008 | P27: =AE27+$AG27+AY27 -> 1,428 | Q27: 2,589 | S27: Nevada | T27: 2,457 | U27: 103,489,785 | V27: 12,918,610 | W27: 2,372 | X27: 103,489,785 | Y27: 12,918,610 | Z27: 2,368 | AA27: 2,368 | AB27: 2,368 | AC27: 2,368 | AD27: 1,788 | AE27: 1,207 | AG27: =VLOOKUP(A27,AK:AL,2, FALSE) -> 220 | AH27: =VLOOKUP(A27,AK:AN,3, FALSE) -> 13,489,332 | AI27: =VLOOKUP(A27,AK:AN,4, FALSE) -> 1,664,974 | AP27: Nevada
A28: New Hampshire | E28: 330 | F28: 23,374,046 | G28: 2,303,022 | H28: 330 | I28: 23,374,046 | J28: 2,303,022 | K28: 267 | L28: 267 | M28: 267 | N28: 267 | O28: 267 | P28: 267 | S28: New Hampshire | T28: 330 | U28: 23,374,046 | V28: 2,303,022 | W28: 330 | X28: 23,374,046 | Y28: 2,303,022 | Z28: 267 | AA28: 267 | AB28: 267 | AC28: 267 | AD28: 267 | AE28: 267 | AP28: New Hampshire
A29: New Jersey | B29: X | C29: X | D29: X | E29: 1,324 | F29: 119,538,737 | G29: 14,682,028 | H29: 915 | I29: 112,233,231 | J29: 14,601,398 | K29: 773 | L29: 773 | M29: 773 | N29: 773 | O29: 773 | P29: 773 | Q29: 773 | S29: New Jersey | T29: 1,324 | U29: 119,538,737 | V29: 14,682,028 | W29: 915 | X29: 112,233,231 | Y29: 14,601,398 | Z29: 773 | AA29: 773 | AB29: 773 | AC29: 773 | AD29: 773 | AE29: 773 | AP29: New Jersey
A30: New Mexico | E30: 5,066 | F30: 108,235,365 | G30: 11,502,879 | H30: 2,289 | I30: 83,034,662 | J30: 9,287,898 | K30: 2,259 | L30: 2,259 | M30: 2,259 | N30: 2,259 | O30: 2,014 | P30: 1,769 | S30: New Mexico | T30: 5,066 | U30: 108,235,365 | V30: 11,502,879 | W30: 2,289 | X30: 83,034,662 | Y30: 9,287,898 | Z30: 2,259 | AA30: 2,259 | AB30: 2,259 | AC30: 2,259 | AD30: 2,014 | AE30: 1,769 | AP30: New Mexico
A31: New York | B31: X | C31: X | D31: X | E31: 3,997 | F31: 233,342,131 | G31: 27,313,198 | H31: 3,977 | I31: 242,853,661 | J31: 28,688,704 | K31: 3,912 | L31: 3,912 | M31: 3,912 | N31: 3,912 | O31: 3,650 | P31: 3,388 | Q31: 3,912 | S31: New York | T31: 3,997 | U31: 233,342,131 | V31: 27,313,198 | W31: 3,922 | X31: 232,989,708 | Y31: 27,289,562 | Z31: 3,858 | AA31: 3,858 | AB31: 3,858 | AC31: 3,858 | AD31: 3,596 | AE31: 3,333 | AG31: =VLOOKUP(A31,AK:AL,2, FALSE) -> 54 | AH31: =VLOOKUP(A31,AK:AN,3, FALSE) -> 9,863,952 | AI31: =VLOOKUP(A31,AK:AN,4, FALSE) -> 1,399,142 | AP31: New York
A32: North Carolina | E32: 12,444 | F32: 281,750,959 | G32: 29,259,654 | H32: 12,355 | I32: 281,249,322 | J32: 29,200,618 | K32: 9,209 | L32: 9,209 | M32: 9,180 | N32: 9,180 | O32: 7,789 | P32: 6,399 | S32: North Carolina | T32: 12,444 | U32: 281,750,959 | V32: 29,259,654 | W32: 12,355 | X32: 281,249,322 | Y32: 29,200,618 | Z32: 9,209 | AA32: 9,209 | AB32: 9,180 | AC32: 9,180 | AD32: 7,789 | AE32: 6,399 | AP32: North Carolina
A33: North Dakota | E33: 12,666 | F33: 121,650,949 | G33: 11,776,927 | H33: 12,246 | I33: 119,541,029 | J33: 11,593,940 | K33: 12,246 | L33: 12,246 | M33: 11,436 | N33: 11,436 | O33: 7,181 | P33: 2,927 | S33: North Dakota | T33: 12,666 | U33: 121,650,949 | V33: 11,776,927 | W33: 12,246 | X33: 119,395,544 | Y33: 11,579,252 | Z33: 12,246 | AA33: 12,246 | AB33: 11,435 | AC33: 11,435 | AD33: 7,181 | AE33: 2,926 | AG33: =VLOOKUP(A33,AK:AL,2, FALSE) -> 1 | AH33: =VLOOKUP(A33,AK:AN,3, FALSE) -> 145,485 | AI33: =VLOOKUP(A33,AK:AN,4, FALSE) -> 14,688 | AP33: North Dakota
A34: Ohio | B34: X | C34: X | D34: X | E34: 11,697 | F34: 389,640,469 | G34: 45,135,729 | H34: 9,083 | I34: 386,560,212 | J34: 47,519,943 | K34: 7,929 | L34: 7,929 | M34: 7,929 | N34: 7,929 | O34: 7,929 | P34: 7,929 | Q34: 7,929 | S34: Ohio | T34: 11,697 | U34: 389,640,469 | V34: 45,135,729 | W34: 8,790 | X34: 333,243,509 | Y34: 39,430,802 | Z34: 7,636 | AA34: 7,636 | AB34: 7,636 | AC34: 7,636 | AD34: 7,636 | AE34: 7,636 | AG34: =VLOOKUP(A34,AK:AL,2, FALSE) -> 293 | AH34: =VLOOKUP(A34,AK:AN,3, FALSE) -> 53,316,703 | AI34: =VLOOKUP(A34,AK:AN,4, FALSE) -> 8,089,141 | AP34: =A34 -> Ohio
A35: Oklahoma | C35: X | D35: X | E35: 10,470 | F35: 212,903,386 | G35: 22,657,698 | H35: 10,274 | I35: 211,187,283 | J35: 22,521,635 | K35: 10,075 | L35: 9,384 | M35: 10,075 | N35: 9,384 | O35: 6,645 | P35: 4,306 | Q35: 9,384 | S35: Oklahoma | T35: 10,470 | U35: 212,903,386 | V35: 22,657,698 | W35: 10,274 | X35: 211,187,283 | Y35: 22,521,635 | Z35: 10,075 | AA35: 9,384 | AB35: 10,075 | AC35: 9,384 | AD35: 6,645 | AE35: 4,306 | AP35: Oklahoma
A36: Oregon | E36: 342 | F36: 56,716,013 | G36: 7,943,020 | H36: 342 | I36: 56,716,013 | J36: 7,943,020 | K36: 292 | L36: 292 | M36: 292 | N36: 292 | O36: 292 | P36: 292 | S36: Oregon | T36: 342 | U36: 56,716,013 | V36: 7,943,020 | W36: 342 | X36: 56,716,013 | Y36: 7,943,020 | Z36: 292 | AA36: 292 | AB36: 292 | AC36: 292 | AD36: 292 | AE36: 292 | AP36: Oregon
A37: Pennsylvania | B37: X | C37: X | D37: X | E37: 12,785 | F37: 539,359,977 | G37: 65,729,802 | H37: 8,573 | I37: 550,993,363 | J37: 67,945,477 | K37: 8,238 | L37: 8,238 | M37: 8,138 | N37: 8,138 | O37: 7,739 | P37: 7,385 | Q37: 8,138 | S37: Pennsylvania | T37: 12,785 | U37: 539,359,977 | V37: 65,729,802 | W37: 8,480 | X37: 530,542,974 | Y37: 64,862,209 | Z37: 8,144 | AA37: 8,144 | AB37: 8,044 | AC37: 8,044 | AD37: 7,645 | AE37: 7,292 | AG37: =VLOOKUP(A37,AK:AL,2, FALSE) -> 94 | AH37: =VLOOKUP(A37,AK:AN,3, FALSE) -> 20,450,389 | AI37: =VLOOKUP(A37,AK:AN,4, FALSE) -> 3,083,268 | AP37: Pennsylvania
A38: Rhode Island | E38: 279 | F38: 31,838,505 | G38: 3,674,052 | H38: 279 | I38: 31,838,505 | J38: 3,674,052 | K38: 148 | L38: 148 | M38: 148 | N38: 148 | O38: 148 | P38: 148 | S38: Rhode Island | T38: 279 | U38: 31,838,505 | V38: 3,674,052 | W38: 279 | X38: 31,838,505 | Y38: 3,674,052 | Z38: 148 | AA38: 148 | AB38: 148 | AC38: 148 | AD38: 148 | AE38: 148 | AP38: Rhode Island
A39: South Carolina | E39: 4,273 | F39: 161,345,886 | G39: 17,627,029 | H39: 4,273 | I39: 161,345,886 | J39: 17,627,029 | K39: 3,531 | L39: 3,531 | M39: 3,531 | N39: 3,531 | O39: 3,531 | P39: 3,531 | S39: South Carolina | T39: 4,273 | U39: 161,345,886 | V39: 17,627,029 | W39: 4,273 | X39: 161,345,886 | Y39: 17,627,029 | Z39: 3,531 | AA39: 3,531 | AB39: 3,531 | AC39: 3,531 | AD39: 3,531 | AE39: 3,531 | AP39: South Carolina
A40: South Dakota | E40: 516 | F40: 15,587,258 | G40: 1,471,526 | H40: 521 | I40: 16,480,170 | J40: 1,561,673 | K40: 521 | L40: 521 | M40: 521 | N40: 521 | O40: 521 | P40: 521 | S40: South Dakota | T40: 516 | U40: 15,587,258 | V40: 1,471,526 | W40: 516 | X40: 15,587,258 | Y40: 1,471,526 | Z40: 516 | AA40: 516 | AB40: 516 | AC40: 516 | AD40: 516 | AE40: 516 | AG40: =VLOOKUP(A40,AK:AL,2, FALSE) -> 5 | AH40: =VLOOKUP(A40,AK:AN,3, FALSE) -> 892,912 | AI40: =VLOOKUP(A40,AK:AN,4, FALSE) -> 90,148 | AP40: South Dakota
A41: Tennessee | E41: 4,319 | F41: 157,981,198 | G41: 17,418,180 | H41: 4,064 | I41: 152,351,271 | J41: 16,862,716 | K41: 3,983 | L41: 3,983 | M41: 3,983 | N41: 3,983 | O41: 3,983 | P41: 3,983 | S41: Tennessee | T41: 4,319 | U41: 157,981,198 | V41: 17,418,180 | W41: 4,064 | X41: 152,351,271 | Y41: 16,862,716 | Z41: 3,983 | AA41: 3,983 | AB41: 3,983 | AC41: 3,983 | AD41: 3,983 | AE41: 3,983 | AP41: Tennessee
A42: Texas | C42: X | D42: X | E42: 42,746 | F42: 1,400,469,195 | G42: 157,307,078 | H42: 41,276 | I42: 1,395,116,925 | J42: 157,724,998 | K42: 40,367 | L42: 40,367 | M42: 40,134 | N42: 40,134 | O42: 32,341 | P42: 24,549 | Q42: 40,134 | S42: Texas | T42: 42,746 | U42: 1,400,469,195 | V42: 157,307,078 | W42: 41,190 | X42: 1,379,475,650 | Y42: 155,473,694 | Z42: 40,281 | AA42: 40,281 | AB42: 40,048 | AC42: 40,048 | AD42: 32,255 | AE42: 24,462 | AG42: =VLOOKUP(A42,AK:AL,2, FALSE) -> 86 | AH42: =VLOOKUP(A42,AK:AN,3, FALSE) -> 15,641,275 | AI42: =VLOOKUP(A42,AK:AN,4, FALSE) -> 2,251,303 | AP42: Texas
A43: Utah | C43: X | D43: X | E43: 15,762 | F43: 164,519,648 | G43: 18,345,467 | H43: 15,924 | I43: 166,407,822 | J43: 18,514,433 | K43: 15,917 | L43: 15,917 | M43: 15,917 | N43: 15,917 | O43: 9,745 | P43: 3,573 | Q43: 15,917 | S43: Utah | T43: 15,762 | U43: 164,519,648 | V43: 18,345,467 | W43: 15,762 | X43: 164,519,648 | Y43: 18,345,467 | Z43: 15,755 | AA43: 15,755 | AB43: 15,755 | AC43: 15,755 | AD43: 9,583 | AE43: 3,411 | AG43: =VLOOKUP(A43,AK:AL,2, FALSE) -> 162 | AH43: =VLOOKUP(A43,AK:AN,3, FALSE) -> 1,888,174 | AI43: =VLOOKUP(A43,AK:AN,4, FALSE) -> 168,966 | AP43: Utah
A44: Vermont | E44: 54 | F44: 1,571,908 | G44: 113,425 | H44: 54 | I44: 1,571,908 | J44: 113,425 | K44: 54 | L44: 54 | M44: 54 | N44: 54 | O44: 54 | P44: 54 | S44: Vermont | T44: 54 | U44: 1,571,908 | V44: 113,425 | W44: 54 | X44: 1,571,908 | Y44: 113,425 | Z44: 54 | AA44: 54 | AB44: 54 | AC44: 54 | AD44: 54 | AE44: 54 | AP44: Vermont
A45: Virginia | B45: X | C45: X | D45: X | E45: 3,329 | F45: 202,953,791 | G45: 24,677,281 | H45: 3,019 | I45: 194,015,719 | J45: 23,775,355 | K45: 2,855 | L45: 2,778 | M45: 2,834 | N45: 2,756 | O45: 2,565 | P45: 2,373 | Q45: 2,756 | S45: Virginia | T45: 3,329 | U45: 202,953,791 | V45: 24,677,281 | W45: 3,019 | X45: 194,015,719 | Y45: 23,775,355 | Z45: 2,855 | AA45: 2,778 | AB45: 2,834 | AC45: 2,756 | AD45: 2,565 | AE45: 2,373 | AP45: Virginia
A46: Washington | E46: 1,999 | F46: 65,748,254 | G46: 7,731,261 | H46: 1,999 | I46: 65,748,254 | J46: 7,731,261 | K46: 1,729 | L46: 1,729 | M46: 1,729 | N46: 1,729 | O46: 1,184 | P46: 639 | S46: Washington | T46: 1,999 | U46: 65,748,254 | V46: 7,731,261 | W46: 1,999 | X46: 65,748,254 | Y46: 7,731,261 | Z46: 1,729 | AA46: 1,729 | AB46: 1,729 | AC46: 1,729 | AD46: 1,184 | AE46: 639 | AP46: Washington
A47: West Virginia | B47: X | C47: X | D47: X | E47: 14,686 | F47: 306,845,495 | G47: 32,032,438 | H47: 13,185 | I47: 273,151,957 | J47: 28,666,644 | K47: 12,784 | L47: 12,239 | M47: 12,443 | N47: 11,958 | O47: 10,818 | P47: 9,678 | Q47: 11,958 | S47: West Virginia | T47: 14,686 | U47: 306,845,495 | V47: 32,032,438 | W47: 13,185 | X47: 273,151,957 | Y47: 28,666,644 | Z47: 12,784 | AA47: 12,239 | AB47: 12,443 | AC47: 11,958 | AD47: 10,818 | AE47: 9,678 | AP47: West Virginia
A48: Wisconsin | C48: X | E48: 6,321 | F48: 220,794,282 | G48: 24,061,341 | H48: 6,321 | I48: 220,792,155 | J48: 24,061,341 | K48: 6,315 | L48: 6,315 | M48: 6,295 | N48: 6,295 | O48: 5,997 | P48: 5,699 | Q48: 6,295 | S48: Wisconsin | T48: 6,321 | U48: 220,794,282 | V48: 24,061,341 | W48: 6,321 | X48: 220,792,155 | Y48: 24,061,341 | Z48: 6,315 | AA48: 6,315 | AB48: 6,295 | AC48: 6,295 | AD48: 5,997 | AE48: 5,699 | AP48: Wisconsin
A49: Wyoming | E49: 11,643 | F49: 175,787,236 | G49: 16,542,944 | H49: 11,643 | I49: 175,787,236 | J49: 16,542,944 | K49: 11,561 | L49: 10,966 | M49: 11,548 | N49: 10,953 | O49: 7,708 | P49: 4,522 | S49: Wyoming | T49: 11,643 | U49: 175,787,236 | V49: 16,542,944 | W49: 11,643 | X49: 175,787,236 | Y49: 16,542,944 | Z49: 11,561 | AA49: 10,966 | AB49: 11,548 | AC49: 10,953 | AD49: 7,708 | AE49: 4,522 | AP49: Wyoming
A50: Total | E50: =SUM(E2:E49) -> 359,617 | F50: 10,261,049,881 | G50: 1,159,585,094 | H50: 327,773 | I50: 10,054,350,788 | J50: 1,156,247,870 | K50: 306,578 | L50: 302,519 | M50: 304,329 | N50: 300,330 | O50: 243,392 | P50: 187,700 | S50: Total | T50: =SUM(T2:T49) -> 359,617 | U50: 10,261,049,881 | V50: 1,159,585,094 | W50: 324,674 | X50: 9,748,349,617 | Y50: 1,111,351,563 | Z50: 303,480 | AA50: 299,708 | AB50: 301,231 | AC50: 297,519 | AD50: =SUM(AD2:AD49) -> 240,917 | AE50: 185,563 | AG50: =SUM(AG2:AG49) -> 1,912 | AH50: =SUM(AH2:AH49) -> 297,006,303 | AI50: =SUM(AI2:AI49) -> 44,100,790 | AP50: Total | AQ50: =SUM(AQ2:AQ49) -> 1,186 | AR50: =SUM(AR2:AR49) -> 8,994,868 | AS50: 795,517 | AT50: 1,186 | AU50: 899 | AV50: 1,186 | AW50: 899 | AX50: 562 | AY50: 225
A51: 2023 Strategy | E51: =SUMIF($C$2:$C$49, "X", E$2:E$49) -> 239,450 | F51: 6,657,406,843 | G51: 745,505,856 | H51: 214,624 | I51: 6,510,903,705 | J51: 743,673,467 | K51: 201,976 | L51: 199,148 | M51: 200,782 | N51: 198,015 | O51: 163,024 | P51: 128,923 | Q51: 198,014
A52: 2026 Strategy | E52: =SUMIF($D$2:$D$49, "X", E$2:E$49) -> 220,828 | F52: 5,994,607,557 | G52: 670,547,990 | H52: 197,584 | I52: 5,849,259,623 | J52: 667,615,298 | K52: 185,073 | L52: 182,245 | M52: 183,939 | N52: 181,172 | O52: 147,558 | P52: 114,833 | Q52: 181,172

Sheet State 2025
A1: State | B1: RCU State | C1: 2023 EGU control strategy | D1: 2026 EGU control strategy | E1: 2021 OS NOx | F1: 2021 OS Heat Input | G1: 2021 OS Generation | H1: Baseline 2025 OS NOx | I1: Baseline 2025 OS Heat Input | J1: Baseline 2025 OS Generation | K1: Baseline 2025 OS NOx + SCR Optimize | L1: Baseline 2025 OS NOx + SCR Optimize + SOA CC | M1: Baseline 2025 OS NOx + SCR Optimize + SNCR Optimize | N1: Baseline 2025 OS NOx + SCR Optimize + SOA CC + SNCR Optimize | O1: Baseline 2025 OS NOx + SCR Optimize + SOA CC + SNCR Optimize + SCR (Half)/SNCR Retrofit | P1: Baseline 2025 OS NOx + SCR Optimize + SOA CC + SNCR Optimize + SCR/SNCR Retrofit | Q1: 2025 State Budget | S1: State | T1: 2021 OS NOx | U1: 2021 OS Heat Input | V1: 2021 OS Generation | W1: Baseline 2025 OS NOx | X1: Baseline 2025 OS Heat Input | Y1: Baseline 2025 OS Generation | Z1: Baseline 2025 OS NOx + SCR Optimize | AA1: Baseline 2025 OS NOx + SCR Optimize + SOA CC | AB1: Baseline 2025 OS NOx + SCR Optimize + SNCR Optimize | AC1: Baseline 2025 OS NOx + SCR Optimize + SOA CC + SNCR Optimize | AD1: Baseline 2025 OS NOx + SCR Optimize + SOA CC + SNCR Optimize + SCR (Half)/SNCR Retrofit | AE1: Baseline 2025 OS NOx + SCR Optimize + SOA CC + SNCR Optimize + SCR/SNCR Retrofit | AG1: Summer NOx new units (>25MW) | AH1: Summer HI new units (>25MW) | AI1: Summer Gen new units (>25MW) | AK1: Summer new units (>25MW) | AL1: NOx | AM1: Heat Input | AN1: Generation | AP1: Budget Adjustment | AQ1: Baseline 2023 OS NOx | AR1: Baseline 2023 OS Heat Input | AS1: Baseline 2023 OS Generation | AT1: Baseline 2023 OS NOx + SCR Optimize | AU1: Baseline 2023 OS NOx + SCR Optimize + SOA CC | AV1: Baseline 2023 OS NOx + SCR Optimize + SNCR Optimize | AW1: Baseline 2023 OS NOx + SCR Optimize + SOA CC + SNCR Optimize | AX1: Baseline 2023 OS NOx + SCR Optimize + SOA CC + SNCR Optimize + SCR (Half)/SNCR Retrofit | AY1: Baseline 2023 OS NOx + SCR Optimize + SOA CC + SNCR Optimize + SCR/SNCR Retrofit
A2: Alabama | C2: X | E2: =T2 -> 6,648 | F2: =U2 -> 313,037,541 | G2: =V2 -> 37,219,186 | H2: =W2+$AG2+AQ2 -> 6,522 | I2: =X2+$AH2+AR2 -> 333,030,691 | J2: =Y2+$AI2+AS2 -> 40,357,828 | K2: =Z2+$AG2+AT2 -> 6,489 | L2: 6,489 | M2: 6,489 | N2: 6,489 | O2: 6,148 | P2: 5,807 | Q2: =IF(C2="X",ROUND(N2,0),"") -> 6,489 | S2: Alabama | T2: 6,648 | U2: 313,037,541 | V2: 37,219,186 | W2: 6,412 | X2: 313,037,541 | Y2: 37,219,186 | Z2: 6,379 | AA2: 6,379 | AB2: 6,379 | AC2: 6,379 | AD2: 6,038 | AE2: 5,697 | AG2: =VLOOKUP(A2,AK:AL,2, FALSE) -> 110 | AH2: =VLOOKUP(A2,AK:AN,3, FALSE) -> 19,993,150 | AI2: =VLOOKUP(A2,AK:AN,4, FALSE) -> 3,138,642 | AK2: Alabama | AL2: 110 | AM2: 19,993,150 | AN2: 3,138,642 | AP2: =A2 -> Alabama
A3: Arizona | E3: =T3 -> 7,723 | F3: 265,744,346 | G3: 32,223,474 | H3: =W3+$AG3+AQ3 -> 7,723 | I3: =X3+$AH3+AR3 -> 265,744,346 | J3: =Y3+$AI3+AS3 -> 32,223,474 | K3: =Z3+$AG3+AT3 -> 7,639 | L3: =AA3+$AG3+AU3 -> 7,570 | M3: =AB3+$AG3+AV3 -> 7,509 | N3: =AC3+$AG3+AW3 -> 7,439 | O3: =AD3+$AG3+AX3 -> 5,457 | P3: =AE3+$AG3+AY3 -> 3,475 | Q3: =IF(C3="X",ROUND(N3,0),"") ->  | S3: Arizona | T3: 7,723 | U3: 265,744,346 | V3: 32,223,474 | W3: 7,723 | X3: 265,744,346 | Y3: 32,223,474 | Z3: 7,639 | AA3: 7,570 | AB3: 7,509 | AC3: 7,439 | AD3: 5,457 | AE3: 3,475 | AK3: California | AL3: 113 | AM3: 20,511,517 | AN3: 2,900,513 | AP3: Arizona
A4: Arkansas | C4: X | D4: X | E4: 8,955 | F4: 192,843,561 | G4: 21,442,686 | H4: 8,955 | I4: 192,843,561 | J4: 21,442,686 | K4: 8,927 | L4: 8,927 | M4: 8,927 | N4: 8,927 | O4: 6,493 | P4: 4,060 | Q4: 8,927 | S4: Arkansas | T4: 8,955 | U4: 192,843,561 | V4: 21,442,686 | W4: 8,955 | X4: 192,843,561 | Y4: 21,442,686 | Z4: 8,927 | AA4: 8,927 | AB4: 8,927 | AC4: 8,927 | AD4: 6,493 | AE4: 4,060 | AK4: Colorado | AL4: 3 | AM4: 595,760 | AN4: 60,147 | AP4: Arkansas
A5: California | E5: 1,618 | F5: 307,678,602 | G5: 39,811,838 | H5: 1,672 | I5: 312,808,298 | J5: 41,461,518 | K5: 1,282 | L5: 1,282 | M5: 1,282 | N5: 1,282 | O5: 1,282 | P5: 1,282 | S5: California | T5: 1,618 | U5: 307,678,602 | V5: 39,811,838 | W5: 1,559 | X5: 292,296,782 | Y5: 38,561,005 | Z5: 1,169 | AA5: 1,169 | AB5: 1,169 | AC5: 1,169 | AD5: 1,169 | AE5: 1,169 | AG5: =VLOOKUP(A5,AK:AL,2, FALSE) -> 113 | AH5: =VLOOKUP(A5,AK:AN,3, FALSE) -> 20,511,517 | AI5: =VLOOKUP(A5,AK:AN,4, FALSE) -> 2,900,513 | AK5: Florida | AL5: 336 | AM5: 61,021,246 | AN5: 9,310,668 | AP5: California
A6: Colorado | E6: 7,310 | F6: 173,828,689 | G6: 18,428,320 | H6: 6,470 | I6: 161,829,516 | J6: 17,261,813 | K6: 6,393 | L6: 6,393 | M6: 6,393 | N6: 6,393 | O6: 4,990 | P6: 3,587 | S6: Colorado | T6: 7,310 | U6: 173,828,689 | V6: 18,428,320 | W6: 6,467 | X6: 161,233,756 | Y6: 17,201,666 | Z6: 6,389 | AA6: 6,389 | AB6: 6,389 | AC6: 6,389 | AD6: 4,986 | AE6: 3,583 | AG6: =VLOOKUP(A6,AK:AL,2, FALSE) -> 3 | AH6: =VLOOKUP(A6,AK:AN,3, FALSE) -> 595,760 | AI6: =VLOOKUP(A6,AK:AN,4, FALSE) -> 60,147 | AK6: Illinois | AL6: 202 | AM6: 36,702,253 | AN6: 5,761,735 | AP6: Colorado
A7: Connecticut | E7: 416 | F7: 72,511,598 | G7: 9,712,002 | H7: 381 | I7: 72,511,598 | J7: 9,712,002 | K7: 355 | L7: 355 | M7: 355 | N7: 355 | O7: 355 | P7: 355 | S7: Connecticut | T7: 416 | U7: 72,511,598 | V7: 9,712,002 | W7: 381 | X7: 72,511,598 | Y7: 9,712,002 | Z7: 355 | AA7: 355 | AB7: 355 | AC7: 355 | AD7: 355 | AE7: 355 | AK7: Indiana | AL7: 1 | AM7: 208,043 | AN7: 21,004 | AP7: Connecticut
A8: Delaware | E8: 423 | F8: 18,775,953 | G8: 1,848,538 | H8: 423 | I8: 18,775,953 | J8: 1,848,538 | K8: 388 | L8: 388 | M8: 384 | N8: 384 | O8: 384 | P8: 384 | S8: Delaware | T8: 423 | U8: 18,775,953 | V8: 1,848,538 | W8: 423 | X8: 18,775,953 | Y8: 1,848,538 | Z8: 388 | AA8: 388 | AB8: 384 | AC8: 384 | AD8: 384 | AE8: 384 | AK8: Louisiana | AL8: 52 | AM8: 9,399,861 | AN8: 1,285,200 | AP8: Delaware
A9: Florida | E9: 13,730 | F9: 737,533,505 | G9: 94,265,950 | H9: 12,913 | I9: 770,260,797 | J9: 100,827,988 | K9: 10,426 | L9: 10,426 | M9: 10,426 | N9: 10,426 | O9: 9,062 | P9: 7,698 | S9: Florida | T9: 13,730 | U9: 737,533,505 | V9: 94,265,950 | W9: 12,577 | X9: 709,239,551 | Y9: 91,517,320 | Z9: 10,090 | AA9: 10,090 | AB9: 10,090 | AC9: 10,090 | AD9: 8,726 | AE9: 7,362 | AG9: =VLOOKUP(A9,AK:AL,2, FALSE) -> 336 | AH9: =VLOOKUP(A9,AK:AN,3, FALSE) -> 61,021,246 | AI9: =VLOOKUP(A9,AK:AN,4, FALSE) -> 9,310,668 | AK9: Michigan | AL9: 227 | AM9: 41,187,590 | AN9: 6,164,443 | AP9: Florida
A10: Georgia | E10: 6,168 | F10: 328,793,408 | G10: 38,113,703 | H10: 5,191 | I10: 299,547,975 | J10: 35,348,099 | K10: 5,179 | L10: 5,179 | M10: 5,172 | N10: 5,172 | O10: 5,089 | P10: 5,007 | S10: Georgia | T10: 6,168 | U10: 328,793,408 | V10: 38,113,703 | W10: 5,191 | X10: 299,547,975 | Y10: 35,348,099 | Z10: 5,179 | AA10: 5,179 | AB10: 5,172 | AC10: 5,172 | AD10: 5,089 | AE10: 5,007 | AK10: Nevada | AL10: 177 | AM10: 11,239,997 | AN10: 1,354,177 | AP10: Georgia
A11: Idaho | E11: 240 | F11: 18,319,983 | G11: 2,275,867 | H11: 240 | I11: 18,319,983 | J11: 2,275,867 | K11: 240 | L11: 240 | M11: 240 | N11: 240 | O11: 240 | P11: 240 | S11: Idaho | T11: 240 | U11: 18,319,983 | V11: 2,275,867 | W11: 240 | X11: 18,319,983 | Y11: 2,275,867 | Z11: 240 | AA11: 240 | AB11: 240 | AC11: 240 | AD11: 240 | AE11: 240 | AK11: New York | AL11: 54 | AM11: 9,863,952 | AN11: 1,399,142 | AP11: Idaho
A12: Illinois | B12: X | C12: X | D12: X | E12: 11,335 | F12: 316,615,564 | G12: 32,824,055 | H12: 7,555 | I12: 286,568,112 | J12: 32,068,535 | K12: 7,486 | L12: 7,486 | M12: 7,325 | N12: 7,325 | O12: 6,800 | P12: 6,274 | Q12: 7,325 | S12: Illinois | T12: 11,335 | U12: 316,615,564 | V12: 32,824,055 | W12: 7,353 | X12: 249,865,859 | Y12: 26,306,799 | Z12: 7,284 | AA12: 7,284 | AB12: 7,124 | AC12: 7,124 | AD12: 6,598 | AE12: 6,072 | AG12: =VLOOKUP(A12,AK:AL,2, FALSE) -> 202 | AH12: =VLOOKUP(A12,AK:AN,3, FALSE) -> 36,702,253 | AI12: =VLOOKUP(A12,AK:AN,4, FALSE) -> 5,761,735 | AK12: North Carolina | AL12: 41 | AM12: 7,389,103 | AN12: 1,159,985 | AP12: Illinois
A13: Indiana | B13: X | C13: X | D13: X | E13: 14,162 | F13: 367,769,003 | G13: 38,256,889 | H13: 12,218 | I13: 330,175,944 | J13: 34,796,368 | K13: 11,415 | L13: 11,415 | M13: 11,413 | N13: 11,413 | O13: 10,399 | P13: 9,398 | Q13: 11,413 | S13: Indiana | T13: 14,162 | U13: 367,769,003 | V13: 38,256,889 | W13: 12,217 | X13: 329,967,901 | Y13: 34,775,364 | Z13: 11,414 | AA13: 11,414 | AB13: 11,412 | AC13: 11,412 | AD13: 10,398 | AE13: 9,397 | AG13: =VLOOKUP(A13,AK:AL,2, FALSE) -> 1 | AH13: =VLOOKUP(A13,AK:AN,3, FALSE) -> 208,043 | AI13: =VLOOKUP(A13,AK:AN,4, FALSE) -> 21,004 | AK13: North Dakota | AL13: 1 | AM13: 145,485 | AN13: 14,688 | AP13: Indiana
A14: Iowa | E14: 9,970 | F14: 147,993,282 | G14: 15,175,329 | H14: 9,867 | I14: 142,934,126 | J14: 14,694,225 | K14: 9,867 | L14: 9,813 | M14: 9,807 | N14: 9,752 | O14: 6,796 | P14: 4,032 | S14: Iowa | T14: 9,970 | U14: 147,993,282 | V14: 15,175,329 | W14: 9,867 | X14: 142,934,126 | Y14: 14,694,225 | Z14: 9,867 | AA14: 9,813 | AB14: 9,807 | AC14: 9,752 | AD14: 6,796 | AE14: 4,032 | AK14: Ohio | AL14: 293 | AM14: 53,316,703 | AN14: 8,089,141 | AP14: Iowa
A15: Kansas | E15: 6,231 | F15: 115,827,226 | G15: 11,828,633 | H15: 5,510 | I15: 104,571,293 | J15: 10,718,340 | K15: 4,763 | L15: 4,763 | M15: 4,763 | N15: 4,763 | O15: 3,938 | P15: 3,112 | S15: Kansas | T15: 6,231 | U15: 115,827,226 | V15: 11,828,633 | W15: 5,510 | X15: 104,571,293 | Y15: 10,718,340 | Z15: 4,763 | AA15: 4,763 | AB15: 4,763 | AC15: 4,763 | AD15: 3,938 | AE15: 3,112 | AK15: Oregon | AL15: 8 | AM15: 1,435,933 | AN15: 144,971 | AP15: Kansas
A16: Kentucky | B16: X | C16: X | D16: X | E16: 14,571 | F16: 301,161,750 | G16: 32,289,611 | H16: 13,211 | I16: 295,857,697 | J16: 31,687,113 | K16: 12,911 | L16: 12,472 | M16: 12,911 | N16: 12,472 | O16: 10,190 | P16: 7,908 | Q16: 12,472 | S16: Kentucky | T16: 14,571 | U16: 301,161,750 | V16: 32,289,611 | W16: 13,211 | X16: 295,857,697 | Y16: 31,687,113 | Z16: 12,911 | AA16: 12,472 | AB16: 12,911 | AC16: 12,472 | AD16: 10,190 | AE16: 7,908 | AK16: Pennsylvania | AL16: 94 | AM16: 20,450,389 | AN16: 3,083,268 | AP16: Kentucky
A17: Louisiana | B17: X | C17: X | D17: X | E17: 11,391 | F17: 280,839,944 | G17: 32,388,791 | H17: 9,717 | I17: 278,766,253 | J17: 32,645,727 | K17: 9,203 | L17: 9,203 | M17: 9,107 | N17: 9,107 | O17: 6,384 | P17: 3,823 | Q17: 9,107 | S17: Louisiana | T17: 11,391 | U17: 280,839,944 | V17: 32,388,791 | W17: 9,666 | X17: 269,366,392 | Y17: 31,360,527 | Z17: 9,151 | AA17: 9,151 | AB17: 9,055 | AC17: 9,055 | AD17: 6,332 | AE17: 3,772 | AG17: =VLOOKUP(A17,AK:AL,2, FALSE) -> 52 | AH17: =VLOOKUP(A17,AK:AN,3, FALSE) -> 9,399,861 | AI17: =VLOOKUP(A17,AK:AN,4, FALSE) -> 1,285,200 | AK17: South Dakota | AL17: 5 | AM17: 892,912 | AN17: 90,148 | AP17: Louisiana
A18: Maine | E18: 108 | F18: 12,436,184 | G18: 1,524,816 | H18: 108 | I18: 12,436,184 | J18: 1,524,816 | K18: 86 | L18: 86 | M18: 86 | N18: 86 | O18: 86 | P18: 86 | S18: Maine | T18: 108 | U18: 12,436,184 | V18: 1,524,816 | W18: 108 | X18: 12,436,184 | Y18: 1,524,816 | Z18: 86 | AA18: 86 | AB18: 86 | AC18: 86 | AD18: 86 | AE18: 86 | AK18: Texas | AL18: 86 | AM18: 15,641,275 | AN18: 2,251,303 | AP18: Maine
A19: Maryland | B19: X | C19: X | D19: X | E19: 1,428 | F19: 80,220,113 | G19: 9,246,155 | H19: 1,214 | I19: 70,725,007 | J19: 8,312,803 | K19: 1,214 | L19: 1,214 | M19: 1,206 | N19: 1,206 | O19: 1,206 | P19: 1,206 | Q19: 1,206 | S19: Maryland | T19: 1,428 | U19: 80,220,113 | V19: 9,246,155 | W19: 1,214 | X19: 70,725,007 | Y19: 8,312,803 | Z19: 1,214 | AA19: 1,214 | AB19: 1,206 | AC19: 1,206 | AD19: 1,206 | AE19: 1,206 | AK19: Utah | AL19: 162 | AM19: 1,888,174 | AN19: 168,966 | AP19: Maryland
A20: Massachusetts | E20: 298 | F20: 53,404,422 | G20: 6,150,912 | H20: 288 | I20: 51,638,523 | J20: 5,918,412 | K20: 256 | L20: 256 | M20: 256 | N20: 256 | O20: 256 | P20: 256 | S20: Massachusetts | T20: 298 | U20: 53,404,422 | V20: 6,150,912 | W20: 288 | X20: 51,638,523 | Y20: 5,918,412 | Z20: 256 | AA20: 256 | AB20: 256 | AC20: 256 | AD20: 256 | AE20: 256 | AL20: =SUM(AL2:AL19) -> 1,963 | AM20: =SUM(AM2:AM19) -> 311,883,343 | AN20: 46,398,141 | AP20: Massachusetts
A21: Michigan | B21: X | C21: X | D21: X | E21: 13,555 | F21: 303,831,906 | G21: 29,702,739 | H21: 10,294 | I21: 299,124,688 | J21: 32,207,695 | K21: 10,290 | L21: 10,290 | M21: 10,275 | N21: 10,275 | O21: 8,606 | P21: 7,052 | Q21: 10,275 | S21: Michigan | T21: 13,555 | U21: 303,831,906 | V21: 29,702,739 | W21: 10,068 | X21: 257,937,098 | Y21: 26,043,252 | Z21: 10,064 | AA21: 10,064 | AB21: 10,049 | AC21: 10,049 | AD21: 8,380 | AE21: 6,826 | AG21: =VLOOKUP(A21,AK:AL,2, FALSE) -> 227 | AH21: =VLOOKUP(A21,AK:AN,3, FALSE) -> 41,187,590 | AI21: =VLOOKUP(A21,AK:AN,4, FALSE) -> 6,164,443 | AP21: Michigan
A22: Minnesota | C22: X | E22: 5,652 | F22: 128,967,463 | G22: 13,677,339 | H22: 4,197 | I22: 107,821,236 | J22: 11,639,000 | K22: 4,099 | L22: 4,099 | M22: 4,058 | N22: 4,058 | O22: 3,321 | P22: 2,584 | Q22: 4,058 | S22: Minnesota | T22: 5,652 | U22: 128,967,463 | V22: 13,677,339 | W22: 4,197 | X22: 107,821,236 | Y22: 11,639,000 | Z22: 4,099 | AA22: 4,099 | AB22: 4,058 | AC22: 4,058 | AD22: 3,321 | AE22: 2,584 | AP22: Minnesota
A23: Mississippi | C23: X | D23: X | E23: 5,790 | F23: 190,043,215 | G23: 22,493,704 | H23: 6,022 | I23: 189,279,160 | J23: 22,316,645 | K23: 5,949 | L23: 5,037 | M23: 5,949 | N23: 5,037 | O23: 3,484 | P23: 2,084 | Q23: 5,037 | S23: Mississippi | T23: 5,790 | U23: 190,043,215 | V23: 22,493,704 | W23: 4,836 | X23: 180,284,292 | Y23: 21,521,128 | Z23: 4,763 | AA23: 4,138 | AB23: 4,763 | AC23: 4,138 | AD23: 2,922 | AE23: 1,859 | AP23: Mississippi | AQ23: 1,186 | AR23: 8,994,868 | AS23: 795,517 | AT23: 1,186 | AU23: 899 | AV23: 1,186 | AW23: 899 | AX23: 562 | AY23: 225
A24: Missouri | C24: X | D24: X | E24: 20,388 | F24: 288,219,887 | G24: 31,104,031 | H24: 18,612 | I24: 249,153,661 | J24: 26,813,137 | K24: 11,273 | L24: 11,273 | M24: 11,116 | N24: 11,116 | O24: 9,248 | P24: 7,381 | Q24: 11,116 | S24: Missouri | T24: 20,388 | U24: 288,219,887 | V24: 31,104,031 | W24: 18,612 | X24: 249,153,661 | Y24: 26,813,137 | Z24: 11,273 | AA24: 11,273 | AB24: 11,116 | AC24: 11,116 | AD24: 9,248 | AE24: 7,381 | AP24: Missouri
A25: Montana | E25: 3,071 | F25: 46,489,166 | G25: 4,635,867 | H25: 3,071 | I25: 46,489,166 | J25: 4,635,867 | K25: 3,071 | L25: 3,071 | M25: 3,071 | N25: 3,071 | O25: 2,124 | P25: 1,177 | S25: Montana | T25: 3,071 | U25: 46,489,166 | V25: 4,635,867 | W25: 3,071 | X25: 46,489,166 | Y25: 4,635,867 | Z25: 3,071 | AA25: 3,071 | AB25: 3,071 | AC25: 3,071 | AD25: 2,124 | AE25: 1,177 | AP25: Montana
A26: Nebraska | E26: 8,931 | F26: 102,719,096 | G26: 10,720,072 | H26: =W26+$AG26+AQ26 -> 8,931 | I26: =X26+$AH26+AR26 -> 102,719,096 | J26: =Y26+$AI26+AS26 -> 10,720,072 | K26: =Z26+$AG26+AT26 -> 8,894 | L26: 8,381 | M26: 8,894 | N26: 8,381 | O26: 5,672 | P26: 3,070 | S26: Nebraska | T26: 8,931 | U26: 102,719,096 | V26: 10,720,072 | W26: 8,931 | X26: 102,719,096 | Y26: 10,720,072 | Z26: 8,894 | AA26: 8,381 | AB26: 8,894 | AC26: 8,381 | AD26: 5,672 | AE26: 3,070 | AP26: Nebraska
A27: Nevada | C27: X | D27: X | E27: 2,457 | F27: 103,489,785 | G27: 12,918,610 | H27: =W27+$AG27+AQ27 -> 2,549 | I27: =X27+$AH27+AR27 -> 114,729,782 | J27: =Y27+$AI27+AS27 -> 14,272,787 | K27: =Z27+$AG27+AT27 -> 2,545 | L27: =AA27+$AG27+AU27 -> 2,545 | M27: =AB27+$AG27+AV27 -> 2,545 | N27: =AC27+$AG27+AW27 -> 2,545 | O27: =AD27+$AG27+AX27 -> 1,965 | P27: =AE27+$AG27+AY27 -> 1,385 | Q27: 2,545 | S27: Nevada | T27: 2,457 | U27: 103,489,785 | V27: 12,918,610 | W27: 2,372 | X27: 103,489,785 | Y27: 12,918,610 | Z27: 2,368 | AA27: 2,368 | AB27: 2,368 | AC27: 2,368 | AD27: 1,788 | AE27: 1,207 | AG27: =VLOOKUP(A27,AK:AL,2, FALSE) -> 177 | AH27: =VLOOKUP(A27,AK:AN,3, FALSE) -> 11,239,997 | AI27: =VLOOKUP(A27,AK:AN,4, FALSE) -> 1,354,177 | AP27: Nevada
A28: New Hampshire | E28: 330 | F28: 23,374,046 | G28: 2,303,022 | H28: 330 | I28: 23,374,046 | J28: 2,303,022 | K28: 267 | L28: 267 | M28: 267 | N28: 267 | O28: 267 | P28: 267 | S28: New Hampshire | T28: 330 | U28: 23,374,046 | V28: 2,303,022 | W28: 330 | X28: 23,374,046 | Y28: 2,303,022 | Z28: 267 | AA28: 267 | AB28: 267 | AC28: 267 | AD28: 267 | AE28: 267 | AP28: New Hampshire
A29: New Jersey | B29: X | C29: X | D29: X | E29: 1,324 | F29: 119,538,737 | G29: 14,682,028 | H29: 915 | I29: 112,233,231 | J29: 14,601,398 | K29: 773 | L29: 773 | M29: 773 | N29: 773 | O29: 773 | P29: 773 | Q29: 773 | S29: New Jersey | T29: 1,324 | U29: 119,538,737 | V29: 14,682,028 | W29: 915 | X29: 112,233,231 | Y29: 14,601,398 | Z29: 773 | AA29: 773 | AB29: 773 | AC29: 773 | AD29: 773 | AE29: 773 | AP29: New Jersey
A30: New Mexico | E30: 5,066 | F30: 108,235,365 | G30: 11,502,879 | H30: 2,232 | I30: 82,029,792 | J30: 9,204,330 | K30: 2,201 | L30: 2,201 | M30: 2,201 | N30: 2,201 | O30: 1,956 | P30: 1,712 | S30: New Mexico | T30: 5,066 | U30: 108,235,365 | V30: 11,502,879 | W30: 2,232 | X30: 82,029,792 | Y30: 9,204,330 | Z30: 2,201 | AA30: 2,201 | AB30: 2,201 | AC30: 2,201 | AD30: 1,956 | AE30: 1,712 | AP30: New Mexico
A31: New York | B31: X | C31: X | D31: X | E31: 3,997 | F31: 233,342,131 | G31: 27,313,198 | H31: 3,977 | I31: 242,853,661 | J31: 28,688,704 | K31: 3,912 | L31: 3,912 | M31: 3,912 | N31: 3,912 | O31: 3,650 | P31: 3,388 | Q31: 3,912 | S31: New York | T31: 3,997 | U31: 233,342,131 | V31: 27,313,198 | W31: 3,922 | X31: 232,989,708 | Y31: 27,289,562 | Z31: 3,858 | AA31: 3,858 | AB31: 3,858 | AC31: 3,858 | AD31: 3,596 | AE31: 3,333 | AG31: =VLOOKUP(A31,AK:AL,2, FALSE) -> 54 | AH31: =VLOOKUP(A31,AK:AN,3, FALSE) -> 9,863,952 | AI31: =VLOOKUP(A31,AK:AN,4, FALSE) -> 1,399,142 | AP31: New York
A32: North Carolina | E32: 12,444 | F32: 281,750,959 | G32: 29,259,654 | H32: 12,270 | I32: 287,793,389 | J32: 30,279,934 | K32: 9,124 | L32: 9,124 | M32: 9,114 | N32: 9,114 | O32: 7,766 | P32: 6,419 | S32: North Carolina | T32: 12,444 | U32: 281,750,959 | V32: 29,259,654 | W32: 12,230 | X32: 280,404,286 | Y32: 29,119,949 | Z32: 9,084 | AA32: 9,084 | AB32: 9,074 | AC32: 9,074 | AD32: 7,726 | AE32: 6,378 | AG32: =VLOOKUP(A32,AK:AL,2, FALSE) -> 41 | AH32: =VLOOKUP(A32,AK:AN,3, FALSE) -> 7,389,103 | AI32: =VLOOKUP(A32,AK:AN,4, FALSE) -> 1,159,985 | AP32: North Carolina
A33: North Dakota | E33: 12,666 | F33: 121,650,949 | G33: 11,776,927 | H33: 12,246 | I33: 119,541,029 | J33: 11,593,940 | K33: 12,246 | L33: 12,246 | M33: 11,436 | N33: 11,436 | O33: 7,181 | P33: 2,927 | S33: North Dakota | T33: 12,666 | U33: 121,650,949 | V33: 11,776,927 | W33: 12,246 | X33: 119,395,544 | Y33: 11,579,252 | Z33: 12,246 | AA33: 12,246 | AB33: 11,435 | AC33: 11,435 | AD33: 7,181 | AE33: 2,926 | AG33: =VLOOKUP(A33,AK:AL,2, FALSE) -> 1 | AH33: =VLOOKUP(A33,AK:AN,3, FALSE) -> 145,485 | AI33: =VLOOKUP(A33,AK:AN,4, FALSE) -> 14,688 | AP33: North Dakota
A34: Ohio | B34: X | C34: X | D34: X | E34: 11,697 | F34: 389,640,469 | G34: 45,135,729 | H34: 9,083 | I34: 386,560,212 | J34: 47,519,943 | K34: 7,929 | L34: 7,929 | M34: 7,929 | N34: 7,929 | O34: 7,929 | P34: 7,929 | Q34: 7,929 | S34: Ohio | T34: 11,697 | U34: 389,640,469 | V34: 45,135,729 | W34: 8,790 | X34: 333,243,509 | Y34: 39,430,802 | Z34: 7,636 | AA34: 7,636 | AB34: 7,636 | AC34: 7,636 | AD34: 7,636 | AE34: 7,636 | AG34: =VLOOKUP(A34,AK:AL,2, FALSE) -> 293 | AH34: =VLOOKUP(A34,AK:AN,3, FALSE) -> 53,316,703 | AI34: =VLOOKUP(A34,AK:AN,4, FALSE) -> 8,089,141 | AP34: =A34 -> Ohio
A35: Oklahoma | C35: X | D35: X | E35: 10,470 | F35: 212,903,386 | G35: 22,657,698 | H35: 10,266 | I35: 211,165,691 | J35: 22,521,635 | K35: 10,068 | L35: 9,376 | M35: 10,068 | N35: 9,376 | O35: 6,638 | P35: 4,298 | Q35: 9,376 | S35: Oklahoma | T35: 10,470 | U35: 212,903,386 | V35: 22,657,698 | W35: 10,266 | X35: 211,165,691 | Y35: 22,521,635 | Z35: 10,068 | AA35: 9,376 | AB35: 10,068 | AC35: 9,376 | AD35: 6,638 | AE35: 4,298 | AP35: Oklahoma
A36: Oregon | E36: 342 | F36: 56,716,013 | G36: 7,943,020 | H36: 350 | I36: 58,151,946 | J36: 8,087,990 | K36: 300 | L36: 300 | M36: 300 | N36: 300 | O36: 300 | P36: 300 | S36: Oregon | T36: 342 | U36: 56,716,013 | V36: 7,943,020 | W36: 342 | X36: 56,716,013 | Y36: 7,943,020 | Z36: 292 | AA36: 292 | AB36: 292 | AC36: 292 | AD36: 292 | AE36: 292 | AG36: =VLOOKUP(A36,AK:AL,2, FALSE) -> 8 | AH36: =VLOOKUP(A36,AK:AN,3, FALSE) -> 1,435,933 | AI36: =VLOOKUP(A36,AK:AN,4, FALSE) -> 144,971 | AP36: Oregon
A37: Pennsylvania | B37: X | C37: X | D37: X | E37: 12,785 | F37: 539,359,977 | G37: 65,729,802 | H37: 8,573 | I37: 550,993,363 | J37: 67,945,477 | K37: 8,238 | L37: 8,238 | M37: 8,138 | N37: 8,138 | O37: 7,739 | P37: 7,385 | Q37: 8,138 | S37: Pennsylvania | T37: 12,785 | U37: 539,359,977 | V37: 65,729,802 | W37: 8,480 | X37: 530,542,974 | Y37: 64,862,209 | Z37: 8,144 | AA37: 8,144 | AB37: 8,044 | AC37: 8,044 | AD37: 7,645 | AE37: 7,292 | AG37: =VLOOKUP(A37,AK:AL,2, FALSE) -> 94 | AH37: =VLOOKUP(A37,AK:AN,3, FALSE) -> 20,450,389 | AI37: =VLOOKUP(A37,AK:AN,4, FALSE) -> 3,083,268 | AP37: Pennsylvania
A38: Rhode Island | E38: 279 | F38: 31,838,505 | G38: 3,674,052 | H38: 279 | I38: 31,838,505 | J38: 3,674,052 | K38: 148 | L38: 148 | M38: 148 | N38: 148 | O38: 148 | P38: 148 | S38: Rhode Island | T38: 279 | U38: 31,838,505 | V38: 3,674,052 | W38: 279 | X38: 31,838,505 | Y38: 3,674,052 | Z38: 148 | AA38: 148 | AB38: 148 | AC38: 148 | AD38: 148 | AE38: 148 | AP38: Rhode Island
A39: South Carolina | E39: 4,273 | F39: 161,345,886 | G39: 17,627,029 | H39: 4,273 | I39: 161,345,886 | J39: 17,627,029 | K39: 3,531 | L39: 3,531 | M39: 3,531 | N39: 3,531 | O39: 3,531 | P39: 3,531 | S39: South Carolina | T39: 4,273 | U39: 161,345,886 | V39: 17,627,029 | W39: 4,273 | X39: 161,345,886 | Y39: 17,627,029 | Z39: 3,531 | AA39: 3,531 | AB39: 3,531 | AC39: 3,531 | AD39: 3,531 | AE39: 3,531 | AP39: South Carolina
A40: South Dakota | E40: 516 | F40: 15,587,258 | G40: 1,471,526 | H40: 521 | I40: 16,480,170 | J40: 1,561,673 | K40: 521 | L40: 521 | M40: 521 | N40: 521 | O40: 521 | P40: 521 | S40: South Dakota | T40: 516 | U40: 15,587,258 | V40: 1,471,526 | W40: 516 | X40: 15,587,258 | Y40: 1,471,526 | Z40: 516 | AA40: 516 | AB40: 516 | AC40: 516 | AD40: 516 | AE40: 516 | AG40: =VLOOKUP(A40,AK:AL,2, FALSE) -> 5 | AH40: =VLOOKUP(A40,AK:AN,3, FALSE) -> 892,912 | AI40: =VLOOKUP(A40,AK:AN,4, FALSE) -> 90,148 | AP40: South Dakota
A41: Tennessee | E41: 4,319 | F41: 157,981,198 | G41: 17,418,180 | H41: 4,064 | I41: 152,351,271 | J41: 16,862,716 | K41: 3,983 | L41: 3,983 | M41: 3,983 | N41: 3,983 | O41: 3,983 | P41: 3,983 | S41: Tennessee | T41: 4,319 | U41: 157,981,198 | V41: 17,418,180 | W41: 4,064 | X41: 152,351,271 | Y41: 16,862,716 | Z41: 3,983 | AA41: 3,983 | AB41: 3,983 | AC41: 3,983 | AD41: 3,983 | AE41: 3,983 | AP41: Tennessee
A42: Texas | C42: X | D42: X | E42: 42,746 | F42: 1,400,469,195 | G42: 157,307,078 | H42: 39,684 | I42: 1,389,251,813 | J42: 157,210,164 | K42: 38,775 | L42: 38,775 | M42: 38,542 | N42: 38,542 | O42: 31,123 | P42: 23,704 | Q42: 38,542 | S42: Texas | T42: 42,746 | U42: 1,400,469,195 | V42: 157,307,078 | W42: 39,598 | X42: 1,373,610,538 | Y42: 154,958,861 | Z42: 38,689 | AA42: 38,689 | AB42: 38,456 | AC42: 38,456 | AD42: 31,037 | AE42: 23,618 | AG42: =VLOOKUP(A42,AK:AL,2, FALSE) -> 86 | AH42: =VLOOKUP(A42,AK:AN,3, FALSE) -> 15,641,275 | AI42: =VLOOKUP(A42,AK:AN,4, FALSE) -> 2,251,303 | AP42: Texas
A43: Utah | C43: X | D43: X | E43: 15,762 | F43: 164,519,648 | G43: 18,345,467 | H43: 15,924 | I43: 166,407,822 | J43: 18,514,433 | K43: 15,917 | L43: 15,917 | M43: 15,917 | N43: 15,917 | O43: 9,745 | P43: 3,573 | Q43: 15,917 | S43: Utah | T43: 15,762 | U43: 164,519,648 | V43: 18,345,467 | W43: 15,762 | X43: 164,519,648 | Y43: 18,345,467 | Z43: 15,755 | AA43: 15,755 | AB43: 15,755 | AC43: 15,755 | AD43: 9,583 | AE43: 3,411 | AG43: =VLOOKUP(A43,AK:AL,2, FALSE) -> 162 | AH43: =VLOOKUP(A43,AK:AN,3, FALSE) -> 1,888,174 | AI43: =VLOOKUP(A43,AK:AN,4, FALSE) -> 168,966 | AP43: Utah
A44: Vermont | E44: 54 | F44: 1,571,908 | G44: 113,425 | H44: 54 | I44: 1,571,908 | J44: 113,425 | K44: 54 | L44: 54 | M44: 54 | N44: 54 | O44: 54 | P44: 54 | S44: Vermont | T44: 54 | U44: 1,571,908 | V44: 113,425 | W44: 54 | X44: 1,571,908 | Y44: 113,425 | Z44: 54 | AA44: 54 | AB44: 54 | AC44: 54 | AD44: 54 | AE44: 54 | AP44: Vermont
A45: Virginia | B45: X | C45: X | D45: X | E45: 3,329 | F45: 202,953,791 | G45: 24,677,281 | H45: 3,019 | I45: 194,015,719 | J45: 23,775,355 | K45: 2,855 | L45: 2,778 | M45: 2,834 | N45: 2,756 | O45: 2,565 | P45: 2,373 | Q45: 2,756 | S45: Virginia | T45: 3,329 | U45: 202,953,791 | V45: 24,677,281 | W45: 3,019 | X45: 194,015,719 | Y45: 23,775,355 | Z45: 2,855 | AA45: 2,778 | AB45: 2,834 | AC45: 2,756 | AD45: 2,565 | AE45: 2,373 | AP45: Virginia
A46: Washington | E46: 1,999 | F46: 65,748,254 | G46: 7,731,261 | H46: 1,999 | I46: 65,748,254 | J46: 7,731,261 | K46: 1,729 | L46: 1,729 | M46: 1,729 | N46: 1,729 | O46: 1,184 | P46: 639 | S46: Washington | T46: 1,999 | U46: 65,748,254 | V46: 7,731,261 | W46: 1,999 | X46: 65,748,254 | Y46: 7,731,261 | Z46: 1,729 | AA46: 1,729 | AB46: 1,729 | AC46: 1,729 | AD46: 1,184 | AE46: 639 | AP46: Washington
A47: West Virginia | B47: X | C47: X | D47: X | E47: 14,686 | F47: 306,845,495 | G47: 32,032,438 | H47: 13,185 | I47: 273,151,957 | J47: 28,666,644 | K47: 12,784 | L47: 12,239 | M47: 12,443 | N47: 11,958 | O47: 10,818 | P47: 9,678 | Q47: 11,958 | S47: West Virginia | T47: 14,686 | U47: 306,845,495 | V47: 32,032,438 | W47: 13,185 | X47: 273,151,957 | Y47: 28,666,644 | Z47: 12,784 | AA47: 12,239 | AB47: 12,443 | AC47: 11,958 | AD47: 10,818 | AE47: 9,678 | AP47: West Virginia
A48: Wisconsin | C48: X | E48: 6,321 | F48: 220,794,282 | G48: 24,061,341 | H48: 6,014 | I48: 213,038,308 | J48: 23,334,332 | K48: 6,008 | L48: 6,008 | M48: 5,988 | N48: 5,988 | O48: 5,690 | P48: 5,392 | Q48: 5,988 | S48: Wisconsin | T48: 6,321 | U48: 220,794,282 | V48: 24,061,341 | W48: 6,014 | X48: 213,038,308 | Y48: 23,334,332 | Z48: 6,008 | AA48: 6,008 | AB48: 5,988 | AC48: 5,988 | AD48: 5,690 | AE48: 5,392 | AP48: Wisconsin
A49: Wyoming | E49: 11,643 | F49: 175,787,236 | G49: 16,542,944 | H49: 10,429 | I49: 175,787,236 | J49: 16,542,944 | K49: 10,347 | L49: 9,752 | M49: 10,334 | N49: 9,739 | O49: 6,962 | P49: 4,243 | S49: Wyoming | T49: 11,643 | U49: 175,787,236 | V49: 16,542,944 | W49: 10,429 | X49: 175,787,236 | Y49: 16,542,944 | Z49: 10,347 | AA49: 9,752 | AB49: 10,334 | AC49: 9,739 | AD49: 6,962 | AE49: 4,243 | AP49: Wyoming
A50: Total | E50: =SUM(E2:E49) -> 359,617 | F50: 10,261,049,881 | G50: 1,159,585,094 | H50: 323,543 | I50: 10,044,347,855 | J50: 1,156,091,754 | K50: 302,348 | L50: 298,451 | M50: 300,120 | N50: 296,282 | O50: 240,496 | P50: 185,958 | S50: Total | T50: =SUM(T2:T49) -> 359,617 | U50: 10,261,049,881 | V50: 1,159,585,094 | W50: 320,393 | X50: 9,723,469,644 | Y50: 1,108,898,096 | Z50: 299,199 | AA50: 295,589 | AB50: 296,970 | AC50: 293,420 | AD50: =SUM(AD2:AD49) -> 237,971 | AE50: 183,769 | AG50: =SUM(AG2:AG49) -> 1,963 | AH50: =SUM(AH2:AH49) -> 311,883,343 | AI50: =SUM(AI2:AI49) -> 46,398,141 | AP50: Total | AQ50: =SUM(AQ2:AQ49) -> 1,186 | AR50: =SUM(AR2:AR49) -> 8,994,868 | AS50: 795,517 | AT50: 1,186 | AU50: 899 | AV50: 1,186 | AW50: 899 | AX50: 562 | AY50: 225
A51: 2023 Strategy | E51: =SUMIF($C$2:$C$49, "X", E$2:E$49) -> 239,450 | F51: 6,657,406,843 | G51: 745,505,856 | H51: 211,707 | I51: 6,487,747,569 | J51: 741,338,407 | K51: 199,059 | L51: 196,393 | M51: 197,866 | N51: 195,260 | O51: 160,913 | P51: 127,454 | Q51: 195,259
A52: 2026 Strategy | E52: =SUMIF($D$2:$D$49, "X", E$2:E$49) -> 220,828 | F52: 5,994,607,557 | G52: 670,547,990 | H52: 194,975 | I52: 5,833,857,335 | J52: 666,007,248 | K52: 182,464 | L52: 179,798 | M52: 181,330 | N52: 178,725 | O52: 145,754 | P52: 113,671 | Q52: 178,724

Sheet State 2026
A1: State | B1: RCU State | C1: 2023 EGU control strategy | D1: 2026 EGU control strategy | E1: 2021 OS NOx | F1: 2021 OS Heat Input | G1: 2021 OS Generation | H1: Baseline 2026 OS NOx | I1: Baseline 2026 OS Heat Input | J1: Baseline 2026 OS Generation | K1: Baseline 2026 OS NOx + SCR Optimize | L1: Baseline 2026 OS NOx + SCR Optimize + SOA CC | M1: Baseline 2026 OS NOx + SCR Optimize + SNCR Optimize | N1: Baseline 2026 OS NOx + SCR Optimize + SOA CC + SNCR Optimize | O1: Baseline 2026 OS NOx + SCR Optimize + SOA CC + SNCR Optimize + SCR (Half)/SNCR Retrofit | P1: Baseline 2026 OS NOx + SCR Optimize + SOA CC + SNCR Optimize + SCR/SNCR Retrofit | Q1: Preset 2026 State Budget | S1: State | T1: 2021 OS NOx | U1: 2021 OS Heat Input | V1: 2021 OS Generation | W1: Baseline 2026 OS NOx | X1: Baseline 2026 OS Heat Input | Y1: Baseline 2026 OS Generation | Z1: Baseline 2026 OS NOx + SCR Optimize | AA1: Baseline 2026 OS NOx + SCR Optimize + SOA CC | AB1: Baseline 2026 OS NOx + SCR Optimize + SNCR Optimize | AC1: Baseline 2026 OS NOx + SCR Optimize + SOA CC + SNCR Optimize | AD1: Baseline 2026 OS NOx + SCR Optimize + SOA CC + SNCR Optimize + SCR (Half)/SNCR Retrofit | AE1: Baseline 2026 OS NOx + SCR Optimize + SOA CC + SNCR Optimize + SCR/SNCR Retrofit | AG1: Summer NOx new units (>25MW) | AH1: Summer HI new units (>25MW) | AI1: Summer Gen new units (>25MW) | AK1: Summer new units (>25MW) | AL1: NOx | AM1: Heat Input | AN1: Generation | AP1: Budget Adjustment | AQ1: Baseline 2023 OS NOx | AR1: Baseline 2023 OS Heat Input | AS1: Baseline 2023 OS Generation | AT1: Baseline 2023 OS NOx + SCR Optimize | AU1: Baseline 2023 OS NOx + SCR Optimize + SOA CC | AV1: Baseline 2023 OS NOx + SCR Optimize + SNCR Optimize | AW1: Baseline 2023 OS NOx + SCR Optimize + SOA CC + SNCR Optimize | AX1: Baseline 2023 OS NOx + SCR Optimize + SOA CC + SNCR Optimize + SCR (Half)/SNCR Retrofit | AY1: Baseline 2023 OS NOx + SCR Optimize + SOA CC + SNCR Optimize + SCR/SNCR Retrofit
A2: Alabama | C2: X | E2: =T2 -> 6,648 | F2: =U2 -> 313,037,541 | G2: =V2 -> 37,219,186 | H2: =W2+$AG2+AQ2 -> 6,371 | I2: =X2+$AH2+AR2 -> 330,396,046 | J2: =Y2+$AI2+AS2 -> 40,092,955 | K2: =Z2+$AG2+AT2 -> 6,339 | L2: 6,339 | M2: 6,339 | N2: 6,339 | O2: 6,053 | P2: 5,767 | Q2: =IF(C2="X",IF(D2="X",ROUND(O2,0),ROUND(N2,0)),"") -> 6,339 | S2: Alabama | T2: 6,648 | U2: 313,037,541 | V2: 37,219,186 | W2: 6,261 | X2: 310,402,897 | Y2: 36,954,313 | Z2: 6,229 | AA2: 6,229 | AB2: 6,229 | AC2: 6,229 | AD2: 5,943 | AE2: 5,657 | AG2: =VLOOKUP(A2,AK:AL,2, FALSE) -> 110 | AH2: =VLOOKUP(A2,AK:AN,3, FALSE) -> 19,993,150 | AI2: =VLOOKUP(A2,AK:AN,4, FALSE) -> 3,138,642 | AK2: Alabama | AL2: 110 | AM2: 19,993,150 | AN2: 3,138,642 | AP2: =A2 -> Alabama
A3: Arizona | E3: =T3 -> 7,723 | F3: 265,744,346 | G3: 32,223,474 | H3: =W3+$AG3+AQ3 -> 5,342 | I3: =X3+$AH3+AR3 -> 252,818,430 | J3: =Y3+$AI3+AS3 -> 31,114,522 | K3: =Z3+$AG3+AT3 -> 5,258 | L3: =AA3+$AG3+AU3 -> 5,188 | M3: =AB3+$AG3+AV3 -> 5,127 | N3: =AC3+$AG3+AW3 -> 5,058 | O3: =AD3+$AG3+AX3 -> 4,157 | P3: =AE3+$AG3+AY3 -> 3,256 | Q3: =IF(C3="X",IF(D3="X",ROUND(O3,0),ROUND(N3,0)),"") ->  | S3: Arizona | T3: 7,723 | U3: 265,744,346 | V3: 32,223,474 | W3: 5,342 | X3: 252,818,430 | Y3: 31,114,522 | Z3: 5,258 | AA3: 5,188 | AB3: 5,127 | AC3: 5,058 | AD3: 4,157 | AE3: 3,256 | AK3: California | AL3: 113 | AM3: 20,511,517 | AN3: 2,900,513 | AP3: Arizona
A4: Arkansas | C4: X | D4: X | E4: 8,955 | F4: 192,843,561 | G4: 21,442,686 | H4: 8,728 | I4: 190,921,052 | J4: 21,270,872 | K4: 8,700 | L4: 8,700 | M4: 8,700 | N4: 8,700 | O4: 6,365 | P4: 4,031 | Q4: 6,365 | S4: Arkansas | T4: 8,955 | U4: 192,843,561 | V4: 21,442,686 | W4: 8,728 | X4: 190,921,052 | Y4: 21,270,872 | Z4: 8,700 | AA4: 8,700 | AB4: 8,700 | AC4: 8,700 | AD4: 6,365 | AE4: 4,031 | AK4: Colorado | AL4: 3 | AM4: 595,760 | AN4: 60,147 | AP4: Arkansas
A5: California | E5: 1,618 | F5: 307,678,602 | G5: 39,811,838 | H5: 1,672 | I5: 312,808,298 | J5: 41,461,518 | K5: 1,282 | L5: 1,282 | M5: 1,282 | N5: 1,282 | O5: 1,282 | P5: 1,282 | S5: California | T5: 1,618 | U5: 307,678,602 | V5: 39,811,838 | W5: 1,559 | X5: 292,296,782 | Y5: 38,561,005 | Z5: 1,169 | AA5: 1,169 | AB5: 1,169 | AC5: 1,169 | AD5: 1,169 | AE5: 1,169 | AG5: =VLOOKUP(A5,AK:AL,2, FALSE) -> 113 | AH5: =VLOOKUP(A5,AK:AN,3, FALSE) -> 20,511,517 | AI5: =VLOOKUP(A5,AK:AN,4, FALSE) -> 2,900,513 | AK5: Florida | AL5: 336 | AM5: 61,021,246 | AN5: 9,310,668 | AP5: California
A6: Colorado | E6: 7,310 | F6: 173,828,689 | G6: 18,428,320 | H6: 4,483 | I6: 140,664,863 | J6: 15,245,779 | K6: 4,405 | L6: 4,405 | M6: 4,405 | N6: 4,405 | O6: 3,731 | P6: 3,058 | S6: Colorado | T6: 7,310 | U6: 173,828,689 | V6: 18,428,320 | W6: 4,480 | X6: 140,069,103 | Y6: 15,185,631 | Z6: 4,402 | AA6: 4,402 | AB6: 4,402 | AC6: 4,402 | AD6: 3,728 | AE6: 3,054 | AG6: =VLOOKUP(A6,AK:AL,2, FALSE) -> 3 | AH6: =VLOOKUP(A6,AK:AN,3, FALSE) -> 595,760 | AI6: =VLOOKUP(A6,AK:AN,4, FALSE) -> 60,147 | AK6: Illinois | AL6: 202 | AM6: 36,702,253 | AN6: 5,761,735 | AP6: Colorado
A7: Connecticut | E7: 416 | F7: 72,511,598 | G7: 9,712,002 | H7: 381 | I7: 72,511,598 | J7: 9,712,002 | K7: 355 | L7: 355 | M7: 355 | N7: 355 | O7: 355 | P7: 355 | S7: Connecticut | T7: 416 | U7: 72,511,598 | V7: 9,712,002 | W7: 381 | X7: 72,511,598 | Y7: 9,712,002 | Z7: 355 | AA7: 355 | AB7: 355 | AC7: 355 | AD7: 355 | AE7: 355 | AK7: Indiana | AL7: 1 | AM7: 208,043 | AN7: 21,004 | AP7: Connecticut
A8: Delaware | E8: 423 | F8: 18,775,953 | G8: 1,848,538 | H8: 423 | I8: 18,775,953 | J8: 1,848,538 | K8: 388 | L8: 388 | M8: 384 | N8: 384 | O8: 384 | P8: 384 | S8: Delaware | T8: 423 | U8: 18,775,953 | V8: 1,848,538 | W8: 423 | X8: 18,775,953 | Y8: 1,848,538 | Z8: 388 | AA8: 388 | AB8: 384 | AC8: 384 | AD8: 384 | AE8: 384 | AK8: Louisiana | AL8: 52 | AM8: 9,399,861 | AN8: 1,285,200 | AP8: Delaware
A9: Florida | E9: 13,730 | F9: 737,533,505 | G9: 94,265,950 | H9: 11,298 | I9: 758,765,877 | J9: 99,656,469 | K9: 8,811 | L9: 8,811 | M9: 8,811 | N9: 8,811 | O9: 8,111 | P9: 7,411 | S9: Florida | T9: 13,730 | U9: 737,533,505 | V9: 94,265,950 | W9: 10,963 | X9: 697,744,631 | Y9: 90,345,801 | Z9: 8,475 | AA9: 8,475 | AB9: 8,475 | AC9: 8,475 | AD9: 7,775 | AE9: 7,075 | AG9: =VLOOKUP(A9,AK:AL,2, FALSE) -> 336 | AH9: =VLOOKUP(A9,AK:AN,3, FALSE) -> 61,021,246 | AI9: =VLOOKUP(A9,AK:AN,4, FALSE) -> 9,310,668 | AK9: Michigan | AL9: 227 | AM9: 41,187,590 | AN9: 6,164,443 | AP9: Florida
A10: Georgia | E10: 6,168 | F10: 328,793,408 | G10: 38,113,703 | H10: 5,191 | I10: 299,547,975 | J10: 35,348,099 | K10: 5,179 | L10: 5,179 | M10: 5,172 | N10: 5,172 | O10: 5,089 | P10: 5,007 | S10: Georgia | T10: 6,168 | U10: 328,793,408 | V10: 38,113,703 | W10: 5,191 | X10: 299,547,975 | Y10: 35,348,099 | Z10: 5,179 | AA10: 5,179 | AB10: 5,172 | AC10: 5,172 | AD10: 5,089 | AE10: 5,007 | AK10: Nevada | AL10: 177 | AM10: 11,239,997 | AN10: 1,354,177 | AP10: Georgia
A11: Idaho | E11: 240 | F11: 18,319,983 | G11: 2,275,867 | H11: 240 | I11: 18,319,983 | J11: 2,275,867 | K11: 240 | L11: 240 | M11: 240 | N11: 240 | O11: 240 | P11: 240 | S11: Idaho | T11: 240 | U11: 18,319,983 | V11: 2,275,867 | W11: 240 | X11: 18,319,983 | Y11: 2,275,867 | Z11: 240 | AA11: 240 | AB11: 240 | AC11: 240 | AD11: 240 | AE11: 240 | AK11: New York | AL11: 54 | AM11: 9,863,952 | AN11: 1,399,142 | AP11: Idaho
A12: Illinois | B12: X | C12: X | D12: X | E12: 11,335 | F12: 316,615,564 | G12: 32,824,055 | H12: 6,644 | I12: 253,219,463 | J12: 28,556,880 | K12: 6,575 | L12: 6,575 | M12: 6,415 | N12: 6,415 | O12: 5,889 | P12: 5,363 | Q12: 5,889 | S12: Illinois | T12: 11,335 | U12: 316,615,564 | V12: 32,824,055 | W12: 6,442 | X12: 216,517,210 | Y12: 22,795,145 | Z12: 6,373 | AA12: 6,373 | AB12: 6,213 | AC12: 6,213 | AD12: 5,687 | AE12: 5,161 | AG12: =VLOOKUP(A12,AK:AL,2, FALSE) -> 202 | AH12: =VLOOKUP(A12,AK:AN,3, FALSE) -> 36,702,253 | AI12: =VLOOKUP(A12,AK:AN,4, FALSE) -> 5,761,735 | AK12: North Carolina | AL12: 41 | AM12: 7,389,103 | AN12: 1,159,985 | AP12: Illinois
A13: Indiana | B13: X | C13: X | D13: X | E13: 14,162 | F13: 367,769,003 | G13: 38,256,889 | H13: 9,468 | I13: 302,245,332 | J13: 32,096,059 | K13: 8,700 | L13: 8,700 | M13: 8,698 | N13: 8,698 | O13: 8,410 | P13: 8,135 | Q13: 8,410 | S13: Indiana | T13: 14,162 | U13: 367,769,003 | V13: 38,256,889 | W13: 9,467 | X13: 302,037,289 | Y13: 32,075,055 | Z13: 8,699 | AA13: 8,699 | AB13: 8,697 | AC13: 8,697 | AD13: 8,409 | AE13: 8,134 | AG13: =VLOOKUP(A13,AK:AL,2, FALSE) -> 1 | AH13: =VLOOKUP(A13,AK:AN,3, FALSE) -> 208,043 | AI13: =VLOOKUP(A13,AK:AN,4, FALSE) -> 21,004 | AK13: North Dakota | AL13: 1 | AM13: 145,485 | AN13: 14,688 | AP13: Indiana
A14: Iowa | E14: 9,970 | F14: 147,993,282 | G14: 15,175,329 | H14: 9,773 | I14: 142,934,126 | J14: 14,694,225 | K14: 9,773 | L14: 9,773 | M14: 9,713 | N14: 9,713 | O14: 6,790 | P14: 4,026 | S14: Iowa | T14: 9,970 | U14: 147,993,282 | V14: 15,175,329 | W14: 9,773 | X14: 142,934,126 | Y14: 14,694,225 | Z14: 9,773 | AA14: 9,773 | AB14: 9,713 | AC14: 9,713 | AD14: 6,790 | AE14: 4,026 | AK14: Ohio | AL14: 293 | AM14: 53,316,703 | AN14: 8,089,141 | AP14: Iowa
A15: Kansas | E15: 6,231 | F15: 115,827,226 | G15: 11,828,633 | H15: 5,510 | I15: 104,571,293 | J15: 10,718,340 | K15: 4,763 | L15: 4,763 | M15: 4,763 | N15: 4,763 | O15: 3,938 | P15: 3,112 | S15: Kansas | T15: 6,231 | U15: 115,827,226 | V15: 11,828,633 | W15: 5,510 | X15: 104,571,293 | Y15: 10,718,340 | Z15: 4,763 | AA15: 4,763 | AB15: 4,763 | AC15: 4,763 | AD15: 3,938 | AE15: 3,112 | AK15: Oregon | AL15: 8 | AM15: 1,435,933 | AN15: 144,971 | AP15: Kansas
A16: Kentucky | B16: X | C16: X | D16: X | E16: 14,571 | F16: 301,161,750 | G16: 32,289,611 | H16: 13,211 | I16: 295,857,697 | J16: 31,687,113 | K16: 12,911 | L16: 12,472 | M16: 12,911 | N16: 12,472 | O16: 10,190 | P16: 7,908 | Q16: 10,190 | S16: Kentucky | T16: 14,571 | U16: 301,161,750 | V16: 32,289,611 | W16: 13,211 | X16: 295,857,697 | Y16: 31,687,113 | Z16: 12,911 | AA16: 12,472 | AB16: 12,911 | AC16: 12,472 | AD16: 10,190 | AE16: 7,908 | AK16: Pennsylvania | AL16: 94 | AM16: 20,450,389 | AN16: 3,083,268 | AP16: Kentucky
A17: Louisiana | B17: X | C17: X | D17: X | E17: 11,391 | F17: 280,839,944 | G17: 32,388,791 | H17: 9,704 | I17: 278,461,807 | J17: 32,620,542 | K17: 9,189 | L17: 9,189 | M17: 9,093 | N17: 9,093 | O17: 6,370 | P17: 3,810 | Q17: 6,370 | S17: Louisiana | T17: 11,391 | U17: 280,839,944 | V17: 32,388,791 | W17: 9,652 | X17: 269,061,946 | Y17: 31,335,342 | Z17: 9,138 | AA17: 9,138 | AB17: 9,041 | AC17: 9,041 | AD17: 6,318 | AE17: 3,758 | AG17: =VLOOKUP(A17,AK:AL,2, FALSE) -> 52 | AH17: =VLOOKUP(A17,AK:AN,3, FALSE) -> 9,399,861 | AI17: =VLOOKUP(A17,AK:AN,4, FALSE) -> 1,285,200 | AK17: South Dakota | AL17: 5 | AM17: 892,912 | AN17: 90,148 | AP17: Louisiana
A18: Maine | E18: 108 | F18: 12,436,184 | G18: 1,524,816 | H18: 108 | I18: 12,436,184 | J18: 1,524,816 | K18: 86 | L18: 86 | M18: 86 | N18: 86 | O18: 86 | P18: 86 | S18: Maine | T18: 108 | U18: 12,436,184 | V18: 1,524,816 | W18: 108 | X18: 12,436,184 | Y18: 1,524,816 | Z18: 86 | AA18: 86 | AB18: 86 | AC18: 86 | AD18: 86 | AE18: 86 | AK18: Texas | AL18: 86 | AM18: 15,641,275 | AN18: 2,251,303 | AP18: Maine
A19: Maryland | B19: X | C19: X | D19: X | E19: 1,428 | F19: 80,220,113 | G19: 9,246,155 | H19: 901 | I19: 70,725,007 | J19: 8,312,803 | K19: 850 | L19: 850 | M19: 842 | N19: 842 | O19: 842 | P19: 842 | Q19: 842 | S19: Maryland | T19: 1,428 | U19: 80,220,113 | V19: 9,246,155 | W19: 901 | X19: 70,725,007 | Y19: 8,312,803 | Z19: 850 | AA19: 850 | AB19: 842 | AC19: 842 | AD19: 842 | AE19: 842 | AK19: Utah | AL19: 162 | AM19: 1,888,174 | AN19: 168,966 | AP19: Maryland
A20: Massachusetts | E20: 298 | F20: 53,404,422 | G20: 6,150,912 | H20: 287 | I20: 51,627,490 | J20: 5,917,351 | K20: 256 | L20: 256 | M20: 256 | N20: 256 | O20: 256 | P20: 256 | S20: Massachusetts | T20: 298 | U20: 53,404,422 | V20: 6,150,912 | W20: 287 | X20: 51,627,490 | Y20: 5,917,351 | Z20: 256 | AA20: 256 | AB20: 256 | AC20: 256 | AD20: 256 | AE20: 256 | AL20: =SUM(AL2:AL19) -> 1,963 | AM20: =SUM(AM2:AM19) -> 311,883,343 | AN20: 46,398,141 | AP20: Massachusetts
A21: Michigan | B21: X | C21: X | D21: X | E21: 13,555 | F21: 303,831,906 | G21: 29,702,739 | H21: 7,790 | I21: 258,225,107 | J21: 28,093,455 | K21: 7,786 | L21: 7,786 | M21: 7,771 | N21: 7,771 | O21: 6,743 | P21: 5,831 | Q21: 6,743 | S21: Michigan | T21: 13,555 | U21: 303,831,906 | V21: 29,702,739 | W21: 7,564 | X21: 217,037,517 | Y21: 21,929,012 | Z21: 7,560 | AA21: 7,560 | AB21: 7,545 | AC21: 7,545 | AD21: 6,517 | AE21: 5,604 | AG21: =VLOOKUP(A21,AK:AL,2, FALSE) -> 227 | AH21: =VLOOKUP(A21,AK:AN,3, FALSE) -> 41,187,590 | AI21: =VLOOKUP(A21,AK:AN,4, FALSE) -> 6,164,443 | AP21: Michigan
A22: Minnesota | C22: X | E22: 5,652 | F22: 128,967,463 | G22: 13,677,339 | H22: 4,197 | I22: 107,821,236 | J22: 11,639,000 | K22: 4,099 | L22: 4,099 | M22: 4,058 | N22: 4,058 | O22: 3,321 | P22: 2,584 | Q22: 4,058 | S22: Minnesota | T22: 5,652 | U22: 128,967,463 | V22: 13,677,339 | W22: 4,197 | X22: 107,821,236 | Y22: 11,639,000 | Z22: 4,099 | AA22: 4,099 | AB22: 4,058 | AC22: 4,058 | AD22: 3,321 | AE22: 2,584 | AP22: Minnesota
A23: Mississippi | C23: X | D23: X | E23: 5,790 | F23: 190,043,215 | G23: 22,493,704 | H23: 6,022 | I23: 189,279,160 | J23: 22,316,645 | K23: 5,949 | L23: 5,037 | M23: 5,949 | N23: 5,037 | O23: 3,484 | P23: 2,084 | Q23: 3,484 | S23: Mississippi | T23: 5,790 | U23: 190,043,215 | V23: 22,493,704 | W23: 4,836 | X23: 180,284,292 | Y23: 21,521,128 | Z23: 4,763 | AA23: 4,138 | AB23: 4,763 | AC23: 4,138 | AD23: 2,922 | AE23: 1,859 | AP23: Mississippi | AQ23: 1,186 | AR23: 8,994,868 | AS23: 795,517 | AT23: 1,186 | AU23: 899 | AV23: 1,186 | AW23: 899 | AX23: 562 | AY23: 225
A24: Missouri | C24: X | D24: X | E24: 20,388 | F24: 288,219,887 | G24: 31,104,031 | H24: 18,612 | I24: 249,153,661 | J24: 26,813,137 | K24: 11,273 | L24: 11,273 | M24: 11,116 | N24: 11,116 | O24: 9,248 | P24: 7,381 | Q24: 9,248 | S24: Missouri | T24: 20,388 | U24: 288,219,887 | V24: 31,104,031 | W24: 18,612 | X24: 249,153,661 | Y24: 26,813,137 | Z24: 11,273 | AA24: 11,273 | AB24: 11,116 | AC24: 11,116 | AD24: 9,248 | AE24: 7,381 | AP24: Missouri
A25: Montana | E25: 3,071 | F25: 46,489,166 | G25: 4,635,867 | H25: 3,071 | I25: 46,489,166 | J25: 4,635,867 | K25: 3,071 | L25: 3,071 | M25: 3,071 | N25: 3,071 | O25: 2,124 | P25: 1,177 | S25: Montana | T25: 3,071 | U25: 46,489,166 | V25: 4,635,867 | W25: 3,071 | X25: 46,489,166 | Y25: 4,635,867 | Z25: 3,071 | AA25: 3,071 | AB25: 3,071 | AC25: 3,071 | AD25: 2,124 | AE25: 1,177 | AP25: Montana
A26: Nebraska | E26: 8,931 | F26: 102,719,096 | G26: 10,720,072 | H26: =W26+$AG26+AQ26 -> 8,931 | I26: =X26+$AH26+AR26 -> 102,719,096 | J26: =Y26+$AI26+AS26 -> 10,720,072 | K26: =Z26+$AG26+AT26 -> 8,894 | L26: 8,381 | M26: 8,894 | N26: 8,381 | O26: 5,672 | P26: 3,070 | S26: Nebraska | T26: 8,931 | U26: 102,719,096 | V26: 10,720,072 | W26: 8,931 | X26: 102,719,096 | Y26: 10,720,072 | Z26: 8,894 | AA26: 8,381 | AB26: 8,894 | AC26: 8,381 | AD26: 5,672 | AE26: 3,070 | AP26: Nebraska
A27: Nevada | C27: X | D27: X | E27: 2,457 | F27: 103,489,785 | G27: 12,918,610 | H27: =W27+$AG27+AQ27 -> 1,146 | I27: =X27+$AH27+AR27 -> 105,018,415 | J27: =Y27+$AI27+AS27 -> 13,243,230 | K27: =Z27+$AG27+AT27 -> 1,142 | L27: =AA27+$AG27+AU27 -> 1,142 | M27: =AB27+$AG27+AV27 -> 1,142 | N27: =AC27+$AG27+AW27 -> 1,142 | O27: =AD27+$AG27+AX27 -> 1,142 | P27: =AE27+$AG27+AY27 -> 1,142 | Q27: 1,142 | S27: Nevada | T27: 2,457 | U27: 103,489,785 | V27: 12,918,610 | W27: 968 | X27: 93,778,417 | Y27: 11,889,053 | Z27: 965 | AA27: 965 | AB27: 965 | AC27: 965 | AD27: 965 | AE27: 965 | AG27: =VLOOKUP(A27,AK:AL,2, FALSE) -> 177 | AH27: =VLOOKUP(A27,AK:AN,3, FALSE) -> 11,239,997 | AI27: =VLOOKUP(A27,AK:AN,4, FALSE) -> 1,354,177 | AP27: Nevada
A28: New Hampshire | E28: 330 | F28: 23,374,046 | G28: 2,303,022 | H28: 330 | I28: 23,374,046 | J28: 2,303,022 | K28: 267 | L28: 267 | M28: 267 | N28: 267 | O28: 267 | P28: 267 | S28: New Hampshire | T28: 330 | U28: 23,374,046 | V28: 2,303,022 | W28: 330 | X28: 23,374,046 | Y28: 2,303,022 | Z28: 267 | AA28: 267 | AB28: 267 | AC28: 267 | AD28: 267 | AE28: 267 | AP28: New Hampshire
A29: New Jersey | B29: X | C29: X | D29: X | E29: 1,324 | F29: 119,538,737 | G29: 14,682,028 | H29: 915 | I29: 112,233,231 | J29: 14,601,398 | K29: 773 | L29: 773 | M29: 773 | N29: 773 | O29: 773 | P29: 773 | Q29: 773 | S29: New Jersey | T29: 1,324 | U29: 119,538,737 | V29: 14,682,028 | W29: 915 | X29: 112,233,231 | Y29: 14,601,398 | Z29: 773 | AA29: 773 | AB29: 773 | AC29: 773 | AD29: 773 | AE29: 773 | AP29: New Jersey
A30: New Mexico | E30: 5,066 | F30: 108,235,365 | G30: 11,502,879 | H30: 2,029 | I30: 79,106,429 | J30: 8,916,600 | K30: 1,998 | L30: 1,998 | M30: 1,998 | N30: 1,998 | O30: 1,833 | P30: 1,668 | S30: New Mexico | T30: 5,066 | U30: 108,235,365 | V30: 11,502,879 | W30: 2,029 | X30: 79,106,429 | Y30: 8,916,600 | Z30: 1,998 | AA30: 1,998 | AB30: 1,998 | AC30: 1,998 | AD30: 1,833 | AE30: 1,668 | AP30: New Mexico
A31: New York | B31: X | C31: X | D31: X | E31: 3,997 | F31: 233,342,131 | G31: 27,313,198 | H31: 3,977 | I31: 242,853,661 | J31: 28,688,704 | K31: 3,912 | L31: 3,912 | M31: 3,912 | N31: 3,912 | O31: 3,650 | P31: 3,388 | Q31: 3,650 | S31: New York | T31: 3,997 | U31: 233,342,131 | V31: 27,313,198 | W31: 3,922 | X31: 232,989,708 | Y31: 27,289,562 | Z31: 3,858 | AA31: 3,858 | AB31: 3,858 | AC31: 3,858 | AD31: 3,596 | AE31: 3,333 | AG31: =VLOOKUP(A31,AK:AL,2, FALSE) -> 54 | AH31: =VLOOKUP(A31,AK:AN,3, FALSE) -> 9,863,952 | AI31: =VLOOKUP(A31,AK:AN,4, FALSE) -> 1,399,142 | AP31: New York
A32: North Carolina | E32: 12,444 | F32: 281,750,959 | G32: 29,259,654 | H32: 11,700 | I32: 280,872,291 | J32: 29,615,600 | K32: 8,847 | L32: 8,847 | M32: 8,837 | N32: 8,837 | O32: 7,490 | P32: 6,142 | S32: North Carolina | T32: 12,444 | U32: 281,750,959 | V32: 29,259,654 | W32: 11,660 | X32: 273,483,187 | Y32: 28,455,615 | Z32: 8,807 | AA32: 8,807 | AB32: 8,797 | AC32: 8,797 | AD32: 7,449 | AE32: 6,101 | AG32: =VLOOKUP(A32,AK:AL,2, FALSE) -> 41 | AH32: =VLOOKUP(A32,AK:AN,3, FALSE) -> 7,389,103 | AI32: =VLOOKUP(A32,AK:AN,4, FALSE) -> 1,159,985 | AP32: North Carolina
A33: North Dakota | E33: 12,666 | F33: 121,650,949 | G33: 11,776,927 | H33: 12,246 | I33: 119,541,029 | J33: 11,593,940 | K33: 12,246 | L33: 12,246 | M33: 11,436 | N33: 11,436 | O33: 7,181 | P33: 2,927 | S33: North Dakota | T33: 12,666 | U33: 121,650,949 | V33: 11,776,927 | W33: 12,246 | X33: 119,395,544 | Y33: 11,579,252 | Z33: 12,246 | AA33: 12,246 | AB33: 11,435 | AC33: 11,435 | AD33: 7,181 | AE33: 2,926 | AG33: =VLOOKUP(A33,AK:AL,2, FALSE) -> 1 | AH33: =VLOOKUP(A33,AK:AN,3, FALSE) -> 145,485 | AI33: =VLOOKUP(A33,AK:AN,4, FALSE) -> 14,688 | AP33: North Dakota
A34: Ohio | B34: X | C34: X | D34: X | E34: 11,697 | F34: 389,640,469 | G34: 45,135,729 | H34: 9,083 | I34: 386,560,212 | J34: 47,519,943 | K34: 7,929 | L34: 7,929 | M34: 7,929 | N34: 7,929 | O34: 7,929 | P34: 7,929 | Q34: 7,929 | S34: Ohio | T34: 11,697 | U34: 389,640,469 | V34: 45,135,729 | W34: 8,790 | X34: 333,243,509 | Y34: 39,430,802 | Z34: 7,636 | AA34: 7,636 | AB34: 7,636 | AC34: 7,636 | AD34: 7,636 | AE34: 7,636 | AG34: =VLOOKUP(A34,AK:AL,2, FALSE) -> 293 | AH34: =VLOOKUP(A34,AK:AN,3, FALSE) -> 53,316,703 | AI34: =VLOOKUP(A34,AK:AN,4, FALSE) -> 8,089,141 | AP34: =A34 -> Ohio
A35: Oklahoma | C35: X | D35: X | E35: 10,470 | F35: 212,903,386 | G35: 22,657,698 | H35: 10,259 | I35: 211,145,820 | J35: 22,520,631 | K35: 10,061 | L35: 9,369 | M35: 10,061 | N35: 9,369 | O35: 6,631 | P35: 4,291 | Q35: 6,631 | S35: Oklahoma | T35: 10,470 | U35: 212,903,386 | V35: 22,657,698 | W35: 10,259 | X35: 211,145,820 | Y35: 22,520,631 | Z35: 10,061 | AA35: 9,369 | AB35: 10,061 | AC35: 9,369 | AD35: 6,631 | AE35: 4,291 | AP35: Oklahoma
A36: Oregon | E36: 342 | F36: 56,716,013 | G36: 7,943,020 | H36: 350 | I36: 58,151,946 | J36: 8,087,990 | K36: 300 | L36: 300 | M36: 300 | N36: 300 | O36: 300 | P36: 300 | S36: Oregon | T36: 342 | U36: 56,716,013 | V36: 7,943,020 | W36: 342 | X36: 56,716,013 | Y36: 7,943,020 | Z36: 292 | AA36: 292 | AB36: 292 | AC36: 292 | AD36: 292 | AE36: 292 | AG36: =VLOOKUP(A36,AK:AL,2, FALSE) -> 8 | AH36: =VLOOKUP(A36,AK:AN,3, FALSE) -> 1,435,933 | AI36: =VLOOKUP(A36,AK:AN,4, FALSE) -> 144,971 | AP36: Oregon
A37: Pennsylvania | B37: X | C37: X | D37: X | E37: 12,785 | F37: 539,359,977 | G37: 65,729,802 | H37: 8,362 | I37: 550,993,363 | J37: 67,945,477 | K37: 8,010 | L37: 8,010 | M37: 7,910 | N37: 7,910 | O37: 7,512 | P37: 7,158 | Q37: 7,512 | S37: Pennsylvania | T37: 12,785 | U37: 539,359,977 | V37: 65,729,802 | W37: 8,268 | X37: 530,542,974 | Y37: 64,862,209 | Z37: 7,917 | AA37: 7,917 | AB37: 7,817 | AC37: 7,817 | AD37: 7,418 | AE37: 7,064 | AG37: =VLOOKUP(A37,AK:AL,2, FALSE) -> 94 | AH37: =VLOOKUP(A37,AK:AN,3, FALSE) -> 20,450,389 | AI37: =VLOOKUP(A37,AK:AN,4, FALSE) -> 3,083,268 | AP37: Pennsylvania
A38: Rhode Island | E38: 279 | F38: 31,838,505 | G38: 3,674,052 | H38: 279 | I38: 31,838,505 | J38: 3,674,052 | K38: 148 | L38: 148 | M38: 148 | N38: 148 | O38: 148 | P38: 148 | S38: Rhode Island | T38: 279 | U38: 31,838,505 | V38: 3,674,052 | W38: 279 | X38: 31,838,505 | Y38: 3,674,052 | Z38: 148 | AA38: 148 | AB38: 148 | AC38: 148 | AD38: 148 | AE38: 148 | AP38: Rhode Island
A39: South Carolina | E39: 4,273 | F39: 161,345,886 | G39: 17,627,029 | H39: 4,273 | I39: 161,345,886 | J39: 17,627,029 | K39: 3,531 | L39: 3,531 | M39: 3,531 | N39: 3,531 | O39: 3,531 | P39: 3,531 | S39: South Carolina | T39: 4,273 | U39: 161,345,886 | V39: 17,627,029 | W39: 4,273 | X39: 161,345,886 | Y39: 17,627,029 | Z39: 3,531 | AA39: 3,531 | AB39: 3,531 | AC39: 3,531 | AD39: 3,531 | AE39: 3,531 | AP39: South Carolina
A40: South Dakota | E40: 516 | F40: 15,587,258 | G40: 1,471,526 | H40: 509 | I40: 16,161,161 | J40: 1,539,304 | K40: 509 | L40: 509 | M40: 509 | N40: 509 | O40: 509 | P40: 509 | S40: South Dakota | T40: 516 | U40: 15,587,258 | V40: 1,471,526 | W40: 504 | X40: 15,268,249 | Y40: 1,449,157 | Z40: 504 | AA40: 504 | AB40: 504 | AC40: 504 | AD40: 504 | AE40: 504 | AG40: =VLOOKUP(A40,AK:AL,2, FALSE) -> 5 | AH40: =VLOOKUP(A40,AK:AN,3, FALSE) -> 892,912 | AI40: =VLOOKUP(A40,AK:AN,4, FALSE) -> 90,148 | AP40: South Dakota
A41: Tennessee | E41: 4,319 | F41: 157,981,198 | G41: 17,418,180 | H41: 4,064 | I41: 152,351,271 | J41: 16,862,716 | K41: 3,983 | L41: 3,983 | M41: 3,983 | N41: 3,983 | O41: 3,983 | P41: 3,983 | S41: Tennessee | T41: 4,319 | U41: 157,981,198 | V41: 17,418,180 | W41: 4,064 | X41: 152,351,271 | Y41: 16,862,716 | Z41: 3,983 | AA41: 3,983 | AB41: 3,983 | AC41: 3,983 | AD41: 3,983 | AE41: 3,983 | AP41: Tennessee
A42: Texas | C42: X | D42: X | E42: 42,746 | F42: 1,400,469,195 | G42: 157,307,078 | H42: 39,684 | I42: 1,389,251,813 | J42: 157,210,164 | K42: 38,775 | L42: 38,775 | M42: 38,542 | N42: 38,542 | O42: 31,123 | P42: 23,704 | Q42: 31,123 | S42: Texas | T42: 42,746 | U42: 1,400,469,195 | V42: 157,307,078 | W42: 39,598 | X42: 1,373,610,538 | Y42: 154,958,861 | Z42: 38,689 | AA42: 38,689 | AB42: 38,456 | AC42: 38,456 | AD42: 31,037 | AE42: 23,618 | AG42: =VLOOKUP(A42,AK:AL,2, FALSE) -> 86 | AH42: =VLOOKUP(A42,AK:AN,3, FALSE) -> 15,641,275 | AI42: =VLOOKUP(A42,AK:AN,4, FALSE) -> 2,251,303 | AP42: Texas
A43: Utah | C43: X | D43: X | E43: 15,762 | F43: 164,519,648 | G43: 18,345,467 | H43: 9,930 | I43: 127,217,396 | J43: 14,057,968 | K43: 9,923 | L43: 9,923 | M43: 9,923 | N43: 9,923 | O43: 6,258 | P43: 2,593 | Q43: 6,258 | S43: Utah | T43: 15,762 | U43: 164,519,648 | V43: 18,345,467 | W43: 9,768 | X43: 125,329,222 | Y43: 13,889,002 | Z43: 9,761 | AA43: 9,761 | AB43: 9,761 | AC43: 9,761 | AD43: 6,096 | AE43: 2,431 | AG43: =VLOOKUP(A43,AK:AL,2, FALSE) -> 162 | AH43: =VLOOKUP(A43,AK:AN,3, FALSE) -> 1,888,174 | AI43: =VLOOKUP(A43,AK:AN,4, FALSE) -> 168,966 | AP43: Utah
A44: Vermont | E44: 54 | F44: 1,571,908 | G44: 113,425 | H44: 54 | I44: 1,571,908 | J44: 113,425 | K44: 54 | L44: 54 | M44: 54 | N44: 54 | O44: 54 | P44: 54 | S44: Vermont | T44: 54 | U44: 1,571,908 | V44: 113,425 | W44: 54 | X44: 1,571,908 | Y44: 113,425 | Z44: 54 | AA44: 54 | AB44: 54 | AC44: 54 | AD44: 54 | AE44: 54 | AP44: Vermont
A45: Virginia | B45: X | C45: X | D45: X | E45: 3,329 | F45: 202,953,791 | G45: 24,677,281 | H45: 3,019 | I45: 194,015,719 | J45: 23,775,355 | K45: 2,855 | L45: 2,778 | M45: 2,834 | N45: 2,756 | O45: 2,565 | P45: 2,373 | Q45: 2,565 | S45: Virginia | T45: 3,329 | U45: 202,953,791 | V45: 24,677,281 | W45: 3,019 | X45: 194,015,719 | Y45: 23,775,355 | Z45: 2,855 | AA45: 2,778 | AB45: 2,834 | AC45: 2,756 | AD45: 2,565 | AE45: 2,373 | AP45: Virginia
A46: Washington | E46: 1,999 | F46: 65,748,254 | G46: 7,731,261 | H46: 527 | I46: 50,453,818 | J46: 6,365,209 | K46: 257 | L46: 257 | M46: 257 | N46: 257 | O46: 257 | P46: 257 | S46: Washington | T46: 1,999 | U46: 65,748,254 | V46: 7,731,261 | W46: 527 | X46: 50,453,818 | Y46: 6,365,209 | Z46: 257 | AA46: 257 | AB46: 257 | AC46: 257 | AD46: 257 | AE46: 257 | AP46: Washington
A47: West Virginia | B47: X | C47: X | D47: X | E47: 14,686 | F47: 306,845,495 | G47: 32,032,438 | H47: 13,185 | I47: 273,151,957 | J47: 28,666,644 | K47: 12,784 | L47: 12,239 | M47: 12,443 | N47: 11,958 | O47: 10,818 | P47: 9,678 | Q47: 10,818 | S47: West Virginia | T47: 14,686 | U47: 306,845,495 | V47: 32,032,438 | W47: 13,185 | X47: 273,151,957 | Y47: 28,666,644 | Z47: 12,784 | AA47: 12,239 | AB47: 12,443 | AC47: 11,958 | AD47: 10,818 | AE47: 9,678 | AP47: West Virginia
A48: Wisconsin | C48: X | E48: 6,321 | F48: 220,794,282 | G48: 24,061,341 | H48: 5,016 | I48: 185,469,476 | J48: 20,688,897 | K48: 5,010 | L48: 5,010 | M48: 4,990 | N48: 4,990 | O48: 4,692 | P48: 4,394 | Q48: 4,990 | S48: Wisconsin | T48: 6,321 | U48: 220,794,282 | V48: 24,061,341 | W48: 5,016 | X48: 185,469,476 | Y48: 20,688,897 | Z48: 5,010 | AA48: 5,010 | AB48: 4,990 | AC48: 4,990 | AD48: 4,692 | AE48: 4,394 | AP48: Wisconsin
A49: Wyoming | E49: 11,643 | F49: 175,787,236 | G49: 16,542,944 | H49: 9,174 | I49: 161,937,895 | J49: 15,224,651 | K49: 9,093 | L49: 8,499 | M49: 9,080 | N49: 8,486 | O49: 6,149 | P49: 3,811 | S49: Wyoming | T49: 11,643 | U49: 175,787,236 | V49: 16,542,944 | W49: 9,174 | X49: 161,937,895 | Y49: 15,224,651 | Z49: 9,093 | AA49: 8,499 | AB49: 9,080 | AC49: 8,486 | AD49: 6,149 | AE49: 3,811 | AP49: Wyoming
A50: Total | E50: =SUM(E2:E49) -> 359,617 | F50: 10,261,049,881 | G50: 1,159,585,094 | H50: 298,470 | I50: 9,775,913,147 | J50: 1,129,214,873 | K50: 277,538 | L50: 273,697 | M50: 275,309 | N50: 271,528 | O50: 223,923 | P50: 177,473 | S50: Total | T50: =SUM(T2:T49) -> 359,617 | U50: 10,261,049,881 | V50: 1,159,585,094 | W50: 295,321 | X50: 9,455,034,936 | Y50: 1,082,021,215 | Z50: 274,388 | AA50: 270,835 | AB50: 272,160 | AC50: 268,666 | AD50: =SUM(AD2:AD49) -> 221,397 | AE50: 175,284 | AG50: =SUM(AG2:AG49) -> 1,963 | AH50: =SUM(AH2:AH49) -> 311,883,343 | AI50: =SUM(AI2:AI49) -> 46,398,141 | AP50: Total | AQ50: =SUM(AQ2:AQ49) -> 1,186 | AR50: =SUM(AR2:AR49) -> 8,994,868 | AS50: 795,517 | AT50: 1,186 | AU50: 899 | AV50: 1,186 | AW50: 899 | AX50: 562 | AY50: 225
A51: 2023 Strategy | E51: =SUMIF($C$2:$C$49, "X", E$2:E$49) -> 239,450 | F51: 6,657,406,843 | G51: 745,505,856 | H51: 196,225 | I51: 6,304,216,630 | J51: 722,417,870 | K51: 183,545 | L51: 180,879 | M51: 182,351 | N51: 179,745 | O51: 150,007 | P51: 121,158 | Q51: 151,329
A52: 2026 Strategy | E52: =SUMIF($D$2:$D$49, "X", E$2:E$49) -> 220,828 | F52: 5,994,607,557 | G52: 670,547,990 | H52: 180,641 | I52: 5,680,529,872 | J52: 649,997,019 | K52: 168,098 | L52: 165,432 | M52: 166,964 | N52: 164,359 | O52: 135,941 | P52: 108,413 | Q52: 135,942

Sheet State 2027
A1: State | B1: RCU State | C1: 2023 EGU control strategy | D1: 2026 EGU control strategy | E1: 2021 OS NOx | F1: 2021 OS Heat Input | G1: 2021 OS Generation | H1: Baseline 2027 OS NOx | I1: Baseline 2027 OS Heat Input | J1: Baseline 2027 OS Generation | K1: Baseline 2027 OS NOx + SCR Optimize | L1: Baseline 2027 OS NOx + SCR Optimize + SOA CC | M1: Baseline 2027 OS NOx + SCR Optimize + SNCR Optimize | N1: Baseline 2027 OS NOx + SCR Optimize + SOA CC + SNCR Optimize | O1: Baseline 2027 OS NOx + SCR Optimize + SOA CC + SNCR Optimize + SCR (Half)/SNCR Retrofit | P1: Baseline 2027 OS NOx + SCR Optimize + SOA CC + SNCR Optimize + SCR/SNCR Retrofit | Q1: Preset 2027 State Budget | S1: State | T1: 2021 OS NOx | U1: 2021 OS Heat Input | V1: 2021 OS Generation | W1: Baseline 2027 OS NOx | X1: Baseline 2027 OS Heat Input | Y1: Baseline 2027 OS Generation | Z1: Baseline 2027 OS NOx + SCR Optimize | AA1: Baseline 2027 OS NOx + SCR Optimize + SOA CC | AB1: Baseline 2027 OS NOx + SCR Optimize + SNCR Optimize | AC1: Baseline 2027 OS NOx + SCR Optimize + SOA CC + SNCR Optimize | AD1: Baseline 2027 OS NOx + SCR Optimize + SOA CC + SNCR Optimize + SCR (Half)/SNCR Retrofit | AE1: Baseline 2027 OS NOx + SCR Optimize + SOA CC + SNCR Optimize + SCR/SNCR Retrofit | AG1: Summer NOx new units (>25MW) | AH1: Summer HI new units (>25MW) | AI1: Summer Gen new units (>25MW) | AK1: Summer new units (>25MW) | AL1: NOx | AM1: Heat Input | AN1: Generation | AP1: Budget Adjustment | AQ1: Baseline 2023 OS NOx | AR1: Baseline 2023 OS Heat Input | AS1: Baseline 2023 OS Generation | AT1: Baseline 2023 OS NOx + SCR Optimize | AU1: Baseline 2023 OS NOx + SCR Optimize + SOA CC | AV1: Baseline 2023 OS NOx + SCR Optimize + SNCR Optimize | AW1: Baseline 2023 OS NOx + SCR Optimize + SOA CC + SNCR Optimize | AX1: Baseline 2023 OS NOx + SCR Optimize + SOA CC + SNCR Optimize + SCR (Half)/SNCR Retrofit | AY1: Baseline 2023 OS NOx + SCR Optimize + SOA CC + SNCR Optimize + SCR/SNCR Retrofit
A2: Alabama | C2: X | E2: =T2 -> 6,648 | F2: =U2 -> 313,037,541 | G2: =V2 -> 37,219,186 | H2: =W2+$AG2+AQ2 -> 6,268 | I2: =X2+$AH2+AR2 -> 328,650,653 | J2: =Y2+$AI2+AS2 -> 39,923,156 | K2: =Z2+$AG2+AT2 -> 6,236 | L2: 6,236 | M2: 6,236 | N2: 6,236 | O2: 5,989 | P2: 5,741 | Q2: =IF(C2="X",IF(D2="X",ROUND(P2,0),ROUND(N2,0)),"") -> 6,236 | S2: Alabama | T2: 6,648 | U2: 313,037,541 | V2: 37,219,186 | W2: 6,158 | X2: 308,657,503 | Y2: 36,784,514 | Z2: 6,126 | AA2: 6,126 | AB2: 6,126 | AC2: 6,126 | AD2: 5,879 | AE2: 5,631 | AG2: =VLOOKUP(A2,AK:AL,2, FALSE) -> 110 | AH2: =VLOOKUP(A2,AK:AN,3, FALSE) -> 19,993,150 | AI2: =VLOOKUP(A2,AK:AN,4, FALSE) -> 3,138,642 | AK2: Alabama | AL2: 110 | AM2: 19,993,150 | AN2: 3,138,642 | AP2: =A2 -> Alabama
A3: Arizona | E3: =T3 -> 7,723 | F3: 265,744,346 | G3: 32,223,474 | H3: =W3+$AG3+AQ3 -> 5,342 | I3: =X3+$AH3+AR3 -> 252,818,430 | J3: =Y3+$AI3+AS3 -> 31,114,522 | K3: =Z3+$AG3+AT3 -> 5,258 | L3: =AA3+$AG3+AU3 -> 5,188 | M3: =AB3+$AG3+AV3 -> 5,127 | N3: =AC3+$AG3+AW3 -> 5,058 | O3: =AD3+$AG3+AX3 -> 4,157 | P3: =AE3+$AG3+AY3 -> 3,256 | Q3: =IF(C3="X",IF(D3="X",ROUND(P3,0),ROUND(N3,0)),"") ->  | S3: Arizona | T3: 7,723 | U3: 265,744,346 | V3: 32,223,474 | W3: 5,342 | X3: 252,818,430 | Y3: 31,114,522 | Z3: 5,258 | AA3: 5,188 | AB3: 5,127 | AC3: 5,058 | AD3: 4,157 | AE3: 3,256 | AK3: California | AL3: 113 | AM3: 20,511,517 | AN3: 2,900,513 | AP3: Arizona
A4: Arkansas | C4: X | D4: X | E4: 8,955 | F4: 192,843,561 | G4: 21,442,686 | H4: 8,728 | I4: 190,921,052 | J4: 21,270,872 | K4: 8,700 | L4: 8,700 | M4: 8,700 | N4: 8,700 | O4: 6,365 | P4: 4,031 | Q4: 4,031 | S4: Arkansas | T4: 8,955 | U4: 192,843,561 | V4: 21,442,686 | W4: 8,728 | X4: 190,921,052 | Y4: 21,270,872 | Z4: 8,700 | AA4: 8,700 | AB4: 8,700 | AC4: 8,700 | AD4: 6,365 | AE4: 4,031 | AK4: Colorado | AL4: 3 | AM4: 595,760 | AN4: 60,147 | AP4: Arkansas
A5: California | E5: 1,618 | F5: 307,678,602 | G5: 39,811,838 | H5: 1,672 | I5: 312,808,298 | J5: 41,461,518 | K5: 1,282 | L5: 1,282 | M5: 1,282 | N5: 1,282 | O5: 1,282 | P5: 1,282 | S5: California | T5: 1,618 | U5: 307,678,602 | V5: 39,811,838 | W5: 1,559 | X5: 292,296,782 | Y5: 38,561,005 | Z5: 1,169 | AA5: 1,169 | AB5: 1,169 | AC5: 1,169 | AD5: 1,169 | AE5: 1,169 | AG5: =VLOOKUP(A5,AK:AL,2, FALSE) -> 113 | AH5: =VLOOKUP(A5,AK:AN,3, FALSE) -> 20,511,517 | AI5: =VLOOKUP(A5,AK:AN,4, FALSE) -> 2,900,513 | AK5: Florida | AL5: 336 | AM5: 61,021,246 | AN5: 9,310,668 | AP5: California
A6: Colorado | E6: 7,310 | F6: 173,828,689 | G6: 18,428,320 | H6: 4,285 | I6: 140,664,863 | J6: 15,245,779 | K6: 4,208 | L6: 4,208 | M6: 4,208 | N6: 4,208 | O6: 3,534 | P6: 2,860 | S6: Colorado | T6: 7,310 | U6: 173,828,689 | V6: 18,428,320 | W6: 4,282 | X6: 140,069,103 | Y6: 15,185,631 | Z6: 4,204 | AA6: 4,204 | AB6: 4,204 | AC6: 4,204 | AD6: 3,530 | AE6: 2,856 | AG6: =VLOOKUP(A6,AK:AL,2, FALSE) -> 3 | AH6: =VLOOKUP(A6,AK:AN,3, FALSE) -> 595,760 | AI6: =VLOOKUP(A6,AK:AN,4, FALSE) -> 60,147 | AK6: Illinois | AL6: 202 | AM6: 36,702,253 | AN6: 5,761,735 | AP6: Colorado
A7: Connecticut | E7: 416 | F7: 72,511,598 | G7: 9,712,002 | H7: 381 | I7: 72,511,598 | J7: 9,712,002 | K7: 355 | L7: 355 | M7: 355 | N7: 355 | O7: 355 | P7: 355 | S7: Connecticut | T7: 416 | U7: 72,511,598 | V7: 9,712,002 | W7: 381 | X7: 72,511,598 | Y7: 9,712,002 | Z7: 355 | AA7: 355 | AB7: 355 | AC7: 355 | AD7: 355 | AE7: 355 | AK7: Indiana | AL7: 1 | AM7: 208,043 | AN7: 21,004 | AP7: Connecticut
A8: Delaware | E8: 423 | F8: 18,775,953 | G8: 1,848,538 | H8: 339 | I8: 16,877,926 | J8: 1,666,812 | K8: 312 | L8: 312 | M8: 308 | N8: 308 | O8: 308 | P8: 308 | S8: Delaware | T8: 423 | U8: 18,775,953 | V8: 1,848,538 | W8: 339 | X8: 16,877,926 | Y8: 1,666,812 | Z8: 312 | AA8: 312 | AB8: 308 | AC8: 308 | AD8: 308 | AE8: 308 | AK8: Louisiana | AL8: 52 | AM8: 9,399,861 | AN8: 1,285,200 | AP8: Delaware
A9: Florida | E9: 13,730 | F9: 737,533,505 | G9: 94,265,950 | H9: 11,297 | I9: 758,732,746 | J9: 99,653,884 | K9: 8,810 | L9: 8,810 | M9: 8,810 | N9: 8,810 | O9: 8,110 | P9: 7,410 | S9: Florida | T9: 13,730 | U9: 737,533,505 | V9: 94,265,950 | W9: 10,962 | X9: 697,711,500 | Y9: 90,343,216 | Z9: 8,474 | AA9: 8,474 | AB9: 8,474 | AC9: 8,474 | AD9: 7,774 | AE9: 7,074 | AG9: =VLOOKUP(A9,AK:AL,2, FALSE) -> 336 | AH9: =VLOOKUP(A9,AK:AN,3, FALSE) -> 61,021,246 | AI9: =VLOOKUP(A9,AK:AN,4, FALSE) -> 9,310,668 | AK9: Michigan | AL9: 227 | AM9: 41,187,590 | AN9: 6,164,443 | AP9: Florida
A10: Georgia | E10: 6,168 | F10: 328,793,408 | G10: 38,113,703 | H10: 5,191 | I10: 299,547,975 | J10: 35,348,099 | K10: 5,179 | L10: 5,179 | M10: 5,172 | N10: 5,172 | O10: 5,089 | P10: 5,007 | S10: Georgia | T10: 6,168 | U10: 328,793,408 | V10: 38,113,703 | W10: 5,191 | X10: 299,547,975 | Y10: 35,348,099 | Z10: 5,179 | AA10: 5,179 | AB10: 5,172 | AC10: 5,172 | AD10: 5,089 | AE10: 5,007 | AK10: Nevada | AL10: 177 | AM10: 11,239,997 | AN10: 1,354,177 | AP10: Georgia
A11: Idaho | E11: 240 | F11: 18,319,983 | G11: 2,275,867 | H11: 240 | I11: 18,319,983 | J11: 2,275,867 | K11: 240 | L11: 240 | M11: 240 | N11: 240 | O11: 240 | P11: 240 | S11: Idaho | T11: 240 | U11: 18,319,983 | V11: 2,275,867 | W11: 240 | X11: 18,319,983 | Y11: 2,275,867 | Z11: 240 | AA11: 240 | AB11: 240 | AC11: 240 | AD11: 240 | AE11: 240 | AK11: New York | AL11: 54 | AM11: 9,863,952 | AN11: 1,399,142 | AP11: Idaho
A12: Illinois | B12: X | C12: X | D12: X | E12: 11,335 | F12: 316,615,564 | G12: 32,824,055 | H12: 6,644 | I12: 253,219,463 | J12: 28,556,880 | K12: 6,575 | L12: 6,575 | M12: 6,415 | N12: 6,415 | O12: 5,889 | P12: 5,363 | Q12: 5,363 | S12: Illinois | T12: 11,335 | U12: 316,615,564 | V12: 32,824,055 | W12: 6,442 | X12: 216,517,210 | Y12: 22,795,145 | Z12: 6,373 | AA12: 6,373 | AB12: 6,213 | AC12: 6,213 | AD12: 5,687 | AE12: 5,161 | AG12: =VLOOKUP(A12,AK:AL,2, FALSE) -> 202 | AH12: =VLOOKUP(A12,AK:AN,3, FALSE) -> 36,702,253 | AI12: =VLOOKUP(A12,AK:AN,4, FALSE) -> 5,761,735 | AK12: North Carolina | AL12: 41 | AM12: 7,389,103 | AN12: 1,159,985 | AP12: Illinois
A13: Indiana | B13: X | C13: X | D13: X | E13: 14,162 | F13: 367,769,003 | G13: 38,256,889 | H13: 9,468 | I13: 302,245,332 | J13: 32,096,059 | K13: 8,700 | L13: 8,700 | M13: 8,698 | N13: 8,698 | O13: 8,410 | P13: 8,135 | Q13: 8,135 | S13: Indiana | T13: 14,162 | U13: 367,769,003 | V13: 38,256,889 | W13: 9,467 | X13: 302,037,289 | Y13: 32,075,055 | Z13: 8,699 | AA13: 8,699 | AB13: 8,697 | AC13: 8,697 | AD13: 8,409 | AE13: 8,134 | AG13: =VLOOKUP(A13,AK:AL,2, FALSE) -> 1 | AH13: =VLOOKUP(A13,AK:AN,3, FALSE) -> 208,043 | AI13: =VLOOKUP(A13,AK:AN,4, FALSE) -> 21,004 | AK13: North Dakota | AL13: 1 | AM13: 145,485 | AN13: 14,688 | AP13: Indiana
A14: Iowa | E14: 9,970 | F14: 147,993,282 | G14: 15,175,329 | H14: 9,773 | I14: 142,934,126 | J14: 14,694,225 | K14: 9,773 | L14: 9,773 | M14: 9,713 | N14: 9,713 | O14: 6,790 | P14: 4,026 | S14: Iowa | T14: 9,970 | U14: 147,993,282 | V14: 15,175,329 | W14: 9,773 | X14: 142,934,126 | Y14: 14,694,225 | Z14: 9,773 | AA14: 9,773 | AB14: 9,713 | AC14: 9,713 | AD14: 6,790 | AE14: 4,026 | AK14: Ohio | AL14: 293 | AM14: 53,316,703 | AN14: 8,089,141 | AP14: Iowa
A15: Kansas | E15: 6,231 | F15: 115,827,226 | G15: 11,828,633 | H15: 5,510 | I15: 104,571,293 | J15: 10,718,340 | K15: 4,763 | L15: 4,763 | M15: 4,763 | N15: 4,763 | O15: 3,938 | P15: 3,112 | S15: Kansas | T15: 6,231 | U15: 115,827,226 | V15: 11,828,633 | W15: 5,510 | X15: 104,571,293 | Y15: 10,718,340 | Z15: 4,763 | AA15: 4,763 | AB15: 4,763 | AC15: 4,763 | AD15: 3,938 | AE15: 3,112 | AK15: Oregon | AL15: 8 | AM15: 1,435,933 | AN15: 144,971 | AP15: Kansas
A16: Kentucky | B16: X | C16: X | D16: X | E16: 14,571 | F16: 301,161,750 | G16: 32,289,611 | H16: 13,211 | I16: 295,857,697 | J16: 31,687,113 | K16: 12,911 | L16: 12,472 | M16: 12,911 | N16: 12,472 | O16: 10,190 | P16: 7,908 | Q16: 7,908 | S16: Kentucky | T16: 14,571 | U16: 301,161,750 | V16: 32,289,611 | W16: 13,211 | X16: 295,857,697 | Y16: 31,687,113 | Z16: 12,911 | AA16: 12,472 | AB16: 12,911 | AC16: 12,472 | AD16: 10,190 | AE16: 7,908 | AK16: Pennsylvania | AL16: 94 | AM16: 20,450,389 | AN16: 3,083,268 | AP16: Kentucky
A17: Louisiana | B17: X | C17: X | D17: X | E17: 11,391 | F17: 280,839,944 | G17: 32,388,791 | H17: 9,628 | I17: 277,262,840 | J17: 32,526,713 | K17: 9,113 | L17: 9,113 | M17: 9,017 | N17: 9,017 | O17: 6,323 | P17: 3,792 | Q17: 3,792 | S17: Louisiana | T17: 11,391 | U17: 280,839,944 | V17: 32,388,791 | W17: 9,576 | X17: 267,862,979 | Y17: 31,241,513 | Z17: 9,061 | AA17: 9,061 | AB17: 8,965 | AC17: 8,965 | AD17: 6,271 | AE17: 3,740 | AG17: =VLOOKUP(A17,AK:AL,2, FALSE) -> 52 | AH17: =VLOOKUP(A17,AK:AN,3, FALSE) -> 9,399,861 | AI17: =VLOOKUP(A17,AK:AN,4, FALSE) -> 1,285,200 | AK17: South Dakota | AL17: 5 | AM17: 892,912 | AN17: 90,148 | AP17: Louisiana
A18: Maine | E18: 108 | F18: 12,436,184 | G18: 1,524,816 | H18: 108 | I18: 12,436,184 | J18: 1,524,816 | K18: 86 | L18: 86 | M18: 86 | N18: 86 | O18: 86 | P18: 86 | S18: Maine | T18: 108 | U18: 12,436,184 | V18: 1,524,816 | W18: 108 | X18: 12,436,184 | Y18: 1,524,816 | Z18: 86 | AA18: 86 | AB18: 86 | AC18: 86 | AD18: 86 | AE18: 86 | AK18: Texas | AL18: 86 | AM18: 15,641,275 | AN18: 2,251,303 | AP18: Maine
A19: Maryland | B19: X | C19: X | D19: X | E19: 1,428 | F19: 80,220,113 | G19: 9,246,155 | H19: 901 | I19: 70,725,007 | J19: 8,312,803 | K19: 850 | L19: 850 | M19: 842 | N19: 842 | O19: 842 | P19: 842 | Q19: 842 | S19: Maryland | T19: 1,428 | U19: 80,220,113 | V19: 9,246,155 | W19: 901 | X19: 70,725,007 | Y19: 8,312,803 | Z19: 850 | AA19: 850 | AB19: 842 | AC19: 842 | AD19: 842 | AE19: 842 | AK19: Utah | AL19: 162 | AM19: 1,888,174 | AN19: 168,966 | AP19: Maryland
A20: Massachusetts | E20: 298 | F20: 53,404,422 | G20: 6,150,912 | H20: 287 | I20: 51,627,490 | J20: 5,917,351 | K20: 256 | L20: 256 | M20: 256 | N20: 256 | O20: 256 | P20: 256 | S20: Massachusetts | T20: 298 | U20: 53,404,422 | V20: 6,150,912 | W20: 287 | X20: 51,627,490 | Y20: 5,917,351 | Z20: 256 | AA20: 256 | AB20: 256 | AC20: 256 | AD20: 256 | AE20: 256 | AL20: =SUM(AL2:AL19) -> 1,963 | AM20: =SUM(AM2:AM19) -> 311,883,343 | AN20: 46,398,141 | AP20: Massachusetts
A21: Michigan | B21: X | C21: X | D21: X | E21: 13,555 | F21: 303,831,906 | G21: 29,702,739 | H21: 7,097 | I21: 258,225,107 | J21: 28,093,455 | K21: 7,094 | L21: 7,094 | M21: 7,078 | N21: 7,078 | O21: 6,327 | P21: 5,691 | Q21: 5,691 | S21: Michigan | T21: 13,555 | U21: 303,831,906 | V21: 29,702,739 | W21: 6,871 | X21: 217,037,517 | Y21: 21,929,012 | Z21: 6,867 | AA21: 6,867 | AB21: 6,852 | AC21: 6,852 | AD21: 6,100 | AE21: 5,464 | AG21: =VLOOKUP(A21,AK:AL,2, FALSE) -> 227 | AH21: =VLOOKUP(A21,AK:AN,3, FALSE) -> 41,187,590 | AI21: =VLOOKUP(A21,AK:AN,4, FALSE) -> 6,164,443 | AP21: Michigan
A22: Minnesota | C22: X | E22: 5,652 | F22: 128,967,463 | G22: 13,677,339 | H22: 3,044 | I22: 93,890,928 | J22: 10,317,358 | K22: 2,945 | L22: 2,945 | M22: 2,905 | N22: 2,905 | O22: 2,447 | P22: 1,990 | Q22: 2,905 | S22: Minnesota | T22: 5,652 | U22: 128,967,463 | V22: 13,677,339 | W22: 3,044 | X22: 93,890,928 | Y22: 10,317,358 | Z22: 2,945 | AA22: 2,945 | AB22: 2,905 | AC22: 2,905 | AD22: 2,447 | AE22: 1,990 | AP22: Minnesota
A23: Mississippi | C23: X | D23: X | E23: 5,790 | F23: 190,043,215 | G23: 22,493,704 | H23: 6,022 | I23: 189,279,160 | J23: 22,316,645 | K23: 5,949 | L23: 5,037 | M23: 5,949 | N23: 5,037 | O23: 3,484 | P23: 2,084 | Q23: 2,084 | S23: Mississippi | T23: 5,790 | U23: 190,043,215 | V23: 22,493,704 | W23: 4,836 | X23: 180,284,292 | Y23: 21,521,128 | Z23: 4,763 | AA23: 4,138 | AB23: 4,763 | AC23: 4,138 | AD23: 2,922 | AE23: 1,859 | AP23: Mississippi | AQ23: 1,186 | AR23: 8,994,868 | AS23: 795,517 | AT23: 1,186 | AU23: 899 | AV23: 1,186 | AW23: 899 | AX23: 562 | AY23: 225
A24: Missouri | C24: X | D24: X | E24: 20,388 | F24: 288,219,887 | G24: 31,104,031 | H24: 18,559 | I24: 248,413,545 | J24: 26,766,964 | K24: 11,220 | L24: 11,220 | M24: 11,063 | N24: 11,063 | O24: 9,196 | P24: 7,329 | Q24: 7,329 | S24: Missouri | T24: 20,388 | U24: 288,219,887 | V24: 31,104,031 | W24: 18,559 | X24: 248,413,545 | Y24: 26,766,964 | Z24: 11,220 | AA24: 11,220 | AB24: 11,063 | AC24: 11,063 | AD24: 9,196 | AE24: 7,329 | AP24: Missouri
A25: Montana | E25: 3,071 | F25: 46,489,166 | G25: 4,635,867 | H25: 3,071 | I25: 46,489,166 | J25: 4,635,867 | K25: 3,071 | L25: 3,071 | M25: 3,071 | N25: 3,071 | O25: 2,124 | P25: 1,177 | S25: Montana | T25: 3,071 | U25: 46,489,166 | V25: 4,635,867 | W25: 3,071 | X25: 46,489,166 | Y25: 4,635,867 | Z25: 3,071 | AA25: 3,071 | AB25: 3,071 | AC25: 3,071 | AD25: 2,124 | AE25: 1,177 | AP25: Montana
A26: Nebraska | E26: 8,931 | F26: 102,719,096 | G26: 10,720,072 | H26: =W26+$AG26+AQ26 -> 8,247 | I26: =X26+$AH26+AR26 -> 102,459,563 | J26: =Y26+$AI26+AS26 -> 10,700,633 | K26: =Z26+$AG26+AT26 -> 8,210 | L26: 8,177 | M26: 8,210 | N26: 8,177 | O26: 5,522 | P26: 2,974 | S26: Nebraska | T26: 8,931 | U26: 102,719,096 | V26: 10,720,072 | W26: 8,247 | X26: 102,459,563 | Y26: 10,700,633 | Z26: 8,210 | AA26: 8,177 | AB26: 8,210 | AC26: 8,177 | AD26: 5,522 | AE26: 2,974 | AP26: Nebraska
A27: Nevada | C27: X | D27: X | E27: 2,457 | F27: 103,489,785 | G27: 12,918,610 | H27: =W27+$AG27+AQ27 -> 1,115 | I27: =X27+$AH27+AR27 -> 100,193,805 | J27: =Y27+$AI27+AS27 -> 12,599,661 | K27: =Z27+$AG27+AT27 -> 1,113 | L27: =AA27+$AG27+AU27 -> 1,113 | M27: =AB27+$AG27+AV27 -> 1,113 | N27: =AC27+$AG27+AW27 -> 1,113 | O27: =AD27+$AG27+AX27 -> 1,113 | P27: =AE27+$AG27+AY27 -> 1,113 | Q27: 1,113 | S27: Nevada | T27: 2,457 | U27: 103,489,785 | V27: 12,918,610 | W27: 938 | X27: 88,953,808 | Y27: 11,245,484 | Z27: 936 | AA27: 936 | AB27: 936 | AC27: 936 | AD27: 936 | AE27: 936 | AG27: =VLOOKUP(A27,AK:AL,2, FALSE) -> 177 | AH27: =VLOOKUP(A27,AK:AN,3, FALSE) -> 11,239,997 | AI27: =VLOOKUP(A27,AK:AN,4, FALSE) -> 1,354,177 | AP27: Nevada
A28: New Hampshire | E28: 330 | F28: 23,374,046 | G28: 2,303,022 | H28: 330 | I28: 23,374,046 | J28: 2,303,022 | K28: 267 | L28: 267 | M28: 267 | N28: 267 | O28: 267 | P28: 267 | S28: New Hampshire | T28: 330 | U28: 23,374,046 | V28: 2,303,022 | W28: 330 | X28: 23,374,046 | Y28: 2,303,022 | Z28: 267 | AA28: 267 | AB28: 267 | AC28: 267 | AD28: 267 | AE28: 267 | AP28: New Hampshire
A29: New Jersey | B29: X | C29: X | D29: X | E29: 1,324 | F29: 119,538,737 | G29: 14,682,028 | H29: 915 | I29: 112,233,231 | J29: 14,601,398 | K29: 773 | L29: 773 | M29: 773 | N29: 773 | O29: 773 | P29: 773 | Q29: 773 | S29: New Jersey | T29: 1,324 | U29: 119,538,737 | V29: 14,682,028 | W29: 915 | X29: 112,233,231 | Y29: 14,601,398 | Z29: 773 | AA29: 773 | AB29: 773 | AC29: 773 | AD29: 773 | AE29: 773 | AP29: New Jersey
A30: New Mexico | E30: 5,066 | F30: 108,235,365 | G30: 11,502,879 | H30: 2,029 | I30: 79,106,429 | J30: 8,916,600 | K30: 1,998 | L30: 1,998 | M30: 1,998 | N30: 1,998 | O30: 1,833 | P30: 1,668 | S30: New Mexico | T30: 5,066 | U30: 108,235,365 | V30: 11,502,879 | W30: 2,029 | X30: 79,106,429 | Y30: 8,916,600 | Z30: 1,998 | AA30: 1,998 | AB30: 1,998 | AC30: 1,998 | AD30: 1,833 | AE30: 1,668 | AP30: New Mexico
A31: New York | B31: X | C31: X | D31: X | E31: 3,997 | F31: 233,342,131 | G31: 27,313,198 | H31: 3,977 | I31: 242,853,661 | J31: 28,688,704 | K31: 3,912 | L31: 3,912 | M31: 3,912 | N31: 3,912 | O31: 3,650 | P31: 3,388 | Q31: 3,388 | S31: New York | T31: 3,997 | U31: 233,342,131 | V31: 27,313,198 | W31: 3,922 | X31: 232,989,708 | Y31: 27,289,562 | Z31: 3,858 | AA31: 3,858 | AB31: 3,858 | AC31: 3,858 | AD31: 3,596 | AE31: 3,333 | AG31: =VLOOKUP(A31,AK:AL,2, FALSE) -> 54 | AH31: =VLOOKUP(A31,AK:AN,3, FALSE) -> 9,863,952 | AI31: =VLOOKUP(A31,AK:AN,4, FALSE) -> 1,399,142 | AP31: New York
A32: North Carolina | E32: 12,444 | F32: 281,750,959 | G32: 29,259,654 | H32: 11,700 | I32: 280,872,291 | J32: 29,615,600 | K32: 8,847 | L32: 8,847 | M32: 8,837 | N32: 8,837 | O32: 7,490 | P32: 6,142 | S32: North Carolina | T32: 12,444 | U32: 281,750,959 | V32: 29,259,654 | W32: 11,660 | X32: 273,483,187 | Y32: 28,455,615 | Z32: 8,807 | AA32: 8,807 | AB32: 8,797 | AC32: 8,797 | AD32: 7,449 | AE32: 6,101 | AG32: =VLOOKUP(A32,AK:AL,2, FALSE) -> 41 | AH32: =VLOOKUP(A32,AK:AN,3, FALSE) -> 7,389,103 | AI32: =VLOOKUP(A32,AK:AN,4, FALSE) -> 1,159,985 | AP32: North Carolina
A33: North Dakota | E33: 12,666 | F33: 121,650,949 | G33: 11,776,927 | H33: 12,246 | I33: 119,541,029 | J33: 11,593,940 | K33: 12,246 | L33: 12,246 | M33: 11,436 | N33: 11,436 | O33: 7,181 | P33: 2,927 | S33: North Dakota | T33: 12,666 | U33: 121,650,949 | V33: 11,776,927 | W33: 12,246 | X33: 119,395,544 | Y33: 11,579,252 | Z33: 12,246 | AA33: 12,246 | AB33: 11,435 | AC33: 11,435 | AD33: 7,181 | AE33: 2,926 | AG33: =VLOOKUP(A33,AK:AL,2, FALSE) -> 1 | AH33: =VLOOKUP(A33,AK:AN,3, FALSE) -> 145,485 | AI33: =VLOOKUP(A33,AK:AN,4, FALSE) -> 14,688 | AP33: North Dakota
A34: Ohio | B34: X | C34: X | D34: X | E34: 11,697 | F34: 389,640,469 | G34: 45,135,729 | H34: 9,083 | I34: 386,560,212 | J34: 47,519,943 | K34: 7,929 | L34: 7,929 | M34: 7,929 | N34: 7,929 | O34: 7,929 | P34: 7,929 | Q34: 7,929 | S34: Ohio | T34: 11,697 | U34: 389,640,469 | V34: 45,135,729 | W34: 8,790 | X34: 333,243,509 | Y34: 39,430,802 | Z34: 7,636 | AA34: 7,636 | AB34: 7,636 | AC34: 7,636 | AD34: 7,636 | AE34: 7,636 | AG34: =VLOOKUP(A34,AK:AL,2, FALSE) -> 293 | AH34: =VLOOKUP(A34,AK:AN,3, FALSE) -> 53,316,703 | AI34: =VLOOKUP(A34,AK:AN,4, FALSE) -> 8,089,141 | AP34: =A34 -> Ohio
A35: Oklahoma | C35: X | D35: X | E35: 10,470 | F35: 212,903,386 | G35: 22,657,698 | H35: 9,317 | I35: 196,160,642 | J35: 21,150,818 | K35: 9,119 | L35: 8,427 | M35: 9,119 | N35: 8,427 | O35: 5,972 | P35: 3,917 | Q35: 3,917 | S35: Oklahoma | T35: 10,470 | U35: 212,903,386 | V35: 22,657,698 | W35: 9,317 | X35: 196,160,642 | Y35: 21,150,818 | Z35: 9,119 | AA35: 8,427 | AB35: 9,119 | AC35: 8,427 | AD35: 5,972 | AE35: 3,917 | AP35: Oklahoma
A36: Oregon | E36: 342 | F36: 56,716,013 | G36: 7,943,020 | H36: 350 | I36: 58,151,946 | J36: 8,087,990 | K36: 300 | L36: 300 | M36: 300 | N36: 300 | O36: 300 | P36: 300 | S36: Oregon | T36: 342 | U36: 56,716,013 | V36: 7,943,020 | W36: 342 | X36: 56,716,013 | Y36: 7,943,020 | Z36: 292 | AA36: 292 | AB36: 292 | AC36: 292 | AD36: 292 | AE36: 292 | AG36: =VLOOKUP(A36,AK:AL,2, FALSE) -> 8 | AH36: =VLOOKUP(A36,AK:AN,3, FALSE) -> 1,435,933 | AI36: =VLOOKUP(A36,AK:AN,4, FALSE) -> 144,971 | AP36: Oregon
A37: Pennsylvania | B37: X | C37: X | D37: X | E37: 12,785 | F37: 539,359,977 | G37: 65,729,802 | H37: 8,362 | I37: 550,993,363 | J37: 67,945,477 | K37: 8,010 | L37: 8,010 | M37: 7,910 | N37: 7,910 | O37: 7,512 | P37: 7,158 | Q37: 7,158 | S37: Pennsylvania | T37: 12,785 | U37: 539,359,977 | V37: 65,729,802 | W37: 8,268 | X37: 530,542,974 | Y37: 64,862,209 | Z37: 7,917 | AA37: 7,917 | AB37: 7,817 | AC37: 7,817 | AD37: 7,418 | AE37: 7,064 | AG37: =VLOOKUP(A37,AK:AL,2, FALSE) -> 94 | AH37: =VLOOKUP(A37,AK:AN,3, FALSE) -> 20,450,389 | AI37: =VLOOKUP(A37,AK:AN,4, FALSE) -> 3,083,268 | AP37: Pennsylvania
A38: Rhode Island | E38: 279 | F38: 31,838,505 | G38: 3,674,052 | H38: 279 | I38: 31,838,505 | J38: 3,674,052 | K38: 148 | L38: 148 | M38: 148 | N38: 148 | O38: 148 | P38: 148 | S38: Rhode Island | T38: 279 | U38: 31,838,505 | V38: 3,674,052 | W38: 279 | X38: 31,838,505 | Y38: 3,674,052 | Z38: 148 | AA38: 148 | AB38: 148 | AC38: 148 | AD38: 148 | AE38: 148 | AP38: Rhode Island
A39: South Carolina | E39: 4,273 | F39: 161,345,886 | G39: 17,627,029 | H39: 4,273 | I39: 161,345,886 | J39: 17,627,029 | K39: 3,531 | L39: 3,531 | M39: 3,531 | N39: 3,531 | O39: 3,531 | P39: 3,531 | S39: South Carolina | T39: 4,273 | U39: 161,345,886 | V39: 17,627,029 | W39: 4,273 | X39: 161,345,886 | Y39: 17,627,029 | Z39: 3,531 | AA39: 3,531 | AB39: 3,531 | AC39: 3,531 | AD39: 3,531 | AE39: 3,531 | AP39: South Carolina
A40: South Dakota | E40: 516 | F40: 15,587,258 | G40: 1,471,526 | H40: 509 | I40: 16,161,161 | J40: 1,539,304 | K40: 509 | L40: 509 | M40: 509 | N40: 509 | O40: 509 | P40: 509 | S40: South Dakota | T40: 516 | U40: 15,587,258 | V40: 1,471,526 | W40: 504 | X40: 15,268,249 | Y40: 1,449,157 | Z40: 504 | AA40: 504 | AB40: 504 | AC40: 504 | AD40: 504 | AE40: 504 | AG40: =VLOOKUP(A40,AK:AL,2, FALSE) -> 5 | AH40: =VLOOKUP(A40,AK:AN,3, FALSE) -> 892,912 | AI40: =VLOOKUP(A40,AK:AN,4, FALSE) -> 90,148 | AP40: South Dakota
A41: Tennessee | E41: 4,319 | F41: 157,981,198 | G41: 17,418,180 | H41: 2,747 | I41: 115,344,086 | J41: 13,299,131 | K41: 2,666 | L41: 2,666 | M41: 2,666 | N41: 2,666 | O41: 2,666 | P41: 2,666 | S41: Tennessee | T41: 4,319 | U41: 157,981,198 | V41: 17,418,180 | W41: 2,747 | X41: 115,344,086 | Y41: 13,299,131 | Z41: 2,666 | AA41: 2,666 | AB41: 2,666 | AC41: 2,666 | AD41: 2,666 | AE41: 2,666 | AP41: Tennessee
A42: Texas | C42: X | D42: X | E42: 42,746 | F42: 1,400,469,195 | G42: 157,307,078 | H42: 37,261 | I42: 1,356,192,532 | J42: 154,068,247 | K42: 36,352 | L42: 36,352 | M42: 36,119 | N42: 36,119 | O42: 29,564 | P42: 23,009 | Q42: 23,009 | S42: Texas | T42: 42,746 | U42: 1,400,469,195 | V42: 157,307,078 | W42: 37,175 | X42: 1,340,551,257 | Y42: 151,816,944 | Z42: 36,266 | AA42: 36,266 | AB42: 36,033 | AC42: 36,033 | AD42: 29,478 | AE42: 22,923 | AG42: =VLOOKUP(A42,AK:AL,2, FALSE) -> 86 | AH42: =VLOOKUP(A42,AK:AN,3, FALSE) -> 15,641,275 | AI42: =VLOOKUP(A42,AK:AN,4, FALSE) -> 2,251,303 | AP42: Texas
A43: Utah | C43: X | D43: X | E43: 15,762 | F43: 164,519,648 | G43: 18,345,467 | H43: 9,930 | I43: 127,217,396 | J43: 14,057,968 | K43: 9,923 | L43: 9,923 | M43: 9,923 | N43: 9,923 | O43: 6,258 | P43: 2,593 | Q43: 2,593 | S43: Utah | T43: 15,762 | U43: 164,519,648 | V43: 18,345,467 | W43: 9,768 | X43: 125,329,222 | Y43: 13,889,002 | Z43: 9,761 | AA43: 9,761 | AB43: 9,761 | AC43: 9,761 | AD43: 6,096 | AE43: 2,431 | AG43: =VLOOKUP(A43,AK:AL,2, FALSE) -> 162 | AH43: =VLOOKUP(A43,AK:AN,3, FALSE) -> 1,888,174 | AI43: =VLOOKUP(A43,AK:AN,4, FALSE) -> 168,966 | AP43: Utah
A44: Vermont | E44: 54 | F44: 1,571,908 | G44: 113,425 | H44: 54 | I44: 1,571,908 | J44: 113,425 | K44: 54 | L44: 54 | M44: 54 | N44: 54 | O44: 54 | P44: 54 | S44: Vermont | T44: 54 | U44: 1,571,908 | V44: 113,425 | W44: 54 | X44: 1,571,908 | Y44: 113,425 | Z44: 54 | AA44: 54 | AB44: 54 | AC44: 54 | AD44: 54 | AE44: 54 | AP44: Vermont
A45: Virginia | B45: X | C45: X | D45: X | E45: 3,329 | F45: 202,953,791 | G45: 24,677,281 | H45: 3,019 | I45: 194,015,719 | J45: 23,775,355 | K45: 2,855 | L45: 2,778 | M45: 2,834 | N45: 2,756 | O45: 2,565 | P45: 2,373 | Q45: 2,373 | S45: Virginia | T45: 3,329 | U45: 202,953,791 | V45: 24,677,281 | W45: 3,019 | X45: 194,015,719 | Y45: 23,775,355 | Z45: 2,855 | AA45: 2,778 | AB45: 2,834 | AC45: 2,756 | AD45: 2,565 | AE45: 2,373 | AP45: Virginia
A46: Washington | E46: 1,999 | F46: 65,748,254 | G46: 7,731,261 | H46: 527 | I46: 50,453,818 | J46: 6,365,209 | K46: 257 | L46: 257 | M46: 257 | N46: 257 | O46: 257 | P46: 257 | S46: Washington | T46: 1,999 | U46: 65,748,254 | V46: 7,731,261 | W46: 527 | X46: 50,453,818 | Y46: 6,365,209 | Z46: 257 | AA46: 257 | AB46: 257 | AC46: 257 | AD46: 257 | AE46: 257 | AP46: Washington
A47: West Virginia | B47: X | C47: X | D47: X | E47: 14,686 | F47: 306,845,495 | G47: 32,032,438 | H47: 13,185 | I47: 273,151,957 | J47: 28,666,644 | K47: 12,784 | L47: 12,239 | M47: 12,443 | N47: 11,958 | O47: 10,818 | P47: 9,678 | Q47: 9,678 | S47: West Virginia | T47: 14,686 | U47: 306,845,495 | V47: 32,032,438 | W47: 13,185 | X47: 273,151,957 | Y47: 28,666,644 | Z47: 12,784 | AA47: 12,239 | AB47: 12,443 | AC47: 11,958 | AD47: 10,818 | AE47: 9,678 | AP47: West Virginia
A48: Wisconsin | C48: X | E48: 6,321 | F48: 220,794,282 | G48: 24,061,341 | H48: 3,442 | I48: 151,343,287 | J48: 17,427,470 | K48: 3,436 | L48: 3,436 | M48: 3,416 | N48: 3,416 | O48: 3,416 | P48: 3,416 | Q48: 3,416 | S48: Wisconsin | T48: 6,321 | U48: 220,794,282 | V48: 24,061,341 | W48: 3,442 | X48: 151,343,287 | Y48: 17,427,470 | Z48: 3,436 | AA48: 3,436 | AB48: 3,416 | AC48: 3,416 | AD48: 3,416 | AE48: 3,416 | AP48: Wisconsin
A49: Wyoming | E49: 11,643 | F49: 175,787,236 | G49: 16,542,944 | H49: 9,174 | I49: 161,937,895 | J49: 15,224,651 | K49: 9,093 | L49: 8,499 | M49: 9,080 | N49: 8,486 | O49: 6,149 | P49: 3,811 | S49: Wyoming | T49: 11,643 | U49: 175,787,236 | V49: 16,542,944 | W49: 9,174 | X49: 161,937,895 | Y49: 15,224,651 | Z49: 9,093 | AA49: 8,499 | AB49: 9,080 | AC49: 8,486 | AD49: 6,149 | AE49: 3,811 | AP49: Wyoming
A50: Total | E50: =SUM(E2:E49) -> 359,617 | F50: 10,261,049,881 | G50: 1,159,585,094 | H50: 289,138 | I50: 9,632,105,227 | J50: 1,115,399,369 | K50: 268,216 | L50: 264,855 | M50: 265,987 | N50: 262,686 | O50: 217,204 | P50: 172,878 | Q50: =IF(A50="California","",IF(A50="Oregon","",IF(C50="X",IF(D50="X",P50,N50),""))) ->  | S50: Total | T50: =SUM(T2:T49) -> 359,617 | U50: 10,261,049,881 | V50: 1,159,585,094 | W50: 285,989 | X50: 9,311,227,016 | Y50: 1,068,205,711 | Z50: 265,066 | AA50: 261,992 | AB50: 262,838 | AC50: 259,824 | AD50: 214,679 | AE50: 170,689 | AG50: =SUM(AG2:AG49) -> 1,963 | AH50: =SUM(AH2:AH49) -> 311,883,343 | AI50: =SUM(AI2:AI49) -> 46,398,141 | AP50: Total | AQ50: =SUM(AQ2:AQ49) -> 1,186 | AR50: =SUM(AR2:AR49) -> 8,994,868 | AS50: 795,517 | AT50: 1,186 | AU50: 899 | AV50: 1,186 | AW50: 899 | AX50: 562 | AY50: 225
A51: 2023 Strategy | E51: =SUMIF($C$2:$C$49, "X", E$2:E$49) -> 239,450 | F51: 6,657,406,843 | G51: 745,505,856 | H51: 189,177 | I51: 6,199,606,588 | J51: 712,369,701 | K51: 176,499 | L51: 173,833 | M51: 175,305 | N51: 172,699 | O51: 145,031 | P51: 118,251 | Q51: 119,663
A52: 2026 Strategy | E52: =SUMIF($D$2:$D$49, "X", E$2:E$49) -> 220,828 | F52: 5,994,607,557 | G52: 670,547,990 | H52: 176,423 | I52: 5,625,721,720 | J52: 644,701,717 | K52: 163,882 | L52: 161,216 | M52: 162,748 | N52: 160,142 | O52: 133,178 | P52: 107,103 | Q52: 107,106

Sheet State 2028
A1: State | B1: RCU State | C1: 2023 EGU control strategy | D1: 2026 EGU control strategy | E1: 2021 OS NOx | F1: 2021 OS Heat Input | G1: 2021 OS Generation | H1: Baseline 2028 OS NOx | I1: Baseline 2028 OS Heat Input | J1: Baseline 2028 OS Generation | K1: Baseline 2028 OS NOx + SCR Optimize | L1: Baseline 2028 OS NOx + SCR Optimize + SOA CC | M1: Baseline 2028 OS NOx + SCR Optimize + SNCR Optimize | N1: Baseline 2028 OS NOx + SCR Optimize + SOA CC + SNCR Optimize | O1: Baseline 2028 OS NOx + SCR Optimize + SOA CC + SNCR Optimize + SCR (Half)/SNCR Retrofit | P1: Baseline 2028 OS NOx + SCR Optimize + SOA CC + SNCR Optimize + SCR/SNCR Retrofit | Q1: Preset 2028 State Budget | S1: State | T1: 2021 OS NOx | U1: 2021 OS Heat Input | V1: 2021 OS Generation | W1: Baseline 2028 OS NOx | X1: Baseline 2028 OS Heat Input | Y1: Baseline 2028 OS Generation | Z1: Baseline 2028 OS NOx + SCR Optimize | AA1: Baseline 2028 OS NOx + SCR Optimize + SOA CC | AB1: Baseline 2028 OS NOx + SCR Optimize + SNCR Optimize | AC1: Baseline 2028 OS NOx + SCR Optimize + SOA CC + SNCR Optimize | AD1: Baseline 2028 OS NOx + SCR Optimize + SOA CC + SNCR Optimize + SCR (Half)/SNCR Retrofit | AE1: Baseline 2028 OS NOx + SCR Optimize + SOA CC + SNCR Optimize + SCR/SNCR Retrofit | AG1: Summer NOx new units (>25MW) | AH1: Summer HI new units (>25MW) | AI1: Summer Gen new units (>25MW) | AK1: Summer new units (>25MW) | AL1: NOx | AM1: Heat Input | AN1: Generation | AP1: Budget Adjustment | AQ1: Baseline 2023 OS NOx | AR1: Baseline 2023 OS Heat Input | AS1: Baseline 2023 OS Generation | AT1: Baseline 2023 OS NOx + SCR Optimize | AU1: Baseline 2023 OS NOx + SCR Optimize + SOA CC | AV1: Baseline 2023 OS NOx + SCR Optimize + SNCR Optimize | AW1: Baseline 2023 OS NOx + SCR Optimize + SOA CC + SNCR Optimize | AX1: Baseline 2023 OS NOx + SCR Optimize + SOA CC + SNCR Optimize + SCR (Half)/SNCR Retrofit | AY1: Baseline 2023 OS NOx + SCR Optimize + SOA CC + SNCR Optimize + SCR/SNCR Retrofit
A2: Alabama | C2: X | E2: =T2 -> 6,648 | F2: =U2 -> 313,037,541 | G2: =V2 -> 37,219,186 | H2: =W2+$AG2+AQ2 -> 6,268 | I2: =X2+$AH2+AR2 -> 328,650,653 | J2: =Y2+$AI2+AS2 -> 39,923,156 | K2: =Z2+$AG2+AT2 -> 6,236 | L2: 6,236 | M2: 6,236 | N2: 6,236 | O2: 5,989 | P2: 5,741 | Q2: =IF(C2="X",IF(D2="X",ROUND(P2,0),ROUND(N2,0)),"") -> 6,236 | S2: Alabama | T2: 6,648 | U2: 313,037,541 | V2: 37,219,186 | W2: 6,158 | X2: 308,657,503 | Y2: 36,784,514 | Z2: 6,126 | AA2: 6,126 | AB2: 6,126 | AC2: 6,126 | AD2: 5,879 | AE2: 5,631 | AG2: =VLOOKUP(A2,AK:AL,2, FALSE) -> 110 | AH2: =VLOOKUP(A2,AK:AN,3, FALSE) -> 19,993,150 | AI2: =VLOOKUP(A2,AK:AN,4, FALSE) -> 3,138,642 | AK2: Alabama | AL2: 110 | AM2: 19,993,150 | AN2: 3,138,642 | AP2: =A2 -> Alabama
A3: Arizona | E3: =T3 -> 7,723 | F3: 265,744,346 | G3: 32,223,474 | H3: =W3+$AG3+AQ3 -> 5,117 | I3: =X3+$AH3+AR3 -> 250,285,808 | J3: =Y3+$AI3+AS3 -> 30,844,082 | K3: =Z3+$AG3+AT3 -> 5,033 | L3: =AA3+$AG3+AU3 -> 4,964 | M3: =AB3+$AG3+AV3 -> 4,903 | N3: =AC3+$AG3+AW3 -> 4,834 | O3: =AD3+$AG3+AX3 -> 4,013 | P3: =AE3+$AG3+AY3 -> 3,193 | Q3: =IF(C3="X",IF(D3="X",ROUND(P3,0),ROUND(N3,0)),"") ->  | S3: Arizona | T3: 7,723 | U3: 265,744,346 | V3: 32,223,474 | W3: 5,117 | X3: 250,285,808 | Y3: 30,844,082 | Z3: 5,033 | AA3: 4,964 | AB3: 4,903 | AC3: 4,834 | AD3: 4,013 | AE3: 3,193 | AK3: California | AL3: 113 | AM3: 20,511,517 | AN3: 2,900,513 | AP3: Arizona
A4: Arkansas | C4: X | D4: X | E4: 8,955 | F4: 192,843,561 | G4: 21,442,686 | H4: 8,728 | I4: 190,921,052 | J4: 21,270,872 | K4: 8,700 | L4: 8,700 | M4: 8,700 | N4: 8,700 | O4: 6,365 | P4: 4,031 | Q4: 4,031 | S4: Arkansas | T4: 8,955 | U4: 192,843,561 | V4: 21,442,686 | W4: 8,728 | X4: 190,921,052 | Y4: 21,270,872 | Z4: 8,700 | AA4: 8,700 | AB4: 8,700 | AC4: 8,700 | AD4: 6,365 | AE4: 4,031 | AK4: Colorado | AL4: 3 | AM4: 595,760 | AN4: 60,147 | AP4: Arkansas
A5: California | E5: 1,618 | F5: 307,678,602 | G5: 39,811,838 | H5: 1,672 | I5: 312,808,298 | J5: 41,461,518 | K5: 1,282 | L5: 1,282 | M5: 1,282 | N5: 1,282 | O5: 1,282 | P5: 1,282 | S5: California | T5: 1,618 | U5: 307,678,602 | V5: 39,811,838 | W5: 1,559 | X5: 292,296,782 | Y5: 38,561,005 | Z5: 1,169 | AA5: 1,169 | AB5: 1,169 | AC5: 1,169 | AD5: 1,169 | AE5: 1,169 | AG5: =VLOOKUP(A5,AK:AL,2, FALSE) -> 113 | AH5: =VLOOKUP(A5,AK:AN,3, FALSE) -> 20,511,517 | AI5: =VLOOKUP(A5,AK:AN,4, FALSE) -> 2,900,513 | AK5: Florida | AL5: 336 | AM5: 61,021,246 | AN5: 9,310,668 | AP5: California
A6: Colorado | E6: 7,310 | F6: 173,828,689 | G6: 18,428,320 | H6: 3,867 | I6: 127,559,626 | J6: 13,937,808 | K6: 3,790 | L6: 3,790 | M6: 3,790 | N6: 3,790 | O6: 3,183 | P6: 2,577 | S6: Colorado | T6: 7,310 | U6: 173,828,689 | V6: 18,428,320 | W6: 3,864 | X6: 126,963,867 | Y6: 13,877,661 | Z6: 3,786 | AA6: 3,786 | AB6: 3,786 | AC6: 3,786 | AD6: 3,180 | AE6: 2,573 | AG6: =VLOOKUP(A6,AK:AL,2, FALSE) -> 3 | AH6: =VLOOKUP(A6,AK:AN,3, FALSE) -> 595,760 | AI6: =VLOOKUP(A6,AK:AN,4, FALSE) -> 60,147 | AK6: Illinois | AL6: 202 | AM6: 36,702,253 | AN6: 5,761,735 | AP6: Colorado
A7: Connecticut | E7: 416 | F7: 72,511,598 | G7: 9,712,002 | H7: 381 | I7: 72,511,598 | J7: 9,712,002 | K7: 355 | L7: 355 | M7: 355 | N7: 355 | O7: 355 | P7: 355 | S7: Connecticut | T7: 416 | U7: 72,511,598 | V7: 9,712,002 | W7: 381 | X7: 72,511,598 | Y7: 9,712,002 | Z7: 355 | AA7: 355 | AB7: 355 | AC7: 355 | AD7: 355 | AE7: 355 | AK7: Indiana | AL7: 1 | AM7: 208,043 | AN7: 21,004 | AP7: Connecticut
A8: Delaware | E8: 423 | F8: 18,775,953 | G8: 1,848,538 | H8: 339 | I8: 16,877,926 | J8: 1,666,812 | K8: 312 | L8: 312 | M8: 308 | N8: 308 | O8: 308 | P8: 308 | S8: Delaware | T8: 423 | U8: 18,775,953 | V8: 1,848,538 | W8: 339 | X8: 16,877,926 | Y8: 1,666,812 | Z8: 312 | AA8: 312 | AB8: 308 | AC8: 308 | AD8: 308 | AE8: 308 | AK8: Louisiana | AL8: 52 | AM8: 9,399,861 | AN8: 1,285,200 | AP8: Delaware
A9: Florida | E9: 13,730 | F9: 737,533,505 | G9: 94,265,950 | H9: 10,863 | I9: 758,732,746 | J9: 99,653,884 | K9: 8,489 | L9: 8,489 | M9: 8,489 | N9: 8,489 | O9: 7,789 | P9: 7,089 | S9: Florida | T9: 13,730 | U9: 737,533,505 | V9: 94,265,950 | W9: 10,527 | X9: 697,711,500 | Y9: 90,343,216 | Z9: 8,153 | AA9: 8,153 | AB9: 8,153 | AC9: 8,153 | AD9: 7,453 | AE9: 6,753 | AG9: =VLOOKUP(A9,AK:AL,2, FALSE) -> 336 | AH9: =VLOOKUP(A9,AK:AN,3, FALSE) -> 61,021,246 | AI9: =VLOOKUP(A9,AK:AN,4, FALSE) -> 9,310,668 | AK9: Michigan | AL9: 227 | AM9: 41,187,590 | AN9: 6,164,443 | AP9: Florida
A10: Georgia | E10: 6,168 | F10: 328,793,408 | G10: 38,113,703 | H10: 5,191 | I10: 299,547,975 | J10: 35,348,099 | K10: 5,179 | L10: 5,179 | M10: 5,172 | N10: 5,172 | O10: 5,089 | P10: 5,007 | S10: Georgia | T10: 6,168 | U10: 328,793,408 | V10: 38,113,703 | W10: 5,191 | X10: 299,547,975 | Y10: 35,348,099 | Z10: 5,179 | AA10: 5,179 | AB10: 5,172 | AC10: 5,172 | AD10: 5,089 | AE10: 5,007 | AK10: Nevada | AL10: 177 | AM10: 11,239,997 | AN10: 1,354,177 | AP10: Georgia
A11: Idaho | E11: 240 | F11: 18,319,983 | G11: 2,275,867 | H11: 240 | I11: 18,319,983 | J11: 2,275,867 | K11: 240 | L11: 240 | M11: 240 | N11: 240 | O11: 240 | P11: 240 | S11: Idaho | T11: 240 | U11: 18,319,983 | V11: 2,275,867 | W11: 240 | X11: 18,319,983 | Y11: 2,275,867 | Z11: 240 | AA11: 240 | AB11: 240 | AC11: 240 | AD11: 240 | AE11: 240 | AK11: New York | AL11: 54 | AM11: 9,863,952 | AN11: 1,399,142 | AP11: Idaho
A12: Illinois | B12: X | C12: X | D12: X | E12: 11,335 | F12: 316,615,564 | G12: 32,824,055 | H12: 5,215 | I12: 214,086,655 | J12: 24,523,124 | K12: 5,145 | L12: 5,145 | M12: 4,985 | N12: 4,985 | O12: 4,770 | P12: 4,555 | Q12: 4,555 | S12: Illinois | T12: 11,335 | U12: 316,615,564 | V12: 32,824,055 | W12: 5,013 | X12: 177,384,402 | Y12: 18,761,389 | Z12: 4,943 | AA12: 4,943 | AB12: 4,783 | AC12: 4,783 | AD12: 4,568 | AE12: 4,353 | AG12: =VLOOKUP(A12,AK:AL,2, FALSE) -> 202 | AH12: =VLOOKUP(A12,AK:AN,3, FALSE) -> 36,702,253 | AI12: =VLOOKUP(A12,AK:AN,4, FALSE) -> 5,761,735 | AK12: North Carolina | AL12: 41 | AM12: 7,389,103 | AN12: 1,159,985 | AP12: Illinois
A13: Indiana | B13: X | C13: X | D13: X | E13: 14,162 | F13: 367,769,003 | G13: 38,256,889 | H13: 8,613 | I13: 277,218,546 | J13: 29,486,750 | K13: 7,845 | L13: 7,845 | M13: 7,843 | N13: 7,843 | O13: 7,555 | P13: 7,280 | Q13: 7,280 | S13: Indiana | T13: 14,162 | U13: 367,769,003 | V13: 38,256,889 | W13: 8,612 | X13: 277,010,503 | Y13: 29,465,746 | Z13: 7,844 | AA13: 7,844 | AB13: 7,842 | AC13: 7,842 | AD13: 7,554 | AE13: 7,279 | AG13: =VLOOKUP(A13,AK:AL,2, FALSE) -> 1 | AH13: =VLOOKUP(A13,AK:AN,3, FALSE) -> 208,043 | AI13: =VLOOKUP(A13,AK:AN,4, FALSE) -> 21,004 | AK13: North Dakota | AL13: 1 | AM13: 145,485 | AN13: 14,688 | AP13: Indiana
A14: Iowa | E14: 9,970 | F14: 147,993,282 | G14: 15,175,329 | H14: 9,773 | I14: 142,934,126 | J14: 14,694,225 | K14: 9,773 | L14: 9,773 | M14: 9,713 | N14: 9,713 | O14: 6,790 | P14: 4,026 | S14: Iowa | T14: 9,970 | U14: 147,993,282 | V14: 15,175,329 | W14: 9,773 | X14: 142,934,126 | Y14: 14,694,225 | Z14: 9,773 | AA14: 9,773 | AB14: 9,713 | AC14: 9,713 | AD14: 6,790 | AE14: 4,026 | AK14: Ohio | AL14: 293 | AM14: 53,316,703 | AN14: 8,089,141 | AP14: Iowa
A15: Kansas | E15: 6,231 | F15: 115,827,226 | G15: 11,828,633 | H15: 5,510 | I15: 104,571,293 | J15: 10,718,340 | K15: 4,763 | L15: 4,763 | M15: 4,763 | N15: 4,763 | O15: 3,938 | P15: 3,112 | S15: Kansas | T15: 6,231 | U15: 115,827,226 | V15: 11,828,633 | W15: 5,510 | X15: 104,571,293 | Y15: 10,718,340 | Z15: 4,763 | AA15: 4,763 | AB15: 4,763 | AC15: 4,763 | AD15: 3,938 | AE15: 3,112 | AK15: Oregon | AL15: 8 | AM15: 1,435,933 | AN15: 144,971 | AP15: Kansas
A16: Kentucky | B16: X | C16: X | D16: X | E16: 14,571 | F16: 301,161,750 | G16: 32,289,611 | H16: 12,839 | I16: 293,016,485 | J16: 31,372,215 | K16: 12,540 | L16: 12,189 | M16: 12,540 | N16: 12,189 | O16: 10,013 | P16: 7,837 | Q16: 7,837 | S16: Kentucky | T16: 14,571 | U16: 301,161,750 | V16: 32,289,611 | W16: 12,839 | X16: 293,016,485 | Y16: 31,372,215 | Z16: 12,540 | AA16: 12,189 | AB16: 12,540 | AC16: 12,189 | AD16: 10,013 | AE16: 7,837 | AK16: Pennsylvania | AL16: 94 | AM16: 20,450,389 | AN16: 3,083,268 | AP16: Kentucky
A17: Louisiana | B17: X | C17: X | D17: X | E17: 11,391 | F17: 280,839,944 | G17: 32,388,791 | H17: 9,628 | I17: 277,262,840 | J17: 32,526,713 | K17: 9,113 | L17: 9,113 | M17: 9,017 | N17: 9,017 | O17: 6,323 | P17: 3,792 | Q17: 3,792 | S17: Louisiana | T17: 11,391 | U17: 280,839,944 | V17: 32,388,791 | W17: 9,576 | X17: 267,862,979 | Y17: 31,241,513 | Z17: 9,061 | AA17: 9,061 | AB17: 8,965 | AC17: 8,965 | AD17: 6,271 | AE17: 3,740 | AG17: =VLOOKUP(A17,AK:AL,2, FALSE) -> 52 | AH17: =VLOOKUP(A17,AK:AN,3, FALSE) -> 9,399,861 | AI17: =VLOOKUP(A17,AK:AN,4, FALSE) -> 1,285,200 | AK17: South Dakota | AL17: 5 | AM17: 892,912 | AN17: 90,148 | AP17: Louisiana
A18: Maine | E18: 108 | F18: 12,436,184 | G18: 1,524,816 | H18: 108 | I18: 12,436,184 | J18: 1,524,816 | K18: 86 | L18: 86 | M18: 86 | N18: 86 | O18: 86 | P18: 86 | S18: Maine | T18: 108 | U18: 12,436,184 | V18: 1,524,816 | W18: 108 | X18: 12,436,184 | Y18: 1,524,816 | Z18: 86 | AA18: 86 | AB18: 86 | AC18: 86 | AD18: 86 | AE18: 86 | AK18: Texas | AL18: 86 | AM18: 15,641,275 | AN18: 2,251,303 | AP18: Maine
A19: Maryland | B19: X | C19: X | D19: X | E19: 1,428 | F19: 80,220,113 | G19: 9,246,155 | H19: 901 | I19: 70,725,007 | J19: 8,312,803 | K19: 850 | L19: 850 | M19: 842 | N19: 842 | O19: 842 | P19: 842 | Q19: 842 | S19: Maryland | T19: 1,428 | U19: 80,220,113 | V19: 9,246,155 | W19: 901 | X19: 70,725,007 | Y19: 8,312,803 | Z19: 850 | AA19: 850 | AB19: 842 | AC19: 842 | AD19: 842 | AE19: 842 | AK19: Utah | AL19: 162 | AM19: 1,888,174 | AN19: 168,966 | AP19: Maryland
A20: Massachusetts | E20: 298 | F20: 53,404,422 | G20: 6,150,912 | H20: 287 | I20: 51,627,490 | J20: 5,917,351 | K20: 256 | L20: 256 | M20: 256 | N20: 256 | O20: 256 | P20: 256 | S20: Massachusetts | T20: 298 | U20: 53,404,422 | V20: 6,150,912 | W20: 287 | X20: 51,627,490 | Y20: 5,917,351 | Z20: 256 | AA20: 256 | AB20: 256 | AC20: 256 | AD20: 256 | AE20: 256 | AL20: =SUM(AL2:AL19) -> 1,963 | AM20: =SUM(AM2:AM19) -> 311,883,343 | AN20: 46,398,141 | AP20: Massachusetts
A21: Michigan | B21: X | C21: X | D21: X | E21: 13,555 | F21: 303,831,906 | G21: 29,702,739 | H21: 7,097 | I21: 258,225,107 | J21: 28,093,455 | K21: 7,094 | L21: 7,094 | M21: 7,078 | N21: 7,078 | O21: 6,327 | P21: 5,691 | Q21: 5,691 | S21: Michigan | T21: 13,555 | U21: 303,831,906 | V21: 29,702,739 | W21: 6,871 | X21: 217,037,517 | Y21: 21,929,012 | Z21: 6,867 | AA21: 6,867 | AB21: 6,852 | AC21: 6,852 | AD21: 6,100 | AE21: 5,464 | AG21: =VLOOKUP(A21,AK:AL,2, FALSE) -> 227 | AH21: =VLOOKUP(A21,AK:AN,3, FALSE) -> 41,187,590 | AI21: =VLOOKUP(A21,AK:AN,4, FALSE) -> 6,164,443 | AP21: Michigan
A22: Minnesota | C22: X | E22: 5,652 | F22: 128,967,463 | G22: 13,677,339 | H22: 3,044 | I22: 93,890,928 | J22: 10,317,358 | K22: 2,945 | L22: 2,945 | M22: 2,905 | N22: 2,905 | O22: 2,447 | P22: 1,990 | Q22: 2,905 | S22: Minnesota | T22: 5,652 | U22: 128,967,463 | V22: 13,677,339 | W22: 3,044 | X22: 93,890,928 | Y22: 10,317,358 | Z22: 2,945 | AA22: 2,945 | AB22: 2,905 | AC22: 2,905 | AD22: 2,447 | AE22: 1,990 | AP22: Minnesota
A23: Mississippi | C23: X | D23: X | E23: 5,790 | F23: 190,043,215 | G23: 22,493,704 | H23: 4,076 | I23: 176,004,820 | J23: 21,068,062 | K23: 4,003 | L23: 3,716 | M23: 4,003 | N23: 3,716 | O23: 2,658 | P23: 1,752 | Q23: 1,752 | S23: Mississippi | T23: 5,790 | U23: 190,043,215 | V23: 22,493,704 | W23: 2,890 | X23: 167,009,952 | Y23: 20,272,545 | Z23: 2,817 | AA23: 2,817 | AB23: 2,817 | AC23: 2,817 | AD23: 2,096 | AE23: 1,527 | AP23: Mississippi | AQ23: 1,186 | AR23: 8,994,868 | AS23: 795,517 | AT23: 1,186 | AU23: 899 | AV23: 1,186 | AW23: 899 | AX23: 562 | AY23: 225
A24: Missouri | C24: X | D24: X | E24: 20,388 | F24: 288,219,887 | G24: 31,104,031 | H24: 18,559 | I24: 248,413,545 | J24: 26,766,964 | K24: 11,220 | L24: 11,220 | M24: 11,063 | N24: 11,063 | O24: 9,196 | P24: 7,329 | Q24: 7,329 | S24: Missouri | T24: 20,388 | U24: 288,219,887 | V24: 31,104,031 | W24: 18,559 | X24: 248,413,545 | Y24: 26,766,964 | Z24: 11,220 | AA24: 11,220 | AB24: 11,063 | AC24: 11,063 | AD24: 9,196 | AE24: 7,329 | AP24: Missouri
A25: Montana | E25: 3,071 | F25: 46,489,166 | G25: 4,635,867 | H25: 3,071 | I25: 46,489,166 | J25: 4,635,867 | K25: 3,071 | L25: 3,071 | M25: 3,071 | N25: 3,071 | O25: 2,124 | P25: 1,177 | S25: Montana | T25: 3,071 | U25: 46,489,166 | V25: 4,635,867 | W25: 3,071 | X25: 46,489,166 | Y25: 4,635,867 | Z25: 3,071 | AA25: 3,071 | AB25: 3,071 | AC25: 3,071 | AD25: 2,124 | AE25: 1,177 | AP25: Montana
A26: Nebraska | E26: 8,931 | F26: 102,719,096 | G26: 10,720,072 | H26: =W26+$AG26+AQ26 -> 8,247 | I26: =X26+$AH26+AR26 -> 102,459,563 | J26: =Y26+$AI26+AS26 -> 10,700,633 | K26: =Z26+$AG26+AT26 -> 8,210 | L26: 8,177 | M26: 8,210 | N26: 8,177 | O26: 5,522 | P26: 2,974 | S26: Nebraska | T26: 8,931 | U26: 102,719,096 | V26: 10,720,072 | W26: 8,247 | X26: 102,459,563 | Y26: 10,700,633 | Z26: 8,210 | AA26: 8,177 | AB26: 8,210 | AC26: 8,177 | AD26: 5,522 | AE26: 2,974 | AP26: Nebraska
A27: Nevada | C27: X | D27: X | E27: 2,457 | F27: 103,489,785 | G27: 12,918,610 | H27: =W27+$AG27+AQ27 -> 1,115 | I27: =X27+$AH27+AR27 -> 100,193,805 | J27: =Y27+$AI27+AS27 -> 12,599,661 | K27: =Z27+$AG27+AT27 -> 1,113 | L27: =AA27+$AG27+AU27 -> 1,113 | M27: =AB27+$AG27+AV27 -> 1,113 | N27: =AC27+$AG27+AW27 -> 1,113 | O27: =AD27+$AG27+AX27 -> 1,113 | P27: =AE27+$AG27+AY27 -> 1,113 | Q27: 1,113 | S27: Nevada | T27: 2,457 | U27: 103,489,785 | V27: 12,918,610 | W27: 938 | X27: 88,953,808 | Y27: 11,245,484 | Z27: 936 | AA27: 936 | AB27: 936 | AC27: 936 | AD27: 936 | AE27: 936 | AG27: =VLOOKUP(A27,AK:AL,2, FALSE) -> 177 | AH27: =VLOOKUP(A27,AK:AN,3, FALSE) -> 11,239,997 | AI27: =VLOOKUP(A27,AK:AN,4, FALSE) -> 1,354,177 | AP27: Nevada
A28: New Hampshire | E28: 330 | F28: 23,374,046 | G28: 2,303,022 | H28: 330 | I28: 23,374,046 | J28: 2,303,022 | K28: 267 | L28: 267 | M28: 267 | N28: 267 | O28: 267 | P28: 267 | S28: New Hampshire | T28: 330 | U28: 23,374,046 | V28: 2,303,022 | W28: 330 | X28: 23,374,046 | Y28: 2,303,022 | Z28: 267 | AA28: 267 | AB28: 267 | AC28: 267 | AD28: 267 | AE28: 267 | AP28: New Hampshire
A29: New Jersey | B29: X | C29: X | D29: X | E29: 1,324 | F29: 119,538,737 | G29: 14,682,028 | H29: 915 | I29: 112,233,231 | J29: 14,601,398 | K29: 773 | L29: 773 | M29: 773 | N29: 773 | O29: 773 | P29: 773 | Q29: 773 | S29: New Jersey | T29: 1,324 | U29: 119,538,737 | V29: 14,682,028 | W29: 915 | X29: 112,233,231 | Y29: 14,601,398 | Z29: 773 | AA29: 773 | AB29: 773 | AC29: 773 | AD29: 773 | AE29: 773 | AP29: New Jersey
A30: New Mexico | E30: 5,066 | F30: 108,235,365 | G30: 11,502,879 | H30: 2,029 | I30: 79,106,429 | J30: 8,916,600 | K30: 1,998 | L30: 1,998 | M30: 1,998 | N30: 1,998 | O30: 1,833 | P30: 1,668 | S30: New Mexico | T30: 5,066 | U30: 108,235,365 | V30: 11,502,879 | W30: 2,029 | X30: 79,106,429 | Y30: 8,916,600 | Z30: 1,998 | AA30: 1,998 | AB30: 1,998 | AC30: 1,998 | AD30: 1,833 | AE30: 1,668 | AP30: New Mexico
A31: New York | B31: X | C31: X | D31: X | E31: 3,997 | F31: 233,342,131 | G31: 27,313,198 | H31: 3,977 | I31: 242,853,661 | J31: 28,688,704 | K31: 3,912 | L31: 3,912 | M31: 3,912 | N31: 3,912 | O31: 3,650 | P31: 3,388 | Q31: 3,388 | S31: New York | T31: 3,997 | U31: 233,342,131 | V31: 27,313,198 | W31: 3,922 | X31: 232,989,708 | Y31: 27,289,562 | Z31: 3,858 | AA31: 3,858 | AB31: 3,858 | AC31: 3,858 | AD31: 3,596 | AE31: 3,333 | AG31: =VLOOKUP(A31,AK:AL,2, FALSE) -> 54 | AH31: =VLOOKUP(A31,AK:AN,3, FALSE) -> 9,863,952 | AI31: =VLOOKUP(A31,AK:AN,4, FALSE) -> 1,399,142 | AP31: New York
A32: North Carolina | E32: 12,444 | F32: 281,750,959 | G32: 29,259,654 | H32: 11,700 | I32: 280,872,291 | J32: 29,615,600 | K32: 8,847 | L32: 8,847 | M32: 8,837 | N32: 8,837 | O32: 7,490 | P32: 6,142 | S32: North Carolina | T32: 12,444 | U32: 281,750,959 | V32: 29,259,654 | W32: 11,660 | X32: 273,483,187 | Y32: 28,455,615 | Z32: 8,807 | AA32: 8,807 | AB32: 8,797 | AC32: 8,797 | AD32: 7,449 | AE32: 6,101 | AG32: =VLOOKUP(A32,AK:AL,2, FALSE) -> 41 | AH32: =VLOOKUP(A32,AK:AN,3, FALSE) -> 7,389,103 | AI32: =VLOOKUP(A32,AK:AN,4, FALSE) -> 1,159,985 | AP32: North Carolina
A33: North Dakota | E33: 12,666 | F33: 121,650,949 | G33: 11,776,927 | H33: 12,246 | I33: 119,541,029 | J33: 11,593,940 | K33: 12,246 | L33: 12,246 | M33: 11,436 | N33: 11,436 | O33: 7,181 | P33: 2,927 | S33: North Dakota | T33: 12,666 | U33: 121,650,949 | V33: 11,776,927 | W33: 12,246 | X33: 119,395,544 | Y33: 11,579,252 | Z33: 12,246 | AA33: 12,246 | AB33: 11,435 | AC33: 11,435 | AD33: 7,181 | AE33: 2,926 | AG33: =VLOOKUP(A33,AK:AL,2, FALSE) -> 1 | AH33: =VLOOKUP(A33,AK:AN,3, FALSE) -> 145,485 | AI33: =VLOOKUP(A33,AK:AN,4, FALSE) -> 14,688 | AP33: North Dakota
A34: Ohio | B34: X | C34: X | D34: X | E34: 11,697 | F34: 389,640,469 | G34: 45,135,729 | H34: 8,047 | I34: 358,992,155 | J34: 44,588,774 | K34: 6,911 | L34: 6,911 | M34: 6,911 | N34: 6,911 | O34: 6,911 | P34: 6,911 | Q34: 6,911 | S34: Ohio | T34: 11,697 | U34: 389,640,469 | V34: 45,135,729 | W34: 7,753 | X34: 305,675,451 | Y34: 36,499,634 | Z34: 6,617 | AA34: 6,617 | AB34: 6,617 | AC34: 6,617 | AD34: 6,617 | AE34: 6,617 | AG34: =VLOOKUP(A34,AK:AL,2, FALSE) -> 293 | AH34: =VLOOKUP(A34,AK:AN,3, FALSE) -> 53,316,703 | AI34: =VLOOKUP(A34,AK:AN,4, FALSE) -> 8,089,141 | AP34: =A34 -> Ohio
A35: Oklahoma | C35: X | D35: X | E35: 10,470 | F35: 212,903,386 | G35: 22,657,698 | H35: 9,317 | I35: 196,160,642 | J35: 21,150,818 | K35: 9,119 | L35: 8,427 | M35: 9,119 | N35: 8,427 | O35: 5,972 | P35: 3,917 | Q35: 3,917 | S35: Oklahoma | T35: 10,470 | U35: 212,903,386 | V35: 22,657,698 | W35: 9,317 | X35: 196,160,642 | Y35: 21,150,818 | Z35: 9,119 | AA35: 8,427 | AB35: 9,119 | AC35: 8,427 | AD35: 5,972 | AE35: 3,917 | AP35: Oklahoma
A36: Oregon | E36: 342 | F36: 56,716,013 | G36: 7,943,020 | H36: 350 | I36: 58,151,946 | J36: 8,087,990 | K36: 300 | L36: 300 | M36: 300 | N36: 300 | O36: 300 | P36: 300 | S36: Oregon | T36: 342 | U36: 56,716,013 | V36: 7,943,020 | W36: 342 | X36: 56,716,013 | Y36: 7,943,020 | Z36: 292 | AA36: 292 | AB36: 292 | AC36: 292 | AD36: 292 | AE36: 292 | AG36: =VLOOKUP(A36,AK:AL,2, FALSE) -> 8 | AH36: =VLOOKUP(A36,AK:AN,3, FALSE) -> 1,435,933 | AI36: =VLOOKUP(A36,AK:AN,4, FALSE) -> 144,971 | AP36: Oregon
A37: Pennsylvania | B37: X | C37: X | D37: X | E37: 12,785 | F37: 539,359,977 | G37: 65,729,802 | H37: 8,362 | I37: 550,993,363 | J37: 67,945,477 | K37: 8,010 | L37: 8,010 | M37: 7,910 | N37: 7,910 | O37: 7,512 | P37: 7,158 | Q37: 7,158 | S37: Pennsylvania | T37: 12,785 | U37: 539,359,977 | V37: 65,729,802 | W37: 8,268 | X37: 530,542,974 | Y37: 64,862,209 | Z37: 7,917 | AA37: 7,917 | AB37: 7,817 | AC37: 7,817 | AD37: 7,418 | AE37: 7,064 | AG37: =VLOOKUP(A37,AK:AL,2, FALSE) -> 94 | AH37: =VLOOKUP(A37,AK:AN,3, FALSE) -> 20,450,389 | AI37: =VLOOKUP(A37,AK:AN,4, FALSE) -> 3,083,268 | AP37: Pennsylvania
A38: Rhode Island | E38: 279 | F38: 31,838,505 | G38: 3,674,052 | H38: 279 | I38: 31,838,505 | J38: 3,674,052 | K38: 148 | L38: 148 | M38: 148 | N38: 148 | O38: 148 | P38: 148 | S38: Rhode Island | T38: 279 | U38: 31,838,505 | V38: 3,674,052 | W38: 279 | X38: 31,838,505 | Y38: 3,674,052 | Z38: 148 | AA38: 148 | AB38: 148 | AC38: 148 | AD38: 148 | AE38: 148 | AP38: Rhode Island
A39: South Carolina | E39: 4,273 | F39: 161,345,886 | G39: 17,627,029 | H39: 4,273 | I39: 161,345,886 | J39: 17,627,029 | K39: 3,531 | L39: 3,531 | M39: 3,531 | N39: 3,531 | O39: 3,531 | P39: 3,531 | S39: South Carolina | T39: 4,273 | U39: 161,345,886 | V39: 17,627,029 | W39: 4,273 | X39: 161,345,886 | Y39: 17,627,029 | Z39: 3,531 | AA39: 3,531 | AB39: 3,531 | AC39: 3,531 | AD39: 3,531 | AE39: 3,531 | AP39: South Carolina
A40: South Dakota | E40: 516 | F40: 15,587,258 | G40: 1,471,526 | H40: 509 | I40: 16,161,161 | J40: 1,539,304 | K40: 509 | L40: 509 | M40: 509 | N40: 509 | O40: 509 | P40: 509 | S40: South Dakota | T40: 516 | U40: 15,587,258 | V40: 1,471,526 | W40: 504 | X40: 15,268,249 | Y40: 1,449,157 | Z40: 504 | AA40: 504 | AB40: 504 | AC40: 504 | AD40: 504 | AE40: 504 | AG40: =VLOOKUP(A40,AK:AL,2, FALSE) -> 5 | AH40: =VLOOKUP(A40,AK:AN,3, FALSE) -> 892,912 | AI40: =VLOOKUP(A40,AK:AN,4, FALSE) -> 90,148 | AP40: South Dakota
A41: Tennessee | E41: 4,319 | F41: 157,981,198 | G41: 17,418,180 | H41: 2,212 | I41: 100,187,179 | J41: 11,868,462 | K41: 2,130 | L41: 2,130 | M41: 2,130 | N41: 2,130 | O41: 2,130 | P41: 2,130 | S41: Tennessee | T41: 4,319 | U41: 157,981,198 | V41: 17,418,180 | W41: 2,212 | X41: 100,187,179 | Y41: 11,868,462 | Z41: 2,130 | AA41: 2,130 | AB41: 2,130 | AC41: 2,130 | AD41: 2,130 | AE41: 2,130 | AP41: Tennessee
A42: Texas | C42: X | D42: X | E42: 42,746 | F42: 1,400,469,195 | G42: 157,307,078 | H42: 33,189 | I42: 1,320,040,162 | J42: 150,592,078 | K42: 32,280 | L42: 32,280 | M42: 32,047 | N42: 32,047 | O42: 26,835 | P42: 21,623 | Q42: 21,623 | S42: Texas | T42: 42,746 | U42: 1,400,469,195 | V42: 157,307,078 | W42: 33,103 | X42: 1,304,398,887 | Y42: 148,340,775 | Z42: 32,194 | AA42: 32,194 | AB42: 31,961 | AC42: 31,961 | AD42: 26,749 | AE42: 21,537 | AG42: =VLOOKUP(A42,AK:AL,2, FALSE) -> 86 | AH42: =VLOOKUP(A42,AK:AN,3, FALSE) -> 15,641,275 | AI42: =VLOOKUP(A42,AK:AN,4, FALSE) -> 2,251,303 | AP42: Texas
A43: Utah | C43: X | D43: X | E43: 15,762 | F43: 164,519,648 | G43: 18,345,467 | H43: 9,930 | I43: 127,217,396 | J43: 14,057,968 | K43: 9,923 | L43: 9,923 | M43: 9,923 | N43: 9,923 | O43: 6,258 | P43: 2,593 | Q43: 2,593 | S43: Utah | T43: 15,762 | U43: 164,519,648 | V43: 18,345,467 | W43: 9,768 | X43: 125,329,222 | Y43: 13,889,002 | Z43: 9,761 | AA43: 9,761 | AB43: 9,761 | AC43: 9,761 | AD43: 6,096 | AE43: 2,431 | AG43: =VLOOKUP(A43,AK:AL,2, FALSE) -> 162 | AH43: =VLOOKUP(A43,AK:AN,3, FALSE) -> 1,888,174 | AI43: =VLOOKUP(A43,AK:AN,4, FALSE) -> 168,966 | AP43: Utah
A44: Vermont | E44: 54 | F44: 1,571,908 | G44: 113,425 | H44: 54 | I44: 1,571,908 | J44: 113,425 | K44: 54 | L44: 54 | M44: 54 | N44: 54 | O44: 54 | P44: 54 | S44: Vermont | T44: 54 | U44: 1,571,908 | V44: 113,425 | W44: 54 | X44: 1,571,908 | Y44: 113,425 | Z44: 54 | AA44: 54 | AB44: 54 | AC44: 54 | AD44: 54 | AE44: 54 | AP44: Vermont
A45: Virginia | B45: X | C45: X | D45: X | E45: 3,329 | F45: 202,953,791 | G45: 24,677,281 | H45: 3,019 | I45: 194,015,719 | J45: 23,775,355 | K45: 2,855 | L45: 2,778 | M45: 2,834 | N45: 2,756 | O45: 2,565 | P45: 2,373 | Q45: 2,373 | S45: Virginia | T45: 3,329 | U45: 202,953,791 | V45: 24,677,281 | W45: 3,019 | X45: 194,015,719 | Y45: 23,775,355 | Z45: 2,855 | AA45: 2,778 | AB45: 2,834 | AC45: 2,756 | AD45: 2,565 | AE45: 2,373 | AP45: Virginia
A46: Washington | E46: 1,999 | F46: 65,748,254 | G46: 7,731,261 | H46: 527 | I46: 50,453,818 | J46: 6,365,209 | K46: 257 | L46: 257 | M46: 257 | N46: 257 | O46: 257 | P46: 257 | S46: Washington | T46: 1,999 | U46: 65,748,254 | V46: 7,731,261 | W46: 527 | X46: 50,453,818 | Y46: 6,365,209 | Z46: 257 | AA46: 257 | AB46: 257 | AC46: 257 | AD46: 257 | AE46: 257 | AP46: Washington
A47: West Virginia | B47: X | C47: X | D47: X | E47: 14,686 | F47: 306,845,495 | G47: 32,032,438 | H47: 13,185 | I47: 273,151,957 | J47: 28,666,644 | K47: 12,784 | L47: 12,239 | M47: 12,443 | N47: 11,958 | O47: 10,818 | P47: 9,678 | Q47: 9,678 | S47: West Virginia | T47: 14,686 | U47: 306,845,495 | V47: 32,032,438 | W47: 13,185 | X47: 273,151,957 | Y47: 28,666,644 | Z47: 12,784 | AA47: 12,239 | AB47: 12,443 | AC47: 11,958 | AD47: 10,818 | AE47: 9,678 | AP47: West Virginia
A48: Wisconsin | C48: X | E48: 6,321 | F48: 220,794,282 | G48: 24,061,341 | H48: 3,442 | I48: 151,343,287 | J48: 17,427,470 | K48: 3,436 | L48: 3,436 | M48: 3,416 | N48: 3,416 | O48: 3,416 | P48: 3,416 | Q48: 3,416 | S48: Wisconsin | T48: 6,321 | U48: 220,794,282 | V48: 24,061,341 | W48: 3,442 | X48: 151,343,287 | Y48: 17,427,470 | Z48: 3,436 | AA48: 3,436 | AB48: 3,416 | AC48: 3,416 | AD48: 3,416 | AE48: 3,416 | AP48: Wisconsin
A49: Wyoming | E49: 11,643 | F49: 175,787,236 | G49: 16,542,944 | H49: 6,722 | I49: 141,256,643 | J49: 13,307,541 | K49: 6,640 | L49: 6,640 | M49: 6,627 | N49: 6,627 | O49: 4,961 | P49: 3,294 | S49: Wyoming | T49: 11,643 | U49: 175,787,236 | V49: 16,542,944 | W49: 6,722 | X49: 141,256,643 | Y49: 13,307,541 | Z49: 6,640 | AA49: 6,640 | AB49: 6,627 | AC49: 6,627 | AD49: 4,961 | AE49: 3,294 | AP49: Wyoming
A50: Total | E50: =SUM(E2:E49) -> 359,617 | F50: 10,261,049,881 | G50: 1,159,585,094 | H50: 275,363 | I50: 9,436,633,637 | J50: 1,095,859,296 | K50: 254,572 | L50: 252,518 | M50: 252,343 | N50: 250,349 | O50: 207,941 | P50: 166,688 | S50: Total | T50: =SUM(T2:T49) -> 359,617 | U50: 10,261,049,881 | V50: 1,159,585,094 | W50: 272,213 | X50: 9,115,755,426 | Y50: 1,048,665,638 | Z50: 251,423 | AA50: 249,656 | AB50: 249,194 | AC50: 247,487 | AD50: 205,415 | AE50: 164,499 | AG50: =SUM(AG2:AG49) -> 1,963 | AH50: =SUM(AH2:AH49) -> 311,883,343 | AI50: =SUM(AI2:AI49) -> 46,398,141 | AP50: Total | AQ50: =SUM(AQ2:AQ49) -> 1,186 | AR50: =SUM(AR2:AR49) -> 8,994,868 | AS50: 795,517 | AT50: 1,186 | AU50: 899 | AV50: 1,186 | AW50: 899 | AX50: 562 | AY50: 225
A51: 2023 Strategy | E51: =SUMIF($C$2:$C$49, "X", E$2:E$49) -> 239,450 | F51: 6,657,406,843 | G51: 745,505,856 | H51: 179,467 | I51: 6,055,611,015 | J51: 697,755,817 | K51: 166,806 | L51: 164,854 | M51: 165,613 | N51: 163,721 | O51: 138,306 | P51: 113,781 | Q51: 115,193
A52: 2026 Strategy | E52: =SUMIF($D$2:$D$49, "X", E$2:E$49) -> 220,828 | F52: 5,994,607,557 | G52: 670,547,990 | H52: 166,713 | I52: 5,481,726,148 | J52: 630,087,834 | K52: 154,189 | L52: 152,237 | M52: 153,056 | N52: 151,163 | O52: 126,454 | P52: 102,633 | Q52: 102,636

Sheet State 2029
A1: State | B1: RCU State | C1: 2023 EGU control strategy | D1: 2026 EGU control strategy | E1: 2021 OS NOx | F1: 2021 OS Heat Input | G1: 2021 OS Generation | H1: Baseline 2029 OS NOx | I1: Baseline 2029 OS Heat Input | J1: Baseline 2029 OS Generation | K1: Baseline 2029 OS NOx + SCR Optimize | L1: Baseline 2029 OS NOx + SCR Optimize + SOA CC | M1: Baseline 2029 OS NOx + SCR Optimize + SNCR Optimize | N1: Baseline 2029 OS NOx + SCR Optimize + SOA CC + SNCR Optimize | O1: Baseline 2029 OS NOx + SCR Optimize + SOA CC + SNCR Optimize + SCR (Half)/SNCR Retrofit | P1: Baseline 2029 OS NOx + SCR Optimize + SOA CC + SNCR Optimize + SCR/SNCR Retrofit | Q1: Preset 2029 State Budget | S1: State | T1: 2021 OS NOx | U1: 2021 OS Heat Input | V1: 2021 OS Generation | W1: Baseline 2029 OS NOx | X1: Baseline 2029 OS Heat Input | Y1: Baseline 2029 OS Generation | Z1: Baseline 2029 OS NOx + SCR Optimize | AA1: Baseline 2029 OS NOx + SCR Optimize + SOA CC | AB1: Baseline 2029 OS NOx + SCR Optimize + SNCR Optimize | AC1: Baseline 2029 OS NOx + SCR Optimize + SOA CC + SNCR Optimize | AD1: Baseline 2029 OS NOx + SCR Optimize + SOA CC + SNCR Optimize + SCR (Half)/SNCR Retrofit | AE1: Baseline 2029 OS NOx + SCR Optimize + SOA CC + SNCR Optimize + SCR/SNCR Retrofit | AG1: Summer NOx new units (>25MW) | AH1: Summer HI new units (>25MW) | AI1: Summer Gen new units (>25MW) | AK1: Summer new units (>25MW) | AL1: NOx | AM1: Heat Input | AN1: Generation | AP1: Budget Adjustment | AQ1: Baseline 2023 OS NOx | AR1: Baseline 2023 OS Heat Input | AS1: Baseline 2023 OS Generation | AT1: Baseline 2023 OS NOx + SCR Optimize | AU1: Baseline 2023 OS NOx + SCR Optimize + SOA CC | AV1: Baseline 2023 OS NOx + SCR Optimize + SNCR Optimize | AW1: Baseline 2023 OS NOx + SCR Optimize + SOA CC + SNCR Optimize | AX1: Baseline 2023 OS NOx + SCR Optimize + SOA CC + SNCR Optimize + SCR (Half)/SNCR Retrofit | AY1: Baseline 2023 OS NOx + SCR Optimize + SOA CC + SNCR Optimize + SCR/SNCR Retrofit
A2: Alabama | C2: X | E2: =T2 -> 6,648 | F2: =U2 -> 313,037,541 | G2: =V2 -> 37,219,186 | H2: =W2+$AG2+AQ2 -> 5,210 | I2: =X2+$AH2+AR2 -> 307,987,882 | J2: =Y2+$AI2+AS2 -> 37,831,886 | K2: =Z2+$AG2+AT2 -> 5,105 | L2: 5,105 | M2: 5,105 | N2: 5,105 | O2: 4,857 | P2: 4,610 | Q2: =IF(C2="X",IF(D2="X",ROUND(P2,0),ROUND(N2,0)),"") -> 5,105 | S2: Alabama | T2: 6,648 | U2: 313,037,541 | V2: 37,219,186 | W2: 5,100 | X2: 287,994,732 | Y2: 34,693,244 | Z2: 4,995 | AA2: 4,995 | AB2: 4,995 | AC2: 4,995 | AD2: 4,748 | AE2: 4,500 | AG2: =VLOOKUP(A2,AK:AL,2, FALSE) -> 110 | AH2: =VLOOKUP(A2,AK:AN,3, FALSE) -> 19,993,150 | AI2: =VLOOKUP(A2,AK:AN,4, FALSE) -> 3,138,642 | AK2: Alabama | AL2: 110 | AM2: 19,993,150 | AN2: 3,138,642 | AP2: =A2 -> Alabama
A3: Arizona | E3: =T3 -> 7,723 | F3: 265,744,346 | G3: 32,223,474 | H3: =W3+$AG3+AQ3 -> 5,117 | I3: =X3+$AH3+AR3 -> 250,285,808 | J3: =Y3+$AI3+AS3 -> 30,844,082 | K3: =Z3+$AG3+AT3 -> 5,033 | L3: =AA3+$AG3+AU3 -> 4,964 | M3: =AB3+$AG3+AV3 -> 4,903 | N3: =AC3+$AG3+AW3 -> 4,834 | O3: =AD3+$AG3+AX3 -> 4,013 | P3: =AE3+$AG3+AY3 -> 3,193 | Q3: =IF(C3="X",IF(D3="X",ROUND(P3,0),ROUND(N3,0)),"") ->  | S3: Arizona | T3: 7,723 | U3: 265,744,346 | V3: 32,223,474 | W3: 5,117 | X3: 250,285,808 | Y3: 30,844,082 | Z3: 5,033 | AA3: 4,964 | AB3: 4,903 | AC3: 4,834 | AD3: 4,013 | AE3: 3,193 | AK3: California | AL3: 113 | AM3: 20,511,517 | AN3: 2,900,513 | AP3: Arizona
A4: Arkansas | C4: X | D4: X | E4: 8,955 | F4: 192,843,561 | G4: 21,442,686 | H4: 7,001 | I4: 190,921,052 | J4: 21,270,872 | K4: 6,974 | L4: 6,974 | M4: 6,974 | N4: 6,974 | O4: 5,278 | P4: 3,582 | Q4: 3,582 | S4: Arkansas | T4: 8,955 | U4: 192,843,561 | V4: 21,442,686 | W4: 7,001 | X4: 190,921,052 | Y4: 21,270,872 | Z4: 6,974 | AA4: 6,974 | AB4: 6,974 | AC4: 6,974 | AD4: 5,278 | AE4: 3,582 | AK4: Colorado | AL4: 3 | AM4: 595,760 | AN4: 60,147 | AP4: Arkansas
A5: California | E5: 1,618 | F5: 307,678,602 | G5: 39,811,838 | H5: 1,672 | I5: 312,808,298 | J5: 41,461,518 | K5: 1,282 | L5: 1,282 | M5: 1,282 | N5: 1,282 | O5: 1,282 | P5: 1,282 | S5: California | T5: 1,618 | U5: 307,678,602 | V5: 39,811,838 | W5: 1,559 | X5: 292,296,782 | Y5: 38,561,005 | Z5: 1,169 | AA5: 1,169 | AB5: 1,169 | AC5: 1,169 | AD5: 1,169 | AE5: 1,169 | AG5: =VLOOKUP(A5,AK:AL,2, FALSE) -> 113 | AH5: =VLOOKUP(A5,AK:AN,3, FALSE) -> 20,511,517 | AI5: =VLOOKUP(A5,AK:AN,4, FALSE) -> 2,900,513 | AK5: Florida | AL5: 336 | AM5: 61,021,246 | AN5: 9,310,668 | AP5: California
A6: Colorado | E6: 7,310 | F6: 173,828,689 | G6: 18,428,320 | H6: 3,348 | I6: 110,603,626 | J6: 12,342,497 | K6: 3,270 | L6: 3,270 | M6: 3,270 | N6: 3,270 | O6: 2,664 | P6: 2,057 | S6: Colorado | T6: 7,310 | U6: 173,828,689 | V6: 18,428,320 | W6: 3,345 | X6: 110,007,866 | Y6: 12,282,350 | Z6: 3,267 | AA6: 3,267 | AB6: 3,267 | AC6: 3,267 | AD6: 2,660 | AE6: 2,054 | AG6: =VLOOKUP(A6,AK:AL,2, FALSE) -> 3 | AH6: =VLOOKUP(A6,AK:AN,3, FALSE) -> 595,760 | AI6: =VLOOKUP(A6,AK:AN,4, FALSE) -> 60,147 | AK6: Illinois | AL6: 202 | AM6: 36,702,253 | AN6: 5,761,735 | AP6: Colorado
A7: Connecticut | E7: 416 | F7: 72,511,598 | G7: 9,712,002 | H7: 381 | I7: 72,511,598 | J7: 9,712,002 | K7: 355 | L7: 355 | M7: 355 | N7: 355 | O7: 355 | P7: 355 | S7: Connecticut | T7: 416 | U7: 72,511,598 | V7: 9,712,002 | W7: 381 | X7: 72,511,598 | Y7: 9,712,002 | Z7: 355 | AA7: 355 | AB7: 355 | AC7: 355 | AD7: 355 | AE7: 355 | AK7: Indiana | AL7: 1 | AM7: 208,043 | AN7: 21,004 | AP7: Connecticut
A8: Delaware | E8: 423 | F8: 18,775,953 | G8: 1,848,538 | H8: 339 | I8: 16,877,926 | J8: 1,666,812 | K8: 312 | L8: 312 | M8: 308 | N8: 308 | O8: 308 | P8: 308 | S8: Delaware | T8: 423 | U8: 18,775,953 | V8: 1,848,538 | W8: 339 | X8: 16,877,926 | Y8: 1,666,812 | Z8: 312 | AA8: 312 | AB8: 308 | AC8: 308 | AD8: 308 | AE8: 308 | AK8: Louisiana | AL8: 52 | AM8: 9,399,861 | AN8: 1,285,200 | AP8: Delaware
A9: Florida | E9: 13,730 | F9: 737,533,505 | G9: 94,265,950 | H9: 10,863 | I9: 758,732,746 | J9: 99,653,884 | K9: 8,489 | L9: 8,489 | M9: 8,489 | N9: 8,489 | O9: 7,789 | P9: 7,089 | S9: Florida | T9: 13,730 | U9: 737,533,505 | V9: 94,265,950 | W9: 10,527 | X9: 697,711,500 | Y9: 90,343,216 | Z9: 8,153 | AA9: 8,153 | AB9: 8,153 | AC9: 8,153 | AD9: 7,453 | AE9: 6,753 | AG9: =VLOOKUP(A9,AK:AL,2, FALSE) -> 336 | AH9: =VLOOKUP(A9,AK:AN,3, FALSE) -> 61,021,246 | AI9: =VLOOKUP(A9,AK:AN,4, FALSE) -> 9,310,668 | AK9: Michigan | AL9: 227 | AM9: 41,187,590 | AN9: 6,164,443 | AP9: Florida
A10: Georgia | E10: 6,168 | F10: 328,793,408 | G10: 38,113,703 | H10: 3,849 | I10: 258,587,206 | J10: 31,282,631 | K10: 3,837 | L10: 3,837 | M10: 3,830 | N10: 3,830 | O10: 3,748 | P10: 3,665 | S10: Georgia | T10: 6,168 | U10: 328,793,408 | V10: 38,113,703 | W10: 3,849 | X10: 258,587,206 | Y10: 31,282,631 | Z10: 3,837 | AA10: 3,837 | AB10: 3,830 | AC10: 3,830 | AD10: 3,748 | AE10: 3,665 | AK10: Nevada | AL10: 177 | AM10: 11,239,997 | AN10: 1,354,177 | AP10: Georgia
A11: Idaho | E11: 240 | F11: 18,319,983 | G11: 2,275,867 | H11: 240 | I11: 18,319,983 | J11: 2,275,867 | K11: 240 | L11: 240 | M11: 240 | N11: 240 | O11: 240 | P11: 240 | S11: Idaho | T11: 240 | U11: 18,319,983 | V11: 2,275,867 | W11: 240 | X11: 18,319,983 | Y11: 2,275,867 | Z11: 240 | AA11: 240 | AB11: 240 | AC11: 240 | AD11: 240 | AE11: 240 | AK11: New York | AL11: 54 | AM11: 9,863,952 | AN11: 1,399,142 | AP11: Idaho
A12: Illinois | B12: X | C12: X | D12: X | E12: 11,335 | F12: 316,615,564 | G12: 32,824,055 | H12: 4,170 | I12: 193,900,867 | J12: 22,690,117 | K12: 4,101 | L12: 4,101 | M12: 4,050 | N12: 4,050 | O12: 4,050 | P12: 4,050 | Q12: 4,050 | S12: Illinois | T12: 11,335 | U12: 316,615,564 | V12: 32,824,055 | W12: 3,968 | X12: 157,198,614 | Y12: 16,928,382 | Z12: 3,899 | AA12: 3,899 | AB12: 3,848 | AC12: 3,848 | AD12: 3,848 | AE12: 3,848 | AG12: =VLOOKUP(A12,AK:AL,2, FALSE) -> 202 | AH12: =VLOOKUP(A12,AK:AN,3, FALSE) -> 36,702,253 | AI12: =VLOOKUP(A12,AK:AN,4, FALSE) -> 5,761,735 | AK12: North Carolina | AL12: 41 | AM12: 7,389,103 | AN12: 1,159,985 | AP12: Illinois
A13: Indiana | B13: X | C13: X | D13: X | E13: 14,162 | F13: 367,769,003 | G13: 38,256,889 | H13: 7,062 | I13: 236,611,101 | J13: 25,519,907 | K13: 6,374 | L13: 6,374 | M13: 6,371 | N13: 6,371 | O13: 6,083 | P13: 5,808 | Q13: 5,808 | S13: Indiana | T13: 14,162 | U13: 367,769,003 | V13: 38,256,889 | W13: 7,061 | X13: 236,403,058 | Y13: 25,498,904 | Z13: 6,372 | AA13: 6,372 | AB13: 6,370 | AC13: 6,370 | AD13: 6,082 | AE13: 5,807 | AG13: =VLOOKUP(A13,AK:AL,2, FALSE) -> 1 | AH13: =VLOOKUP(A13,AK:AN,3, FALSE) -> 208,043 | AI13: =VLOOKUP(A13,AK:AN,4, FALSE) -> 21,004 | AK13: North Dakota | AL13: 1 | AM13: 145,485 | AN13: 14,688 | AP13: Indiana
A14: Iowa | E14: 9,970 | F14: 147,993,282 | G14: 15,175,329 | H14: 9,138 | I14: 141,310,860 | J14: 14,568,715 | K14: 9,138 | L14: 9,138 | M14: 9,077 | N14: 9,077 | O14: 6,313 | P14: 3,549 | S14: Iowa | T14: 9,970 | U14: 147,993,282 | V14: 15,175,329 | W14: 9,138 | X14: 141,310,860 | Y14: 14,568,715 | Z14: 9,138 | AA14: 9,138 | AB14: 9,077 | AC14: 9,077 | AD14: 6,313 | AE14: 3,549 | AK14: Ohio | AL14: 293 | AM14: 53,316,703 | AN14: 8,089,141 | AP14: Iowa
A15: Kansas | E15: 6,231 | F15: 115,827,226 | G15: 11,828,633 | H15: 5,510 | I15: 104,571,293 | J15: 10,718,340 | K15: 4,763 | L15: 4,763 | M15: 4,763 | N15: 4,763 | O15: 3,938 | P15: 3,112 | S15: Kansas | T15: 6,231 | U15: 115,827,226 | V15: 11,828,633 | W15: 5,510 | X15: 104,571,293 | Y15: 10,718,340 | Z15: 4,763 | AA15: 4,763 | AB15: 4,763 | AC15: 4,763 | AD15: 3,938 | AE15: 3,112 | AK15: Oregon | AL15: 8 | AM15: 1,435,933 | AN15: 144,971 | AP15: Kansas
A16: Kentucky | B16: X | C16: X | D16: X | E16: 14,571 | F16: 301,161,750 | G16: 32,289,611 | H16: 11,520 | I16: 274,595,978 | J16: 29,509,517 | K16: 11,221 | L16: 10,870 | M16: 11,221 | N16: 10,870 | O16: 9,131 | P16: 7,392 | Q16: 7,392 | S16: Kentucky | T16: 14,571 | U16: 301,161,750 | V16: 32,289,611 | W16: 11,520 | X16: 274,595,978 | Y16: 29,509,517 | Z16: 11,221 | AA16: 10,870 | AB16: 11,221 | AC16: 10,870 | AD16: 9,131 | AE16: 7,392 | AK16: Pennsylvania | AL16: 94 | AM16: 20,450,389 | AN16: 3,083,268 | AP16: Kentucky
A17: Louisiana | B17: X | C17: X | D17: X | E17: 11,391 | F17: 280,839,944 | G17: 32,388,791 | H17: 8,897 | I17: 277,262,840 | J17: 32,526,713 | K17: 8,383 | L17: 8,383 | M17: 8,286 | N17: 8,286 | O17: 5,881 | P17: 3,639 | Q17: 3,639 | S17: Louisiana | T17: 11,391 | U17: 280,839,944 | V17: 32,388,791 | W17: 8,845 | X17: 267,862,979 | Y17: 31,241,513 | Z17: 8,331 | AA17: 8,331 | AB17: 8,235 | AC17: 8,235 | AD17: 5,829 | AE17: 3,587 | AG17: =VLOOKUP(A17,AK:AL,2, FALSE) -> 52 | AH17: =VLOOKUP(A17,AK:AN,3, FALSE) -> 9,399,861 | AI17: =VLOOKUP(A17,AK:AN,4, FALSE) -> 1,285,200 | AK17: South Dakota | AL17: 5 | AM17: 892,912 | AN17: 90,148 | AP17: Louisiana
A18: Maine | E18: 108 | F18: 12,436,184 | G18: 1,524,816 | H18: 108 | I18: 12,436,184 | J18: 1,524,816 | K18: 86 | L18: 86 | M18: 86 | N18: 86 | O18: 86 | P18: 86 | S18: Maine | T18: 108 | U18: 12,436,184 | V18: 1,524,816 | W18: 108 | X18: 12,436,184 | Y18: 1,524,816 | Z18: 86 | AA18: 86 | AB18: 86 | AC18: 86 | AD18: 86 | AE18: 86 | AK18: Texas | AL18: 86 | AM18: 15,641,275 | AN18: 2,251,303 | AP18: Maine
A19: Maryland | B19: X | C19: X | D19: X | E19: 1,428 | F19: 80,220,113 | G19: 9,246,155 | H19: 901 | I19: 70,725,007 | J19: 8,312,803 | K19: 850 | L19: 850 | M19: 842 | N19: 842 | O19: 842 | P19: 842 | Q19: 842 | S19: Maryland | T19: 1,428 | U19: 80,220,113 | V19: 9,246,155 | W19: 901 | X19: 70,725,007 | Y19: 8,312,803 | Z19: 850 | AA19: 850 | AB19: 842 | AC19: 842 | AD19: 842 | AE19: 842 | AK19: Utah | AL19: 162 | AM19: 1,888,174 | AN19: 168,966 | AP19: Maryland
A20: Massachusetts | E20: 298 | F20: 53,404,422 | G20: 6,150,912 | H20: 287 | I20: 51,627,490 | J20: 5,917,351 | K20: 256 | L20: 256 | M20: 256 | N20: 256 | O20: 256 | P20: 256 | S20: Massachusetts | T20: 298 | U20: 53,404,422 | V20: 6,150,912 | W20: 287 | X20: 51,627,490 | Y20: 5,917,351 | Z20: 256 | AA20: 256 | AB20: 256 | AC20: 256 | AD20: 256 | AE20: 256 | AL20: =SUM(AL2:AL19) -> 1,963 | AM20: =SUM(AM2:AM19) -> 311,883,343 | AN20: 46,398,141 | AP20: Massachusetts
A21: Michigan | B21: X | C21: X | D21: X | E21: 13,555 | F21: 303,831,906 | G21: 29,702,739 | H21: 6,063 | I21: 222,314,181 | J21: 24,351,975 | K21: 6,059 | L21: 6,059 | M21: 6,044 | N21: 6,044 | O21: 5,293 | P21: 4,656 | Q21: 4,656 | S21: Michigan | T21: 13,555 | U21: 303,831,906 | V21: 29,702,739 | W21: 5,836 | X21: 181,126,591 | Y21: 18,187,531 | Z21: 5,833 | AA21: 5,833 | AB21: 5,817 | AC21: 5,817 | AD21: 5,066 | AE21: 4,430 | AG21: =VLOOKUP(A21,AK:AL,2, FALSE) -> 227 | AH21: =VLOOKUP(A21,AK:AN,3, FALSE) -> 41,187,590 | AI21: =VLOOKUP(A21,AK:AN,4, FALSE) -> 6,164,443 | AP21: Michigan
A22: Minnesota | C22: X | E22: 5,652 | F22: 128,967,463 | G22: 13,677,339 | H22: 2,654 | I22: 85,707,385 | J22: 9,501,175 | K22: 2,618 | L22: 2,618 | M22: 2,578 | N22: 2,578 | O22: 2,120 | P22: 1,663 | Q22: 2,578 | S22: Minnesota | T22: 5,652 | U22: 128,967,463 | V22: 13,677,339 | W22: 2,654 | X22: 85,707,385 | Y22: 9,501,175 | Z22: 2,618 | AA22: 2,618 | AB22: 2,578 | AC22: 2,578 | AD22: 2,120 | AE22: 1,663 | AP22: Minnesota
A23: Mississippi | C23: X | D23: X | E23: 5,790 | F23: 190,043,215 | G23: 22,493,704 | H23: 4,076 | I23: 176,004,820 | J23: 21,068,062 | K23: 4,003 | L23: 3,716 | M23: 4,003 | N23: 3,716 | O23: 2,658 | P23: 1,752 | Q23: 1,752 | S23: Mississippi | T23: 5,790 | U23: 190,043,215 | V23: 22,493,704 | W23: 2,890 | X23: 167,009,952 | Y23: 20,272,545 | Z23: 2,817 | AA23: 2,817 | AB23: 2,817 | AC23: 2,817 | AD23: 2,096 | AE23: 1,527 | AP23: Mississippi | AQ23: 1,186 | AR23: 8,994,868 | AS23: 795,517 | AT23: 1,186 | AU23: 899 | AV23: 1,186 | AW23: 899 | AX23: 562 | AY23: 225
A24: Missouri | C24: X | D24: X | E24: 20,388 | F24: 288,219,887 | G24: 31,104,031 | H24: 18,559 | I24: 248,413,545 | J24: 26,766,964 | K24: 11,220 | L24: 11,220 | M24: 11,063 | N24: 11,063 | O24: 9,196 | P24: 7,329 | Q24: 7,329 | S24: Missouri | T24: 20,388 | U24: 288,219,887 | V24: 31,104,031 | W24: 18,559 | X24: 248,413,545 | Y24: 26,766,964 | Z24: 11,220 | AA24: 11,220 | AB24: 11,063 | AC24: 11,063 | AD24: 9,196 | AE24: 7,329 | AP24: Missouri
A25: Montana | E25: 3,071 | F25: 46,489,166 | G25: 4,635,867 | H25: 3,071 | I25: 46,489,166 | J25: 4,635,867 | K25: 3,071 | L25: 3,071 | M25: 3,071 | N25: 3,071 | O25: 2,124 | P25: 1,177 | S25: Montana | T25: 3,071 | U25: 46,489,166 | V25: 4,635,867 | W25: 3,071 | X25: 46,489,166 | Y25: 4,635,867 | Z25: 3,071 | AA25: 3,071 | AB25: 3,071 | AC25: 3,071 | AD25: 2,124 | AE25: 1,177 | AP25: Montana
A26: Nebraska | E26: 8,931 | F26: 102,719,096 | G26: 10,720,072 | H26: =W26+$AG26+AQ26 -> 8,247 | I26: =X26+$AH26+AR26 -> 102,459,563 | J26: =Y26+$AI26+AS26 -> 10,700,633 | K26: =Z26+$AG26+AT26 -> 8,210 | L26: 8,177 | M26: 8,210 | N26: 8,177 | O26: 5,522 | P26: 2,974 | S26: Nebraska | T26: 8,931 | U26: 102,719,096 | V26: 10,720,072 | W26: 8,247 | X26: 102,459,563 | Y26: 10,700,633 | Z26: 8,210 | AA26: 8,177 | AB26: 8,210 | AC26: 8,177 | AD26: 5,522 | AE26: 2,974 | AP26: Nebraska
A27: Nevada | C27: X | D27: X | E27: 2,457 | F27: 103,489,785 | G27: 12,918,610 | H27: =W27+$AG27+AQ27 -> 882 | I27: =X27+$AH27+AR27 -> 96,378,269 | J27: =Y27+$AI27+AS27 -> 12,254,977 | K27: =Z27+$AG27+AT27 -> 880 | L27: =AA27+$AG27+AU27 -> 880 | M27: =AB27+$AG27+AV27 -> 880 | N27: =AC27+$AG27+AW27 -> 880 | O27: =AD27+$AG27+AX27 -> 880 | P27: =AE27+$AG27+AY27 -> 880 | Q27: 880 | S27: Nevada | T27: 2,457 | U27: 103,489,785 | V27: 12,918,610 | W27: 705 | X27: 85,138,271 | Y27: 10,900,800 | Z27: 703 | AA27: 703 | AB27: 703 | AC27: 703 | AD27: 703 | AE27: 703 | AG27: =VLOOKUP(A27,AK:AL,2, FALSE) -> 177 | AH27: =VLOOKUP(A27,AK:AN,3, FALSE) -> 11,239,997 | AI27: =VLOOKUP(A27,AK:AN,4, FALSE) -> 1,354,177 | AP27: Nevada
A28: New Hampshire | E28: 330 | F28: 23,374,046 | G28: 2,303,022 | H28: 330 | I28: 23,374,046 | J28: 2,303,022 | K28: 267 | L28: 267 | M28: 267 | N28: 267 | O28: 267 | P28: 267 | S28: New Hampshire | T28: 330 | U28: 23,374,046 | V28: 2,303,022 | W28: 330 | X28: 23,374,046 | Y28: 2,303,022 | Z28: 267 | AA28: 267 | AB28: 267 | AC28: 267 | AD28: 267 | AE28: 267 | AP28: New Hampshire
A29: New Jersey | B29: X | C29: X | D29: X | E29: 1,324 | F29: 119,538,737 | G29: 14,682,028 | H29: 915 | I29: 112,233,231 | J29: 14,601,398 | K29: 773 | L29: 773 | M29: 773 | N29: 773 | O29: 773 | P29: 773 | Q29: 773 | S29: New Jersey | T29: 1,324 | U29: 119,538,737 | V29: 14,682,028 | W29: 915 | X29: 112,233,231 | Y29: 14,601,398 | Z29: 773 | AA29: 773 | AB29: 773 | AC29: 773 | AD29: 773 | AE29: 773 | AP29: New Jersey
A30: New Mexico | E30: 5,066 | F30: 108,235,365 | G30: 11,502,879 | H30: 2,029 | I30: 79,106,429 | J30: 8,916,600 | K30: 1,998 | L30: 1,998 | M30: 1,998 | N30: 1,998 | O30: 1,833 | P30: 1,668 | S30: New Mexico | T30: 5,066 | U30: 108,235,365 | V30: 11,502,879 | W30: 2,029 | X30: 79,106,429 | Y30: 8,916,600 | Z30: 1,998 | AA30: 1,998 | AB30: 1,998 | AC30: 1,998 | AD30: 1,833 | AE30: 1,668 | AP30: New Mexico
A31: New York | B31: X | C31: X | D31: X | E31: 3,997 | F31: 233,342,131 | G31: 27,313,198 | H31: 3,977 | I31: 242,853,661 | J31: 28,688,704 | K31: 3,912 | L31: 3,912 | M31: 3,912 | N31: 3,912 | O31: 3,650 | P31: 3,388 | Q31: 3,388 | S31: New York | T31: 3,997 | U31: 233,342,131 | V31: 27,313,198 | W31: 3,922 | X31: 232,989,708 | Y31: 27,289,562 | Z31: 3,858 | AA31: 3,858 | AB31: 3,858 | AC31: 3,858 | AD31: 3,596 | AE31: 3,333 | AG31: =VLOOKUP(A31,AK:AL,2, FALSE) -> 54 | AH31: =VLOOKUP(A31,AK:AN,3, FALSE) -> 9,863,952 | AI31: =VLOOKUP(A31,AK:AN,4, FALSE) -> 1,399,142 | AP31: New York
A32: North Carolina | E32: 12,444 | F32: 281,750,959 | G32: 29,259,654 | H32: 9,088 | I32: 251,026,825 | J32: 27,442,693 | K32: 6,588 | L32: 6,588 | M32: 6,588 | N32: 6,588 | O32: 5,863 | P32: 5,139 | S32: North Carolina | T32: 12,444 | U32: 281,750,959 | V32: 29,259,654 | W32: 9,047 | X32: 243,637,722 | Y32: 26,282,709 | Z32: 6,547 | AA32: 6,547 | AB32: 6,547 | AC32: 6,547 | AD32: 5,822 | AE32: 5,098 | AG32: =VLOOKUP(A32,AK:AL,2, FALSE) -> 41 | AH32: =VLOOKUP(A32,AK:AN,3, FALSE) -> 7,389,103 | AI32: =VLOOKUP(A32,AK:AN,4, FALSE) -> 1,159,985 | AP32: North Carolina
A33: North Dakota | E33: 12,666 | F33: 121,650,949 | G33: 11,776,927 | H33: 12,246 | I33: 119,541,029 | J33: 11,593,940 | K33: 12,246 | L33: 12,246 | M33: 11,436 | N33: 11,436 | O33: 7,181 | P33: 2,927 | S33: North Dakota | T33: 12,666 | U33: 121,650,949 | V33: 11,776,927 | W33: 12,246 | X33: 119,395,544 | Y33: 11,579,252 | Z33: 12,246 | AA33: 12,246 | AB33: 11,435 | AC33: 11,435 | AD33: 7,181 | AE33: 2,926 | AG33: =VLOOKUP(A33,AK:AL,2, FALSE) -> 1 | AH33: =VLOOKUP(A33,AK:AN,3, FALSE) -> 145,485 | AI33: =VLOOKUP(A33,AK:AN,4, FALSE) -> 14,688 | AP33: North Dakota
A34: Ohio | B34: X | C34: X | D34: X | E34: 11,697 | F34: 389,640,469 | G34: 45,135,729 | H34: 7,545 | I34: 342,075,946 | J34: 42,809,510 | K34: 6,409 | L34: 6,409 | M34: 6,409 | N34: 6,409 | O34: 6,409 | P34: 6,409 | Q34: 6,409 | S34: Ohio | T34: 11,697 | U34: 389,640,469 | V34: 45,135,729 | W34: 7,252 | X34: 288,759,243 | Y34: 34,720,369 | Z34: 6,116 | AA34: 6,116 | AB34: 6,116 | AC34: 6,116 | AD34: 6,116 | AE34: 6,116 | AG34: =VLOOKUP(A34,AK:AL,2, FALSE) -> 293 | AH34: =VLOOKUP(A34,AK:AN,3, FALSE) -> 53,316,703 | AI34: =VLOOKUP(A34,AK:AN,4, FALSE) -> 8,089,141 | AP34: =A34 -> Ohio
A35: Oklahoma | C35: X | D35: X | E35: 10,470 | F35: 212,903,386 | G35: 22,657,698 | H35: 9,317 | I35: 196,160,642 | J35: 21,150,818 | K35: 9,119 | L35: 8,427 | M35: 9,119 | N35: 8,427 | O35: 5,972 | P35: 3,917 | Q35: 3,917 | S35: Oklahoma | T35: 10,470 | U35: 212,903,386 | V35: 22,657,698 | W35: 9,317 | X35: 196,160,642 | Y35: 21,150,818 | Z35: 9,119 | AA35: 8,427 | AB35: 9,119 | AC35: 8,427 | AD35: 5,972 | AE35: 3,917 | AP35: Oklahoma
A36: Oregon | E36: 342 | F36: 56,716,013 | G36: 7,943,020 | H36: 350 | I36: 58,151,946 | J36: 8,087,990 | K36: 300 | L36: 300 | M36: 300 | N36: 300 | O36: 300 | P36: 300 | S36: Oregon | T36: 342 | U36: 56,716,013 | V36: 7,943,020 | W36: 342 | X36: 56,716,013 | Y36: 7,943,020 | Z36: 292 | AA36: 292 | AB36: 292 | AC36: 292 | AD36: 292 | AE36: 292 | AG36: =VLOOKUP(A36,AK:AL,2, FALSE) -> 8 | AH36: =VLOOKUP(A36,AK:AN,3, FALSE) -> 1,435,933 | AI36: =VLOOKUP(A36,AK:AN,4, FALSE) -> 144,971 | AP36: Oregon
A37: Pennsylvania | B37: X | C37: X | D37: X | E37: 12,785 | F37: 539,359,977 | G37: 65,729,802 | H37: 6,032 | I37: 487,590,728 | J37: 61,332,208 | K37: 5,680 | L37: 5,680 | M37: 5,580 | N37: 5,580 | O37: 5,181 | P37: 4,828 | Q37: 4,828 | S37: Pennsylvania | T37: 12,785 | U37: 539,359,977 | V37: 65,729,802 | W37: 5,938 | X37: 467,140,339 | Y37: 58,248,940 | Z37: 5,586 | AA37: 5,586 | AB37: 5,486 | AC37: 5,486 | AD37: 5,088 | AE37: 4,734 | AG37: =VLOOKUP(A37,AK:AL,2, FALSE) -> 94 | AH37: =VLOOKUP(A37,AK:AN,3, FALSE) -> 20,450,389 | AI37: =VLOOKUP(A37,AK:AN,4, FALSE) -> 3,083,268 | AP37: Pennsylvania
A38: Rhode Island | E38: 279 | F38: 31,838,505 | G38: 3,674,052 | H38: 279 | I38: 31,838,505 | J38: 3,674,052 | K38: 148 | L38: 148 | M38: 148 | N38: 148 | O38: 148 | P38: 148 | S38: Rhode Island | T38: 279 | U38: 31,838,505 | V38: 3,674,052 | W38: 279 | X38: 31,838,505 | Y38: 3,674,052 | Z38: 148 | AA38: 148 | AB38: 148 | AC38: 148 | AD38: 148 | AE38: 148 | AP38: Rhode Island
A39: South Carolina | E39: 4,273 | F39: 161,345,886 | G39: 17,627,029 | H39: 3,031 | I39: 143,175,360 | J39: 15,699,040 | K39: 2,804 | L39: 2,804 | M39: 2,804 | N39: 2,804 | O39: 2,804 | P39: 2,804 | S39: South Carolina | T39: 4,273 | U39: 161,345,886 | V39: 17,627,029 | W39: 3,031 | X39: 143,175,360 | Y39: 15,699,040 | Z39: 2,804 | AA39: 2,804 | AB39: 2,804 | AC39: 2,804 | AD39: 2,804 | AE39: 2,804 | AP39: South Carolina
A40: South Dakota | E40: 516 | F40: 15,587,258 | G40: 1,471,526 | H40: 509 | I40: 16,161,161 | J40: 1,539,304 | K40: 509 | L40: 509 | M40: 509 | N40: 509 | O40: 509 | P40: 509 | S40: South Dakota | T40: 516 | U40: 15,587,258 | V40: 1,471,526 | W40: 504 | X40: 15,268,249 | Y40: 1,449,157 | Z40: 504 | AA40: 504 | AB40: 504 | AC40: 504 | AD40: 504 | AE40: 504 | AG40: =VLOOKUP(A40,AK:AL,2, FALSE) -> 5 | AH40: =VLOOKUP(A40,AK:AN,3, FALSE) -> 892,912 | AI40: =VLOOKUP(A40,AK:AN,4, FALSE) -> 90,148 | AP40: South Dakota
A41: Tennessee | E41: 4,319 | F41: 157,981,198 | G41: 17,418,180 | H41: 1,198 | I41: 76,883,950 | J41: 9,654,871 | K41: 1,198 | L41: 1,198 | M41: 1,198 | N41: 1,198 | O41: 1,198 | P41: 1,198 | S41: Tennessee | T41: 4,319 | U41: 157,981,198 | V41: 17,418,180 | W41: 1,198 | X41: 76,883,950 | Y41: 9,654,871 | Z41: 1,198 | AA41: 1,198 | AB41: 1,198 | AC41: 1,198 | AD41: 1,198 | AE41: 1,198 | AP41: Tennessee
A42: Texas | C42: X | D42: X | E42: 42,746 | F42: 1,400,469,195 | G42: 157,307,078 | H42: 30,134 | I42: 1,280,014,875 | J42: 146,932,885 | K42: 29,225 | L42: 29,225 | M42: 28,992 | N42: 28,992 | O42: 24,814 | P42: 20,635 | Q42: 20,635 | S42: Texas | T42: 42,746 | U42: 1,400,469,195 | V42: 157,307,078 | W42: 30,048 | X42: 1,264,373,600 | Y42: 144,681,582 | Z42: 29,139 | AA42: 29,139 | AB42: 28,906 | AC42: 28,906 | AD42: 24,728 | AE42: 20,549 | AG42: =VLOOKUP(A42,AK:AL,2, FALSE) -> 86 | AH42: =VLOOKUP(A42,AK:AN,3, FALSE) -> 15,641,275 | AI42: =VLOOKUP(A42,AK:AN,4, FALSE) -> 2,251,303 | AP42: Texas
A43: Utah | C43: X | D43: X | E43: 15,762 | F43: 164,519,648 | G43: 18,345,467 | H43: 9,930 | I43: 127,217,396 | J43: 14,057,968 | K43: 9,923 | L43: 9,923 | M43: 9,923 | N43: 9,923 | O43: 6,258 | P43: 2,593 | Q43: 2,593 | S43: Utah | T43: 15,762 | U43: 164,519,648 | V43: 18,345,467 | W43: 9,768 | X43: 125,329,222 | Y43: 13,889,002 | Z43: 9,761 | AA43: 9,761 | AB43: 9,761 | AC43: 9,761 | AD43: 6,096 | AE43: 2,431 | AG43: =VLOOKUP(A43,AK:AL,2, FALSE) -> 162 | AH43: =VLOOKUP(A43,AK:AN,3, FALSE) -> 1,888,174 | AI43: =VLOOKUP(A43,AK:AN,4, FALSE) -> 168,966 | AP43: Utah
A44: Vermont | E44: 54 | F44: 1,571,908 | G44: 113,425 | H44: 54 | I44: 1,571,908 | J44: 113,425 | K44: 54 | L44: 54 | M44: 54 | N44: 54 | O44: 54 | P44: 54 | S44: Vermont | T44: 54 | U44: 1,571,908 | V44: 113,425 | W44: 54 | X44: 1,571,908 | Y44: 113,425 | Z44: 54 | AA44: 54 | AB44: 54 | AC44: 54 | AD44: 54 | AE44: 54 | AP44: Vermont
A45: Virginia | B45: X | C45: X | D45: X | E45: 3,329 | F45: 202,953,791 | G45: 24,677,281 | H45: 2,578 | I45: 186,848,587 | J45: 23,775,355 | K45: 2,414 | L45: 2,337 | M45: 2,412 | N45: 2,334 | O45: 2,143 | P45: 1,951 | Q45: 1,951 | S45: Virginia | T45: 3,329 | U45: 202,953,791 | V45: 24,677,281 | W45: 2,578 | X45: 186,848,587 | Y45: 23,775,355 | Z45: 2,414 | AA45: 2,337 | AB45: 2,412 | AC45: 2,334 | AD45: 2,143 | AE45: 1,951 | AP45: Virginia
A46: Washington | E46: 1,999 | F46: 65,748,254 | G46: 7,731,261 | H46: 527 | I46: 50,453,818 | J46: 6,365,209 | K46: 257 | L46: 257 | M46: 257 | N46: 257 | O46: 257 | P46: 257 | S46: Washington | T46: 1,999 | U46: 65,748,254 | V46: 7,731,261 | W46: 527 | X46: 50,453,818 | Y46: 6,365,209 | Z46: 257 | AA46: 257 | AB46: 257 | AC46: 257 | AD46: 257 | AE46: 257 | AP46: Washington
A47: West Virginia | B47: X | C47: X | D47: X | E47: 14,686 | F47: 306,845,495 | G47: 32,032,438 | H47: 13,185 | I47: 273,151,957 | J47: 28,666,644 | K47: 12,784 | L47: 12,239 | M47: 12,443 | N47: 11,958 | O47: 10,818 | P47: 9,678 | Q47: 9,678 | S47: West Virginia | T47: 14,686 | U47: 306,845,495 | V47: 32,032,438 | W47: 13,185 | X47: 273,151,957 | Y47: 28,666,644 | Z47: 12,784 | AA47: 12,239 | AB47: 12,443 | AC47: 11,958 | AD47: 10,818 | AE47: 9,678 | AP47: West Virginia
A48: Wisconsin | C48: X | E48: 6,321 | F48: 220,794,282 | G48: 24,061,341 | H48: 3,442 | I48: 151,343,287 | J48: 17,427,470 | K48: 3,436 | L48: 3,436 | M48: 3,416 | N48: 3,416 | O48: 3,416 | P48: 3,416 | Q48: 3,416 | S48: Wisconsin | T48: 6,321 | U48: 220,794,282 | V48: 24,061,341 | W48: 3,442 | X48: 151,343,287 | Y48: 17,427,470 | Z48: 3,436 | AA48: 3,436 | AB48: 3,416 | AC48: 3,416 | AD48: 3,416 | AE48: 3,416 | AP48: Wisconsin
A49: Wyoming | E49: 11,643 | F49: 175,787,236 | G49: 16,542,944 | H49: 6,722 | I49: 141,256,643 | J49: 13,307,541 | K49: 6,640 | L49: 6,640 | M49: 6,627 | N49: 6,627 | O49: 4,961 | P49: 3,294 | S49: Wyoming | T49: 11,643 | U49: 175,787,236 | V49: 16,542,944 | W49: 6,722 | X49: 141,256,643 | Y49: 13,307,541 | Z49: 6,640 | AA49: 6,640 | AB49: 6,627 | AC49: 6,627 | AD49: 4,961 | AE49: 3,294 | AP49: Wyoming
A50: Total | E50: =SUM(E2:E49) -> 359,617 | F50: 10,261,049,881 | G50: 1,159,585,094 | H50: 252,584 | I50: 9,030,476,603 | J50: 1,057,050,628 | K50: 232,812 | L50: 230,758 | M50: 230,722 | N50: 228,728 | O50: 189,715 | P50: 151,697 | S50: Total | T50: =SUM(T2:T49) -> 359,617 | U50: 10,261,049,881 | V50: 1,159,585,094 | W50: 249,434 | X50: 8,709,598,392 | Y50: 1,009,856,970 | Z50: 229,663 | AA50: 227,896 | AB50: 227,573 | AC50: 225,866 | AD50: 187,189 | AE50: 149,509 | AG50: =SUM(AG2:AG49) -> 1,963 | AH50: =SUM(AH2:AH49) -> 311,883,343 | AI50: =SUM(AI2:AI49) -> 46,398,141 | AP50: Total | AQ50: =SUM(AQ2:AQ49) -> 1,186 | AR50: =SUM(AR2:AR49) -> 8,994,868 | AS50: 795,517 | AT50: 1,186 | AU50: 899 | AV50: 1,186 | AW50: 899 | AX50: 562 | AY50: 225
A51: 2023 Strategy | E51: =SUMIF($C$2:$C$49, "X", E$2:E$49) -> 239,450 | F51: 6,657,406,843 | G51: 745,505,856 | H51: 164,053 | I51: 5,780,313,237 | J51: 671,047,925 | K51: 151,461 | L51: 149,509 | M51: 150,397 | N51: 148,505 | O51: 125,703 | P51: 103,790 | Q51: 105,201
A52: 2026 Strategy | E52: =SUMIF($D$2:$D$49, "X", E$2:E$49) -> 220,828 | F52: 5,994,607,557 | G52: 670,547,990 | H52: 152,747 | I52: 5,235,274,683 | J52: 606,287,395 | K52: 140,303 | L52: 138,351 | M52: 139,299 | N52: 137,406 | O52: 115,309 | P52: 94,101 | Q52: 94,102

Sheet Dynamic Budget Template 2026
A1: Likely Inventory of Affected Units | R1: Dynamic Budget Steps
R2: Step 1 | T2: Step 2 (Identify heat input values for ozone season in years 2 through 6 years prior to budget year) | Y2: Step 3 - Take average of three highest heat input values from five year baseline in Step 2 | Z2: Step 4 - Divide Step 3 unit value into state-level total from Step 3 | AA2: Step 5 - Identify state-level heat input average from latest 3 years and determine average | AE2: Step 6 - Multiply Step 4 value by Step 5 value (column AD) | AF2: Step 7 - Multiply Step 6 value by Step 1 value (divide by 2000 to convert to tons) | AI2: Sum Column AF
A3: Facility | B3: State | C3: RCU State | D3: 2023 EGU control strategy | E3: 2026 EGU control strategy | F3: ORIS | G3: Boiler | H3: CAMD ID | I3: Plant Type | J3: Retirement Month Check | K3: Retirement Year Check | L3: Retired Before EA Year | M3: Unit Type | N3: Existing SCR | O3: Existing SNCR | P3: Common Stack | Q3: Capacity (MW) | R3: Emission Rate (lb/mmBtu) | S3: Substitute Data Flag | T3: Heat Input (2020) (mmBtu) | U3: Heat Input (2021) (mmBtu) | V3: Heat Input (2022) (mmBtu) | W3: Heat Input (2023) (mmBtu) | X3: Heat Input (2024) (mmBtu) | Y3: Representative Unit-Level Heat Input (mmBtu) | Z3: Representative Unit-Level Percent of State Total | AA3: State-Level Heat Input (2022) (mmBtu) | AB3: State-Level Heat Input (2023 (mmBtu) | AC3: State-Level Heat Input (2024) (mmBtu) | AD3: Representative State Level Heat Input (mmBtu) | AE3: Normalized Unit-Level Heat Input (mmBtu) | AF3: Emissions (tons) | AH3: State | AI3: Dynamic Budget
A4: AMEA Sylacauga Plant | B4: Alabama | D4: X | F4: 56018 | G4: 1 | H4: 89313 | I4: Combustion Turbine | M4: Combustion turbine | R4: 0.084 | AH4: Alabama
A5: AMEA Sylacauga Plant | B5: Alabama | D5: X | F5: 56018 | G5: 2 | H5: 89314 | I5: Combustion Turbine | M5: Combustion turbine | R5: 0.085 | AH5: Arkansas
A6: Barry | B6: Alabama | D6: X | F6: 3 | G6: 1 | H6: 1 | I6: O/G Steam | M6: Tangentially-fired | O6: Y | P6: Y | Q6: 56 | R6: 0.057 | S6: Y | AH6: Illinois
A7: Barry | B7: Alabama | D7: X | F7: 3 | G7: 2 | H7: 2 | I7: O/G Steam | M7: Tangentially-fired | O7: Y | P7: Y | Q7: 56 | R7: 0.061 | S7: Y | AH7: Indiana
A8: Barry | B8: Alabama | D8: X | F8: 3 | G8: 4 | H8: 4 | I8: O/G Steam | M8: Tangentially-fired | O8: Y | Q8: 362 | R8: 0.135 | AH8: Kentucky
A9: Barry | B9: Alabama | D9: X | F9: 3 | G9: 5 | H9: 5 | I9: Coal Steam | J9: 12 | K9: 2028 | L9: 2029 | M9: Tangentially-fired | N9: Y | Q9: 756 | R9: 0.068 | AH9: Louisiana
A10: Barry | B10: Alabama | D10: X | F10: 3 | G10: 6A | H10: 6 | I10: Combined Cycle | M10: Combined cycle | N10: Y | R10: 0.009 | AH10: Maryland
A11: Barry | B11: Alabama | D11: X | F11: 3 | G11: 6B | H11: 7 | I11: Combined Cycle | M11: Combined cycle | N11: Y | R11: 0.009 | AH11: Michigan
A12: Barry | B12: Alabama | D12: X | F12: 3 | G12: 7A | H12: 8 | I12: Combined Cycle | M12: Combined cycle | N12: Y | R12: 0.009 | AH12: Minnesota
A13: Barry | B13: Alabama | D13: X | F13: 3 | G13: 7B | H13: 9 | I13: Combined Cycle | M13: Combined cycle | N13: Y | R13: 0.008 | AH13: Mississippi
A14: Calhoun Generating Facility | B14: Alabama | D14: X | F14: 55409 | G14: CT1 | H14: 4688 | I14: Combustion Turbine | M14: Combustion turbine | R14: 0.033 | AH14: Missouri
A15: Calhoun Generating Facility | B15: Alabama | D15: X | F15: 55409 | G15: CT2 | H15: 4689 | I15: Combustion Turbine | M15: Combustion turbine | R15: 0.035 | AH15: Nevada
A16: Calhoun Generating Facility | B16: Alabama | D16: X | F16: 55409 | G16: CT3 | H16: 4690 | I16: Combustion Turbine | M16: Combustion turbine | R16: 0.036 | AH16: New Jersey
A17: Calhoun Generating Facility | B17: Alabama | D17: X | F17: 55409 | G17: CT4 | H17: 4691 | I17: Combustion Turbine | M17: Combustion turbine | R17: 0.033 | AH17: New York
A18: Central Alabama Gen Station | B18: Alabama | D18: X | F18: 55440 | G18: CTGDB1 | H18: 4758 | I18: Combined Cycle | M18: Combined cycle | N18: Y | R18: 0.009 | AH18: Ohio
A19: Central Alabama Gen Station | B19: Alabama | D19: X | F19: 55440 | G19: CTGDB2 | H19: 4759 | I19: Combined Cycle | M19: Combined cycle | N19: Y | R19: 0.008 | AH19: Oklahoma
A20: Central Alabama Gen Station | B20: Alabama | D20: X | F20: 55440 | G20: CTGDB3 | H20: 4760 | I20: Combined Cycle | M20: Combined cycle | N20: Y | R20: 0.008 | AH20: Pennsylvania
A21: Colbert | B21: Alabama | D21: X | F21: 47 | G21: CCT1 | H21: 88150 | I21: Combustion Turbine | M21: Combustion turbine | R21: 0.409 | AH21: Texas
A22: Colbert | B22: Alabama | D22: X | F22: 47 | G22: CCT2 | H22: 88151 | I22: Combustion Turbine | M22: Combustion turbine | R22: 0.409 | AH22: Utah
A23: Colbert | B23: Alabama | D23: X | F23: 47 | G23: CCT3 | H23: 88152 | I23: Combustion Turbine | M23: Combustion turbine | R23: 0.403 | AH23: Virginia
A24: Colbert | B24: Alabama | D24: X | F24: 47 | G24: CCT4 | H24: 88153 | I24: Combustion Turbine | M24: Combustion turbine | R24: 0.400 | AH24: West Virginia
A25: Colbert | B25: Alabama | D25: X | F25: 47 | G25: CCT5 | H25: 88154 | I25: Combustion Turbine | M25: Combustion turbine | R25: 0.402 | AH25: Wisconsin
A26: Colbert | B26: Alabama | D26: X | F26: 47 | G26: CCT6 | H26: 88155 | I26: Combustion Turbine | M26: Combustion turbine | R26: 0.402
A27: Colbert | B27: Alabama | D27: X | F27: 47 | G27: CCT7 | H27: 88156 | I27: Combustion Turbine | M27: Combustion turbine | R27: 0.402
A28: Colbert | B28: Alabama | D28: X | F28: 47 | G28: CCT8 | H28: 88157 | I28: Combustion Turbine | M28: Combustion turbine | R28: 0.402
A29: Decatur Energy Center | B29: Alabama | D29: X | F29: 55292 | G29: CTG-1 | H29: 4459 | I29: Combined Cycle | M29: Combined cycle | N29: Y | R29: 0.011
A30: Decatur Energy Center | B30: Alabama | D30: X | F30: 55292 | G30: CTG-2 | H30: 4460 | I30: Combined Cycle | M30: Combined cycle | N30: Y | R30: 0.011
A31: Decatur Energy Center | B31: Alabama | D31: X | F31: 55292 | G31: CTG-3 | H31: 4461 | I31: Combined Cycle | M31: Combined cycle | N31: Y | R31: 0.012
A32: E B Harris Generating Plant | B32: Alabama | D32: X | F32: 7897 | G32: 1A | H32: 3355 | I32: Combined Cycle | M32: Combined cycle | N32: Y | R32: 0.012
A33: E B Harris Generating Plant | B33: Alabama | D33: X | F33: 7897 | G33: 1B | H33: 3356 | I33: Combined Cycle | M33: Combined cycle | N33: Y | R33: 0.010
A34: E B Harris Generating Plant | B34: Alabama | D34: X | F34: 7897 | G34: 2A | H34: 3357 | I34: Combined Cycle | M34: Combined cycle | N34: Y | R34: 0.008
A35: E B Harris Generating Plant | B35: Alabama | D35: X | F35: 7897 | G35: 2B | H35: 3358 | I35: Combined Cycle | M35: Combined cycle | N35: Y | R35: 0.008
A36: E C Gaston | B36: Alabama | D36: X | F36: 26 | G36: 1 | H36: 30 | I36: O/G Steam | M36: Dry bottom wall-fired boiler | P36: Y | Q36: 254 | R36: 0.093
A37: E C Gaston | B37: Alabama | D37: X | F37: 26 | G37: 2 | H37: 31 | I37: O/G Steam | M37: Dry bottom wall-fired boiler | P37: Y | Q37: 256 | R37: 0.097
A38: E C Gaston | B38: Alabama | D38: X | F38: 26 | G38: 3 | H38: 32 | I38: O/G Steam | M38: Dry bottom wall-fired boiler | P38: Y | Q38: 254 | R38: 0.105
A39: E C Gaston | B39: Alabama | D39: X | F39: 26 | G39: 4 | H39: 33 | I39: O/G Steam | M39: Dry bottom wall-fired boiler | P39: Y | Q39: 256 | R39: 0.110
A40: E C Gaston | B40: Alabama | D40: X | F40: 26 | G40: 5 | H40: 34 | I40: Coal Steam | M40: Tangentially-fired | N40: Y | Q40: 832 | R40: 0.080
A41: Gadsden | B41: Alabama | D41: X | F41: 7 | G41: 1 | H41: 11 | I41: O/G Steam | J41: 1 | K41: 2023 | L41: 2023 | M41: Tangentially-fired | P41: Y | Q41: 64 | R41: 0.118 | S41: Y
A42: Gadsden | B42: Alabama | D42: X | F42: 7 | G42: 2 | H42: 12 | I42: O/G Steam | J42: 1 | K42: 2023 | L42: 2023 | M42: Tangentially-fired | P42: Y | Q42: 66 | R42: 0.099 | S42: Y
A43: Greene County | B43: Alabama | D43: X | F43: 10 | G43: 1 | H43: 19 | I43: O/G Steam | J43: 12 | K43: 2025 | L43: 2026 | M43: Cell burner boiler | P43: Y | Q43: 258 | R43: 0.114 | S43: Y
A44: Greene County | B44: Alabama | D44: X | F44: 10 | G44: 2 | H44: 20 | I44: O/G Steam | J44: 12 | K44: 2026 | L44: 2027 | M44: Dry bottom wall-fired boiler | P44: Y | Q44: 258 | R44: 0.118
A45: Greene County | B45: Alabama | D45: X | F45: 10 | G45: CT10 | H45: 21 | I45: Combustion Turbine | M45: Combustion turbine | R45: 0.090
A46: Greene County | B46: Alabama | D46: X | F46: 10 | G46: CT2 | H46: 22 | I46: Combustion Turbine | M46: Combustion turbine | R46: 0.074
A47: Greene County | B47: Alabama | D47: X | F47: 10 | G47: CT3 | H47: 23 | I47: Combustion Turbine | M47: Combustion turbine | R47: 0.064
A48: Greene County | B48: Alabama | D48: X | F48: 10 | G48: CT4 | H48: 24 | I48: Combustion Turbine | M48: Combustion turbine | R48: 0.077
A49: Greene County | B49: Alabama | D49: X | F49: 10 | G49: CT5 | H49: 25 | I49: Combustion Turbine | M49: Combustion turbine | R49: 0.062
A50: Greene County | B50: Alabama | D50: X | F50: 10 | G50: CT6 | H50: 26 | I50: Combustion Turbine | M50: Combustion turbine | R50: 0.067
A51: Greene County | B51: Alabama | D51: X | F51: 10 | G51: CT7 | H51: 27 | I51: Combustion Turbine | M51: Combustion turbine | R51: 0.076
A52: Greene County | B52: Alabama | D52: X | F52: 10 | G52: CT8 | H52: 28 | I52: Combustion Turbine | M52: Combustion turbine | R52: 0.073
A53: Greene County | B53: Alabama | D53: X | F53: 10 | G53: CT9 | H53: 29 | I53: Combustion Turbine | M53: Combustion turbine | R53: 0.061
A54: Hillabee Energy Center | B54: Alabama | D54: X | F54: 55411 | G54: CT1 | H54: 4695 | I54: Combined Cycle | M54: Combined cycle | N54: Y | R54: 0.007
A55: Hillabee Energy Center | B55: Alabama | D55: X | F55: 55411 | G55: CT2 | H55: 4696 | I55: Combined Cycle | M55: Combined cycle | N55: Y | R55: 0.007
A56: Hog Bayou Energy Center | B56: Alabama | D56: X | F56: 55241 | G56: COG01 | H56: 4286 | I56: Combined Cycle | M56: Combined cycle | N56: Y | R56: 0.008
A57: James H Miller Jr | B57: Alabama | D57: X | F57: 6002 | G57: 1 | H57: 2669 | I57: Coal Steam | M57: Dry bottom wall-fired boiler | N57: Y | Q57: 688 | R57: 0.070
A58: James H Miller Jr | B58: Alabama | D58: X | F58: 6002 | G58: 2 | H58: 2670 | I58: Coal Steam | M58: Dry bottom wall-fired boiler | N58: Y | Q58: 695 | R58: 0.066
A59: James H Miller Jr | B59: Alabama | D59: X | F59: 6002 | G59: 3 | H59: 2671 | I59: Coal Steam | M59: Dry bottom wall-fired boiler | N59: Y | Q59: 687 | R59: 0.072
A60: James H Miller Jr | B60: Alabama | D60: X | F60: 6002 | G60: 4 | H60: 2672 | I60: Coal Steam | M60: Dry bottom wall-fired boiler | N60: Y | Q60: 699 | R60: 0.059
A61: McIntosh (7063) | B61: Alabama | D61: X | F61: 7063 | G61: **1 | H61: 2924 | I61: Combustion Turbine | M61: Other turbine | R61: 0.224
A62: McIntosh (7063) | B62: Alabama | D62: X | F62: 7063 | G62: **2 | H62: 2925 | I62: Combustion Turbine | M62: Combustion turbine | R62: 0.063
A63: McIntosh (7063) | B63: Alabama | D63: X | F63: 7063 | G63: **3 | H63: 2926 | I63: Combustion Turbine | M63: Combustion turbine | R63: 0.060
A64: McIntosh (7063) | B64: Alabama | D64: X | F64: 7063 | G64: **4 | H64: 90423 | I64: Combustion Turbine | M64: Combustion turbine | R64: 0.035
A65: McIntosh (7063) | B65: Alabama | D65: X | F65: 7063 | G65: **5 | H65: 90424 | I65: Combustion Turbine | M65: Combustion turbine | R65: 0.034
A66: McWilliams | B66: Alabama | D66: X | F66: 533 | G66: **4 | H66: 320 | I66: Combined Cycle | M66: Combined cycle | R66: 0.039
A67: McWilliams | B67: Alabama | D67: X | F67: 533 | G67: **V1 | H67: 324 | I67: Combined Cycle | M67: Combined cycle | N67: Y | R67: 0.011
A68: McWilliams | B68: Alabama | D68: X | F68: 533 | G68: **V2 | H68: 325 | I68: Combined Cycle | M68: Combined cycle | N68: Y | R68: 0.011
A69: Morgan Energy Center | B69: Alabama | D69: X | F69: 55293 | G69: CT-1 | H69: 4462 | I69: Combined Cycle | M69: Combined cycle | N69: Y | R69: 0.005
A70: Morgan Energy Center | B70: Alabama | D70: X | F70: 55293 | G70: CT-2 | H70: 4463 | I70: Combined Cycle | M70: Combined cycle | N70: Y | R70: 0.007
A71: Morgan Energy Center | B71: Alabama | D71: X | F71: 55293 | G71: CT-3 | H71: 4464 | I71: Combined Cycle | M71: Combined cycle | N71: Y | R71: 0.007
A72: Plant H. Allen Franklin | B72: Alabama | D72: X | F72: 7710 | G72: 1A | H72: 3285 | I72: Combined Cycle | M72: Combined cycle | N72: Y | R72: 0.009
A73: Plant H. Allen Franklin | B73: Alabama | D73: X | F73: 7710 | G73: 1B | H73: 3286 | I73: Combined Cycle | M73: Combined cycle | N73: Y | R73: 0.009
A74: Plant H. Allen Franklin | B74: Alabama | D74: X | F74: 7710 | G74: 2A | H74: 3287 | I74: Combined Cycle | M74: Combined cycle | N74: Y | R74: 0.009
A75: Plant H. Allen Franklin | B75: Alabama | D75: X | F75: 7710 | G75: 2B | H75: 3288 | I75: Combined Cycle | M75: Combined cycle | N75: Y | R75: 0.009
A76: Plant H. Allen Franklin | B76: Alabama | D76: X | F76: 7710 | G76: 3A | H76: 3289 | I76: Combined Cycle | M76: Combined cycle | N76: Y | R76: 0.008
A77: Plant H. Allen Franklin | B77: Alabama | D77: X | F77: 7710 | G77: 3B | H77: 3290 | I77: Combined Cycle | M77: Combined cycle | N77: Y | R77: 0.010
A78: SABIC Innovative Plastics - Burkville | B78: Alabama | D78: X | F78: 7698 | G78: CC1 | H78: 3140 | I78: Combined Cycle | M78: Combined cycle | R78: 0.027
A79: Tenaska Lindsay Hill Generating Station | B79: Alabama | D79: X | F79: 55271 | G79: CT1 | H79: 4383 | I79: Combined Cycle | M79: Combined cycle | N79: Y | R79: 0.011
A80: Tenaska Lindsay Hill Generating Station | B80: Alabama | D80: X | F80: 55271 | G80: CT2 | H80: 4384 | I80: Combined Cycle | M80: Combined cycle | N80: Y | R80: 0.011
A81: Tenaska Lindsay Hill Generating Station | B81: Alabama | D81: X | F81: 55271 | G81: CT3 | H81: 4385 | I81: Combined Cycle | M81: Combined cycle | N81: Y | R81: 0.007
A82: Theodore Cogeneration | B82: Alabama | D82: X | F82: 7721 | G82: CC1 | H82: 3151 | I82: Combined Cycle | M82: Combined cycle | N82: Y | R82: 0.007
A83: Walton Discover Power Facility | B83: Alabama | D83: X | F83: 55138 | G83: 1A | H83: 88304 | I83: Combustion Turbine | M83: Combustion turbine | R83: 0.255 | S83: Y
A84: Walton Discover Power Facility | B84: Alabama | D84: X | F84: 55138 | G84: 1B | H84: 88305 | I84: Combustion Turbine | M84: Combustion turbine | R84: 0.533 | S84: Y
A85: Walton Discover Power Facility | B85: Alabama | D85: X | F85: 55138 | G85: 2A | H85: 88306 | I85: Combustion Turbine | M85: Combustion turbine | R85: 0.320 | S85: Y
A86: Walton Discover Power Facility | B86: Alabama | D86: X | F86: 55138 | G86: 2B | H86: 88307 | I86: Combustion Turbine | M86: Combustion turbine | R86: 0.241 | S86: Y
A87: Washington County Cogen (Olin) | B87: Alabama | D87: X | F87: 7697 | G87: CC1 | H87: 3139 | I87: Combined Cycle | M87: Combined cycle | R87: 0.025
A88: Carl Bailey | B88: Arkansas | D88: X | E88: X | F88: 202 | G88: 01 | H88: 111 | I88: O/G Steam | M88: Dry bottom wall-fired boiler | Q88: 122 | R88: 0.179 | S88: Y
A89: City Water & Light - City of Jonesboro | B89: Arkansas | D89: X | E89: X | F89: 56505 | G89: SN04 | H89: 89827 | I89: Combustion Turbine | M89: Combustion turbine | R89: 0.087
A90: City Water & Light - City of Jonesboro | B90: Arkansas | D90: X | E90: X | F90: 56505 | G90: SN06 | H90: 89828 | I90: Combustion Turbine | M90: Combustion turbine | R90: 0.113
A91: City Water & Light - City of Jonesboro | B91: Arkansas | D91: X | E91: X | F91: 56505 | G91: SN07 | H91: 89829 | I91: Combustion Turbine | M91: Combustion turbine | R91: 0.083
A92: Dell Power Plant | B92: Arkansas | D92: X | E92: X | F92: 55340 | G92: 1 | H92: 4517 | I92: Combined Cycle | M92: Combined cycle | N92: Y | R92: 0.008
A93: Dell Power Plant | B93: Arkansas | D93: X | E93: X | F93: 55340 | G93: 2 | H93: 4518 | I93: Combined Cycle | M93: Combined cycle | N93: Y | R93: 0.009
A94: Flint Creek Power Plant | B94: Arkansas | D94: X | E94: X | F94: 6138 | G94: 1 | H94: 2800 | I94: Coal Steam | M94: Dry bottom wall-fired boiler | Q94: 528 | R94: 0.120
A95: Fulton | B95: Arkansas | D95: X | E95: X | F95: 7825 | G95: CT1 | H95: 3247 | I95: Combustion Turbine | M95: Combustion turbine | R95: 0.054
A96: Harry D. Mattison Power Plant | B96: Arkansas | D96: X | E96: X | F96: 56328 | G96: 1 | H96: 89740 | I96: Combustion Turbine | M96: Combustion turbine | R96: 0.063
A97: Harry D. Mattison Power Plant | B97: Arkansas | D97: X | E97: X | F97: 56328 | G97: 2 | H97: 89741 | I97: Combustion Turbine | M97: Combustion turbine | R97: 0.054
A98: Harry D. Mattison Power Plant | B98: Arkansas | D98: X | E98: X | F98: 56328 | G98: 3 | H98: 91249 | I98: Combustion Turbine | M98: Combustion turbine | R98: 0.093
A99: Harry D. Mattison Power Plant | B99: Arkansas | D99: X | E99: X | F99: 56328 | G99: 4 | H99: 91250 | I99: Combustion Turbine | M99: Combustion turbine | R99: 0.100
A100: Hot Spring Energy Facility | B100: Arkansas | D100: X | E100: X | F100: 55418 | G100: CT-1 | H100: 4705 | I100: Combined Cycle | M100: Combined cycle | N100: Y | R100: 0.012
A101: Hot Spring Energy Facility | B101: Arkansas | D101: X | E101: X | F101: 55418 | G101: CT-2 | H101: 4706 | I101: Combined Cycle | M101: Combined cycle | N101: Y | R101: 0.011
A102: Independence | B102: Arkansas | D102: X | E102: X | F102: 6641 | G102: 1 | H102: 2898 | I102: Coal Steam | M102: Tangentially-fired | Q102: 809 | R102: 0.098
A103: Independence | B103: Arkansas | D103: X | E103: X | F103: 6641 | G103: 2 | H103: 2899 | I103: Coal Steam | M103: Tangentially-fired | Q103: 842 | R103: 0.091
A104: John W. Turk Jr. Power Plant | B104: Arkansas | D104: X | E104: X | F104: 56564 | G104: SN-01 | H104: 90325 | I104: Coal Steam | M104: Dry bottom wall-fired boiler | N104: Y | Q104: 609 | R104: 0.044
A105: Lake Catherine | B105: Arkansas | D105: X | E105: X | F105: 170 | G105: 4 | H105: 107 | I105: O/G Steam | J105: 6 | K105: 2025 | L105: 2026 | M105: Dry bottom wall-fired boiler | Q105: 522 | R105: 0.133 | S105: Y
A106: Magnet Cove Generating Station | B106: Arkansas | D106: X | E106: X | F106: 55714 | G106: SN-01 | H106: 9298 | I106: Combined Cycle | M106: Combined cycle | N106: Y | R106: 0.012
A107: Magnet Cove Generating Station | B107: Arkansas | D107: X | E107: X | F107: 55714 | G107: SN-02 | H107: 9299 | I107: Combined Cycle | M107: Combined cycle | N107: Y | R107: 0.012
A108: McClellan | B108: Arkansas | D108: X | E108: X | F108: 203 | G108: 01 | H108: 112 | I108: O/G Steam | M108: Dry bottom wall-fired boiler | Q108: 134 | R108: 0.201
A109: Oswald Generating Station | B109: Arkansas | D109: X | E109: X | F109: 55221 | G109: G1 | H109: 4167 | I109: Combined Cycle | M109: Combined cycle | R109: 0.124
A110: Oswald Generating Station | B110: Arkansas | D110: X | E110: X | F110: 55221 | G110: G2 | H110: 4168 | I110: Combined Cycle | M110: Combined cycle | R110: 0.109
A111: Oswald Generating Station | B111: Arkansas | D111: X | E111: X | F111: 55221 | G111: G3 | H111: 4169 | I111: Combined Cycle | M111: Combined cycle | R111: 0.113
A112: Oswald Generating Station | B112: Arkansas | D112: X | E112: X | F112: 55221 | G112: G4 | H112: 4170 | I112: Combined Cycle | M112: Combined cycle | R112: 0.117
A113: Oswald Generating Station | B113: Arkansas | D113: X | E113: X | F113: 55221 | G113: G5 | H113: 4171 | I113: Combined Cycle | M113: Combined cycle | R113: 0.116
A114: Oswald Generating Station | B114: Arkansas | D114: X | E114: X | F114: 55221 | G114: G6 | H114: 4172 | I114: Combined Cycle | M114: Combined cycle | R114: 0.113
A115: Oswald Generating Station | B115: Arkansas | D115: X | E115: X | F115: 55221 | G115: G7 | H115: 4173 | I115: Combined Cycle | M115: Combined cycle | R115: 0.066
A116: Pine Bluff Energy Center | B116: Arkansas | D116: X | E116: X | F116: 55075 | G116: CT-1 | H116: 3855 | I116: Combined Cycle | M116: Combined cycle | R116: 0.044
A117: Plum Point Energy Station | B117: Arkansas | D117: X | E117: X | F117: 56456 | G117: 1 | H117: 90208 | I117: Coal Steam | M117: Dry bottom wall-fired boiler | N117: Y | Q117: 680 | R117: 0.080
A118: Thomas Fitzhugh | B118: Arkansas | D118: X | E118: X | F118: 201 | G118: 2 | H118: 88375 | I118: Combined Cycle | M118: Combined cycle | R118: 0.068
A119: Union Power Station | B119: Arkansas | D119: X | E119: X | F119: 55380 | G119: CTG-1 | H119: 4590 | I119: Combined Cycle | M119: Combined cycle | N119: Y | R119: 0.012
A120: Union Power Station | B120: Arkansas | D120: X | E120: X | F120: 55380 | G120: CTG-2 | H120: 4592 | I120: Combined Cycle | M120: Combined cycle | N120: Y | R120: 0.012
A121: Union Power Station | B121: Arkansas | D121: X | E121: X | F121: 55380 | G121: CTG-3 | H121: 4593 | I121: Combined Cycle | M121: Combined cycle | N121: Y | R121: 0.012
A122: Union Power Station | B122: Arkansas | D122: X | E122: X | F122: 55380 | G122: CTG-4 | H122: 4594 | I122: Combined Cycle | M122: Combined cycle | N122: Y | R122: 0.011
A123: Union Power Station | B123: Arkansas | D123: X | E123: X | F123: 55380 | G123: CTG-5 | H123: 4595 | I123: Combined Cycle | M123: Combined cycle | N123: Y | R123: 0.012
A124: Union Power Station | B124: Arkansas | D124: X | E124: X | F124: 55380 | G124: CTG-6 | H124: 4596 | I124: Combined Cycle | M124: Combined cycle | N124: Y | R124: 0.012
A125: Union Power Station | B125: Arkansas | D125: X | E125: X | F125: 55380 | G125: CTG-7 | H125: 4597 | I125: Combined Cycle | M125: Combined cycle | N125: Y | R125: 0.012
A126: Union Power Station | B126: Arkansas | D126: X | E126: X | F126: 55380 | G126: CTG-8 | H126: 4598 | I126: Combined Cycle | M126: Combined cycle | N126: Y | R126: 0.012
A127: White Bluff | B127: Arkansas | D127: X | E127: X | F127: 6009 | G127: 1 | H127: 2675 | I127: Coal Steam | M127: Tangentially-fired | Q127: 818 | R127: 0.105
A128: White Bluff | B128: Arkansas | D128: X | E128: X | F128: 6009 | G128: 2 | H128: 2676 | I128: Coal Steam | M128: Tangentially-fired | Q128: 819 | R128: 0.099
A129: Alsey Station | B129: Illinois | C129: X | D129: X | E129: X | F129: 7818 | G129: ACT1 | H129: 89336 | I129: Combustion Turbine | M129: Combustion turbine | R129: 0.191
A130: Alsey Station | B130: Illinois | C130: X | D130: X | E130: X | F130: 7818 | G130: ACT2 | H130: 89337 | I130: Combustion Turbine | M130: Combustion turbine | R130: 0.211
A131: Alsey Station | B131: Illinois | C131: X | D131: X | E131: X | F131: 7818 | G131: ACT5 | H131: 89338 | I131: Combustion Turbine | M131: Combustion turbine | R131: 0.292
A132: Alsey Station | B132: Illinois | C132: X | D132: X | E132: X | F132: 7818 | G132: ACT6 | H132: 91126 | I132: Combustion Turbine | M132: Combustion turbine | R132: 0.077
A133: Aurora | B133: Illinois | C133: X | D133: X | E133: X | F133: 55279 | G133: AGS01 | H133: 4407 | I133: Combustion Turbine | M133: Combustion turbine | R133: 0.040
A134: Aurora | B134: Illinois | C134: X | D134: X | E134: X | F134: 55279 | G134: AGS02 | H134: 4409 | I134: Combustion Turbine | M134: Combustion turbine | R134: 0.032
A135: Aurora | B135: Illinois | C135: X | D135: X | E135: X | F135: 55279 | G135: AGS03 | H135: 4410 | I135: Combustion Turbine | M135: Combustion turbine | R135: 0.035
A136: Aurora | B136: Illinois | C136: X | D136: X | E136: X | F136: 55279 | G136: AGS04 | H136: 4411 | I136: Combustion Turbine | M136: Combustion turbine | R136: 0.041
A137: Aurora | B137: Illinois | C137: X | D137: X | E137: X | F137: 55279 | G137: AGS05 | H137: 4412 | I137: Combustion Turbine | M137: Combustion turbine | R137: 0.086
A138: Aurora | B138: Illinois | C138: X | D138: X | E138: X | F138: 55279 | G138: AGS06 | H138: 4413 | I138: Combustion Turbine | M138: Combustion turbine | R138: 0.082
A139: Aurora | B139: Illinois | C139: X | D139: X | E139: X | F139: 55279 | G139: AGS07 | H139: 4414 | I139: Combustion Turbine | M139: Combustion turbine | R139: 0.080
A140: Aurora | B140: Illinois | C140: X | D140: X | E140: X | F140: 55279 | G140: AGS08 | H140: 4415 | I140: Combustion Turbine | M140: Combustion turbine | R140: 0.082
A141: Aurora | B141: Illinois | C141: X | D141: X | E141: X | F141: 55279 | G141: AGS09 | H141: 4416 | I141: Combustion Turbine | M141: Combustion turbine | R141: 0.079
A142: Aurora | B142: Illinois | C142: X | D142: X | E142: X | F142: 55279 | G142: AGS10 | H142: 4408 | I142: Combustion Turbine | M142: Combustion turbine | R142: 0.078
A143: Baldwin Energy Complex | B143: Illinois | C143: X | D143: X | E143: X | F143: 889 | G143: 1 | H143: 611 | I143: Coal Steam | J143: 12 | K143: 2025 | L143: 2026 | M143: Cyclone boiler | N143: Y | Q143: 576 | R143: 0.046 | S143: Y
A144: Baldwin Energy Complex | B144: Illinois | C144: X | D144: X | E144: X | F144: 889 | G144: 2 | H144: 612 | I144: Coal Steam | J144: 12 | K144: 2025 | L144: 2026 | M144: Cyclone boiler | N144: Y | Q144: 581 | R144: 0.063 | S144: Y
A145: Calumet Energy Team, LLC | B145: Illinois | C145: X | D145: X | E145: X | F145: 55296 | G145: **1 | H145: 4469 | I145: Combustion Turbine | M145: Combustion turbine | R145: 0.080
A146: Calumet Energy Team, LLC | B146: Illinois | C146: X | D146: X | E146: X | F146: 55296 | G146: **2 | H146: 4470 | I146: Combustion Turbine | M146: Combustion turbine | R146: 0.083
A147: Cordova Energy Company | B147: Illinois | C147: X | D147: X | E147: X | F147: 55188 | G147: 1 | H147: 4081 | I147: Combined Cycle | M147: Combined cycle | N147: Y | R147: 0.012
A148: Cordova Energy Company | B148: Illinois | C148: X | D148: X | E148: X | F148: 55188 | G148: 2 | H148: 4082 | I148: Combined Cycle | M148: Combined cycle | N148: Y | R148: 0.012
A149: Crete Energy Park | B149: Illinois | C149: X | D149: X | E149: X | F149: 55253 | G149: GT1 | H149: 4339 | I149: Combustion Turbine | M149: Combustion turbine | R149: 0.028
A150: Crete Energy Park | B150: Illinois | C150: X | D150: X | E150: X | F150: 55253 | G150: GT2 | H150: 4340 | I150: Combustion Turbine | M150: Combustion turbine | R150: 0.027
A151: Crete Energy Park | B151: Illinois | C151: X | D151: X | E151: X | F151: 55253 | G151: GT3 | H151: 4341 | I151: Combustion Turbine | M151: Combustion turbine | R151: 0.046
A152: Crete Energy Park | B152: Illinois | C152: X | D152: X | E152: X | F152: 55253 | G152: GT4 | H152: 4342 | I152: Combustion Turbine | M152: Combustion turbine | R152: 0.028
A153: Dallman | B153: Illinois | C153: X | D153: X | E153: X | F153: 963 | G153: 33 | H153: 647 | I153: Coal Steam | J153: 12 | K153: 2020 | L153: 2023 | M153: Tangentially-fired | N153: Y | Q153: 188 | R153: 0.063 | S153: Y
A154: Dallman | B154: Illinois | C154: X | D154: X | E154: X | F154: 963 | G154: 4 | H154: 89910 | I154: Coal Steam | M154: Wet bottom wall-fired boiler | N154: Y | Q154: 208 | R154: 0.058
A155: E D Edwards | B155: Illinois | C155: X | D155: X | E155: X | F155: 856 | G155: 2 | H155: 569 | I155: Coal Steam | J155: 12 | K155: 2022 | L155: 2023 | M155: Dry bottom wall-fired boiler | Q155: 245 | R155: 0.126 | S155: Y
A156: E D Edwards | B156: Illinois | C156: X | D156: X | E156: X | F156: 856 | G156: 3 | H156: 570 | I156: Coal Steam | J156: 12 | K156: 2022 | L156: 2023 | M156: Dry bottom wall-fired boiler | N156: Y | Q156: 315 | R156: 0.080 | S156: Y
A157: Elgin Energy Center, LLC | B157: Illinois | C157: X | D157: X | E157: X | F157: 55438 | G157: CT01 | H157: 4751 | I157: Combustion Turbine | M157: Combustion turbine | R157: 0.053
A158: Elgin Energy Center, LLC | B158: Illinois | C158: X | D158: X | E158: X | F158: 55438 | G158: CT02 | H158: 4752 | I158: Combustion Turbine | M158: Combustion turbine | R158: 0.058
A159: Elgin Energy Center, LLC | B159: Illinois | C159: X | D159: X | E159: X | F159: 55438 | G159: CT03 | H159: 4753 | I159: Combustion Turbine | M159: Combustion turbine | R159: 0.053
A160: Elgin Energy Center, LLC | B160: Illinois | C160: X | D160: X | E160: X | F160: 55438 | G160: CT04 | H160: 4754 | I160: Combustion Turbine | M160: Combustion turbine | R160: 0.062
A161: Elwood Energy Facility | B161: Illinois | C161: X | D161: X | E161: X | F161: 55199 | G161: 1 | H161: 4110 | I161: Combustion Turbine | M161: Combustion turbine | R161: 0.034
A162: Elwood Energy Facility | B162: Illinois | C162: X | D162: X | E162: X | F162: 55199 | G162: 2 | H162: 4116 | I162: Combustion Turbine | M162: Combustion turbine | R162: 0.038
A163: Elwood Energy Facility | B163: Illinois | C163: X | D163: X | E163: X | F163: 55199 | G163: 3 | H163: 4117 | I163: Combustion Turbine | M163: Combustion turbine | R163: 0.037
A164: Elwood Energy Facility | B164: Illinois | C164: X | D164: X | E164: X | F164: 55199 | G164: 4 | H164: 4118 | I164: Combustion Turbine | M164: Combustion turbine | R164: 0.034
A165: Elwood Energy Facility | B165: Illinois | C165: X | D165: X | E165: X | F165: 55199 | G165: 5 | H165: 4119 | I165: Combustion Turbine | M165: Combustion turbine | R165: 0.033
A166: Elwood Energy Facility | B166: Illinois | C166: X | D166: X | E166: X | F166: 55199 | G166: 6 | H166: 4120 | I166: Combustion Turbine | M166: Combustion turbine | R166: 0.031
A167: Elwood Energy Facility | B167: Illinois | C167: X | D167: X | E167: X | F167: 55199 | G167: 7 | H167: 4121 | I167: Combustion Turbine | M167: Combustion turbine | R167: 0.032
A168: Elwood Energy Facility | B168: Illinois | C168: X | D168: X | E168: X | F168: 55199 | G168: 8 | H168: 4122 | I168: Combustion Turbine | M168: Combustion turbine | R168: 0.039
A169: Elwood Energy Facility | B169: Illinois | C169: X | D169: X | E169: X | F169: 55199 | G169: 9 | H169: 4123 | I169: Combustion Turbine | M169: Combustion turbine | R169: 0.033
A170: Factory Gas Turbine | B170: Illinois | C170: X | D170: X | E170: X | F170: 8016 | G170: 2 | H170: 9200 | I170: Combustion Turbine | M170: Combustion turbine | R170: 1.200
A171: Fisk | B171: Illinois | C171: X | D171: X | E171: X | F171: 886 | G171: 311 | H171: 9165 | I171: Combustion Turbine | J171: 12 | K171: 2029 | L171: 2030 | M171: Combustion turbine | R171: 1.200
A172: Fisk | B172: Illinois | C172: X | D172: X | E172: X | F172: 886 | G172: 312 | H172: 9166 | I172: Combustion Turbine | J172: 12 | K172: 2029 | L172: 2030 | M172: Combustion turbine | R172: 1.200
A173: Fisk | B173: Illinois | C173: X | D173: X | E173: X | F173: 886 | G173: 321 | H173: 9167 | I173: Combustion Turbine | J173: 12 | K173: 2029 | L173: 2030 | M173: Combustion turbine | R173: 1.200
A174: Fisk | B174: Illinois | C174: X | D174: X | E174: X | F174: 886 | G174: 322 | H174: 9168 | I174: Combustion Turbine | J174: 12 | K174: 2029 | L174: 2030 | M174: Combustion turbine | R174: 1.200
A175: Fisk | B175: Illinois | C175: X | D175: X | E175: X | F175: 886 | G175: 331 | H175: 9169 | I175: Combustion Turbine | J175: 12 | K175: 2029 | L175: 2030 | M175: Combustion turbine | R175: 1.200
A176: Fisk | B176: Illinois | C176: X | D176: X | E176: X | F176: 886 | G176: 332 | H176: 9170 | I176: Combustion Turbine | J176: 12 | K176: 2029 | L176: 2030 | M176: Combustion turbine | R176: 1.200
A177: Fisk | B177: Illinois | C177: X | D177: X | E177: X | F177: 886 | G177: 341 | H177: 9171 | I177: Combustion Turbine | M177: Combustion turbine | R177: 0.011 | S177: Y
A178: Fisk | B178: Illinois | C178: X | D178: X | E178: X | F178: 886 | G178: 342 | H178: 9172 | I178: Combustion Turbine | J178: 12 | K178: 2029 | L178: 2030 | M178: Combustion turbine | R178: 1.199
A179: Freedom Power Project | B179: Illinois | C179: X | D179: X | E179: X | F179: 7842 | G179: CT1 | H179: 3293 | I179: Combustion Turbine | M179: Combustion turbine | R179: 0.095
A180: Gibson City Energy Center, LLC | B180: Illinois | C180: X | D180: X | E180: X | F180: 55201 | G180: GCTG1 | H180: 4126 | I180: Combustion Turbine | M180: Combustion turbine | R180: 0.065
A181: Gibson City Energy Center, LLC | B181: Illinois | C181: X | D181: X | E181: X | F181: 55201 | G181: GCTG2 | H181: 4127 | I181: Combustion Turbine | M181: Combustion turbine | R181: 0.064
A182: Goose Creek Power Plant | B182: Illinois | C182: X | D182: X | E182: X | F182: 55496 | G182: CT-01 | H182: 10123 | I182: Combustion Turbine | M182: Combustion turbine | R182: 0.021
A183: Goose Creek Power Plant | B183: Illinois | C183: X | D183: X | E183: X | F183: 55496 | G183: CT-02 | H183: 10124 | I183: Combustion Turbine | M183: Combustion turbine | R183: 0.023
A184: Goose Creek Power Plant | B184: Illinois | C184: X | D184: X | E184: X | F184: 55496 | G184: CT-03 | H184: 10125 | I184: Combustion Turbine | M184: Combustion turbine | R184: 0.018
A185: Goose Creek Power Plant | B185: Illinois | C185: X | D185: X | E185: X | F185: 55496 | G185: CT-04 | H185: 10126 | I185: Combustion Turbine | M185: Combustion turbine | R185: 0.023
A186: Goose Creek Power Plant | B186: Illinois | C186: X | D186: X | E186: X | F186: 55496 | G186: CT-05 | H186: 10127 | I186: Combustion Turbine | M186: Combustion turbine | R186: 0.022
A187: Goose Creek Power Plant | B187: Illinois | C187: X | D187: X | E187: X | F187: 55496 | G187: CT-06 | H187: 10128 | I187: Combustion Turbine | M187: Combustion turbine | R187: 0.019
A188: Grand Tower Energy Center, LLC | B188: Illinois | C188: X | D188: X | E188: X | F188: 862 | G188: CT01 | H188: 578 | I188: Combined Cycle | M188: Combined cycle | R188: 0.070 | S188: Y
A189: Grand Tower Energy Center, LLC | B189: Illinois | C189: X | D189: X | E189: X | F189: 862 | G189: CT02 | H189: 579 | I189: Combined Cycle | M189: Combined cycle | R189: 0.074 | S189: Y
A190: Holland Energy Facility | B190: Illinois | C190: X | D190: X | E190: X | F190: 55334 | G190: CTG1 | H190: 4508 | I190: Combined Cycle | M190: Combined cycle | N190: Y | R190: 0.012
A191: Holland Energy Facility | B191: Illinois | C191: X | D191: X | E191: X | F191: 55334 | G191: CTG2 | H191: 4509 | I191: Combined Cycle | M191: Combined cycle | N191: Y | R191: 0.012
A192: Interstate | B192: Illinois | C192: X | D192: X | E192: X | F192: 7425 | G192: 1 | H192: 3116 | I192: Combustion Turbine | M192: Combustion turbine | R192: 0.164 | S192: Y
A193: Joliet 29 | B193: Illinois | C193: X | D193: X | E193: X | F193: 384 | G193: 71 | H193: 250 | I193: O/G Steam | J193: 6 | K193: 2023 | L193: 2024 | M193: Tangentially-fired | O193: Y | P193: Y | Q193: 259 | R193: 0.079 | S193: Y
A194: Joliet 29 | B194: Illinois | C194: X | D194: X | E194: X | F194: 384 | G194: 72 | H194: 251 | I194: O/G Steam | J194: 6 | K194: 2023 | L194: 2024 | M194: Tangentially-fired | O194: Y | P194: Y | Q194: 259 | R194: 0.080 | S194: Y
A195: Joliet 29 | B195: Illinois | C195: X | D195: X | E195: X | F195: 384 | G195: 81 | H195: 252 | I195: O/G Steam | J195: 6 | K195: 2023 | L195: 2024 | M195: Tangentially-fired | O195: Y | P195: Y | Q195: 259 | R195: 0.092 | S195: Y
A196: Joliet 29 | B196: Illinois | C196: X | D196: X | E196: X | F196: 384 | G196: 82 | H196: 253 | I196: O/G Steam | J196: 6 | K196: 2023 | L196: 2024 | M196: Tangentially-fired | O196: Y | P196: Y | Q196: 259 | R196: 0.092 | S196: Y
A197: Joliet 9 | B197: Illinois | C197: X | D197: X | E197: X | F197: 874 | G197: 5 | H197: 590 | I197: O/G Steam | J197: 6 | K197: 2023 | L197: 2024 | M197: Cyclone boiler | O197: Y | Q197: 314 | R197: 0.086 | S197: Y
A198: Joppa Steam | B198: Illinois | C198: X | D198: X | E198: X | F198: 887 | G198: 1 | H198: 605 | I198: Coal Steam | J198: 8 | K198: 2022 | L198: 2023 | M198: Tangentially-fired | P198: Y | Q198: 162 | R198: 0.087 | S198: Y
A199: Joppa Steam | B199: Illinois | C199: X | D199: X | E199: X | F199: 887 | G199: 2 | H199: 606 | I199: Coal Steam | J199: 8 | K199: 2022 | L199: 2023 | M199: Tangentially-fired | P199: Y | Q199: 158 | R199: 0.087 | S199: Y
A200: Joppa Steam | B200: Illinois | C200: X | D200: X | E200: X | F200: 887 | G200: 3 | H200: 607 | I200: Coal Steam | J200: 8 | K200: 2022 | L200: 2023 | M200: Tangentially-fired | P200: Y | Q200: 161 | R200: 0.082 | S200: Y
... 2237 more rows

Sheet Dynamic Budget Template (2027+)
A1: Likely Inventory of Affected Units | R1: Dynamic Budget Steps
R2: Step 1 | T2: Step 2 (Identify heat input values for ozone season in years 2 through 6 years prior to budget year) | Y2: Step 3 - Take average of three highest heat input values from five year baseline at Step 2 | Z2: Step 4 - Divide Step 3 unit value into state-level total from Step 3 | AA2: Step 5 - Identify state-level heat input average from latest 3 years and determine average | AE2: Step 6 - Multiply Step 4 value by Step 5 value (column AD) | AF2: Step 7 - Multiply Step 6 value by Step 1 value (divide by 2000 to convert to tons) | AI2: Sum Column AF
A3: Facility | B3: State | C3: RCU State | D3: 2023 EGU control strategy | E3: 2026 EGU control strategy | F3: ORIS | G3: Boiler | H3: CAMD ID | I3: Plant Type | J3: Retirement Month Check | K3: Retirement Year Check | L3: Retired Before EA Year | M3: Unit Type | N3: Existing SCR | O3: Existing SNCR | P3: Common Stack | Q3: Capacity (MW) | R3: Emission Rate (lb/mmBtu) | S3: Substitute Data Flag | T3: Heat Input (2021) (mmBtu) | U3: Heat Input (2022) (mmBtu) | V3: Heat Input (2023) (mmBtu) | W3: Heat Input (2024) (mmBtu) | X3: Heat Input (2025) (mmBtu) | Y3: Representative Unit-Level Heat Input (mmBtu) | Z3: Representative Unit-Level Percent of State Total | AA3: State-Level Heat Input (2023) (mmBtu) | AB3: State-Level Heat Input (2024) (mmBtu) | AC3: State-Level Heat Input (2025) (mmBtu) | AD3: Representative State Level Heat Input (mmBtu) | AE3: Normalized Unit-Level Heat Input (mmBtu) | AF3: Emissions (tons) | AH3: State | AI3: Dynamic Budget
A4: AMEA Sylacauga Plant | B4: Alabama | D4: X | F4: 56018 | G4: 1 | H4: 89313 | I4: Combustion Turbine | M4: Combustion turbine | R4: 0.084 | AH4: Alabama
A5: AMEA Sylacauga Plant | B5: Alabama | D5: X | F5: 56018 | G5: 2 | H5: 89314 | I5: Combustion Turbine | M5: Combustion turbine | R5: 0.085 | AH5: Arkansas
A6: Barry | B6: Alabama | D6: X | F6: 3 | G6: 1 | H6: 1 | I6: O/G Steam | M6: Tangentially-fired | O6: Y | P6: Y | Q6: 56 | R6: 0.057 | S6: Y | AH6: Illinois
A7: Barry | B7: Alabama | D7: X | F7: 3 | G7: 2 | H7: 2 | I7: O/G Steam | M7: Tangentially-fired | O7: Y | P7: Y | Q7: 56 | R7: 0.061 | S7: Y | AH7: Indiana
A8: Barry | B8: Alabama | D8: X | F8: 3 | G8: 4 | H8: 4 | I8: O/G Steam | M8: Tangentially-fired | O8: Y | Q8: 362 | R8: 0.135 | AH8: Kentucky
A9: Barry | B9: Alabama | D9: X | F9: 3 | G9: 5 | H9: 5 | I9: Coal Steam | J9: 12 | K9: 2028 | L9: 2029 | M9: Tangentially-fired | N9: Y | Q9: 756 | R9: 0.068 | AH9: Louisiana
A10: Barry | B10: Alabama | D10: X | F10: 3 | G10: 6A | H10: 6 | I10: Combined Cycle | M10: Combined cycle | N10: Y | R10: 0.009 | AH10: Maryland
A11: Barry | B11: Alabama | D11: X | F11: 3 | G11: 6B | H11: 7 | I11: Combined Cycle | M11: Combined cycle | N11: Y | R11: 0.009 | AH11: Michigan
A12: Barry | B12: Alabama | D12: X | F12: 3 | G12: 7A | H12: 8 | I12: Combined Cycle | M12: Combined cycle | N12: Y | R12: 0.009 | AH12: Minnesota
A13: Barry | B13: Alabama | D13: X | F13: 3 | G13: 7B | H13: 9 | I13: Combined Cycle | M13: Combined cycle | N13: Y | R13: 0.008 | AH13: Mississippi
A14: Calhoun Generating Facility | B14: Alabama | D14: X | F14: 55409 | G14: CT1 | H14: 4688 | I14: Combustion Turbine | M14: Combustion turbine | R14: 0.033 | AH14: Missouri
A15: Calhoun Generating Facility | B15: Alabama | D15: X | F15: 55409 | G15: CT2 | H15: 4689 | I15: Combustion Turbine | M15: Combustion turbine | R15: 0.035 | AH15: Nevada
A16: Calhoun Generating Facility | B16: Alabama | D16: X | F16: 55409 | G16: CT3 | H16: 4690 | I16: Combustion Turbine | M16: Combustion turbine | R16: 0.036 | AH16: New Jersey
A17: Calhoun Generating Facility | B17: Alabama | D17: X | F17: 55409 | G17: CT4 | H17: 4691 | I17: Combustion Turbine | M17: Combustion turbine | R17: 0.033 | AH17: New York
A18: Central Alabama Gen Station | B18: Alabama | D18: X | F18: 55440 | G18: CTGDB1 | H18: 4758 | I18: Combined Cycle | M18: Combined cycle | N18: Y | R18: 0.009 | AH18: Ohio
A19: Central Alabama Gen Station | B19: Alabama | D19: X | F19: 55440 | G19: CTGDB2 | H19: 4759 | I19: Combined Cycle | M19: Combined cycle | N19: Y | R19: 0.008 | AH19: Oklahoma
A20: Central Alabama Gen Station | B20: Alabama | D20: X | F20: 55440 | G20: CTGDB3 | H20: 4760 | I20: Combined Cycle | M20: Combined cycle | N20: Y | R20: 0.008 | AH20: Pennsylvania
A21: Colbert | B21: Alabama | D21: X | F21: 47 | G21: CCT1 | H21: 88150 | I21: Combustion Turbine | M21: Combustion turbine | R21: 0.409 | AH21: Texas
A22: Colbert | B22: Alabama | D22: X | F22: 47 | G22: CCT2 | H22: 88151 | I22: Combustion Turbine | M22: Combustion turbine | R22: 0.409 | AH22: Utah
A23: Colbert | B23: Alabama | D23: X | F23: 47 | G23: CCT3 | H23: 88152 | I23: Combustion Turbine | M23: Combustion turbine | R23: 0.403 | AH23: Virginia
A24: Colbert | B24: Alabama | D24: X | F24: 47 | G24: CCT4 | H24: 88153 | I24: Combustion Turbine | M24: Combustion turbine | R24: 0.400 | AH24: West Virginia
A25: Colbert | B25: Alabama | D25: X | F25: 47 | G25: CCT5 | H25: 88154 | I25: Combustion Turbine | M25: Combustion turbine | R25: 0.402 | AH25: Wisconsin
A26: Colbert | B26: Alabama | D26: X | F26: 47 | G26: CCT6 | H26: 88155 | I26: Combustion Turbine | M26: Combustion turbine | R26: 0.402
A27: Colbert | B27: Alabama | D27: X | F27: 47 | G27: CCT7 | H27: 88156 | I27: Combustion Turbine | M27: Combustion turbine | R27: 0.402
A28: Colbert | B28: Alabama | D28: X | F28: 47 | G28: CCT8 | H28: 88157 | I28: Combustion Turbine | M28: Combustion turbine | R28: 0.402
A29: Decatur Energy Center | B29: Alabama | D29: X | F29: 55292 | G29: CTG-1 | H29: 4459 | I29: Combined Cycle | M29: Combined cycle | N29: Y | R29: 0.011
A30: Decatur Energy Center | B30: Alabama | D30: X | F30: 55292 | G30: CTG-2 | H30: 4460 | I30: Combined Cycle | M30: Combined cycle | N30: Y | R30: 0.011
A31: Decatur Energy Center | B31: Alabama | D31: X | F31: 55292 | G31: CTG-3 | H31: 4461 | I31: Combined Cycle | M31: Combined cycle | N31: Y | R31: 0.012
A32: E B Harris Generating Plant | B32: Alabama | D32: X | F32: 7897 | G32: 1A | H32: 3355 | I32: Combined Cycle | M32: Combined cycle | N32: Y | R32: 0.012
A33: E B Harris Generating Plant | B33: Alabama | D33: X | F33: 7897 | G33: 1B | H33: 3356 | I33: Combined Cycle | M33: Combined cycle | N33: Y | R33: 0.010
A34: E B Harris Generating Plant | B34: Alabama | D34: X | F34: 7897 | G34: 2A | H34: 3357 | I34: Combined Cycle | M34: Combined cycle | N34: Y | R34: 0.008
A35: E B Harris Generating Plant | B35: Alabama | D35: X | F35: 7897 | G35: 2B | H35: 3358 | I35: Combined Cycle | M35: Combined cycle | N35: Y | R35: 0.008
A36: E C Gaston | B36: Alabama | D36: X | F36: 26 | G36: 1 | H36: 30 | I36: O/G Steam | M36: Dry bottom wall-fired boiler | P36: Y | Q36: 254 | R36: 0.093
A37: E C Gaston | B37: Alabama | D37: X | F37: 26 | G37: 2 | H37: 31 | I37: O/G Steam | M37: Dry bottom wall-fired boiler | P37: Y | Q37: 256 | R37: 0.097
A38: E C Gaston | B38: Alabama | D38: X | F38: 26 | G38: 3 | H38: 32 | I38: O/G Steam | M38: Dry bottom wall-fired boiler | P38: Y | Q38: 254 | R38: 0.105
A39: E C Gaston | B39: Alabama | D39: X | F39: 26 | G39: 4 | H39: 33 | I39: O/G Steam | M39: Dry bottom wall-fired boiler | P39: Y | Q39: 256 | R39: 0.110
A40: E C Gaston | B40: Alabama | D40: X | F40: 26 | G40: 5 | H40: 34 | I40: Coal Steam | M40: Tangentially-fired | N40: Y | Q40: 832 | R40: 0.080
A41: Gadsden | B41: Alabama | D41: X | F41: 7 | G41: 1 | H41: 11 | I41: O/G Steam | J41: 1 | K41: 2023 | L41: 2023 | M41: Tangentially-fired | P41: Y | Q41: 64 | R41: 0.118 | S41: Y
A42: Gadsden | B42: Alabama | D42: X | F42: 7 | G42: 2 | H42: 12 | I42: O/G Steam | J42: 1 | K42: 2023 | L42: 2023 | M42: Tangentially-fired | P42: Y | Q42: 66 | R42: 0.099 | S42: Y
A43: Greene County | B43: Alabama | D43: X | F43: 10 | G43: 1 | H43: 19 | I43: O/G Steam | J43: 12 | K43: 2025 | L43: 2026 | M43: Cell burner boiler | P43: Y | Q43: 258 | R43: 0.114 | S43: Y
A44: Greene County | B44: Alabama | D44: X | F44: 10 | G44: 2 | H44: 20 | I44: O/G Steam | J44: 12 | K44: 2026 | L44: 2027 | M44: Dry bottom wall-fired boiler | P44: Y | Q44: 258 | R44: 0.118 | S44: Y
A45: Greene County | B45: Alabama | D45: X | F45: 10 | G45: CT10 | H45: 21 | I45: Combustion Turbine | M45: Combustion turbine | R45: 0.090
A46: Greene County | B46: Alabama | D46: X | F46: 10 | G46: CT2 | H46: 22 | I46: Combustion Turbine | M46: Combustion turbine | R46: 0.074
A47: Greene County | B47: Alabama | D47: X | F47: 10 | G47: CT3 | H47: 23 | I47: Combustion Turbine | M47: Combustion turbine | R47: 0.064
A48: Greene County | B48: Alabama | D48: X | F48: 10 | G48: CT4 | H48: 24 | I48: Combustion Turbine | M48: Combustion turbine | R48: 0.077
A49: Greene County | B49: Alabama | D49: X | F49: 10 | G49: CT5 | H49: 25 | I49: Combustion Turbine | M49: Combustion turbine | R49: 0.062
A50: Greene County | B50: Alabama | D50: X | F50: 10 | G50: CT6 | H50: 26 | I50: Combustion Turbine | M50: Combustion turbine | R50: 0.067
A51: Greene County | B51: Alabama | D51: X | F51: 10 | G51: CT7 | H51: 27 | I51: Combustion Turbine | M51: Combustion turbine | R51: 0.076
A52: Greene County | B52: Alabama | D52: X | F52: 10 | G52: CT8 | H52: 28 | I52: Combustion Turbine | M52: Combustion turbine | R52: 0.073
A53: Greene County | B53: Alabama | D53: X | F53: 10 | G53: CT9 | H53: 29 | I53: Combustion Turbine | M53: Combustion turbine | R53: 0.061
A54: Hillabee Energy Center | B54: Alabama | D54: X | F54: 55411 | G54: CT1 | H54: 4695 | I54: Combined Cycle | M54: Combined cycle | N54: Y | R54: 0.007
A55: Hillabee Energy Center | B55: Alabama | D55: X | F55: 55411 | G55: CT2 | H55: 4696 | I55: Combined Cycle | M55: Combined cycle | N55: Y | R55: 0.007
A56: Hog Bayou Energy Center | B56: Alabama | D56: X | F56: 55241 | G56: COG01 | H56: 4286 | I56: Combined Cycle | M56: Combined cycle | N56: Y | R56: 0.008
A57: James H Miller Jr | B57: Alabama | D57: X | F57: 6002 | G57: 1 | H57: 2669 | I57: Coal Steam | M57: Dry bottom wall-fired boiler | N57: Y | Q57: 688 | R57: 0.070
A58: James H Miller Jr | B58: Alabama | D58: X | F58: 6002 | G58: 2 | H58: 2670 | I58: Coal Steam | M58: Dry bottom wall-fired boiler | N58: Y | Q58: 695 | R58: 0.066
A59: James H Miller Jr | B59: Alabama | D59: X | F59: 6002 | G59: 3 | H59: 2671 | I59: Coal Steam | M59: Dry bottom wall-fired boiler | N59: Y | Q59: 687 | R59: 0.072
A60: James H Miller Jr | B60: Alabama | D60: X | F60: 6002 | G60: 4 | H60: 2672 | I60: Coal Steam | M60: Dry bottom wall-fired boiler | N60: Y | Q60: 699 | R60: 0.059
A61: McIntosh (7063) | B61: Alabama | D61: X | F61: 7063 | G61: **1 | H61: 2924 | I61: Combustion Turbine | M61: Other turbine | R61: 0.224
A62: McIntosh (7063) | B62: Alabama | D62: X | F62: 7063 | G62: **2 | H62: 2925 | I62: Combustion Turbine | M62: Combustion turbine | R62: 0.063
A63: McIntosh (7063) | B63: Alabama | D63: X | F63: 7063 | G63: **3 | H63: 2926 | I63: Combustion Turbine | M63: Combustion turbine | R63: 0.060
A64: McIntosh (7063) | B64: Alabama | D64: X | F64: 7063 | G64: **4 | H64: 90423 | I64: Combustion Turbine | M64: Combustion turbine | R64: 0.035
A65: McIntosh (7063) | B65: Alabama | D65: X | F65: 7063 | G65: **5 | H65: 90424 | I65: Combustion Turbine | M65: Combustion turbine | R65: 0.034
A66: McWilliams | B66: Alabama | D66: X | F66: 533 | G66: **4 | H66: 320 | I66: Combined Cycle | M66: Combined cycle | R66: 0.039
A67: McWilliams | B67: Alabama | D67: X | F67: 533 | G67: **V1 | H67: 324 | I67: Combined Cycle | M67: Combined cycle | N67: Y | R67: 0.011
A68: McWilliams | B68: Alabama | D68: X | F68: 533 | G68: **V2 | H68: 325 | I68: Combined Cycle | M68: Combined cycle | N68: Y | R68: 0.011
A69: Morgan Energy Center | B69: Alabama | D69: X | F69: 55293 | G69: CT-1 | H69: 4462 | I69: Combined Cycle | M69: Combined cycle | N69: Y | R69: 0.005
A70: Morgan Energy Center | B70: Alabama | D70: X | F70: 55293 | G70: CT-2 | H70: 4463 | I70: Combined Cycle | M70: Combined cycle | N70: Y | R70: 0.007
A71: Morgan Energy Center | B71: Alabama | D71: X | F71: 55293 | G71: CT-3 | H71: 4464 | I71: Combined Cycle | M71: Combined cycle | N71: Y | R71: 0.007
A72: Plant H. Allen Franklin | B72: Alabama | D72: X | F72: 7710 | G72: 1A | H72: 3285 | I72: Combined Cycle | M72: Combined cycle | N72: Y | R72: 0.009
A73: Plant H. Allen Franklin | B73: Alabama | D73: X | F73: 7710 | G73: 1B | H73: 3286 | I73: Combined Cycle | M73: Combined cycle | N73: Y | R73: 0.009
A74: Plant H. Allen Franklin | B74: Alabama | D74: X | F74: 7710 | G74: 2A | H74: 3287 | I74: Combined Cycle | M74: Combined cycle | N74: Y | R74: 0.009
A75: Plant H. Allen Franklin | B75: Alabama | D75: X | F75: 7710 | G75: 2B | H75: 3288 | I75: Combined Cycle | M75: Combined cycle | N75: Y | R75: 0.009
A76: Plant H. Allen Franklin | B76: Alabama | D76: X | F76: 7710 | G76: 3A | H76: 3289 | I76: Combined Cycle | M76: Combined cycle | N76: Y | R76: 0.008
A77: Plant H. Allen Franklin | B77: Alabama | D77: X | F77: 7710 | G77: 3B | H77: 3290 | I77: Combined Cycle | M77: Combined cycle | N77: Y | R77: 0.010
A78: SABIC Innovative Plastics - Burkville | B78: Alabama | D78: X | F78: 7698 | G78: CC1 | H78: 3140 | I78: Combined Cycle | M78: Combined cycle | R78: 0.027
A79: Tenaska Lindsay Hill Generating Station | B79: Alabama | D79: X | F79: 55271 | G79: CT1 | H79: 4383 | I79: Combined Cycle | M79: Combined cycle | N79: Y | R79: 0.011
A80: Tenaska Lindsay Hill Generating Station | B80: Alabama | D80: X | F80: 55271 | G80: CT2 | H80: 4384 | I80: Combined Cycle | M80: Combined cycle | N80: Y | R80: 0.011
A81: Tenaska Lindsay Hill Generating Station | B81: Alabama | D81: X | F81: 55271 | G81: CT3 | H81: 4385 | I81: Combined Cycle | M81: Combined cycle | N81: Y | R81: 0.007
A82: Theodore Cogeneration | B82: Alabama | D82: X | F82: 7721 | G82: CC1 | H82: 3151 | I82: Combined Cycle | M82: Combined cycle | N82: Y | R82: 0.007
A83: Walton Discover Power Facility | B83: Alabama | D83: X | F83: 55138 | G83: 1A | H83: 88304 | I83: Combustion Turbine | M83: Combustion turbine | R83: 0.255 | S83: Y
A84: Walton Discover Power Facility | B84: Alabama | D84: X | F84: 55138 | G84: 1B | H84: 88305 | I84: Combustion Turbine | M84: Combustion turbine | R84: 0.533 | S84: Y
A85: Walton Discover Power Facility | B85: Alabama | D85: X | F85: 55138 | G85: 2A | H85: 88306 | I85: Combustion Turbine | M85: Combustion turbine | R85: 0.320 | S85: Y
A86: Walton Discover Power Facility | B86: Alabama | D86: X | F86: 55138 | G86: 2B | H86: 88307 | I86: Combustion Turbine | M86: Combustion turbine | R86: 0.241 | S86: Y
A87: Washington County Cogen (Olin) | B87: Alabama | D87: X | F87: 7697 | G87: CC1 | H87: 3139 | I87: Combined Cycle | M87: Combined cycle | R87: 0.025
A88: Carl Bailey | B88: Arkansas | D88: X | E88: X | F88: 202 | G88: 01 | H88: 111 | I88: O/G Steam | M88: Dry bottom wall-fired boiler | Q88: 122 | R88: 0.179 | S88: Y
A89: City Water & Light - City of Jonesboro | B89: Arkansas | D89: X | E89: X | F89: 56505 | G89: SN04 | H89: 89827 | I89: Combustion Turbine | M89: Combustion turbine | R89: 0.087
A90: City Water & Light - City of Jonesboro | B90: Arkansas | D90: X | E90: X | F90: 56505 | G90: SN06 | H90: 89828 | I90: Combustion Turbine | M90: Combustion turbine | R90: 0.113
A91: City Water & Light - City of Jonesboro | B91: Arkansas | D91: X | E91: X | F91: 56505 | G91: SN07 | H91: 89829 | I91: Combustion Turbine | M91: Combustion turbine | R91: 0.083
A92: Dell Power Plant | B92: Arkansas | D92: X | E92: X | F92: 55340 | G92: 1 | H92: 4517 | I92: Combined Cycle | M92: Combined cycle | N92: Y | R92: 0.008
A93: Dell Power Plant | B93: Arkansas | D93: X | E93: X | F93: 55340 | G93: 2 | H93: 4518 | I93: Combined Cycle | M93: Combined cycle | N93: Y | R93: 0.009
A94: Flint Creek Power Plant | B94: Arkansas | D94: X | E94: X | F94: 6138 | G94: 1 | H94: 2800 | I94: Coal Steam | M94: Dry bottom wall-fired boiler | Q94: 528 | R94: 0.050
A95: Fulton | B95: Arkansas | D95: X | E95: X | F95: 7825 | G95: CT1 | H95: 3247 | I95: Combustion Turbine | M95: Combustion turbine | R95: 0.054
A96: Harry D. Mattison Power Plant | B96: Arkansas | D96: X | E96: X | F96: 56328 | G96: 1 | H96: 89740 | I96: Combustion Turbine | M96: Combustion turbine | R96: 0.063
A97: Harry D. Mattison Power Plant | B97: Arkansas | D97: X | E97: X | F97: 56328 | G97: 2 | H97: 89741 | I97: Combustion Turbine | M97: Combustion turbine | R97: 0.054
A98: Harry D. Mattison Power Plant | B98: Arkansas | D98: X | E98: X | F98: 56328 | G98: 3 | H98: 91249 | I98: Combustion Turbine | M98: Combustion turbine | R98: 0.093
A99: Harry D. Mattison Power Plant | B99: Arkansas | D99: X | E99: X | F99: 56328 | G99: 4 | H99: 91250 | I99: Combustion Turbine | M99: Combustion turbine | R99: 0.100
A100: Hot Spring Energy Facility | B100: Arkansas | D100: X | E100: X | F100: 55418 | G100: CT-1 | H100: 4705 | I100: Combined Cycle | M100: Combined cycle | N100: Y | R100: 0.012
A101: Hot Spring Energy Facility | B101: Arkansas | D101: X | E101: X | F101: 55418 | G101: CT-2 | H101: 4706 | I101: Combined Cycle | M101: Combined cycle | N101: Y | R101: 0.011
A102: Independence | B102: Arkansas | D102: X | E102: X | F102: 6641 | G102: 1 | H102: 2898 | I102: Coal Steam | M102: Tangentially-fired | Q102: 809 | R102: 0.050
A103: Independence | B103: Arkansas | D103: X | E103: X | F103: 6641 | G103: 2 | H103: 2899 | I103: Coal Steam | M103: Tangentially-fired | Q103: 842 | R103: 0.050
A104: John W. Turk Jr. Power Plant | B104: Arkansas | D104: X | E104: X | F104: 56564 | G104: SN-01 | H104: 90325 | I104: Coal Steam | M104: Dry bottom wall-fired boiler | N104: Y | Q104: 609 | R104: 0.044
A105: Lake Catherine | B105: Arkansas | D105: X | E105: X | F105: 170 | G105: 4 | H105: 107 | I105: O/G Steam | J105: 6 | K105: 2025 | L105: 2026 | M105: Dry bottom wall-fired boiler | Q105: 522 | R105: 0.030 | S105: Y
A106: Magnet Cove Generating Station | B106: Arkansas | D106: X | E106: X | F106: 55714 | G106: SN-01 | H106: 9298 | I106: Combined Cycle | M106: Combined cycle | N106: Y | R106: 0.012
A107: Magnet Cove Generating Station | B107: Arkansas | D107: X | E107: X | F107: 55714 | G107: SN-02 | H107: 9299 | I107: Combined Cycle | M107: Combined cycle | N107: Y | R107: 0.012
A108: McClellan | B108: Arkansas | D108: X | E108: X | F108: 203 | G108: 01 | H108: 112 | I108: O/G Steam | M108: Dry bottom wall-fired boiler | Q108: 134 | R108: 0.201
A109: Oswald Generating Station | B109: Arkansas | D109: X | E109: X | F109: 55221 | G109: G1 | H109: 4167 | I109: Combined Cycle | M109: Combined cycle | R109: 0.124
A110: Oswald Generating Station | B110: Arkansas | D110: X | E110: X | F110: 55221 | G110: G2 | H110: 4168 | I110: Combined Cycle | M110: Combined cycle | R110: 0.109
A111: Oswald Generating Station | B111: Arkansas | D111: X | E111: X | F111: 55221 | G111: G3 | H111: 4169 | I111: Combined Cycle | M111: Combined cycle | R111: 0.113
A112: Oswald Generating Station | B112: Arkansas | D112: X | E112: X | F112: 55221 | G112: G4 | H112: 4170 | I112: Combined Cycle | M112: Combined cycle | R112: 0.117
A113: Oswald Generating Station | B113: Arkansas | D113: X | E113: X | F113: 55221 | G113: G5 | H113: 4171 | I113: Combined Cycle | M113: Combined cycle | R113: 0.116
A114: Oswald Generating Station | B114: Arkansas | D114: X | E114: X | F114: 55221 | G114: G6 | H114: 4172 | I114: Combined Cycle | M114: Combined cycle | R114: 0.113
A115: Oswald Generating Station | B115: Arkansas | D115: X | E115: X | F115: 55221 | G115: G7 | H115: 4173 | I115: Combined Cycle | M115: Combined cycle | R115: 0.066
A116: Pine Bluff Energy Center | B116: Arkansas | D116: X | E116: X | F116: 55075 | G116: CT-1 | H116: 3855 | I116: Combined Cycle | M116: Combined cycle | R116: 0.044
A117: Plum Point Energy Station | B117: Arkansas | D117: X | E117: X | F117: 56456 | G117: 1 | H117: 90208 | I117: Coal Steam | M117: Dry bottom wall-fired boiler | N117: Y | Q117: 680 | R117: 0.080
A118: Thomas Fitzhugh | B118: Arkansas | D118: X | E118: X | F118: 201 | G118: 2 | H118: 88375 | I118: Combined Cycle | M118: Combined cycle | R118: 0.068
A119: Union Power Station | B119: Arkansas | D119: X | E119: X | F119: 55380 | G119: CTG-1 | H119: 4590 | I119: Combined Cycle | M119: Combined cycle | N119: Y | R119: 0.012
A120: Union Power Station | B120: Arkansas | D120: X | E120: X | F120: 55380 | G120: CTG-2 | H120: 4592 | I120: Combined Cycle | M120: Combined cycle | N120: Y | R120: 0.012
A121: Union Power Station | B121: Arkansas | D121: X | E121: X | F121: 55380 | G121: CTG-3 | H121: 4593 | I121: Combined Cycle | M121: Combined cycle | N121: Y | R121: 0.012
A122: Union Power Station | B122: Arkansas | D122: X | E122: X | F122: 55380 | G122: CTG-4 | H122: 4594 | I122: Combined Cycle | M122: Combined cycle | N122: Y | R122: 0.011
A123: Union Power Station | B123: Arkansas | D123: X | E123: X | F123: 55380 | G123: CTG-5 | H123: 4595 | I123: Combined Cycle | M123: Combined cycle | N123: Y | R123: 0.012
A124: Union Power Station | B124: Arkansas | D124: X | E124: X | F124: 55380 | G124: CTG-6 | H124: 4596 | I124: Combined Cycle | M124: Combined cycle | N124: Y | R124: 0.012
A125: Union Power Station | B125: Arkansas | D125: X | E125: X | F125: 55380 | G125: CTG-7 | H125: 4597 | I125: Combined Cycle | M125: Combined cycle | N125: Y | R125: 0.012
A126: Union Power Station | B126: Arkansas | D126: X | E126: X | F126: 55380 | G126: CTG-8 | H126: 4598 | I126: Combined Cycle | M126: Combined cycle | N126: Y | R126: 0.012
A127: White Bluff | B127: Arkansas | D127: X | E127: X | F127: 6009 | G127: 1 | H127: 2675 | I127: Coal Steam | M127: Tangentially-fired | Q127: 818 | R127: 0.050
A128: White Bluff | B128: Arkansas | D128: X | E128: X | F128: 6009 | G128: 2 | H128: 2676 | I128: Coal Steam | M128: Tangentially-fired | Q128: 819 | R128: 0.050
A129: Alsey Station | B129: Illinois | C129: X | D129: X | E129: X | F129: 7818 | G129: ACT1 | H129: 89336 | I129: Combustion Turbine | M129: Combustion turbine | R129: 0.191
A130: Alsey Station | B130: Illinois | C130: X | D130: X | E130: X | F130: 7818 | G130: ACT2 | H130: 89337 | I130: Combustion Turbine | M130: Combustion turbine | R130: 0.211
A131: Alsey Station | B131: Illinois | C131: X | D131: X | E131: X | F131: 7818 | G131: ACT5 | H131: 89338 | I131: Combustion Turbine | M131: Combustion turbine | R131: 0.292
A132: Alsey Station | B132: Illinois | C132: X | D132: X | E132: X | F132: 7818 | G132: ACT6 | H132: 91126 | I132: Combustion Turbine | M132: Combustion turbine | R132: 0.077
A133: Aurora | B133: Illinois | C133: X | D133: X | E133: X | F133: 55279 | G133: AGS01 | H133: 4407 | I133: Combustion Turbine | M133: Combustion turbine | R133: 0.040
A134: Aurora | B134: Illinois | C134: X | D134: X | E134: X | F134: 55279 | G134: AGS02 | H134: 4409 | I134: Combustion Turbine | M134: Combustion turbine | R134: 0.032
A135: Aurora | B135: Illinois | C135: X | D135: X | E135: X | F135: 55279 | G135: AGS03 | H135: 4410 | I135: Combustion Turbine | M135: Combustion turbine | R135: 0.035
A136: Aurora | B136: Illinois | C136: X | D136: X | E136: X | F136: 55279 | G136: AGS04 | H136: 4411 | I136: Combustion Turbine | M136: Combustion turbine | R136: 0.041
A137: Aurora | B137: Illinois | C137: X | D137: X | E137: X | F137: 55279 | G137: AGS05 | H137: 4412 | I137: Combustion Turbine | M137: Combustion turbine | R137: 0.086
A138: Aurora | B138: Illinois | C138: X | D138: X | E138: X | F138: 55279 | G138: AGS06 | H138: 4413 | I138: Combustion Turbine | M138: Combustion turbine | R138: 0.082
A139: Aurora | B139: Illinois | C139: X | D139: X | E139: X | F139: 55279 | G139: AGS07 | H139: 4414 | I139: Combustion Turbine | M139: Combustion turbine | R139: 0.080
A140: Aurora | B140: Illinois | C140: X | D140: X | E140: X | F140: 55279 | G140: AGS08 | H140: 4415 | I140: Combustion Turbine | M140: Combustion turbine | R140: 0.082
A141: Aurora | B141: Illinois | C141: X | D141: X | E141: X | F141: 55279 | G141: AGS09 | H141: 4416 | I141: Combustion Turbine | M141: Combustion turbine | R141: 0.079
A142: Aurora | B142: Illinois | C142: X | D142: X | E142: X | F142: 55279 | G142: AGS10 | H142: 4408 | I142: Combustion Turbine | M142: Combustion turbine | R142: 0.078
A143: Baldwin Energy Complex | B143: Illinois | C143: X | D143: X | E143: X | F143: 889 | G143: 1 | H143: 611 | I143: Coal Steam | J143: 12 | K143: 2025 | L143: 2026 | M143: Cyclone boiler | N143: Y | Q143: 576 | R143: 0.046 | S143: Y
A144: Baldwin Energy Complex | B144: Illinois | C144: X | D144: X | E144: X | F144: 889 | G144: 2 | H144: 612 | I144: Coal Steam | J144: 12 | K144: 2025 | L144: 2026 | M144: Cyclone boiler | N144: Y | Q144: 581 | R144: 0.063 | S144: Y
A145: Calumet Energy Team, LLC | B145: Illinois | C145: X | D145: X | E145: X | F145: 55296 | G145: **1 | H145: 4469 | I145: Combustion Turbine | M145: Combustion turbine | R145: 0.080
A146: Calumet Energy Team, LLC | B146: Illinois | C146: X | D146: X | E146: X | F146: 55296 | G146: **2 | H146: 4470 | I146: Combustion Turbine | M146: Combustion turbine | R146: 0.083
A147: Cordova Energy Company | B147: Illinois | C147: X | D147: X | E147: X | F147: 55188 | G147: 1 | H147: 4081 | I147: Combined Cycle | M147: Combined cycle | N147: Y | R147: 0.012
A148: Cordova Energy Company | B148: Illinois | C148: X | D148: X | E148: X | F148: 55188 | G148: 2 | H148: 4082 | I148: Combined Cycle | M148: Combined cycle | N148: Y | R148: 0.012
A149: Crete Energy Park | B149: Illinois | C149: X | D149: X | E149: X | F149: 55253 | G149: GT1 | H149: 4339 | I149: Combustion Turbine | M149: Combustion turbine | R149: 0.028
A150: Crete Energy Park | B150: Illinois | C150: X | D150: X | E150: X | F150: 55253 | G150: GT2 | H150: 4340 | I150: Combustion Turbine | M150: Combustion turbine | R150: 0.027
A151: Crete Energy Park | B151: Illinois | C151: X | D151: X | E151: X | F151: 55253 | G151: GT3 | H151: 4341 | I151: Combustion Turbine | M151: Combustion turbine | R151: 0.046
A152: Crete Energy Park | B152: Illinois | C152: X | D152: X | E152: X | F152: 55253 | G152: GT4 | H152: 4342 | I152: Combustion Turbine | M152: Combustion turbine | R152: 0.028
A153: Dallman | B153: Illinois | C153: X | D153: X | E153: X | F153: 963 | G153: 33 | H153: 647 | I153: Coal Steam | J153: 12 | K153: 2020 | L153: 2023 | M153: Tangentially-fired | N153: Y | Q153: 188 | R153: 0.063 | S153: Y
A154: Dallman | B154: Illinois | C154: X | D154: X | E154: X | F154: 963 | G154: 4 | H154: 89910 | I154: Coal Steam | M154: Wet bottom wall-fired boiler | N154: Y | Q154: 208 | R154: 0.058
A155: E D Edwards | B155: Illinois | C155: X | D155: X | E155: X | F155: 856 | G155: 2 | H155: 569 | I155: Coal Steam | J155: 12 | K155: 2022 | L155: 2023 | M155: Dry bottom wall-fired boiler | Q155: 245 | R155: 0.050 | S155: Y
A156: E D Edwards | B156: Illinois | C156: X | D156: X | E156: X | F156: 856 | G156: 3 | H156: 570 | I156: Coal Steam | J156: 12 | K156: 2022 | L156: 2023 | M156: Dry bottom wall-fired boiler | N156: Y | Q156: 315 | R156: 0.080 | S156: Y
A157: Elgin Energy Center, LLC | B157: Illinois | C157: X | D157: X | E157: X | F157: 55438 | G157: CT01 | H157: 4751 | I157: Combustion Turbine | M157: Combustion turbine | R157: 0.053
A158: Elgin Energy Center, LLC | B158: Illinois | C158: X | D158: X | E158: X | F158: 55438 | G158: CT02 | H158: 4752 | I158: Combustion Turbine | M158: Combustion turbine | R158: 0.058
A159: Elgin Energy Center, LLC | B159: Illinois | C159: X | D159: X | E159: X | F159: 55438 | G159: CT03 | H159: 4753 | I159: Combustion Turbine | M159: Combustion turbine | R159: 0.053
A160: Elgin Energy Center, LLC | B160: Illinois | C160: X | D160: X | E160: X | F160: 55438 | G160: CT04 | H160: 4754 | I160: Combustion Turbine | M160: Combustion turbine | R160: 0.062
A161: Elwood Energy Facility | B161: Illinois | C161: X | D161: X | E161: X | F161: 55199 | G161: 1 | H161: 4110 | I161: Combustion Turbine | M161: Combustion turbine | R161: 0.034
A162: Elwood Energy Facility | B162: Illinois | C162: X | D162: X | E162: X | F162: 55199 | G162: 2 | H162: 4116 | I162: Combustion Turbine | M162: Combustion turbine | R162: 0.038
A163: Elwood Energy Facility | B163: Illinois | C163: X | D163: X | E163: X | F163: 55199 | G163: 3 | H163: 4117 | I163: Combustion Turbine | M163: Combustion turbine | R163: 0.037
A164: Elwood Energy Facility | B164: Illinois | C164: X | D164: X | E164: X | F164: 55199 | G164: 4 | H164: 4118 | I164: Combustion Turbine | M164: Combustion turbine | R164: 0.034
A165: Elwood Energy Facility | B165: Illinois | C165: X | D165: X | E165: X | F165: 55199 | G165: 5 | H165: 4119 | I165: Combustion Turbine | M165: Combustion turbine | R165: 0.033
A166: Elwood Energy Facility | B166: Illinois | C166: X | D166: X | E166: X | F166: 55199 | G166: 6 | H166: 4120 | I166: Combustion Turbine | M166: Combustion turbine | R166: 0.031
A167: Elwood Energy Facility | B167: Illinois | C167: X | D167: X | E167: X | F167: 55199 | G167: 7 | H167: 4121 | I167: Combustion Turbine | M167: Combustion turbine | R167: 0.032
A168: Elwood Energy Facility | B168: Illinois | C168: X | D168: X | E168: X | F168: 55199 | G168: 8 | H168: 4122 | I168: Combustion Turbine | M168: Combustion turbine | R168: 0.039
A169: Elwood Energy Facility | B169: Illinois | C169: X | D169: X | E169: X | F169: 55199 | G169: 9 | H169: 4123 | I169: Combustion Turbine | M169: Combustion turbine | R169: 0.033
A170: Factory Gas Turbine | B170: Illinois | C170: X | D170: X | E170: X | F170: 8016 | G170: 2 | H170: 9200 | I170: Combustion Turbine | M170: Combustion turbine | R170: 1.200
A171: Fisk | B171: Illinois | C171: X | D171: X | E171: X | F171: 886 | G171: 311 | H171: 9165 | I171: Combustion Turbine | J171: 12 | K171: 2029 | L171: 2030 | M171: Combustion turbine | R171: 1.200
A172: Fisk | B172: Illinois | C172: X | D172: X | E172: X | F172: 886 | G172: 312 | H172: 9166 | I172: Combustion Turbine | J172: 12 | K172: 2029 | L172: 2030 | M172: Combustion turbine | R172: 1.200
A173: Fisk | B173: Illinois | C173: X | D173: X | E173: X | F173: 886 | G173: 321 | H173: 9167 | I173: Combustion Turbine | J173: 12 | K173: 2029 | L173: 2030 | M173: Combustion turbine | R173: 1.200
A174: Fisk | B174: Illinois | C174: X | D174: X | E174: X | F174: 886 | G174: 322 | H174: 9168 | I174: Combustion Turbine | J174: 12 | K174: 2029 | L174: 2030 | M174: Combustion turbine | R174: 1.200
A175: Fisk | B175: Illinois | C175: X | D175: X | E175: X | F175: 886 | G175: 331 | H175: 9169 | I175: Combustion Turbine | J175: 12 | K175: 2029 | L175: 2030 | M175: Combustion turbine | R175: 1.200
A176: Fisk | B176: Illinois | C176: X | D176: X | E176: X | F176: 886 | G176: 332 | H176: 9170 | I176: Combustion Turbine | J176: 12 | K176: 2029 | L176: 2030 | M176: Combustion turbine | R176: 1.200
A177: Fisk | B177: Illinois | C177: X | D177: X | E177: X | F177: 886 | G177: 341 | H177: 9171 | I177: Combustion Turbine | M177: Combustion turbine | R177: 0.011 | S177: Y
A178: Fisk | B178: Illinois | C178: X | D178: X | E178: X | F178: 886 | G178: 342 | H178: 9172 | I178: Combustion Turbine | J178: 12 | K178: 2029 | L178: 2030 | M178: Combustion turbine | R178: 1.199
A179: Freedom Power Project | B179: Illinois | C179: X | D179: X | E179: X | F179: 7842 | G179: CT1 | H179: 3293 | I179: Combustion Turbine | M179: Combustion turbine | R179: 0.095
A180: Gibson City Energy Center, LLC | B180: Illinois | C180: X | D180: X | E180: X | F180: 55201 | G180: GCTG1 | H180: 4126 | I180: Combustion Turbine | M180: Combustion turbine | R180: 0.065
A181: Gibson City Energy Center, LLC | B181: Illinois | C181: X | D181: X | E181: X | F181: 55201 | G181: GCTG2 | H181: 4127 | I181: Combustion Turbine | M181: Combustion turbine | R181: 0.064
A182: Goose Creek Power Plant | B182: Illinois | C182: X | D182: X | E182: X | F182: 55496 | G182: CT-01 | H182: 10123 | I182: Combustion Turbine | M182: Combustion turbine | R182: 0.021
A183: Goose Creek Power Plant | B183: Illinois | C183: X | D183: X | E183: X | F183: 55496 | G183: CT-02 | H183: 10124 | I183: Combustion Turbine | M183: Combustion turbine | R183: 0.023
A184: Goose Creek Power Plant | B184: Illinois | C184: X | D184: X | E184: X | F184: 55496 | G184: CT-03 | H184: 10125 | I184: Combustion Turbine | M184: Combustion turbine | R184: 0.018
A185: Goose Creek Power Plant | B185: Illinois | C185: X | D185: X | E185: X | F185: 55496 | G185: CT-04 | H185: 10126 | I185: Combustion Turbine | M185: Combustion turbine | R185: 0.023
A186: Goose Creek Power Plant | B186: Illinois | C186: X | D186: X | E186: X | F186: 55496 | G186: CT-05 | H186: 10127 | I186: Combustion Turbine | M186: Combustion turbine | R186: 0.022
A187: Goose Creek Power Plant | B187: Illinois | C187: X | D187: X | E187: X | F187: 55496 | G187: CT-06 | H187: 10128 | I187: Combustion Turbine | M187: Combustion turbine | R187: 0.019
A188: Grand Tower Energy Center, LLC | B188: Illinois | C188: X | D188: X | E188: X | F188: 862 | G188: CT01 | H188: 578 | I188: Combined Cycle | M188: Combined cycle | R188: 0.070 | S188: Y
A189: Grand Tower Energy Center, LLC | B189: Illinois | C189: X | D189: X | E189: X | F189: 862 | G189: CT02 | H189: 579 | I189: Combined Cycle | M189: Combined cycle | R189: 0.074 | S189: Y
A190: Holland Energy Facility | B190: Illinois | C190: X | D190: X | E190: X | F190: 55334 | G190: CTG1 | H190: 4508 | I190: Combined Cycle | M190: Combined cycle | N190: Y | R190: 0.012
A191: Holland Energy Facility | B191: Illinois | C191: X | D191: X | E191: X | F191: 55334 | G191: CTG2 | H191: 4509 | I191: Combined Cycle | M191: Combined cycle | N191: Y | R191: 0.012
A192: Interstate | B192: Illinois | C192: X | D192: X | E192: X | F192: 7425 | G192: 1 | H192: 3116 | I192: Combustion Turbine | M192: Combustion turbine | R192: 0.164 | S192: Y
A193: Joliet 29 | B193: Illinois | C193: X | D193: X | E193: X | F193: 384 | G193: 71 | H193: 250 | I193: O/G Steam | J193: 6 | K193: 2023 | L193: 2024 | M193: Tangentially-fired | O193: Y | P193: Y | Q193: 259 | R193: 0.079 | S193: Y
A194: Joliet 29 | B194: Illinois | C194: X | D194: X | E194: X | F194: 384 | G194: 72 | H194: 251 | I194: O/G Steam | J194: 6 | K194: 2023 | L194: 2024 | M194: Tangentially-fired | O194: Y | P194: Y | Q194: 259 | R194: 0.080 | S194: Y
A195: Joliet 29 | B195: Illinois | C195: X | D195: X | E195: X | F195: 384 | G195: 81 | H195: 252 | I195: O/G Steam | J195: 6 | K195: 2023 | L195: 2024 | M195: Tangentially-fired | O195: Y | P195: Y | Q195: 259 | R195: 0.092 | S195: Y
A196: Joliet 29 | B196: Illinois | C196: X | D196: X | E196: X | F196: 384 | G196: 82 | H196: 253 | I196: O/G Steam | J196: 6 | K196: 2023 | L196: 2024 | M196: Tangentially-fired | O196: Y | P196: Y | Q196: 259 | R196: 0.092 | S196: Y
A197: Joliet 9 | B197: Illinois | C197: X | D197: X | E197: X | F197: 874 | G197: 5 | H197: 590 | I197: O/G Steam | J197: 6 | K197: 2023 | L197: 2024 | M197: Cyclone boiler | O197: Y | Q197: 314 | R197: 0.086 | S197: Y
A198: Joppa Steam | B198: Illinois | C198: X | D198: X | E198: X | F198: 887 | G198: 1 | H198: 605 | I198: Coal Steam | J198: 8 | K198: 2022 | L198: 2023 | M198: Tangentially-fired | P198: Y | Q198: 162 | R198: 0.050 | S198: Y
A199: Joppa Steam | B199: Illinois | C199: X | D199: X | E199: X | F199: 887 | G199: 2 | H199: 606 | I199: Coal Steam | J199: 8 | K199: 2022 | L199: 2023 | M199: Tangentially-fired | P199: Y | Q199: 158 | R199: 0.050 | S199: Y
A200: Joppa Steam | B200: Illinois | C200: X | D200: X | E200: X | F200: 887 | G200: 3 | H200: 607 | I200: Coal Steam | J200: 8 | K200: 2022 | L200: 2023 | M200: Tangentially-fired | P200: Y | Q200: 161 | R200: 0.050 | S200: Y
... 2237 more rows

Sheet Unit 2023
A1: Facility | B1: State | C1: RCU State | D1: 2023 EGU control strategy | E1: 2026 EGU control strategy | F1: ORIS | G1: Boiler | H1: CAMD ID | I1: Plant Type | J1: Retirement Month Check | K1: Retirement Year Check | L1: Retired Before EA Year | M1: Unit Type | N1: Existing SCR | O1: Existing SNCR | P1: Common Stack | Q1: Capacity (MW) | R1: 2021 NOx (tons) | S1: 2021 Heat Input (mmBtu) | T1: 2021 Gross Generation (mWh) | U1: 2019 to 2021 Average NOx (tons) | V1: 2021 NOx (tons), Retired Before 2023 | W1: Flag | X1: 2021 Heat Input (mmBtu), Retired Before 2023 | Y1: 2021 Gross Generation (mWh) Retired Before 2023 | Z1: 2021 NOx (tons), Retired Before 2023, Coal to Gas Conversion Before 2023 | AA1: Flag | AB1: 2021 NOx (tons), Retired Before 2023, Coal to Gas Conversion Before 2023, New SCRs Before 2023 | AC1: Flag | AD1: 2021 NOx (tons), Retired Before 2023, Coal to Gas Conversion Before 2023, New SCRs Before 2023, BART Limits and other specific EPA Limits (see flag) | AE1: Flag | AF1: 2021 NOx (tons), SCR Optimize | AG1: Flag | AH1: 2021 NOx (tons), SCR Optimize + Eligible SOA CC | AI1: Flag | AJ1: 2021 NOx (tons), SCR Optimize + SNCR Optimize | AK1: Flag | AL1: 2021 NOx (tons), SCR Optimize + Eligible SOA CC + SNCR Optimize | AM1: Flag | AN1: 2021 NOx (tons), SCR Optimize + Eligible SOA CC + SNCR Optimize + SCR (Half)/SNCR Retrofit on All Boilers | AO1: 2021 NOx (tons), SCR Optimize + Eligible SOA CC + SNCR Optimize + SCR/SNCR Retrofit on All Boilers | AP1: Flag | AQ1: Pre SCR/SNCR Retrofit on All Boilers NOx Rate (lb/mmBtu) | AR1: Post SCR/SNCR Retrofit on All Boilers NOx Rate (lb/mmBtu) | AS1: Additional (Not ARP or CSAPR) Unit | AT1: 2019 to 2021 Average Capacity Factor (%)
A2: AMEA Sylacauga Plant | B2: Alabama | D2: X | F2: 56018 | G2: 1 | H2: 89313 | I2: Combustion Turbine | M2: Combustion turbine | R2: 8 | S2: 185,597 | T2: 18,995 | U2: 8 | V2: 8 | X2: 185,597 | Y2: 18,995 | Z2: 8 | AB2: 8 | AD2: 8 | AF2: 8 | AH2: 8 | AJ2: 8 | AL2: 8 | AN2: 8 | AO2: 8 | AP2: Not Coal Steam or O/G Steam | AQ2: 0.084 | AR2: 0.084 | AT2: 10%
A3: AMEA Sylacauga Plant | B3: Alabama | D3: X | F3: 56018 | G3: 2 | H3: 89314 | I3: Combustion Turbine | M3: Combustion turbine | R3: 8 | S3: 186,691 | T3: 18,957 | U3: 8 | V3: 8 | X3: 186,691 | Y3: 18,957 | Z3: 8 | AB3: 8 | AD3: 8 | AF3: 8 | AH3: 8 | AJ3: 8 | AL3: 8 | AN3: 8 | AO3: 8 | AP3: Not Coal Steam or O/G Steam | AQ3: 0.085 | AR3: 0.085 | AT3: 10%
A4: Barry | B4: Alabama | D4: X | F4: 3 | G4: 1 | H4: 1 | I4: O/G Steam | M4: Tangentially-fired | O4: Y | P4: Y | Q4: 56 | U4: 3 | AP4: O/G Steam Under 100 MW | AQ4: 0.000 | AR4: 0.000 | AT4: 1%
A5: Barry | B5: Alabama | D5: X | F5: 3 | G5: 2 | H5: 2 | I5: O/G Steam | M5: Tangentially-fired | O5: Y | P5: Y | Q5: 56 | U5: 3 | AP5: O/G Steam Under 100 MW | AQ5: 0.000 | AR5: 0.000 | AT5: 1%
A6: Barry | B6: Alabama | D6: X | F6: 3 | G6: 4 | H6: 4 | I6: O/G Steam | M6: Tangentially-fired | O6: Y | Q6: 362 | R6: 473 | S6: 3,513,717 | T6: 370,510 | U6: 288 | V6: 473 | X6: 3,513,717 | Y6: 370,510 | Z6: 236 | AA6: Y | AB6: 236 | AD6: 236 | AF6: 236 | AH6: 236 | AJ6: 236 | AL6: 236 | AN6: 145 | AO6: 53 | AP6: O/G Steam SCR Retrofit | AQ6: 0.135 | AR6: 0.030 | AT6: 9%
A7: Barry | B7: Alabama | D7: X | F7: 3 | G7: 5 | H7: 5 | I7: Coal Steam | J7: 12 | K7: 2028 | L7: 2029 | M7: Tangentially-fired | N7: Y | Q7: 756 | R7: 698 | S7: 20,662,771 | T7: 2,091,270 | U7: 601 | V7: 698 | X7: 20,662,771 | Y7: 2,091,270 | Z7: 698 | AB7: 698 | AD7: 698 | AF7: 698 | AH7: 698 | AJ7: 698 | AL7: 698 | AN7: 698 | AO7: 698 | AP7: Existing SCR | AQ7: 0.068 | AR7: 0.068 | AT7: 43%
A8: Barry | B8: Alabama | D8: X | F8: 3 | G8: 6A | H8: 6 | I8: Combined Cycle | M8: Combined cycle | N8: Y | R8: 23 | S8: 5,071,075 | T8: 735,633 | U8: 24 | V8: 23 | X8: 5,071,075 | Y8: 735,633 | Z8: 23 | AB8: 23 | AD8: 23 | AF8: 23 | AH8: 23 | AJ8: 23 | AL8: 23 | AN8: 23 | AO8: 23 | AP8: Not Coal Steam or O/G Steam | AQ8: 0.009 | AR8: 0.009 | AT8: 52%
A9: Barry | B9: Alabama | D9: X | F9: 3 | G9: 6B | H9: 7 | I9: Combined Cycle | M9: Combined cycle | N9: Y | R9: 30 | S9: 6,566,771 | T9: 930,238 | U9: 27 | V9: 30 | X9: 6,566,771 | Y9: 930,238 | Z9: 30 | AB9: 30 | AD9: 30 | AF9: 30 | AH9: 30 | AJ9: 30 | AL9: 30 | AN9: 30 | AO9: 30 | AP9: Not Coal Steam or O/G Steam | AQ9: 0.009 | AR9: 0.009 | AT9: 61%
A10: Barry | B10: Alabama | D10: X | F10: 3 | G10: 7A | H10: 8 | I10: Combined Cycle | M10: Combined cycle | N10: Y | R10: 31 | S10: 6,777,467 | T10: 937,068 | U10: 29 | V10: 31 | X10: 6,777,467 | Y10: 937,068 | Z10: 31 | AB10: 31 | AD10: 31 | AF10: 31 | AH10: 31 | AJ10: 31 | AL10: 31 | AN10: 31 | AO10: 31 | AP10: Not Coal Steam or O/G Steam | AQ10: 0.009 | AR10: 0.009 | AT10: 62%
A11: Barry | B11: Alabama | D11: X | F11: 3 | G11: 7B | H11: 9 | I11: Combined Cycle | M11: Combined cycle | N11: Y | R11: 28 | S11: 6,717,795 | T11: 934,110 | U11: 28 | V11: 28 | X11: 6,717,795 | Y11: 934,110 | Z11: 28 | AB11: 28 | AD11: 28 | AF11: 28 | AH11: 28 | AJ11: 28 | AL11: 28 | AN11: 28 | AO11: 28 | AP11: Not Coal Steam or O/G Steam | AQ11: 0.008 | AR11: 0.008 | AT11: 63%
A12: Calhoun Generating Facility | B12: Alabama | D12: X | F12: 55409 | G12: CT1 | H12: 4688 | I12: Combustion Turbine | M12: Combustion turbine | R12: 2 | S12: 125,246 | T12: 11,995 | U12: 6 | V12: 2 | X12: 125,246 | Y12: 11,995 | Z12: 2 | AB12: 2 | AD12: 2 | AF12: 2 | AH12: 2 | AJ12: 2 | AL12: 2 | AN12: 2 | AO12: 2 | AP12: Not Coal Steam or O/G Steam | AQ12: 0.033 | AR12: 0.033 | AT12: 5%
A13: Calhoun Generating Facility | B13: Alabama | D13: X | F13: 55409 | G13: CT2 | H13: 4689 | I13: Combustion Turbine | M13: Combustion turbine | R13: 1 | S13: 58,243 | T13: 5,552 | U13: 5 | V13: 1 | X13: 58,243 | Y13: 5,552 | Z13: 1 | AB13: 1 | AD13: 1 | AF13: 1 | AH13: 1 | AJ13: 1 | AL13: 1 | AN13: 1 | AO13: 1 | AP13: Not Coal Steam or O/G Steam | AQ13: 0.035 | AR13: 0.035 | AT13: 4%
A14: Calhoun Generating Facility | B14: Alabama | D14: X | F14: 55409 | G14: CT3 | H14: 4690 | I14: Combustion Turbine | M14: Combustion turbine | R14: 1 | S14: 54,667 | T14: 5,022 | U14: 5 | V14: 1 | X14: 54,667 | Y14: 5,022 | Z14: 1 | AB14: 1 | AD14: 1 | AF14: 1 | AH14: 1 | AJ14: 1 | AL14: 1 | AN14: 1 | AO14: 1 | AP14: Not Coal Steam or O/G Steam | AQ14: 0.036 | AR14: 0.036 | AT14: 4%
A15: Calhoun Generating Facility | B15: Alabama | D15: X | F15: 55409 | G15: CT4 | H15: 4691 | I15: Combustion Turbine | M15: Combustion turbine | R15: 2 | S15: 128,934 | T15: 12,186 | U15: 6 | V15: 2 | X15: 128,934 | Y15: 12,186 | Z15: 2 | AB15: 2 | AD15: 2 | AF15: 2 | AH15: 2 | AJ15: 2 | AL15: 2 | AN15: 2 | AO15: 2 | AP15: Not Coal Steam or O/G Steam | AQ15: 0.033 | AR15: 0.033 | AT15: 5%
A16: Central Alabama Gen Station | B16: Alabama | D16: X | F16: 55440 | G16: CTGDB1 | H16: 4758 | I16: Combined Cycle | M16: Combined cycle | N16: Y | R16: 20 | S16: 4,347,066 | T16: 596,810 | U16: 26 | V16: 20 | X16: 4,347,066 | Y16: 596,810 | Z16: 20 | AB16: 20 | AD16: 20 | AF16: 20 | AH16: 20 | AJ16: 20 | AL16: 20 | AN16: 20 | AO16: 20 | AP16: Not Coal Steam or O/G Steam | AQ16: 0.009 | AR16: 0.009 | AT16: 55%
A17: Central Alabama Gen Station | B17: Alabama | D17: X | F17: 55440 | G17: CTGDB2 | H17: 4759 | I17: Combined Cycle | M17: Combined cycle | N17: Y | R17: 22 | S17: 5,511,402 | T17: 740,229 | U17: 28 | V17: 22 | X17: 5,511,402 | Y17: 740,229 | Z17: 22 | AB17: 22 | AD17: 22 | AF17: 22 | AH17: 22 | AJ17: 22 | AL17: 22 | AN17: 22 | AO17: 22 | AP17: Not Coal Steam or O/G Steam | AQ17: 0.008 | AR17: 0.008 | AT17: 61%
A18: Central Alabama Gen Station | B18: Alabama | D18: X | F18: 55440 | G18: CTGDB3 | H18: 4760 | I18: Combined Cycle | M18: Combined cycle | N18: Y | R18: 16 | S18: 4,205,115 | T18: 583,591 | U18: 36 | V18: 16 | X18: 4,205,115 | Y18: 583,591 | Z18: 16 | AB18: 16 | AD18: 16 | AF18: 16 | AH18: 16 | AJ18: 16 | AL18: 16 | AN18: 16 | AO18: 16 | AP18: Not Coal Steam or O/G Steam | AQ18: 0.008 | AR18: 0.008 | AT18: 52%
A19: Colbert | B19: Alabama | D19: X | F19: 47 | G19: CCT1 | H19: 88150 | I19: Combustion Turbine | M19: Combustion turbine | R19: 2 | S19: 7,823 | T19: 566 | U19: 1 | V19: 2 | X19: 7,823 | Y19: 566 | Z19: 2 | AB19: 2 | AD19: 2 | AF19: 2 | AH19: 2 | AJ19: 2 | AL19: 2 | AN19: 2 | AO19: 2 | AP19: Not Coal Steam or O/G Steam | AQ19: 0.409 | AR19: 0.409 | AT19: 0%
A20: Colbert | B20: Alabama | D20: X | F20: 47 | G20: CCT2 | H20: 88151 | I20: Combustion Turbine | M20: Combustion turbine | R20: 2 | S20: 7,659 | T20: 551 | U20: 1 | V20: 2 | X20: 7,659 | Y20: 551 | Z20: 2 | AB20: 2 | AD20: 2 | AF20: 2 | AH20: 2 | AJ20: 2 | AL20: 2 | AN20: 2 | AO20: 2 | AP20: Not Coal Steam or O/G Steam | AQ20: 0.409 | AR20: 0.409 | AT20: 0%
A21: Colbert | B21: Alabama | D21: X | F21: 47 | G21: CCT3 | H21: 88152 | I21: Combustion Turbine | M21: Combustion turbine | R21: 2 | S21: 11,681 | T21: 853 | U21: 1 | V21: 2 | X21: 11,681 | Y21: 853 | Z21: 2 | AB21: 2 | AD21: 2 | AF21: 2 | AH21: 2 | AJ21: 2 | AL21: 2 | AN21: 2 | AO21: 2 | AP21: Not Coal Steam or O/G Steam | AQ21: 0.403 | AR21: 0.403 | AT21: 0%
A22: Colbert | B22: Alabama | D22: X | F22: 47 | G22: CCT4 | H22: 88153 | I22: Combustion Turbine | M22: Combustion turbine | R22: 1 | S22: 7,163 | T22: 502 | U22: 1 | V22: 1 | X22: 7,163 | Y22: 502 | Z22: 1 | AB22: 1 | AD22: 1 | AF22: 1 | AH22: 1 | AJ22: 1 | AL22: 1 | AN22: 1 | AO22: 1 | AP22: Not Coal Steam or O/G Steam | AQ22: 0.400 | AR22: 0.400 | AT22: 0%
A23: Colbert | B23: Alabama | D23: X | F23: 47 | G23: CCT5 | H23: 88154 | I23: Combustion Turbine | M23: Combustion turbine | R23: 3 | S23: 13,096 | T23: 948 | U23: 2 | V23: 3 | X23: 13,096 | Y23: 948 | Z23: 3 | AB23: 3 | AD23: 3 | AF23: 3 | AH23: 3 | AJ23: 3 | AL23: 3 | AN23: 3 | AO23: 3 | AP23: Not Coal Steam or O/G Steam | AQ23: 0.402 | AR23: 0.402 | AT23: 0%
A24: Colbert | B24: Alabama | D24: X | F24: 47 | G24: CCT6 | H24: 88155 | I24: Combustion Turbine | M24: Combustion turbine | R24: 3 | S24: 13,835 | T24: 1,013 | U24: 2 | V24: 3 | X24: 13,835 | Y24: 1,013 | Z24: 3 | AB24: 3 | AD24: 3 | AF24: 3 | AH24: 3 | AJ24: 3 | AL24: 3 | AN24: 3 | AO24: 3 | AP24: Not Coal Steam or O/G Steam | AQ24: 0.402 | AR24: 0.402 | AT24: 0%
A25: Colbert | B25: Alabama | D25: X | F25: 47 | G25: CCT7 | H25: 88156 | I25: Combustion Turbine | M25: Combustion turbine | R25: 3 | S25: 14,341 | T25: 992 | U25: 2 | V25: 3 | X25: 14,341 | Y25: 992 | Z25: 3 | AB25: 3 | AD25: 3 | AF25: 3 | AH25: 3 | AJ25: 3 | AL25: 3 | AN25: 3 | AO25: 3 | AP25: Not Coal Steam or O/G Steam | AQ25: 0.402 | AR25: 0.402 | AT25: 0%
A26: Colbert | B26: Alabama | D26: X | F26: 47 | G26: CCT8 | H26: 88157 | I26: Combustion Turbine | M26: Combustion turbine | R26: 3 | S26: 14,142 | T26: 1,012 | U26: 2 | V26: 3 | X26: 14,142 | Y26: 1,012 | Z26: 3 | AB26: 3 | AD26: 3 | AF26: 3 | AH26: 3 | AJ26: 3 | AL26: 3 | AN26: 3 | AO26: 3 | AP26: Not Coal Steam or O/G Steam | AQ26: 0.402 | AR26: 0.402 | AT26: 0%
A27: Decatur Energy Center | B27: Alabama | D27: X | F27: 55292 | G27: CTG-1 | H27: 4459 | I27: Combined Cycle | M27: Combined cycle | N27: Y | R27: 9 | S27: 1,549,360 | T27: 207,172 | U27: 10 | V27: 9 | X27: 1,549,360 | Y27: 207,172 | Z27: 9 | AB27: 9 | AD27: 9 | AF27: 9 | AH27: 9 | AJ27: 9 | AL27: 9 | AN27: 9 | AO27: 9 | AP27: Not Coal Steam or O/G Steam | AQ27: 0.011 | AR27: 0.011 | AT27: 26%
A28: Decatur Energy Center | B28: Alabama | D28: X | F28: 55292 | G28: CTG-2 | H28: 4460 | I28: Combined Cycle | M28: Combined cycle | N28: Y | R28: 9 | S28: 1,612,639 | T28: 216,289 | U28: 11 | V28: 9 | X28: 1,612,639 | Y28: 216,289 | Z28: 9 | AB28: 9 | AD28: 9 | AF28: 9 | AH28: 9 | AJ28: 9 | AL28: 9 | AN28: 9 | AO28: 9 | AP28: Not Coal Steam or O/G Steam | AQ28: 0.011 | AR28: 0.011 | AT28: 28%
A29: Decatur Energy Center | B29: Alabama | D29: X | F29: 55292 | G29: CTG-3 | H29: 4461 | I29: Combined Cycle | M29: Combined cycle | N29: Y | R29: 10 | S29: 1,729,017 | T29: 226,349 | U29: 12 | V29: 10 | X29: 1,729,017 | Y29: 226,349 | Z29: 10 | AB29: 10 | AD29: 10 | AF29: 10 | AH29: 10 | AJ29: 10 | AL29: 10 | AN29: 10 | AO29: 10 | AP29: Not Coal Steam or O/G Steam | AQ29: 0.012 | AR29: 0.012 | AT29: 28%
A30: E B Harris Generating Plant | B30: Alabama | D30: X | F30: 7897 | G30: 1A | H30: 3355 | I30: Combined Cycle | M30: Combined cycle | N30: Y | R30: 29 | S30: 4,018,790 | T30: 580,821 | U30: 25 | V30: 29 | X30: 4,018,790 | Y30: 580,821 | Z30: 29 | AB30: 29 | AD30: 29 | AF30: 24 | AG30: Optimize SCR | AH30: 24 | AJ30: 24 | AL30: 24 | AN30: 24 | AO30: 24 | AP30: Not Coal Steam or O/G Steam | AQ30: 0.012 | AR30: 0.012 | AT30: 46%
A31: E B Harris Generating Plant | B31: Alabama | D31: X | F31: 7897 | G31: 1B | H31: 3356 | I31: Combined Cycle | M31: Combined cycle | N31: Y | R31: 25 | S31: 5,006,870 | T31: 726,342 | U31: 24 | V31: 25 | X31: 5,006,870 | Y31: 726,342 | Z31: 25 | AB31: 25 | AD31: 25 | AF31: 25 | AH31: 25 | AJ31: 25 | AL31: 25 | AN31: 25 | AO31: 25 | AP31: Not Coal Steam or O/G Steam | AQ31: 0.010 | AR31: 0.010 | AT31: 50%
A32: E B Harris Generating Plant | B32: Alabama | D32: X | F32: 7897 | G32: 2A | H32: 3357 | I32: Combined Cycle | M32: Combined cycle | N32: Y | R32: 8 | S32: 2,030,950 | T32: 301,273 | U32: 14 | V32: 8 | X32: 2,030,950 | Y32: 301,273 | Z32: 8 | AB32: 8 | AD32: 8 | AF32: 8 | AH32: 8 | AJ32: 8 | AL32: 8 | AN32: 8 | AO32: 8 | AP32: Not Coal Steam or O/G Steam | AQ32: 0.008 | AR32: 0.008 | AT32: 32%
A33: E B Harris Generating Plant | B33: Alabama | D33: X | F33: 7897 | G33: 2B | H33: 3358 | I33: Combined Cycle | M33: Combined cycle | N33: Y | R33: 15 | S33: 3,768,467 | T33: 558,246 | U33: 16 | V33: 15 | X33: 3,768,467 | Y33: 558,246 | Z33: 15 | AB33: 15 | AD33: 15 | AF33: 15 | AH33: 15 | AJ33: 15 | AL33: 15 | AN33: 15 | AO33: 15 | AP33: Not Coal Steam or O/G Steam | AQ33: 0.008 | AR33: 0.008 | AT33: 37%
A34: E C Gaston | B34: Alabama | D34: X | F34: 26 | G34: 1 | H34: 30 | I34: O/G Steam | M34: Dry bottom wall-fired boiler | P34: Y | Q34: 254 | R34: 108 | S34: 2,331,795 | T34: 225,046 | U34: 184 | V34: 108 | X34: 2,331,795 | Y34: 225,046 | Z34: 108 | AB34: 108 | AD34: 108 | AF34: 108 | AH34: 108 | AJ34: 108 | AL34: 108 | AN34: 71 | AO34: 35 | AP34: O/G Steam SCR Retrofit | AQ34: 0.093 | AR34: 0.030 | AT34: 18%
A35: E C Gaston | B35: Alabama | D35: X | F35: 26 | G35: 2 | H35: 31 | I35: O/G Steam | M35: Dry bottom wall-fired boiler | P35: Y | Q35: 256 | R35: 106 | S35: 2,193,061 | T35: 210,108 | U35: 198 | V35: 106 | X35: 2,193,061 | Y35: 210,108 | Z35: 106 | AB35: 106 | AD35: 106 | AF35: 106 | AH35: 106 | AJ35: 106 | AL35: 106 | AN35: 69 | AO35: 33 | AP35: O/G Steam SCR Retrofit | AQ35: 0.097 | AR35: 0.030 | AT35: 20%
A36: E C Gaston | B36: Alabama | D36: X | F36: 26 | G36: 3 | H36: 32 | I36: O/G Steam | M36: Dry bottom wall-fired boiler | P36: Y | Q36: 254 | R36: 146 | S36: 2,775,938 | T36: 263,529 | U36: 217 | V36: 146 | X36: 2,775,938 | Y36: 263,529 | Z36: 146 | AB36: 146 | AD36: 146 | AF36: 146 | AH36: 146 | AJ36: 146 | AL36: 146 | AN36: 94 | AO36: 42 | AP36: O/G Steam SCR Retrofit | AQ36: 0.105 | AR36: 0.030 | AT36: 20%
A37: E C Gaston | B37: Alabama | D37: X | F37: 26 | G37: 4 | H37: 33 | I37: O/G Steam | M37: Dry bottom wall-fired boiler | P37: Y | Q37: 256 | R37: 83 | S37: 1,514,556 | T37: 150,379 | U37: 178 | V37: 83 | X37: 1,514,556 | Y37: 150,379 | Z37: 83 | AB37: 83 | AD37: 83 | AF37: 83 | AH37: 83 | AJ37: 83 | AL37: 83 | AN37: 53 | AO37: 23 | AP37: O/G Steam SCR Retrofit | AQ37: 0.110 | AR37: 0.030 | AT37: 23%
A38: E C Gaston | B38: Alabama | D38: X | F38: 26 | G38: 5 | H38: 34 | I38: Coal Steam | M38: Tangentially-fired | N38: Y | Q38: 832 | R38: 720 | S38: 17,304,088 | T38: 1,717,288 | U38: 811 | V38: 720 | X38: 17,304,088 | Y38: 1,717,288 | Z38: 720 | AB38: 720 | AD38: 720 | AF38: 692 | AG38: Optimize SCR | AH38: 692 | AJ38: 692 | AL38: 692 | AN38: 692 | AO38: 692 | AP38: Existing SCR | AQ38: 0.080 | AR38: 0.080 | AT38: 30%
A39: Gadsden | B39: Alabama | D39: X | F39: 7 | G39: 1 | H39: 11 | I39: O/G Steam | J39: 1 | K39: 2023 | L39: 2023 | M39: Tangentially-fired | P39: Y | Q39: 64 | U39: 23 | V39: 0 | W39: Y | X39: 0 | Y39: 0 | Z39: 0 | AB39: 0 | AD39: 0 | AF39: 0 | AH39: 0 | AJ39: 0 | AL39: 0 | AN39: 0 | AO39: 0 | AP39: Retired | AQ39: 0.000 | AR39: 0.000 | AT39: 9%
A40: Gadsden | B40: Alabama | D40: X | F40: 7 | G40: 2 | H40: 12 | I40: O/G Steam | J40: 1 | K40: 2023 | L40: 2023 | M40: Tangentially-fired | P40: Y | Q40: 66 | V40: 0 | W40: Y | X40: 0 | Y40: 0 | Z40: 0 | AB40: 0 | AD40: 0 | AF40: 0 | AH40: 0 | AJ40: 0 | AL40: 0 | AN40: 0 | AO40: 0 | AP40: Retired | AQ40: 0.000 | AR40: 0.000
A41: Greene County | B41: Alabama | D41: X | F41: 10 | G41: 1 | H41: 19 | I41: O/G Steam | J41: 12 | K41: 2025 | L41: 2026 | M41: Cell burner boiler | P41: Y | Q41: 258 | R41: 150 | S41: 2,634,645 | T41: 264,873 | U41: 296 | V41: 150 | X41: 2,634,645 | Y41: 264,873 | Z41: 150 | AB41: 150 | AD41: 150 | AF41: 150 | AH41: 150 | AJ41: 150 | AL41: 150 | AN41: 95 | AO41: 40 | AP41: O/G Steam SCR Retrofit | AQ41: 0.114 | AR41: 0.030 | AT41: 30%
A42: Greene County | B42: Alabama | D42: X | F42: 10 | G42: 2 | H42: 20 | I42: O/G Steam | J42: 12 | K42: 2026 | L42: 2027 | M42: Dry bottom wall-fired boiler | P42: Y | Q42: 258 | R42: 103 | S42: 1,745,393 | T42: 169,799 | U42: 272 | V42: 103 | X42: 1,745,393 | Y42: 169,799 | Z42: 103 | AB42: 103 | AD42: 103 | AF42: 103 | AH42: 103 | AJ42: 103 | AL42: 103 | AN42: 64 | AO42: 26 | AP42: O/G Steam SCR Retrofit | AQ42: 0.118 | AR42: 0.030 | AT42: 28%
A43: Greene County | B43: Alabama | D43: X | F43: 10 | G43: CT10 | H43: 21 | I43: Combustion Turbine | M43: Combustion turbine | R43: 2 | S43: 42,285 | T43: 3,099 | U43: 2 | V43: 2 | X43: 42,285 | Y43: 3,099 | Z43: 2 | AB43: 2 | AD43: 2 | AF43: 2 | AH43: 2 | AJ43: 2 | AL43: 2 | AN43: 2 | AO43: 2 | AP43: Not Coal Steam or O/G Steam | AQ43: 0.090 | AR43: 0.090 | AT43: 1%
A44: Greene County | B44: Alabama | D44: X | F44: 10 | G44: CT2 | H44: 22 | I44: Combustion Turbine | M44: Combustion turbine | R44: 4 | S44: 119,398 | T44: 8,669 | U44: 3 | V44: 4 | X44: 119,398 | Y44: 8,669 | Z44: 4 | AB44: 4 | AD44: 4 | AF44: 4 | AH44: 4 | AJ44: 4 | AL44: 4 | AN44: 4 | AO44: 4 | AP44: Not Coal Steam or O/G Steam | AQ44: 0.074 | AR44: 0.074 | AT44: 1%
A45: Greene County | B45: Alabama | D45: X | F45: 10 | G45: CT3 | H45: 23 | I45: Combustion Turbine | M45: Combustion turbine | R45: 2 | S45: 55,380 | T45: 4,065 | U45: 2 | V45: 2 | X45: 55,380 | Y45: 4,065 | Z45: 2 | AB45: 2 | AD45: 2 | AF45: 2 | AH45: 2 | AJ45: 2 | AL45: 2 | AN45: 2 | AO45: 2 | AP45: Not Coal Steam or O/G Steam | AQ45: 0.064 | AR45: 0.064 | AT45: 1%
A46: Greene County | B46: Alabama | D46: X | F46: 10 | G46: CT4 | H46: 24 | I46: Combustion Turbine | M46: Combustion turbine | R46: 1 | S46: 36,616 | T46: 2,710 | U46: 2 | V46: 1 | X46: 36,616 | Y46: 2,710 | Z46: 1 | AB46: 1 | AD46: 1 | AF46: 1 | AH46: 1 | AJ46: 1 | AL46: 1 | AN46: 1 | AO46: 1 | AP46: Not Coal Steam or O/G Steam | AQ46: 0.077 | AR46: 0.077 | AT46: 1%
A47: Greene County | B47: Alabama | D47: X | F47: 10 | G47: CT5 | H47: 25 | I47: Combustion Turbine | M47: Combustion turbine | R47: 2 | S47: 72,496 | T47: 5,297 | U47: 2 | V47: 2 | X47: 72,496 | Y47: 5,297 | Z47: 2 | AB47: 2 | AD47: 2 | AF47: 2 | AH47: 2 | AJ47: 2 | AL47: 2 | AN47: 2 | AO47: 2 | AP47: Not Coal Steam or O/G Steam | AQ47: 0.062 | AR47: 0.062 | AT47: 1%
A48: Greene County | B48: Alabama | D48: X | F48: 10 | G48: CT6 | H48: 26 | I48: Combustion Turbine | M48: Combustion turbine | R48: 0 | S48: 6,700 | T48: 494 | U48: 1 | V48: 0 | X48: 6,700 | Y48: 494 | Z48: 0 | AB48: 0 | AD48: 0 | AF48: 0 | AH48: 0 | AJ48: 0 | AL48: 0 | AN48: 0 | AO48: 0 | AP48: Not Coal Steam or O/G Steam | AQ48: 0.067 | AR48: 0.067 | AT48: 1%
A49: Greene County | B49: Alabama | D49: X | F49: 10 | G49: CT7 | H49: 27 | I49: Combustion Turbine | M49: Combustion turbine | R49: 0 | S49: 4,791 | T49: 353 | U49: 2 | V49: 0 | X49: 4,791 | Y49: 353 | Z49: 0 | AB49: 0 | AD49: 0 | AF49: 0 | AH49: 0 | AJ49: 0 | AL49: 0 | AN49: 0 | AO49: 0 | AP49: Not Coal Steam or O/G Steam | AQ49: 0.076 | AR49: 0.076 | AT49: 1%
A50: Greene County | B50: Alabama | D50: X | F50: 10 | G50: CT8 | H50: 28 | I50: Combustion Turbine | M50: Combustion turbine | R50: 0 | S50: 5,065 | T50: 371 | U50: 1 | V50: 0 | X50: 5,065 | Y50: 371 | Z50: 0 | AB50: 0 | AD50: 0 | AF50: 0 | AH50: 0 | AJ50: 0 | AL50: 0 | AN50: 0 | AO50: 0 | AP50: Not Coal Steam or O/G Steam | AQ50: 0.073 | AR50: 0.073 | AT50: 0%
A51: Greene County | B51: Alabama | D51: X | F51: 10 | G51: CT9 | H51: 29 | I51: Combustion Turbine | M51: Combustion turbine | R51: 0 | S51: 5,437 | T51: 393 | U51: 1 | V51: 0 | X51: 5,437 | Y51: 393 | Z51: 0 | AB51: 0 | AD51: 0 | AF51: 0 | AH51: 0 | AJ51: 0 | AL51: 0 | AN51: 0 | AO51: 0 | AP51: Not Coal Steam or O/G Steam | AQ51: 0.061 | AR51: 0.061 | AT51: 0%
A52: Hillabee Energy Center | B52: Alabama | D52: X | F52: 55411 | G52: CT1 | H52: 4695 | I52: Combined Cycle | M52: Combined cycle | N52: Y | R52: 31 | S52: 8,678,935 | T52: 1,262,006 | U52: 31 | V52: 31 | X52: 8,678,935 | Y52: 1,262,006 | Z52: 31 | AB52: 31 | AD52: 31 | AF52: 31 | AH52: 31 | AJ52: 31 | AL52: 31 | AN52: 31 | AO52: 31 | AP52: Not Coal Steam or O/G Steam | AQ52: 0.007 | AR52: 0.007 | AT52: 75%
A53: Hillabee Energy Center | B53: Alabama | D53: X | F53: 55411 | G53: CT2 | H53: 4696 | I53: Combined Cycle | M53: Combined cycle | N53: Y | R53: 30 | S53: 8,142,191 | T53: 1,186,416 | U53: 30 | V53: 30 | X53: 8,142,191 | Y53: 1,186,416 | Z53: 30 | AB53: 30 | AD53: 30 | AF53: 30 | AH53: 30 | AJ53: 30 | AL53: 30 | AN53: 30 | AO53: 30 | AP53: Not Coal Steam or O/G Steam | AQ53: 0.007 | AR53: 0.007 | AT53: 73%
A54: Hog Bayou Energy Center | B54: Alabama | D54: X | F54: 55241 | G54: COG01 | H54: 4286 | I54: Combined Cycle | M54: Combined cycle | N54: Y | R54: 22 | S54: 5,331,554 | T54: 700,967 | U54: 25 | V54: 22 | X54: 5,331,554 | Y54: 700,967 | Z54: 22 | AB54: 22 | AD54: 22 | AF54: 22 | AH54: 22 | AJ54: 22 | AL54: 22 | AN54: 22 | AO54: 22 | AP54: Not Coal Steam or O/G Steam | AQ54: 0.008 | AR54: 0.008 | AT54: 59%
A55: James H Miller Jr | B55: Alabama | D55: X | F55: 6002 | G55: 1 | H55: 2669 | I55: Coal Steam | M55: Dry bottom wall-fired boiler | N55: Y | Q55: 688 | R55: 628 | S55: 17,926,122 | T55: 1,835,427 | U55: 688 | V55: 628 | X55: 17,926,122 | Y55: 1,835,427 | Z55: 628 | AB55: 628 | AD55: 628 | AF55: 628 | AH55: 628 | AJ55: 628 | AL55: 628 | AN55: 628 | AO55: 628 | AP55: Existing SCR | AQ55: 0.070 | AR55: 0.070 | AT55: 45%
A56: James H Miller Jr | B56: Alabama | D56: X | F56: 6002 | G56: 2 | H56: 2670 | I56: Coal Steam | M56: Dry bottom wall-fired boiler | N56: Y | Q56: 695 | R56: 835 | S56: 25,301,758 | T56: 2,491,921 | U56: 717 | V56: 835 | X56: 25,301,758 | Y56: 2,491,921 | Z56: 835 | AB56: 835 | AD56: 835 | AF56: 835 | AH56: 835 | AJ56: 835 | AL56: 835 | AN56: 835 | AO56: 835 | AP56: Existing SCR | AQ56: 0.066 | AR56: 0.066 | AT56: 60%
A57: James H Miller Jr | B57: Alabama | D57: X | F57: 6002 | G57: 3 | H57: 2671 | I57: Coal Steam | M57: Dry bottom wall-fired boiler | N57: Y | Q57: 687 | R57: 908 | S57: 25,321,700 | T57: 2,568,283 | U57: 817 | V57: 908 | X57: 25,321,700 | Y57: 2,568,283 | Z57: 908 | AB57: 908 | AD57: 908 | AF57: 908 | AH57: 908 | AJ57: 908 | AL57: 908 | AN57: 908 | AO57: 908 | AP57: Existing SCR | AQ57: 0.072 | AR57: 0.072 | AT57: 57%
A58: James H Miller Jr | B58: Alabama | D58: X | F58: 6002 | G58: 4 | H58: 2672 | I58: Coal Steam | M58: Dry bottom wall-fired boiler | N58: Y | Q58: 699 | R58: 797 | S58: 26,945,179 | T58: 2,595,001 | U58: 755 | V58: 797 | X58: 26,945,179 | Y58: 2,595,001 | Z58: 797 | AB58: 797 | AD58: 797 | AF58: 797 | AH58: 797 | AJ58: 797 | AL58: 797 | AN58: 797 | AO58: 797 | AP58: Existing SCR | AQ58: 0.059 | AR58: 0.059 | AT58: 54%
A59: McIntosh (7063) | B59: Alabama | D59: X | F59: 7063 | G59: **1 | H59: 2924 | I59: Combustion Turbine | M59: Other turbine | R59: 6 | S59: 56,741 | T59: 12,273 | U59: 3 | V59: 6 | X59: 56,741 | Y59: 12,273 | Z59: 6 | AB59: 6 | AD59: 6 | AF59: 6 | AH59: 6 | AJ59: 6 | AL59: 6 | AN59: 6 | AO59: 6 | AP59: Not Coal Steam or O/G Steam | AQ59: 0.224 | AR59: 0.224 | AT59: 1%
A60: McIntosh (7063) | B60: Alabama | D60: X | F60: 7063 | G60: **2 | H60: 2925 | I60: Combustion Turbine | M60: Combustion turbine | R60: 8 | S60: 265,466 | T60: 22,115 | U60: 7 | V60: 8 | X60: 265,466 | Y60: 22,115 | Z60: 8 | AB60: 8 | AD60: 8 | AF60: 8 | AH60: 8 | AJ60: 8 | AL60: 8 | AN60: 8 | AO60: 8 | AP60: Not Coal Steam or O/G Steam | AQ60: 0.063 | AR60: 0.063 | AT60: 4%
A61: McIntosh (7063) | B61: Alabama | D61: X | F61: 7063 | G61: **3 | H61: 2926 | I61: Combustion Turbine | M61: Combustion turbine | R61: 9 | S61: 285,331 | T61: 23,311 | U61: 10 | V61: 9 | X61: 285,331 | Y61: 23,311 | Z61: 9 | AB61: 9 | AD61: 9 | AF61: 9 | AH61: 9 | AJ61: 9 | AL61: 9 | AN61: 9 | AO61: 9 | AP61: Not Coal Steam or O/G Steam | AQ61: 0.060 | AR61: 0.060 | AT61: 7%
A62: McIntosh (7063) | B62: Alabama | D62: X | F62: 7063 | G62: **4 | H62: 90423 | I62: Combustion Turbine | M62: Combustion turbine | R62: 25 | S62: 1,467,500 | T62: 141,161 | U62: 27 | V62: 25 | X62: 1,467,500 | Y62: 141,161 | Z62: 25 | AB62: 25 | AD62: 25 | AF62: 25 | AH62: 25 | AJ62: 25 | AL62: 25 | AN62: 25 | AO62: 25 | AP62: Not Coal Steam or O/G Steam | AQ62: 0.035 | AR62: 0.035 | AT62: 19%
A63: McIntosh (7063) | B63: Alabama | D63: X | F63: 7063 | G63: **5 | H63: 90424 | I63: Combustion Turbine | M63: Combustion turbine | R63: 26 | S63: 1,514,613 | T63: 145,511 | U63: 24 | V63: 26 | X63: 1,514,613 | Y63: 145,511 | Z63: 26 | AB63: 26 | AD63: 26 | AF63: 26 | AH63: 26 | AJ63: 26 | AL63: 26 | AN63: 26 | AO63: 26 | AP63: Not Coal Steam or O/G Steam | AQ63: 0.034 | AR63: 0.034 | AT63: 17%
A64: McWilliams | B64: Alabama | D64: X | F64: 533 | G64: **4 | H64: 320 | I64: Combined Cycle | M64: Combined cycle | R64: 31 | S64: 1,590,754 | T64: 154,870 | U64: 32 | V64: 31 | X64: 1,590,754 | Y64: 154,870 | Z64: 31 | AB64: 31 | AD64: 31 | AF64: 31 | AH64: 31 | AJ64: 31 | AL64: 31 | AN64: 31 | AO64: 31 | AP64: Not Coal Steam or O/G Steam | AQ64: 0.039 | AR64: 0.039 | AT64: 31%
A65: McWilliams | B65: Alabama | D65: X | F65: 533 | G65: **V1 | H65: 324 | I65: Combined Cycle | M65: Combined cycle | N65: Y | R65: 31 | S65: 5,529,428 | T65: 528,889 | U65: 33 | V65: 31 | X65: 5,529,428 | Y65: 528,889 | Z65: 31 | AB65: 31 | AD65: 31 | AF65: 31 | AH65: 31 | AJ65: 31 | AL65: 31 | AN65: 31 | AO65: 31 | AP65: Not Coal Steam or O/G Steam | AQ65: 0.011 | AR65: 0.011 | AT65: 76%
A66: McWilliams | B66: Alabama | D66: X | F66: 533 | G66: **V2 | H66: 325 | I66: Combined Cycle | M66: Combined cycle | N66: Y | R66: 34 | S66: 6,081,831 | T66: 577,847 | U66: 35 | V66: 34 | X66: 6,081,831 | Y66: 577,847 | Z66: 34 | AB66: 34 | AD66: 34 | AF66: 34 | AH66: 34 | AJ66: 34 | AL66: 34 | AN66: 34 | AO66: 34 | AP66: Not Coal Steam or O/G Steam | AQ66: 0.011 | AR66: 0.011 | AT66: 81%
A67: Morgan Energy Center | B67: Alabama | D67: X | F67: 55293 | G67: CT-1 | H67: 4462 | I67: Combined Cycle | M67: Combined cycle | N67: Y | R67: 11 | S67: 4,273,228 | T67: 568,396 | U67: 13 | V67: 11 | X67: 4,273,228 | Y67: 568,396 | Z67: 11 | AB67: 11 | AD67: 11 | AF67: 11 | AH67: 11 | AJ67: 11 | AL67: 11 | AN67: 11 | AO67: 11 | AP67: Not Coal Steam or O/G Steam | AQ67: 0.005 | AR67: 0.005 | AT67: 46%
A68: Morgan Energy Center | B68: Alabama | D68: X | F68: 55293 | G68: CT-2 | H68: 4463 | I68: Combined Cycle | M68: Combined cycle | N68: Y | R68: 15 | S68: 4,278,585 | T68: 559,931 | U68: 15 | V68: 15 | X68: 4,278,585 | Y68: 559,931 | Z68: 15 | AB68: 15 | AD68: 15 | AF68: 15 | AH68: 15 | AJ68: 15 | AL68: 15 | AN68: 15 | AO68: 15 | AP68: Not Coal Steam or O/G Steam | AQ68: 0.007 | AR68: 0.007 | AT68: 48%
A69: Morgan Energy Center | B69: Alabama | D69: X | F69: 55293 | G69: CT-3 | H69: 4464 | I69: Combined Cycle | M69: Combined cycle | N69: Y | R69: 14 | S69: 3,980,535 | T69: 524,698 | U69: 13 | V69: 14 | X69: 3,980,535 | Y69: 524,698 | Z69: 14 | AB69: 14 | AD69: 14 | AF69: 14 | AH69: 14 | AJ69: 14 | AL69: 14 | AN69: 14 | AO69: 14 | AP69: Not Coal Steam or O/G Steam | AQ69: 0.007 | AR69: 0.007 | AT69: 43%
A70: Plant H. Allen Franklin | B70: Alabama | D70: X | F70: 7710 | G70: 1A | H70: 3285 | I70: Combined Cycle | M70: Combined cycle | N70: Y | R70: 27 | S70: 5,683,094 | T70: 854,719 | U70: 27 | V70: 27 | X70: 5,683,094 | Y70: 854,719 | Z70: 27 | AB70: 27 | AD70: 27 | AF70: 27 | AH70: 27 | AJ70: 27 | AL70: 27 | AN70: 27 | AO70: 27 | AP70: Not Coal Steam or O/G Steam | AQ70: 0.009 | AR70: 0.009 | AT70: 64%
A71: Plant H. Allen Franklin | B71: Alabama | D71: X | F71: 7710 | G71: 1B | H71: 3286 | I71: Combined Cycle | M71: Combined cycle | N71: Y | R71: 27 | S71: 5,811,106 | T71: 870,409 | U71: 27 | V71: 27 | X71: 5,811,106 | Y71: 870,409 | Z71: 27 | AB71: 27 | AD71: 27 | AF71: 27 | AH71: 27 | AJ71: 27 | AL71: 27 | AN71: 27 | AO71: 27 | AP71: Not Coal Steam or O/G Steam | AQ71: 0.009 | AR71: 0.009 | AT71: 65%
A72: Plant H. Allen Franklin | B72: Alabama | D72: X | F72: 7710 | G72: 2A | H72: 3287 | I72: Combined Cycle | M72: Combined cycle | N72: Y | R72: 22 | S72: 4,712,040 | T72: 679,587 | U72: 27 | V72: 22 | X72: 4,712,040 | Y72: 679,587 | Z72: 22 | AB72: 22 | AD72: 22 | AF72: 22 | AH72: 22 | AJ72: 22 | AL72: 22 | AN72: 22 | AO72: 22 | AP72: Not Coal Steam or O/G Steam | AQ72: 0.009 | AR72: 0.009 | AT72: 65%
A73: Plant H. Allen Franklin | B73: Alabama | D73: X | F73: 7710 | G73: 2B | H73: 3288 | I73: Combined Cycle | M73: Combined cycle | N73: Y | R73: 21 | S73: 4,641,663 | T73: 680,062 | U73: 26 | V73: 21 | X73: 4,641,663 | Y73: 680,062 | Z73: 21 | AB73: 21 | AD73: 21 | AF73: 21 | AH73: 21 | AJ73: 21 | AL73: 21 | AN73: 21 | AO73: 21 | AP73: Not Coal Steam or O/G Steam | AQ73: 0.009 | AR73: 0.009 | AT73: 65%
A74: Plant H. Allen Franklin | B74: Alabama | D74: X | F74: 7710 | G74: 3A | H74: 3289 | I74: Combined Cycle | M74: Combined cycle | N74: Y | R74: 26 | S74: 6,251,194 | T74: 899,427 | U74: 27 | V74: 26 | X74: 6,251,194 | Y74: 899,427 | Z74: 26 | AB74: 26 | AD74: 26 | AF74: 26 | AH74: 26 | AJ74: 26 | AL74: 26 | AN74: 26 | AO74: 26 | AP74: Not Coal Steam or O/G Steam | AQ74: 0.008 | AR74: 0.008 | AT74: 69%
A75: Plant H. Allen Franklin | B75: Alabama | D75: X | F75: 7710 | G75: 3B | H75: 3290 | I75: Combined Cycle | M75: Combined cycle | N75: Y | R75: 28 | S75: 5,849,573 | T75: 853,044 | U75: 28 | V75: 28 | X75: 5,849,573 | Y75: 853,044 | Z75: 28 | AB75: 28 | AD75: 28 | AF75: 28 | AH75: 28 | AJ75: 28 | AL75: 28 | AN75: 28 | AO75: 28 | AP75: Not Coal Steam or O/G Steam | AQ75: 0.010 | AR75: 0.010 | AT75: 66%
A76: SABIC Innovative Plastics - Burkville | B76: Alabama | D76: X | F76: 7698 | G76: CC1 | H76: 3140 | I76: Combined Cycle | M76: Combined cycle | R76: 32 | S76: 2,368,504 | T76: 345,344 | U76: 29 | V76: 32 | X76: 2,368,504 | Y76: 345,344 | Z76: 32 | AB76: 32 | AD76: 32 | AF76: 32 | AH76: 32 | AJ76: 32 | AL76: 32 | AN76: 32 | AO76: 32 | AP76: Not Coal Steam or O/G Steam | AQ76: 0.027 | AR76: 0.027 | AT76: 41%
A77: Tenaska Lindsay Hill Generating Station | B77: Alabama | D77: X | F77: 55271 | G77: CT1 | H77: 4383 | I77: Combined Cycle | M77: Combined cycle | N77: Y | R77: 2 | S77: 381,101 | T77: 51,366 | U77: 7 | V77: 2 | X77: 381,101 | Y77: 51,366 | Z77: 2 | AB77: 2 | AD77: 2 | AF77: 2 | AH77: 2 | AJ77: 2 | AL77: 2 | AN77: 2 | AO77: 2 | AP77: Not Coal Steam or O/G Steam | AQ77: 0.011 | AR77: 0.011 | AT77: 19%
A78: Tenaska Lindsay Hill Generating Station | B78: Alabama | D78: X | F78: 55271 | G78: CT2 | H78: 4384 | I78: Combined Cycle | M78: Combined cycle | N78: Y | R78: 2 | S78: 411,876 | T78: 50,349 | U78: 7 | V78: 2 | X78: 411,876 | Y78: 50,349 | Z78: 2 | AB78: 2 | AD78: 2 | AF78: 2 | AH78: 2 | AJ78: 2 | AL78: 2 | AN78: 2 | AO78: 2 | AP78: Not Coal Steam or O/G Steam | AQ78: 0.011 | AR78: 0.011 | AT78: 20%
A79: Tenaska Lindsay Hill Generating Station | B79: Alabama | D79: X | F79: 55271 | G79: CT3 | H79: 4385 | I79: Combined Cycle | M79: Combined cycle | N79: Y | R79: 24 | S79: 6,665,235 | T79: 874,205 | U79: 14 | V79: 24 | X79: 6,665,235 | Y79: 874,205 | Z79: 24 | AB79: 24 | AD79: 24 | AF79: 24 | AH79: 24 | AJ79: 24 | AL79: 24 | AN79: 24 | AO79: 24 | AP79: Not Coal Steam or O/G Steam | AQ79: 0.007 | AR79: 0.007 | AT79: 42%
A80: Theodore Cogeneration | B80: Alabama | D80: X | F80: 7721 | G80: CC1 | H80: 3151 | I80: Combined Cycle | M80: Combined cycle | N80: Y | R80: 18 | S80: 5,096,523 | T80: 850,554 | U80: 20 | V80: 18 | X80: 5,096,523 | Y80: 850,554 | Z80: 18 | AB80: 18 | AD80: 18 | AF80: 18 | AH80: 18 | AJ80: 18 | AL80: 18 | AN80: 18 | AO80: 18 | AP80: Not Coal Steam or O/G Steam | AQ80: 0.007 | AR80: 0.007 | AT80: 59%
A81: Walton Discover Power Facility | B81: Alabama | D81: X | F81: 55138 | G81: 1A | H81: 88304 | I81: Combustion Turbine | M81: Combustion turbine | U81: 1 | AP81: Not Coal Steam or O/G Steam | AQ81: 0.000 | AR81: 0.000 | AT81: 1%
A82: Walton Discover Power Facility | B82: Alabama | D82: X | F82: 55138 | G82: 1B | H82: 88305 | I82: Combustion Turbine | M82: Combustion turbine | U82: 2 | AP82: Not Coal Steam or O/G Steam | AQ82: 0.000 | AR82: 0.000 | AT82: 1%
A83: Walton Discover Power Facility | B83: Alabama | D83: X | F83: 55138 | G83: 2A | H83: 88306 | I83: Combustion Turbine | M83: Combustion turbine | U83: 0 | AP83: Not Coal Steam or O/G Steam | AQ83: 0.000 | AR83: 0.000 | AT83: 0%
A84: Walton Discover Power Facility | B84: Alabama | D84: X | F84: 55138 | G84: 2B | H84: 88307 | I84: Combustion Turbine | M84: Combustion turbine | U84: 0 | AP84: Not Coal Steam or O/G Steam | AQ84: 0.000 | AR84: 0.000 | AT84: 0%
A85: Washington County Cogen (Olin) | B85: Alabama | D85: X | F85: 7697 | G85: CC1 | H85: 3139 | I85: Combined Cycle | M85: Combined cycle | R85: 42 | S85: 3,428,147 | T85: 469,534 | U85: 62 | V85: 42 | X85: 3,428,147 | Y85: 469,534 | Z85: 42 | AB85: 42 | AD85: 42 | AF85: 42 | AH85: 42 | AJ85: 42 | AL85: 42 | AN85: 42 | AO85: 42 | AP85: Not Coal Steam or O/G Steam | AQ85: 0.025 | AR85: 0.025 | AT85: 71%
A86: APS Saguaro Power Plant | B86: Arizona | F86: 118 | G86: CT3 | H86: 8250 | I86: Combustion Turbine | M86: Combustion turbine | R86: 6 | S86: 378,022 | T86: 29,313 | U86: 5 | V86: 6 | X86: 378,022 | Y86: 29,313 | Z86: 6 | AB86: 6 | AD86: 6 | AF86: 6 | AH86: 6 | AJ86: 6 | AL86: 6 | AN86: 6 | AO86: 6 | AP86: Not Coal Steam or O/G Steam | AQ86: 0.034 | AR86: 0.034 | AT86: 8%
A87: APS West Phoenix Power Plant | B87: Arizona | F87: 117 | G87: CC4 | H87: 70 | I87: Combined Cycle | M87: Combined cycle | R87: 22 | S87: 1,495,041 | T87: 183,566 | U87: 22 | V87: 22 | X87: 1,495,041 | Y87: 183,566 | Z87: 22 | AB87: 22 | AD87: 22 | AF87: 22 | AH87: 22 | AJ87: 22 | AL87: 22 | AN87: 22 | AO87: 22 | AP87: Not Coal Steam or O/G Steam | AQ87: 0.029 | AR87: 0.029 | AT87: 36%
A88: APS West Phoenix Power Plant | B88: Arizona | F88: 117 | G88: CC5A | H88: 71 | I88: Combined Cycle | M88: Combined cycle | N88: Y | R88: 26 | S88: 3,369,384 | T88: 495,793 | U88: 25 | V88: 26 | X88: 3,369,384 | Y88: 495,793 | Z88: 26 | AB88: 26 | AD88: 26 | AF88: 20 | AG88: Optimize SCR | AH88: 20 | AJ88: 20 | AL88: 20 | AN88: 20 | AO88: 20 | AP88: Not Coal Steam or O/G Steam | AQ88: 0.012 | AR88: 0.012 | AT88: 46%
A89: APS West Phoenix Power Plant | B89: Arizona | F89: 117 | G89: CC5B | H89: 88097 | I89: Combined Cycle | M89: Combined cycle | N89: Y | R89: 31 | S89: 4,320,052 | T89: 625,127 | U89: 28 | V89: 31 | X89: 4,320,052 | Y89: 625,127 | Z89: 31 | AB89: 31 | AD89: 31 | AF89: 26 | AG89: Optimize SCR | AH89: 26 | AJ89: 26 | AL89: 26 | AN89: 26 | AO89: 26 | AP89: Not Coal Steam or O/G Steam | AQ89: 0.012 | AR89: 0.012 | AT89: 52%
A90: Agua Fria Generating Station | B90: Arizona | F90: 141 | G90: 1 | H90: 86 | I90: O/G Steam | M90: Dry bottom wall-fired boiler | Q90: 113 | R90: 33 | S90: 295,880 | T90: 27,373 | U90: 80 | V90: 33 | X90: 295,880 | Y90: 27,373 | Z90: 33 | AB90: 33 | AD90: 33 | AF90: 33 | AH90: 33 | AJ90: 33 | AL90: 33 | AN90: 33 | AO90: 33 | AP90: Oil/Gas Steam Under 150 Tons (2019-2021 Average) | AQ90: 0.224 | AR90: 0.224 | AT90: 8%
A91: Agua Fria Generating Station | B91: Arizona | F91: 141 | G91: 2 | H91: 87 | I91: O/G Steam | M91: Dry bottom wall-fired boiler | Q91: 113 | R91: 30 | S91: 278,807 | T91: 25,772 | U91: 67 | V91: 30 | X91: 278,807 | Y91: 25,772 | Z91: 30 | AB91: 30 | AD91: 30 | AF91: 30 | AH91: 30 | AJ91: 30 | AL91: 30 | AN91: 30 | AO91: 30 | AP91: Oil/Gas Steam Under 150 Tons (2019-2021 Average) | AQ91: 0.214 | AR91: 0.214 | AT91: 7%
A92: Agua Fria Generating Station | B92: Arizona | F92: 141 | G92: 3 | H92: 88 | I92: O/G Steam | M92: Dry bottom turbo-fired boiler | Q92: 181 | R92: 88 | S92: 520,440 | T92: 48,235 | U92: 226 | V92: 88 | X92: 520,440 | Y92: 48,235 | Z92: 88 | AB92: 88 | AD92: 88 | AF92: 88 | AH92: 88 | AJ92: 88 | AL92: 88 | AN92: 48 | AO92: 8 | AP92: O/G Steam SCR Retrofit | AQ92: 0.337 | AR92: 0.030 | AT92: 11%
A93: Apache Station | B93: Arizona | F93: 160 | G93: 1 | H93: 92 | I93: O/G Steam | M93: Dry bottom wall-fired boiler | Q93: 72 | R93: 16 | S93: 828,335 | T93: 73,605 | U93: 22 | V93: 16 | X93: 828,335 | Y93: 73,605 | Z93: 16 | AB93: 16 | AD93: 16 | AF93: 16 | AH93: 16 | AJ93: 16 | AL93: 16 | AN93: 16 | AO93: 16 | AP93: O/G Steam Under 100 MW | AQ93: 0.039 | AR93: 0.039 | AT93: 31%
